Workbook

Sheet Cover

Sheet Information
A1: =Main!A1 -> DBNGP, DBNGP Tariff Model, Draft Decision, August 2025
A2: =MID(CELL("filename",A1),FIND("]",CELL("filename",A1))+1,256) -> Information
A3: Prior to using this model
B4: The Excel VBA macro must be enabled prior to opening this model to allow the use of macro to perform computation.
A6: Annual update of Trailing Average DRP for Tariff Variation
B7: For each year prior to the variation year (of tariff variation) there will be an annual update of the Trailing Average Debt Risk Premium (DRP).
B8: Annual update of Trailing Average DRP is updated by entering the annual DRP at Input sheet Cells(AE11:AH11).
B9: After entering the annual updates, click on the [Calculate] button .
B10: The X-Factor (price change) and the revised tariffs at 31-December-2024 $ for the variation year will be computed.
B11: This model will also apply the tariff variation mechanism
B12: The Reference Tariff will be presented in the Main sheet.
A14: Worksheets
B16: Worksheet | C16: Description
B17: Main | C17: Summary of outputs
B18: WACC | C18: Contains the relevant parameters related to computing the WACC
B19: Inputs | C19: Contains general inputs of assumptions, capital expenditures, redundant and disposed assets, operating expenditures, approved depreciations
B20: IncentiveMechanism | C20: E-Factor incentive mechanism calculation
B21: Load | C21: Contains inputs of pipeline distances and capacity and throughput gas volumes
B22: CoS_Tariff_Revenue | C22: Computations of total revenue building block (cost of service), inflationary gain, tariff, tariff revenue and Credit Foncier Check
B23: Tax_CoRE | C23: Contains calculation of tax, imputation credit and cost of raising equity
B24: RebateableServices | C24: This sheet computes the Rebateable Forecast Total System F/H Equivalent Tariff [$ /GJ/day] which will be used for adjustment for producing the reference tariff.
B25: Assets | C25: Contains accounts of regulatory asset base and depreciation calculations in Real 31-December-2024 $m
B26: 2020 Capex NGR 77(2)(a) | C26: Asset roll forward adjustment calculation for 2020
B27: Tax_Asset | C27: Contains regulatory asset tax depreciation computations in nominal $m
B28: BEP | C28: Contains calculation of BEP Lease asset value
B29: SolverSheet | C29: Contains inputs, target outputs and settings for Solver to compute the X-Factor and tariffs after the annual update of Trailing Average DRP and Cost Pass Through event is completed.
B30: Tariff_Variation | C30: The forecast tariffs are recalculated to produce the Reference Tariffs based on the proxy CPI (actual September CPIs)

Sheet Main
A1: DBNGP, DBNGP Tariff Model, Draft Decision, August 2025
A2: Main Summary
A3: Ref | B3: =COLUMN() -> 2 | C3: =COLUMN() -> 3 | D3: =COLUMN() -> 4 | E3: =COLUMN() -> 5 | F3: =COLUMN() -> 6 | G3: =COLUMN() -> 7 | H3: =COLUMN() -> 8
A4: WACC
A5: =ROW() -> 5 | C5: Post-tax WACC | D5: =Inputs!AI6 -> 2026 | E5: =Inputs!AJ6 -> 2027 | F5: =Inputs!AK6 -> 2028 | G5: =Inputs!AL6 -> 2029 | H5: =Inputs!AM6 -> 2030 | Y5: Instruction for Annual Update of DRP:
A6: =ROW() -> 6 | C6: ="Real at "&Inputs!$E$26 -> Real at 31/12/2024 | D6: =WACC!Y$37 -> 0.0499370739 | E6: =WACC!Z$37 -> 0.0499370739 | F6: =WACC!AA$37 -> 0.0499370739 | G6: =WACC!AB$37 -> 0.0499370739 | H6: =WACC!AC$37 -> 0.0499370739 | Y6: (1) Excel VBA Macro must be enabled
A7: =ROW() -> 7 | C7: Nominal (Vanilla) | D7: =WACC!Y$36 -> 0.07156577762 | E7: =WACC!Z$36 -> 0.07156577762 | F7: =WACC!AA$36 -> 0.07156577762 | G7: =WACC!AB$36 -> 0.07156577762 | H7: =WACC!AC$36 -> 0.07156577762
A8: =ROW() -> 8 | Y8: (2) Update the current year Trailing Average DRP in the Input sheet
A9: Closing Regulated Asset Base | Y9: (3) Click the "Calculate" button to recalculate the model
A10: =ROW() -> 10 | Y10: Solver is used to calculate X-Factor (price change) and Cost of Raising Equity so that Delta=0
A11: =ROW() -> 11 | D11: December 2025 | E11: December 2030 | Y11: ="(4) The output will be a new X-Faxtor to compute new tariffs starting 1 January of the following" -> (4) The output will be a new X-Faxtor to compute new tariffs starting 1 January of the following
A12: =ROW() -> 12 | D12: =Inputs!$E$26&" [m$]" -> 31/12/2024 [m$] | E12: =Inputs!$E$26&" [m$]" -> 31/12/2024 [m$] | Y12: =" year in Real $ at "&Inputs!$E$26 -> year in Real $ at 31/12/2024
A13: =ROW() -> 13 | C13: Closing Asset Value of DBNGP including BEP Assets | D13: =Asset!$AH$25 -> 3444.481018 | E13: =Asset!$AM$25 -> 2898.588452
A14: =ROW() -> 14 | C14: Closing Asset Value of DBNGP Assets | D14: =Asset!$AH$43 -> 3424.333546 | E14: =Asset!$AM$43 -> 2881.16361 | AA14: Recalculate for years: | AB14: =Recalc_From_Year&" to 2030" -> 2026 to 2030
A15: =ROW() -> 15 | AB15: ="X-Factor_"&Inputs!AI6 -> X-Factor_2026 | AC15: ="X-Factor_"&Inputs!AJ6 -> X-Factor_2027 | AD15: ="X-Factor_"&Inputs!AK6 -> X-Factor_2028 | AE15: ="X-Factor_"&Inputs!AL6 -> X-Factor_2029 | AF15: ="X-Factor_"&Inputs!AM6 -> X-Factor_2030
A16: Revenue Building Block | O16: Revenue Building Block | AA16: X-Factor (price change) = | AB16: =SolverSheet!I13 -> 0.4317564622 | AC16: =SolverSheet!J13 -> 0 | AD16: =SolverSheet!K13 -> 0 | AE16: =SolverSheet!L13 -> 0 | AF16: =SolverSheet!M13 -> 0
A17: =ROW() -> 17 | E17: AA6 | AA17: Delta = | AB17: =SolverSheet!F16 -> 5.536548997e-10
A18: =ROW() -> 18 | D18: ="Real " -> Real | E18: Nominal | F18: Real [%] | G18: Nominal [%] | P18: ="Real at "&Inputs!$E$26&" [m$]" -> Real at 31/12/2024 [m$] | Q18: Nominal [m$] | Y18: (5) The Reference Tariff will also be presented after the actual September CPI is updated
A19: =ROW() -> 19 | B19: ="PV of Total Revenue (CoS) [m$ "&Inputs!$E$26&"]" -> PV of Total Revenue (CoS) [m$ 31/12/2024] | O19: ="Total Revenue (CoS)" -> Total Revenue (CoS)
A20: =ROW() -> 20 | C20: Opex | D20: =SUM(CoS_Tariff_Revenue!$F$80:$F$82) -> 513.0175398 | E20: =SUM(CoS_Tariff_Revenue!$F$41:$F$43) -> 513.0175398 | F20: =D20/D$27 -> 0.2709159154 | G20: 0.2709159154 | O20: Opex | P20: =SUM(CoS_Tariff_Revenue!$AM$80:$AQ$82) -> 622.2792804 | Q20: =SUM(CoS_Tariff_Revenue!$AM$41:$AQ$43) -> 675.5766429
A21: =ROW() -> 21 | C21: Depreciation | D21: =CoS_Tariff_Revenue!$F$83 -> 672.0454877 | E21: =CoS_Tariff_Revenue!$F$44 -> 672.0454877 | F21: 0.3548958941 | G21: 0.3548958941 | O21: Depreciation | P21: =SUM(CoS_Tariff_Revenue!$AM$83:$AQ$83) -> 814.9862022 | Q21: =SUM(CoS_Tariff_Revenue!$AM$44:$AQ$44) -> 884.721529 | Y21: Notes on colour codes
A22: =ROW() -> 22 | C22: Inflationary Gains on RAB | E22: =CoS_Tariff_Revenue!$F$45 -> -270.4152804 | F22: 0 | G22: -0.1428017515 | O22: Inflationary Gains on RAB | Q22: =SUM(CoS_Tariff_Revenue!$AM$45:$AQ$45) -> -354.2788925
A23: =ROW() -> 23 | C23: Return on Asset | D23: =CoS_Tariff_Revenue!$F$84 -> 669.0254878 | E23: =CoS_Tariff_Revenue!$F$46 -> 939.4407682 | F23: 0.353301083 | G23: 0.4961028345 | O23: Return on Asset | P23: =SUM(CoS_Tariff_Revenue!$AM$84:$AQ$84) -> 808.5728098 | Q23: =SUM(CoS_Tariff_Revenue!$AM$46:$AQ$46) -> 1230.788565 | Y23: Number | Z23: ===> | AA23: Data entries
A24: =ROW() -> 24 | C24: Tax | D24: =CoS_Tariff_Revenue!$F$85 -> 166.6347766 | E24: =CoS_Tariff_Revenue!$F$47 -> 166.6347766 | F24: 0.08799701674 | G24: 0.08799701674 | O24: Tax | P24: =SUM(CoS_Tariff_Revenue!$AM$85:$AQ$85) -> 203.8318136 | Q24: =SUM(CoS_Tariff_Revenue!$AM$47:$AQ$47) -> 222.0698076 | Y24: Number | Z24: ===> | AA24: Number or texts that are linked to other sheet
C25: Imputation Credits | D25: =CoS_Tariff_Revenue!$F$86 -> -83.31738831 | E25: =CoS_Tariff_Revenue!$F$48 -> -83.31738831 | F25: =D25/D$27 -> -0.04399850837 | G25: =E25/E$27 -> -0.04399850837 | O25: Imputation Credits | P25: =SUM(CoS_Tariff_Revenue!$AM$86:$AQ$86) -> -101.9159068 | Q25: =SUM(CoS_Tariff_Revenue!$AM$48:$AQ$48) -> -111.0349038
A26: =ROW() -> 26 | C26: E-Factor | D26: =CoS_Tariff_Revenue!$F$87 -> -43.76470089 | E26: =CoS_Tariff_Revenue!$F$49 -> -43.76470089 | F26: -0.02311140084 | G26: -0.02311140084 | O26: E-Factor | P26: =SUM(CoS_Tariff_Revenue!$AM$87:$AQ$87) -> -52.3 | Q26: =SUM(CoS_Tariff_Revenue!$AM$49:$AQ$49) -> -56.38798174 | Y26: Number | Z26: ===> | AA26: Contains formula that is not consistent with the others in the same row
A27: =ROW() -> 27 | C27: Cost of Service | D27: =SUM(D20:D26) -> 1893.641203 | E27: =SUM(E20:E26) -> 1893.641203 | F27: 1 | G27: 1 | O27: Cost of Service | P27: =SUM(P20:P26) -> 2295.454199 | Q27: =SUM(Q20:Q26) -> 2491.454766 | Y27: -Number | Z27: ===> | AA27: Excel formatting for negative number
A28: =ROW() -> 28 | C28: less non-reference cost of service | D28: =CoS_Tariff_Revenue!F90 -> -37.87282405 | E28: =CoS_Tariff_Revenue!F52 -> -37.87282405 | O28: less non-reference cost of service | P28: =SUM(CoS_Tariff_Revenue!$AM$90:$AQ$90) -> -45.90908398 | Q28: =SUM(CoS_Tariff_Revenue!$AM$52:$AQ$52) -> -49.82909533
A29: =ROW() -> 29 | C29: add back SUG | D29: =CoS_Tariff_Revenue!F91 -> 1.556849192 | E29: =CoS_Tariff_Revenue!F53 -> 1.556849192 | O29: add back SUG | P29: =SUM(CoS_Tariff_Revenue!$AM$91:$AQ$91) -> 1.889164144 | Q29: =SUM(CoS_Tariff_Revenue!$AM$53:$AQ$53) -> 2.051306154
A30: =ROW() -> 30 | C30: Total Unsmooth Revenue | D30: =SUM(D27:D29) -> 1857.325228 | E30: =SUM(E27:E29) -> 1857.325228 | O30: Total Unsmooth Revenue | P30: =SUM(P27:P29) -> 2251.434279 | Q30: =SUM(Q27:Q29) -> 2443.676977
A31: =ROW() -> 31 | C31: Total Tariff Revenue | D31: =CoS_Tariff_Revenue!$F$93 -> 1857.325228 | E31: =CoS_Tariff_Revenue!$F$55 -> 1857.325228 | O31: Total Tariff Revenue | P31: =SUM(CoS_Tariff_Revenue!$AM$93:$AQ$93) -> 2249.792313 | Q31: =SUM(CoS_Tariff_Revenue!$AM$55:$AQ$55) -> 2441.145487
A32: =ROW() -> 32 | C32: Check: | D32: =IF(ROUND(D30-D31,5)=0,"OK","Wrong") -> OK | E32: =IF(ROUND(E30-E31,5)=0,"OK","Wrong") -> OK | O32: Difference (Unsmooth Revenue-Tariff Revenue) | P32: =P27-P31 -> 45.66188662 | Q32: =Q27-Q31 -> 50.3092793
A33: =ROW() -> 33
A34: =ROW() -> 34
A35: Check on Building Block
A36: =ROW() -> 36
A37: =ROW() -> 37 | B37: ="PV of Regulatory Revenue [m$ "&Inputs!$E$26&"]" -> PV of Regulatory Revenue [m$ 31/12/2024]
A38: =ROW() -> 38 | C38: Asset Opening Value | D38: =-CoS_Tariff_Revenue!$F$122 -> 3280.654721
A39: =ROW() -> 39 | C39: Asset Residual Value | D39: =-CoS_Tariff_Revenue!$F$124 -> -2163.749251
A40: =ROW() -> 40 | C40: Opex | D40: =-CoS_Tariff_Revenue!$F$117 -> 513.0175398
A41: =ROW() -> 41 | C41: Capex | D41: =-CoS_Tariff_Revenue!$F$123 -> 224.1655049
A42: =ROW() -> 42 | C42: Tax | D42: =-CoS_Tariff_Revenue!$F$118 -> 166.6347766
C43: Imputation Credits | D43: =-CoS_Tariff_Revenue!$F$119 -> -83.31738831
A44: =ROW() -> 44 | C44: E-Factor | D44: =-CoS_Tariff_Revenue!$F$120 -> -43.76470089
A45: =ROW() -> 45 | C45: Cost of Service | D45: =SUM(D38:D44) -> 1893.641203
A46: =ROW() -> 46 | C46: Check: | D46: =IF(ROUND(E27-D45,8)=0,"OK","Wrong") -> OK
A47: =ROW() -> 47
A48: PV of Forecast Revenue | O48: Total of Forecast Revenue
A49: =ROW() -> 49 | P49: ="Real at "&Inputs!$E$26&" [m$]" -> Real at 31/12/2024 [m$] | Q49: Nominal [m$]
A50: =ROW() -> 50 | B50: ="PV of Forecast Revenue [m$ "&Inputs!$E$26&"]" -> PV of Forecast Revenue [m$ 31/12/2024] | O50: Total of Forecast Revenue
A51: =ROW() -> 51 | C51: Capacity Reservation | D51: =CoS_Tariff_Revenue!$F247 -> 1764.086017 | O51: Capacity Reservation | P51: =SUM(CoS_Tariff_Revenue!$AM$247:$AQ$247) -> 2136.679754 | Q51: =SUM(CoS_Tariff_Revenue!$AM$217:$AQ$217) -> 2318.3361
A52: =ROW() -> 52 | C52: Commodity | D52: =CoS_Tariff_Revenue!$F248 -> 93.23921082 | O52: Commodity | P52: =SUM(CoS_Tariff_Revenue!$AM$248:$AQ$248) -> 113.1125583 | Q52: =SUM(CoS_Tariff_Revenue!$AM$218:$AQ$218) -> 122.8093872
A53: =ROW() -> 53 | C53: Regulated Revenue | D53: =CoS_Tariff_Revenue!$F249 -> 1857.325228 | O53: Regulated Revenue | P53: =SUM(CoS_Tariff_Revenue!$AM$249:$AQ$249) -> 2249.792313 | Q53: =SUM(CoS_Tariff_Revenue!$AM$219:$AQ$219) -> 2441.145487
A54: =ROW() -> 54 | C54: Check: | D54: =IF(ROUND(D30-D53,5)=0,"OK","Wrong") -> OK
A55: =ROW() -> 55
A56: =ROW() -> 56
A57: Forecast Reference Tariff | D57: =CoS_Tariff_Revenue!AM$6 -> 2026 | E57: =CoS_Tariff_Revenue!AN$6 -> 2027 | F57: =CoS_Tariff_Revenue!AO$6 -> 2028 | G57: =CoS_Tariff_Revenue!AP$6 -> 2029 | H57: =CoS_Tariff_Revenue!AQ$6 -> 2030
D58: Jan-Dec | E58: Jan-Dec | F58: Jan-Dec | G58: Jan-Dec | H58: Jan-Dec
A59: =ROW() -> 59 | B59: Full Haul T1 Service (T1 Service)
A60: =ROW() -> 60 | B60: ="Tariff [$/GJ/day "&Inputs!$E$26&"]" -> Tariff [$/GJ/day 31/12/2024]
A61: =ROW() -> 61 | C61: Capacity Reservation Tariff | D61: =CoS_Tariff_Revenue!AM$270 -> 2.130074713 | E61: =CoS_Tariff_Revenue!AN$270 -> 2.130074713 | F61: =CoS_Tariff_Revenue!AO$270 -> 2.130074713 | G61: =CoS_Tariff_Revenue!AP$270 -> 2.130074713 | H61: =CoS_Tariff_Revenue!AQ$270 -> 2.130074713
A62: =ROW() -> 62 | C62: Commodity Tariff | D62: =CoS_Tariff_Revenue!AM$271 -> 0.1272872926 | E62: =CoS_Tariff_Revenue!AN$271 -> 0.1272872926 | F62: =CoS_Tariff_Revenue!AO$271 -> 0.1272872926 | G62: =CoS_Tariff_Revenue!AP$271 -> 0.1272872926 | H62: =CoS_Tariff_Revenue!AQ$271 -> 0.1272872926
A63: =ROW() -> 63 | C63: Total Tariff | D63: =CoS_Tariff_Revenue!AM$272 -> 2.257362006 | E63: =CoS_Tariff_Revenue!AN$272 -> 2.257362006 | F63: =CoS_Tariff_Revenue!AO$272 -> 2.257362006 | G63: =CoS_Tariff_Revenue!AP$272 -> 2.257362006 | H63: =CoS_Tariff_Revenue!AQ$272 -> 2.257362006
A64: =ROW() -> 64 | B64: Part Haul T1 Service (P1 Service)
A65: =ROW() -> 65 | B65: ="Tariff [$/GJ/day/km "&Inputs!$E$26&"]" -> Tariff [$/GJ/day/km 31/12/2024]
A66: =ROW() -> 66 | C66: Capacity Reservation Tariff | D66: =CoS_Tariff_Revenue!AM$280 -> 0.001522569488 | E66: =CoS_Tariff_Revenue!AN$280 -> 0.001522569488 | F66: =CoS_Tariff_Revenue!AO$280 -> 0.001522569488 | G66: =CoS_Tariff_Revenue!AP$280 -> 0.001522569488 | H66: =CoS_Tariff_Revenue!AQ$280 -> 0.001522569488
A67: =ROW() -> 67 | C67: Commodity Tariff | D67: =CoS_Tariff_Revenue!AM$281 -> 9.098448363e-05 | E67: =CoS_Tariff_Revenue!AN$281 -> 9.098448363e-05 | F67: =CoS_Tariff_Revenue!AO$281 -> 9.098448363e-05 | G67: =CoS_Tariff_Revenue!AP$281 -> 9.098448363e-05 | H67: =CoS_Tariff_Revenue!AQ$281 -> 9.098448363e-05
A68: =ROW() -> 68 | C68: Total Tariff | D68: =CoS_Tariff_Revenue!AM$282 -> 0.001613553971 | E68: =CoS_Tariff_Revenue!AN$282 -> 0.001613553971 | F68: =CoS_Tariff_Revenue!AO$282 -> 0.001613553971 | G68: =CoS_Tariff_Revenue!AP$282 -> 0.001613553971 | H68: =CoS_Tariff_Revenue!AQ$282 -> 0.001613553971
A69: =ROW() -> 69 | B69: Back Haul T1 Service (B1 Service)
A70: =ROW() -> 70 | B70: ="Tariff [$/GJ/day/km "&Inputs!$E$26&"]" -> Tariff [$/GJ/day/km 31/12/2024]
A71: =ROW() -> 71 | C71: Capacity Reservation Tariff | D71: =CoS_Tariff_Revenue!AM$290 -> 0.001522569488 | E71: =CoS_Tariff_Revenue!AN$290 -> 0.001522569488 | F71: =CoS_Tariff_Revenue!AO$290 -> 0.001522569488 | G71: =CoS_Tariff_Revenue!AP$290 -> 0.001522569488 | H71: =CoS_Tariff_Revenue!AQ$290 -> 0.001522569488
A72: =ROW() -> 72 | C72: Commodity Tariff | D72: =CoS_Tariff_Revenue!AM$291 -> 9.098448363e-05 | E72: =CoS_Tariff_Revenue!AN$291 -> 9.098448363e-05 | F72: =CoS_Tariff_Revenue!AO$291 -> 9.098448363e-05 | G72: =CoS_Tariff_Revenue!AP$291 -> 9.098448363e-05 | H72: =CoS_Tariff_Revenue!AQ$291 -> 9.098448363e-05
A73: =ROW() -> 73 | C73: Total Tariff | D73: =CoS_Tariff_Revenue!AM$292 -> 0.001613553971 | E73: =CoS_Tariff_Revenue!AN$292 -> 0.001613553971 | F73: =CoS_Tariff_Revenue!AO$292 -> 0.001613553971 | G73: =CoS_Tariff_Revenue!AP$292 -> 0.001613553971 | H73: =CoS_Tariff_Revenue!AQ$292 -> 0.001613553971
A74: =ROW() -> 74
A75: Reference Tariff | D75: =IF(Tariff_Variation!F$58="","",Tariff_Variation!F$58) ->  | E75: =IF(Tariff_Variation!G$58="","",Tariff_Variation!G$58) ->  | F75: =IF(Tariff_Variation!H$58="","",Tariff_Variation!H$58) ->  | G75: =IF(Tariff_Variation!I$58="","",Tariff_Variation!I$58) ->  | H75: =IF(Tariff_Variation!J$58="","",Tariff_Variation!J$58) -> 
D76: =IF(Tariff_Variation!F$59="","",Tariff_Variation!F$59) ->  | E76: =IF(Tariff_Variation!G$59="","",Tariff_Variation!G$59) ->  | F76: =IF(Tariff_Variation!H$59="","",Tariff_Variation!H$59) ->  | G76: =IF(Tariff_Variation!I$59="","",Tariff_Variation!I$59) ->  | H76: =IF(Tariff_Variation!J$59="","",Tariff_Variation!J$59) -> 
A77: =ROW() -> 77 | B77: Full Haul T1 Service (T1 Service)
A78: =ROW() -> 78 | B78: Tariff [OD $/GJ/day]
A79: =ROW() -> 79 | C79: Capacity Reservation Tariff | D79: =CoS_Tariff_Revenue!AM266 -> 2.21873771 | E79: =IF(Tariff_Variation!G$62="","",Tariff_Variation!G$62) ->  | F79: =IF(Tariff_Variation!H$62="","",Tariff_Variation!H$62) ->  | G79: =IF(Tariff_Variation!I$62="","",Tariff_Variation!I$62) ->  | H79: =IF(Tariff_Variation!J$62="","",Tariff_Variation!J$62) -> 
A80: =ROW() -> 80 | C80: Commodity Tariff | D80: =CoS_Tariff_Revenue!AM267 -> 0.1325855447 | E80: =IF(Tariff_Variation!G$63="","",Tariff_Variation!G$63) ->  | F80: =IF(Tariff_Variation!H$63="","",Tariff_Variation!H$63) ->  | G80: =IF(Tariff_Variation!I$63="","",Tariff_Variation!I$63) ->  | H80: =IF(Tariff_Variation!J$63="","",Tariff_Variation!J$63) -> 
A81: =ROW() -> 81 | C81: Total Tariff | D81: =CoS_Tariff_Revenue!AM268 -> 2.351323255 | E81: =IF(Tariff_Variation!G$64="","",Tariff_Variation!G$64) ->  | F81: =IF(Tariff_Variation!H$64="","",Tariff_Variation!H$64) ->  | G81: =IF(Tariff_Variation!I$64="","",Tariff_Variation!I$64) ->  | H81: =IF(Tariff_Variation!J$64="","",Tariff_Variation!J$64) -> 
A82: =ROW() -> 82 | B82: Part Haul T1 Service (P1 Service)
A83: =ROW() -> 83 | B83: Tariff [OD $/GJ/day/km
A84: =ROW() -> 84 | C84: Capacity Reservation Tariff | D84: =CoS_Tariff_Revenue!AM276 -> 0.001585945468 | E84: =IF(Tariff_Variation!G$68="","",Tariff_Variation!G$68) ->  | F84: =IF(Tariff_Variation!H$68="","",Tariff_Variation!H$68) ->  | G84: =IF(Tariff_Variation!I$68="","",Tariff_Variation!I$68) ->  | H84: =IF(Tariff_Variation!J$68="","",Tariff_Variation!J$68) -> 
A85: =ROW() -> 85 | C85: Commodity Tariff | D85: =CoS_Tariff_Revenue!AM277 -> 9.477165453e-05 | E85: =IF(Tariff_Variation!G$69="","",Tariff_Variation!G$69) ->  | F85: =IF(Tariff_Variation!H$69="","",Tariff_Variation!H$69) ->  | G85: =IF(Tariff_Variation!I$69="","",Tariff_Variation!I$69) ->  | H85: =IF(Tariff_Variation!J$69="","",Tariff_Variation!J$69) -> 
A86: =ROW() -> 86 | C86: Total Tariff | D86: =CoS_Tariff_Revenue!AM278 -> 0.001680717123 | E86: =IF(Tariff_Variation!G$70="","",Tariff_Variation!G$70) ->  | F86: =IF(Tariff_Variation!H$70="","",Tariff_Variation!H$70) ->  | G86: =IF(Tariff_Variation!I$70="","",Tariff_Variation!I$70) ->  | H86: =IF(Tariff_Variation!J$70="","",Tariff_Variation!J$70) -> 
A87: =ROW() -> 87 | B87: Back Haul T1 Service (B1 Service)
A88: =ROW() -> 88 | B88: Tariff [OD $/GJ/day/km
A89: =ROW() -> 89 | C89: Capacity Reservation Tariff | D89: =CoS_Tariff_Revenue!AM286 -> 0.001585945468 | E89: =IF(Tariff_Variation!G$74="","",Tariff_Variation!G$74) ->  | F89: =IF(Tariff_Variation!H$74="","",Tariff_Variation!H$74) ->  | G89: =IF(Tariff_Variation!I$74="","",Tariff_Variation!I$74) ->  | H89: =IF(Tariff_Variation!J$74="","",Tariff_Variation!J$74) -> 
A90: =ROW() -> 90 | C90: Commodity Tariff | D90: =CoS_Tariff_Revenue!AM287 -> 9.477165453e-05 | E90: =IF(Tariff_Variation!G$75="","",Tariff_Variation!G$75) ->  | F90: =IF(Tariff_Variation!H$75="","",Tariff_Variation!H$75) ->  | G90: =IF(Tariff_Variation!I$75="","",Tariff_Variation!I$75) ->  | H90: =IF(Tariff_Variation!J$75="","",Tariff_Variation!J$75) -> 
A91: =ROW() -> 91 | C91: Total Tariff | D91: =CoS_Tariff_Revenue!AM288 -> 0.001680717123 | E91: =IF(Tariff_Variation!G$76="","",Tariff_Variation!G$76) ->  | F91: =IF(Tariff_Variation!H$76="","",Tariff_Variation!H$76) ->  | G91: =IF(Tariff_Variation!I$76="","",Tariff_Variation!I$76) ->  | H91: =IF(Tariff_Variation!J$76="","",Tariff_Variation!J$76) -> 

Sheet Inputs
A1: =Main!A1 -> DBNGP, DBNGP Tariff Model, Draft Decision, August 2025
A2: =MID(CELL("filename",A1),FIND("]",CELL("filename",A1))+1,256) -> Inputs
A3: Ref. | B3: =COLUMN() -> 2 | C3: =COLUMN() -> 3 | D3: =COLUMN() -> 4 | E3: =COLUMN() -> 5 | F3: =COLUMN() -> 6 | G3: =COLUMN() -> 7 | H3: =COLUMN() -> 8 | I3: =COLUMN() -> 9 | J3: =COLUMN() -> 10 | K3: =COLUMN() -> 11 | L3: =COLUMN() -> 12 | M3: =COLUMN() -> 13 | N3: =COLUMN() -> 14 | O3: =COLUMN() -> 15 | P3: =COLUMN() -> 16 | Q3: =COLUMN() -> 17 | R3: =COLUMN() -> 18 | S3: =COLUMN() -> 19 | T3: =COLUMN() -> 20 | U3: =COLUMN() -> 21 | V3: =COLUMN() -> 22 | W3: =COLUMN() -> 23 | X3: =COLUMN() -> 24 | Y3: =COLUMN() -> 25 | Z3: =COLUMN() -> 26 | AA3: =COLUMN() -> 27 | AB3: =COLUMN() -> 28 | AC3: =COLUMN() -> 29 | AD3: =COLUMN() -> 30 | AE3: =COLUMN() -> 31 | AF3: =COLUMN() -> 32 | AG3: =COLUMN() -> 33 | AH3: =COLUMN() -> 34 | AI3: =COLUMN() -> 35 | AJ3: =COLUMN() -> 36 | AK3: =COLUMN() -> 37 | AL3: =COLUMN() -> 38 | AM3: =COLUMN() -> 39
A5: Regulatory Period | H5: AA1 | I5: AA1 | J5: AA1 | K5: AA1 | L5: AA1 | M5: AA1 | N5: AA2 | O5: AA2 | P5: AA2 | Q5: AA2 | R5: AA2 | S5: AA2 | T5: AA3 | U5: AA3 | V5: AA3 | W5: AA3 | X5: AA3 | Y5: AA4 | Z5: AA4 | AA5: AA4 | AB5: AA4 | AC5: AA4 | AD5: AA5 | AE5: AA5 | AF5: AA5 | AG5: AA5 | AH5: AA5 | AI5: AA6 | AJ5: AA6 | AK5: AA6 | AL5: AA6 | AM5: AA6
A6: Year ending (31-December) | F6: =G6-1 -> 1997 | G6: =H6-1 -> 1998 | H6: 1999 | I6: =H6+1 -> 2000 | J6: 2001 | K6: 2002 | L6: 2003 | M6: 2004 | N6: 2005 | O6: 2006 | P6: 2007 | Q6: 2008 | R6: 2009 | S6: 2010 | T6: 2011 | U6: 2012 | V6: 2013 | W6: 2014 | X6: 2015 | Y6: 2016 | Z6: 2017 | AA6: 2018 | AB6: 2019 | AC6: 2020 | AD6: 2021 | AE6: 2022 | AF6: 2023 | AG6: 2024 | AH6: 2025 | AI6: =AH6+1 -> 2026 | AJ6: =AI6+1 -> 2027 | AK6: =AJ6+1 -> 2028 | AL6: =AK6+1 -> 2029 | AM6: =AL6+1 -> 2030
A7: Days | F7: =IF(INT(F6/4)=F6/4,366,365) -> 365 | G7: 365 | H7: 365 | I7: 366 | J7: 365 | K7: 365 | L7: 365 | M7: 366 | N7: 365 | O7: 365 | P7: 365 | Q7: 366 | R7: 365 | S7: 365 | T7: 365 | U7: 366 | V7: 365 | W7: 365 | X7: 365 | Y7: 366 | Z7: 365 | AA7: 365 | AB7: 365 | AC7: 366 | AD7: 365 | AE7: 365 | AF7: 365 | AG7: 366 | AH7: 365 | AI7: =IF(INT(AI6/4)=AI6/4,366,365) -> 365 | AJ7: 365 | AK7: 366 | AL7: 365 | AM7: 365
A8: Project Year | F8: 0 | G8: 0 | H8: 0 | I8: =H8+1 -> 1 | J8: 2 | K8: 3 | L8: 4 | M8: 5 | N8: 6 | O8: 7 | P8: 8 | Q8: 9 | R8: 10 | S8: 11 | T8: 12 | U8: 13 | V8: 14 | W8: 15 | X8: 16 | Y8: 17 | Z8: 18 | AA8: 19 | AB8: 20 | AC8: 21 | AD8: 22 | AE8: 23 | AF8: 24 | AG8: 25 | AH8: 26 | AI8: =AH8+1 -> 27 | AJ8: =AI8+1 -> 28 | AK8: =AJ8+1 -> 29 | AL8: =AK8+1 -> 30 | AM8: =AL8+1 -> 31
A9: General Inputs
A10: =ROW() -> 10 | B10: Tariff Recalculation | D10: =IF(ISNUMBER($AM$11),$AM$6,IF(ISNUMBER($AL$11),$AL$6,IF(ISNUMBER($AK$11),$AK$6,IF(ISNUMBER(AJ$11),$AJ$6,$AI$6)))) -> 2026 | E10: =$AM$6 -> 2030
A11: =ROW() -> 11 | B11: Annual Debt Risk Premium (Annual Update) | AE11: 0.01568 | AF11: 0.02228 | AG11: 0.01913 | AH11: 0.01606
A12: =ROW() -> 12 | B12: Trailing Average DRP (10 year ave, modelled) | AD12: =WACC!T12 -> 0.02259 | AE12: =IF(WACC!U44="","",WACC!U44) -> 0.02099 | AF12: =IF(WACC!V44="","",WACC!V44) -> 0.02018 | AG12: =IF(WACC!W44="","",WACC!W44) -> 0.01984 | AH12: =IF(WACC!X44="","",WACC!X44) -> 0.01938 | AI12: =WACC!Y12 -> 0.01870118634 | AJ12: =IF(WACC!Z44="","",WACC!Z44) ->  | AK12: =IF(WACC!AA44="","",WACC!AA44) ->  | AL12: =IF(WACC!AB44="","",WACC!AB44) ->  | AM12: =IF(WACC!AC44="","",WACC!AC44) -> 
A13: =ROW() -> 13 | B13: X-Factor | AI13: =X_Factor_1 -> 0.4317564622 | AJ13: =X_Factor_2 -> 0 | AK13: =X_Factor_3 -> 0 | AL13: =X_Factor_4 -> 0 | AM13: =X_Factor_5 -> 0
A14: =ROW() -> 14
A15: CPI and Inflations
A16: =ROW() -> 16 | B16: CPI and Inflation
A17: =ROW() -> 17 | C17: December CPI (pre Sep 2012 rebase) | F17: 117.6 | G17: 120.2 | H17: 124.1 | I17: 131.3 | J17: 135.4 | K17: 139.5 | L17: 142.8 | M17: 146.5 | N17: 150.6 | O17: 155.5 | P17: 160.1 | Q17: 166 | R17: 169.5 | S17: 174 | T17: 179.4
A18: =ROW() -> 18 | C18: December CPI | F18: =G18/(G19+1) -> 65.42073579 | G18: 66.8671126 | H18: 69.03667781 | I18: 73.04202899 | J18: 75.32285396 | K18: 77.60367893 | L18: 79.43946488 | M18: 81.49777035 | N18: 83.77859532 | O18: 86.50445931 | P18: 89.06343367 | Q18: 92.34559643 | R18: 94.29264214 | S18: 96.79598662 | T18: 99.8 | U18: 102 | V18: 104.8 | W18: 106.6 | X18: =108.4*1+109.5315*0 -> 108.4 | Y18: 110 | Z18: 112.1 | AA18: 114.1 | AB18: 116.2 | AC18: 117.2 | AD18: 121.3 | AE18: 130.8 | AF18: 136.1 | AG18: 139.4 | AH18: =AG18*(1+AH19) -> 142.27164 | AI18: =AH18*(1+AI19) -> 145.2024358 | AJ18: =AI18*(1+AJ19) -> 148.193606 | AK18: =AJ18*(1+AK19) -> 151.2463942 | AL18: =AK18*(1+AL19) -> 154.36207 | AM18: =AL18*(1+AM19) -> 157.5419286
A19: =ROW() -> 19 | C19: December Inflation | G19: =G17/F17-1 -> 0.02210884354 | H19: 0.03244592346 | I19: 0.05801772764 | J19: 0.03122619954 | K19: 0.03028064993 | L19: 0.02365591398 | M19: 0.02591036415 | N19: 0.02798634812 | O19: 0.03253652058 | P19: 0.02958199357 | Q19: 0.03685196752 | R19: 0.02108433735 | S19: 0.02654867257 | T19: 0.03103448276 | U19: =U18/T18-1 -> 0.02204408818 | V19: 0.02745098039 | W19: 0.01717557252 | X19: 0.01688555347 | Y19: 0.0147601476 | Z19: 0.01909090909 | AA19: 0.0178412132 | AB19: 0.01840490798 | AC19: 0.008605851979 | AD19: =AD18/AC18-1 -> 0.03498293515 | AE19: =AE18/AD18-1 -> 0.07831821929 | AF19: =AF18/AE18-1 -> 0.04051987768 | AG19: 0.0242468773 | AH19: =AI19 -> 0.0206 | AI19: =WACC!Y$27 -> 0.0206 | AJ19: =WACC!Z$27 -> 0.0206 | AK19: =WACC!AA$27 -> 0.0206 | AL19: =WACC!AB$27 -> 0.0206 | AM19: =WACC!AC$27 -> 0.0206
A20: =ROW() -> 20 | C20: Inflation Factors | F20: =F18/$E$24 -> 0.4693022653 | G20: 0.4796779957 | H20: 0.4952415912 | I20: 0.523974383 | J20: 0.5403361116 | K20: 0.5566978402 | L20: 0.5698670365 | M20: 0.5846324989 | N20: 0.6009942275 | O20: 0.6205484886 | P20: 0.63890555 | Q20: 0.6624504766 | R20: 0.6764178059 | S20: 0.6943758007 | T20: 0.7159253945 | U20: 0.7317073171 | V20: 0.7517934003 | W20: 0.7647058824 | X20: 0.7776183644 | Y20: 0.7890961263 | Z20: 0.8041606887 | AA20: 0.818507891 | AB20: 0.8335724534 | AC20: 0.8407460545 | AD20: 0.8701578192 | AE20: 0.9383070301 | AF20: 0.9763271162 | AG20: 1 | AH20: 1.0206 | AI20: =AI18/$E$24 -> 1.04162436 | AJ20: 1.063081822 | AK20: 1.084981307 | AL20: 1.107331922 | AM20: 1.13014296
A21: Financial Parameters
A22: =ROW() -> 22 | B22: Modelled Inflation
A23: =ROW() -> 23 | C23: Selected CPI period | D23: Base period: | E23: =AG23 -> 2024-12-31 | F23: 1997-12-31 | G23: 1998-12-31 | H23: 1999-12-31 | I23: 2000-12-31 | J23: 2001-12-31 | K23: 2002-12-31 | L23: 2003-12-31 | M23: 2004-12-31 | N23: 2005-12-31 | O23: 2006-12-31 | P23: 2007-12-31 | Q23: 2008-12-31 | R23: 2009-12-31 | S23: 2010-12-31 | T23: 2011-12-31 | U23: 2012-12-31 | V23: 2013-12-31 | W23: 2014-12-31 | X23: 2015-12-31 | Y23: 2016-12-31 | Z23: 2017-12-31 | AA23: 2018-12-31 | AB23: 2019-12-31 | AC23: 2020-12-31 | AD23: 2021-12-31 | AE23: 2022-12-31 | AF23: 2023-12-31 | AG23: 2024-12-31 | AH23: 2025-12-31 | AI23: 2026-12-31 | AJ23: 2027-12-31 | AK23: 2028-12-31 | AL23: 2029-12-31 | AM23: 2030-12-31
A24: =ROW() -> 24 | C24: December CPI (modelled) | D24: Base CPI: | E24: =HLOOKUP($E$23,$H$23:$AM$24,2,FALSE) -> 139.4 | F24: =G24/(G25+1) -> 69.03667781 | G24: 69.03667781 | H24: 69.03667781 | I24: 73.04202899 | J24: 75.32285396 | K24: 77.60367893 | L24: 79.43946488 | M24: 81.49777035 | N24: 83.77859532 | O24: 86.50445931 | P24: 89.06343367 | Q24: 92.34559643 | R24: 94.29264214 | S24: 96.79598662 | T24: =T18 -> 99.8 | U24: 102 | V24: 104.8 | W24: 106.6 | X24: 108.4 | Y24: 110 | Z24: 112.1 | AA24: 114.1 | AB24: 116.2 | AC24: 117.2 | AD24: 121.3 | AE24: 130.8 | AF24: 136.1 | AG24: 139.4 | AH24: 142.27164 | AI24: =AI18 -> 145.2024358 | AJ24: 148.193606 | AK24: 151.2463942 | AL24: 154.36207 | AM24: 157.5419286
A25: =ROW() -> 25 | C25: December Inflation | I25: =I19 -> 0.05801772764 | J25: 0.03122619954 | K25: 0.03028064993 | L25: 0.02365591398 | M25: 0.02591036415 | N25: 0.02798634812 | O25: 0.03253652058 | P25: 0.02958199357 | Q25: 0.03685196752 | R25: 0.02108433735 | S25: 0.02654867257 | T25: =T19 -> 0.03103448276 | U25: 0.02204408818 | V25: 0.02745098039 | W25: 0.01717557252 | X25: 0.01688555347 | Y25: 0.0147601476 | Z25: 0.01909090909 | AA25: 0.0178412132 | AB25: 0.01840490798 | AC25: 0.008605851979 | AD25: 0.03498293515 | AE25: 0.07831821929 | AF25: 0.04051987768 | AG25: 0.0242468773 | AH25: 0.0206 | AI25: =AI19 -> 0.0206 | AJ25: 0.0206 | AK25: 0.0206 | AL25: 0.0206 | AM25: 0.0206
A26: =ROW() -> 26 | C26: ="Inflation Factor (convert " &$E$26& " $ to nominal $)" -> Inflation Factor (convert 31/12/2024 $ to nominal $) | D26: Real $ at | E26: =TEXT($E$23,"dd/mm/yyyy") -> 31/12/2024 | F26: =F$24/$E$24 -> 0.4952415912 | G26: 0.4952415912 | H26: 0.4952415912 | I26: 0.523974383 | J26: 0.5403361116 | K26: 0.5566978402 | L26: 0.5698670365 | M26: 0.5846324989 | N26: 0.6009942275 | O26: 0.6205484886 | P26: 0.63890555 | Q26: 0.6624504766 | R26: 0.6764178059 | S26: 0.6943758007 | T26: 0.7159253945 | U26: 0.7317073171 | V26: 0.7517934003 | W26: 0.7647058824 | X26: 0.7776183644 | Y26: 0.7890961263 | Z26: 0.8041606887 | AA26: 0.818507891 | AB26: 0.8335724534 | AC26: 0.8407460545 | AD26: 0.8701578192 | AE26: 0.9383070301 | AF26: 0.9763271162 | AG26: 1 | AH26: 1.0206 | AI26: 1.04162436 | AJ26: 1.063081822 | AK26: 1.084981307 | AL26: 1.107331922 | AM26: 1.13014296
A27: =ROW() -> 27 | C27: ="Inflation Factor (convert nominal to real "&$E$26&" $)" -> Inflation Factor (convert nominal to real 31/12/2024 $) | F27: =1/F26 -> 2.019216515 | G27: 2.019216515 | H27: 2.019216515 | I27: 1.908490248 | J27: 1.850699923 | K27: 1.796306592 | L27: 1.754795305 | M27: 1.710476243 | N27: 1.663909492 | O27: 1.611477618 | P27: 1.565176574 | Q27: 1.509546804 | R27: 1.478376221 | S27: 1.440142354 | T27: 1.396793587 | U27: 1.366666667 | V27: 1.330152672 | W27: 1.307692308 | X27: 1.28597786 | Y27: 1.267272727 | Z27: 1.24353256 | AA27: 1.22173532 | AB27: 1.199655766 | AC27: 1.189419795 | AD27: 1.149216818 | AE27: 1.065749235 | AF27: 1.024246877 | AG27: 1 | AH27: 0.9798157946 | AI27: =1/AI26 -> 0.9600389914 | AJ27: 0.9406613672 | AK27: 0.921674865 | AL27: 0.9030715903 | AM27: 0.8848438078
A28: =ROW() -> 28 | B28: Real Pre-tax WACC
A29: =ROW() -> 29 | C29: WACC | I29: 0.074 | J29: =I29 -> 0.074 | K29: =J29 -> 0.074 | L29: =K29 -> 0.074 | M29: =L29 -> 0.074 | N29: 0.07237578324 | O29: =N29 -> 0.07237578324 | P29: =O29 -> 0.07237578324 | Q29: =P29 -> 0.07237578324 | R29: =Q29 -> 0.07237578324 | S29: =R29 -> 0.07237578324 | T29: =WACC!$M$34 -> 0.05770812338 | U29: =WACC!$M$34 -> 0.05770812338 | V29: =WACC!$M$34 -> 0.05770812338 | W29: =WACC!$M$34 -> 0.05770812338 | X29: =WACC!$M$34 -> 0.05770812338
A30: =ROW() -> 30 | C30: Discounting Factor | I30: =J30/(1+J29) -> 0.4941978894 | J30: 0.5307685333 | K30: 0.5700454047 | L30: 0.6122287647 | M30: 0.6575336933 | N30: 0.7051232093 | O30: 0.7561570539 | P30: 0.8108845129 | Q30: 0.8695729146 | R30: 0.9325089354 | S30: 1 | T30: =S30*(1+T29) -> 1.057708123 | U30: =T30*(1+U29) -> 1.118746474 | V30: =U30*(1+V29) -> 1.183307234 | W30: =V30*(1+W29) -> 1.251593674 | X30: =W30*(1+X29) -> 1.323820796
A31: =ROW() -> 31 | B31: Real Post Tax WACC
A32: =ROW() -> 32 | C32: WACC | AH32: =AI32 -> 0.0499370739 | AI32: =WACC!Y$37 -> 0.0499370739 | AJ32: =WACC!Z$37 -> 0.0499370739 | AK32: =WACC!AA$37 -> 0.0499370739 | AL32: =WACC!AB$37 -> 0.0499370739 | AM32: =WACC!AC$37 -> 0.0499370739
A33: =ROW() -> 33 | C33: Discounting Factor | AG33: 1 | AH33: =AG33/(1+AH32) -> 0.9524380316 | AI33: =AH33/(1+AI32) -> 0.9071382041 | AJ33: =AI33/(1+AJ32) -> 0.8639929255 | AK33: =AJ33/(1+AK32) -> 0.8228997213 | AL33: =AK33/(1+AL32) -> 0.7837609908 | AM33: =AL33/(1+AM32) -> 0.7464837754
A34: =ROW() -> 34 | B34: Nominal Post Tax WACC
A35: =ROW() -> 35 | C35: WACC | AH35: =AI35 -> 0.07156577762 | AI35: =WACC!Y$36 -> 0.07156577762 | AJ35: =WACC!Z$36 -> 0.07156577762 | AK35: =WACC!AA$36 -> 0.07156577762 | AL35: =WACC!AB$36 -> 0.07156577762 | AM35: =WACC!AC$36 -> 0.07156577762
A36: =ROW() -> 36 | C36: Discounting Factor | AG36: 1 | AH36: =AG36/(1+AH35) -> 0.9332138268 | AI36: =AH36/(1+AI35) -> 0.8708880465 | AJ36: =AI36/(1+AJ35) -> 0.8127247666 | AK36: =AJ36/(1+AK35) -> 0.7584459896 | AL36: =AK36/(1+AL35) -> 0.7077922844 | AM36: =AL36/(1+AM35) -> 0.6605215463
A37: =ROW() -> 37
A38: Asset Life and Tax Asset Life
A39: =ROW() -> 39 | B39: Opening Capital Base (OCB) | D39: Economic Asset Life (years) | E39: Tax Asset Life (years) for assets prior to 2001
A40: =ROW() -> 40 | C40: Pipeline | D40: 54.5 | E40: 7.692307692
A41: =ROW() -> 41 | C41: Compression | D41: 19.60073141 | E41: 7.692307692
A42: =ROW() -> 42 | C42: Metering | D42: 38.50225195 | E42: 7.692307692
A43: =ROW() -> 43 | C43: Other Depreciable | D43: 16.85 | E43: 7.692307692
A44: =ROW() -> 44 | C44: Computers and Motor Vehicles
A45: =ROW() -> 45 | C45: Cathodic/Corrosion Protection
A46: =ROW() -> 46 | C46: SCADA, ECI and Comms
A47: =ROW() -> 47 | C47: Building
A48: =ROW() -> 48 | C48: Out of Service Asset in AA5
A49: =ROW() -> 49 | C49: Out of Service Asset in AA6
A50: =ROW() -> 50 | C50: Out of Service Asset in AA7
A51: =ROW() -> 51 | C51: Non-Depreciable
A52: =ROW() -> 52 | C52: Cost of Raising Equity
A53: =ROW() -> 53 | C53: BEP Lease
A54: =ROW() -> 54 | C54: Average | E54: 7.692307692
A55: =ROW() -> 55
A56: =ROW() -> 56 | B56: Assets acquired from 1-Jan-2001 to 2019 | D56: ERA AA4 Approved Economic Asset Life | E56: Tax Asset Life | F56: Economic Asset Life (Capex 2000-2004) | G56: Economic Asset Life (Capex 2005-2020) | H56: Economic Asset Life (Reclassed 2000-2004) | I56: Economic Asset Life (Reclassed 2005-2020) | J56: Shippers Economic Asset Life
A57: =ROW() -> 57 | C57: Pipeline | D57: 70 | E57: 20 | F57: 70 | G57: =F57 -> 70 | H57: =F57 -> 70 | I57: =G57 -> 70 | J57: 70
A58: =ROW() -> 58 | C58: Compression | D58: 30 | E58: 20 | F58: 30 | G58: =F58 -> 30 | H58: =F58 -> 30 | I58: =G58 -> 30 | J58: 30
A59: =ROW() -> 59 | C59: Metering | D59: 50 | E59: 15 | F59: 50 | G59: =F59 -> 50 | H59: 30 | I59: =H59 -> 30 | J59: 30
A60: =ROW() -> 60 | C60: Other Depreciable | D60: 30 | E60: 20 | F60: 30 | G60: 10 | H60: =F60 -> 30 | I60: =G60 -> 10 | J60: 10
A61: =ROW() -> 61 | C61: Computers and Motor Vehicles | E61: =E77 -> 5 | G61: =D77 -> 5 | I61: =G61 -> 5
A62: =ROW() -> 62 | C62: Cathodic/Corrosion Protection | E62: =E78 -> 15 | G62: =D78 -> 15 | I62: =G62 -> 15
A63: =ROW() -> 63 | C63: SCADA, ECI and Comms | E63: 10 | G63: 10 | I63: =G63 -> 10
A64: =ROW() -> 64 | C64: Building | D64: =D60 -> 30 | E64: =E60 -> 20 | F64: =F60 -> 30 | G64: =F64 -> 30 | H64: =F64 -> 30 | I64: =G64 -> 30 | J64: =F64 -> 30
A65: =ROW() -> 65 | C65: Out of Service Asset in AA5
A66: =ROW() -> 66 | C66: Out of Service Asset in AA6
A67: =ROW() -> 67 | C67: Out of Service Asset in AA7
A68: =ROW() -> 68 | C68: Non-Depreciable
A69: =ROW() -> 69 | C69: Cost of Raising Equity | D69: 62.59899528 | E69: 5 | F69: =$D69 -> 62.59899528 | G69: =$D69 -> 62.59899528 | H69: =F69 -> 62.59899528 | I69: =G69 -> 62.59899528
A70: =ROW() -> 70 | C70: BEP Lease | D70: =BEP!$D$24 -> 57 | E70: 20 | F70: =$D70 -> 57 | G70: =$D70 -> 57 | H70: =F70 -> 57 | I70: =G70 -> 57
A71: =ROW() -> 71
A72: =ROW() -> 72 | B72: Assets acquired from 1-Jan-2020 onwards | D72: Economic Asset Life | E72: Tax Asset Life
A73: =ROW() -> 73 | C73: Pipeline | D73: 42 | E73: 20
A74: =ROW() -> 74 | C74: Compression | D74: 30 | E74: 20
A75: =ROW() -> 75 | C75: Metering | D75: 30 | E75: 15
A76: =ROW() -> 76 | C76: Other Depreciable | D76: 10 | E76: 10
A77: =ROW() -> 77 | C77: Computers and Motor Vehicles | D77: 5 | E77: 5
A78: =ROW() -> 78 | C78: Cathodic/Corrosion Protection | D78: 15 | E78: 15
A79: =ROW() -> 79 | C79: SCADA, ECI and Comms | D79: 10 | E79: 10
A80: =ROW() -> 80 | C80: Building | D80: 50 | E80: 40
A81: =ROW() -> 81 | C81: Out of Service Asset in AA5 | D81: 5
A82: =ROW() -> 82 | C82: Out of Service Asset in AA6 | D82: 5
A83: =ROW() -> 83 | C83: Out of Service Asset in AA7 | D83: 5
A84: =ROW() -> 84 | C84: Non-Depreciable
A85: =ROW() -> 85 | C85: Cost of Raising Equity (2020-2025) | D85: 38.18405677 | E85: 5
A86: =ROW() -> 86 | C86: Cost of Raising Equity (2026-2030) | D86: =SUMPRODUCT($D$73:$D$80,Asset!$AI$52:$AI$59)/SUM(Asset!$AD$52:$AD$59) -> 32.61886393 | E86: 5
A87: =ROW() -> 87 | C87: BEP Lease | E87: 20
A88: =ROW() -> 88
A89: =ROW() -> 89 | C89: Pipeline economic end date (year) | D89: 2063
A90: =ROW() -> 90
A91: Approved Asset Values
A92: =ROW() -> 92
A93: Hide | B93: Asset Closing Value (AA2 Approved Model) | H93: Asset Value (Using 8 Cities CPI) [m$ 31/12/2004]
A94: Hide | C94: Pipeline | H94: 1491.144143 | I94: 1465.332204 | J94: 1437.997073 | K94: 1410.691804 | L94: 1383.316745 | M94: 1356.556853
A95: Hide | C95: Compression | H95: 249.7980599 | I95: 234.2300841 | J95: 222.2871855 | K95: 208.8248294 | L95: 194.9820977 | M95: 181.3685957
A96: Hide | C96: Metering | H96: 20.48539349 | I96: 20.58425296 | J96: 20.62911002 | K96: 20.46484178 | L96: 19.89087446 | M96: 21.0188432
A97: Hide | C97: Other Depreciable | H97: 56.26053033 | I97: 58.6075319 | J97: 56.55249282 | K97: 53.60394018 | L97: 50.58698346 | M97: 47.34143322
A98: Hide | C98: Computers and Motor Vehicles
A99: Hide | C99: Cathodic/Corrosion Protection
A100: Hide | C100: SCADA , ECI And Comms
A101: Hide | C101: Building
A102: Hide | C102: Out of Service Asset in AA5
A103: Hide | C103: Out of Service Asset in AA6
A104: Hide | C104: Out of Service Asset in AA7
A105: Hide | C105: Non-Depreciable | H105: 12.08624922 | I105: 12.08624922 | J105: 12.08624922 | K105: 12.08624922 | L105: 12.08624922 | M105: 12.08624922
A106: Hide | C106: Cost of Raising Equity
A107: Hide | C107: Total | H107: =SUM(H94:H105) -> 1829.774376 | I107: 1790.840322 | J107: 1749.552111 | K107: 1705.671665 | L107: 1660.86295 | M107: 1618.371975 | N107: =M185+M354-M107 -> 0
A108: Hide | B108: Asset Closing Value (modelled) | H108: ="AA1 [m$ "&$E$26&"]" -> AA1 [m$ 31/12/2024]
A109: Hide | C109: Pipeline | H109: =H94/$M$26 -> 2550.56663 | I109: 2506.415923 | J109: 2459.659831 | K109: 2412.954817 | L109: 2366.130428 | M109: 2320.358269
A110: Hide | C110: Compression | H110: 427.2736469 | I110: 400.6449941 | J110: 380.2169498 | K110: 357.1899096 | L110: 333.5122459 | M110: 310.2266741
A111: Hide | C111: Metering | H111: 35.03977888 | I111: 35.20887566 | J111: 35.2856026 | K111: 35.00462568 | L111: 34.02286821 | M111: 35.95223195
A112: Hide | C112: Other Depreciable | H112: 96.23230053 | I112: 100.246791 | J112: 96.73169543 | K112: 91.68826618 | L112: 86.5278334 | M112: 80.97639682
A113: Hide | C113: Computers and Motor Vehicles | H113: 0 | I113: 0 | J113: 0 | K113: 0 | L113: 0 | M113: 0
A114: Hide | C114: Cathodic/Corrosion Protection | H114: 0 | I114: 0 | J114: 0 | K114: 0 | L114: 0 | M114: 0
A115: Hide | C115: SCADA , ECI And Comms | H115: 0 | I115: 0 | J115: 0 | K115: 0 | L115: 0 | M115: 0
A116: Hide | C116: Building
A117: Hide | C117: Out of Service Asset in AA5
A118: Hide | C118: Out of Service Asset in AA6
A119: Hide | C119: Out of Service Asset in AA7
A120: Hide | C120: Non-Depreciable | H120: =H105/$M$26 -> 20.67324215 | I120: 20.67324215 | J120: 20.67324215 | K120: 20.67324215 | L120: 20.67324215 | M120: 20.67324215
A121: Hide | C121: Cost of Raising Equity
A122: Hide | C122: Total | H122: =SUM(H109:H120) -> 3129.785599 | I122: 3063.189826 | J122: 2992.567321 | K122: 2917.510861 | L122: 2840.866618 | M122: 2768.186814 | N122: =M200+M369-M122 -> 0
A123: =ROW() -> 123 | B123: Approved Asset Depreciation | I123: AA1 [m$ 31/12/2004] | N123: AA2 [m$ 31/12/2004] | T123: AA3 [m$ 31/12/2010] | Y123: AA4 [m$ 31/12/2015]
A124: =ROW() -> 124 | C124: Pipeline | I124: 27.36044298 | J124: 27.36769462 | K124: 27.37241662 | L124: 27.37508118 | M124: 27.38111859 | N124: 27.39286391 | O124: 27.45714465 | P124: 27.53919085 | Q124: 31.17101727 | R124: 35.0846799 | S124: 36.27857625 | T124: 51.02396609 | U124: 51.32938537 | V124: 51.38438537 | W124: 51.44374251 | X124: 51.45109965 | Y124: 58.22280694 | Z124: 58.27532839 | AA124: 58.31090964 | AB124: 58.3343277 | AC124: 58.41114566
A125: =ROW() -> 125 | C125: Compression | I125: 13.34090349 | J125: 13.37867948 | K125: 13.54985192 | L125: 13.72495936 | M125: 13.79696984 | N125: 12.54002538 | O125: 12.60559336 | P125: 14.89842708 | Q125: 18.80868067 | R125: 20.15568906 | S125: 20.16936446 | T125: 28.89687446 | U125: 30.09022971 | V125: 30.30905305 | W125: 30.37745305 | X125: 30.47051971 | Y125: 34.11317936 | Z125: 34.63363566 | AA125: 35.14508475 | AB125: 29.10932637 | AC125: 19.7779653
A126: =ROW() -> 126 | C126: Metering | I126: 0.5390160353 | J126: 0.5390160353 | K126: 0.5401965349 | L126: 0.5413770345 | M126: 0.5425575341 | N126: 0.5957306903 | O126: 0.6182928278 | P126: 0.6429066893 | Q126: 0.6459834996 | R126: 0.6459834996 | S126: 0.6459834996 | T126: 0.8078240677 | U126: 0.8188130383 | V126: 0.8285190383 | W126: 0.8816190383 | X126: 0.9347190383 | Y126: -0.2480729442 | Z126: 1.128477874 | AA126: 1.182157721 | AB126: 1.199164501 | AC126: 1.212144087
A127: =ROW() -> 127 | C127: Other Depreciable | I127: 3.338903877 | J127: 3.538093509 | K127: 3.736220692 | L127: 3.961302615 | M127: 4.147034552 | N127: 3.665652482 | O127: 3.799316054 | P127: 3.905292402 | Q127: 3.958281912 | R127: 4.140843923 | S127: 4.357940926 | T127: 7.061071921 | U127: 9.683287685 | V127: 9.766287685 | W127: 9.829621018 | X127: 9.979621018 | Y127: 5.884382829 | Z127: 6.35644569 | AA127: 6.444676422 | AB127: 6.531253531 | AC127: 6.589939801
A128: =ROW() -> 128 | C128: Computers and Motor Vehicles
A129: =ROW() -> 129 | C129: Cathodic/Corrosion Protection
A130: =ROW() -> 130 | C130: SCADA , ECI And Comms
A131: =ROW() -> 131 | C131: Building
A132: =ROW() -> 132 | C132: Out of Service Asset in AA5
A133: =ROW() -> 133 | C133: Out of Service Asset in AA6
A134: =ROW() -> 134 | C134: Out of Service Asset in AA7
A135: =ROW() -> 135 | C135: Non-Depreciable | I135: 0 | J135: 0 | K135: 0 | L135: 0 | M135: 0 | N135: 0 | O135: 0 | P135: 0 | Q135: 0 | R135: 0 | S135: 0 | T135: 0 | U135: 0 | V135: 0 | W135: 0 | X135: 0 | Y135: -0.06213890957 | Z135: 0 | AA135: 0 | AB135: 0 | AC135: 0
A136: =ROW() -> 136 | C136: Cost of Raising Equity
A137: =ROW() -> 137 | C137: Total | I137: =SUM(I124:I135) -> 44.57926639 | J137: 44.82348365 | K137: 45.19868577 | L137: 45.60272019 | M137: 45.86768051 | N137: 44.19427246 | O137: 44.48034689 | P137: 46.98581702 | Q137: 54.58396334 | R137: 60.02719638 | S137: 61.45186514 | T137: 87.78973655 | U137: 91.9217158 | V137: 92.28824514 | W137: 92.53243561 | X137: 92.83595942 | Y137: 97.91015727 | Z137: 100.3938876 | AA137: 101.0828285 | AB137: 95.1740721 | AC137: 85.99119485
A138: =ROW() -> 138 | B138: Approved Asset Depreciation (modelled) | I138: ="AA1 [m$ "&$E$26&"]" -> AA1 [m$ 31/12/2024] | N138: ="AA2 [m$ "&$E$26&"]" -> AA2 [m$ 31/12/2024] | T138: ="AA1 [m$ "&$E$26&"]" -> AA1 [m$ 31/12/2024] | Y138: ="AA1 [m$ "&$E$26&"]" -> AA1 [m$ 31/12/2024]
A139: =ROW() -> 139 | C139: Pipeline | I139: =I124/$M$26 -> 46.79938771 | J139: 46.81179147 | K139: 46.81986833 | L139: 46.82442599 | M139: 46.83475284 | N139: 46.85484293 | O139: 46.96479361 | P139: 47.10513169 | Q139: 53.31728449 | R139: 60.01151145 | S139: 62.0536428 | T139: =T124/$S$26 -> 73.48177462 | U139: 73.92162185 | V139: 74.00082968 | W139: 74.08631242 | X139: 74.09690775 | Y139: =Y124/$X$26 -> 74.87324066 | Z139: 74.94078208 | AA139: 74.98653878 | AB139: 75.01665389 | AC139: 75.11544008
A140: =ROW() -> 140 | C140: Compression | I140: =I125/$M$26 -> 22.81929848 | J140: 22.88391341 | K140: 23.1766998 | L140: 23.47621692 | M140: 23.59938913 | N140: 21.44941549 | O140: 21.56156796 | P140: 25.48340557 | Q140: 32.17180143 | R140: 34.47582728 | S140: 34.49921873 | T140: 41.61561281 | U140: 43.33421424 | V140: 43.64935099 | W140: 43.74785673 | X140: 43.88188598 | Y140: 43.86879338 | Z140: 44.53808866 | AA140: 45.19580087 | AB140: 37.43394922 | AC140: 25.43402549
A141: =ROW() -> 141 | C141: Metering | I141: =I126/$M$26 -> 0.9219741227 | J141: 0.9219741227 | K141: 0.9239933393 | L141: 0.9260125558 | M141: 0.9280317723 | N141: 1.018983193 | O141: 1.057575193 | P141: 1.099676618 | Q141: 1.104939429 | R141: 1.104939429 | S141: 1.104939429 | T141: 1.163381654 | U141: 1.179207336 | V141: 1.193185358 | W141: 1.269656917 | X141: 1.346128476 | Y141: -0.3190163138 | Z141: 1.451197561 | AA141: 1.520228656 | AB141: 1.542098999 | AC141: 1.558790459
A142: =ROW() -> 142 | C142: Other Depreciable | I142: =I127/$M$26 -> 5.711115759 | J142: 6.051824892 | K142: 6.39071673 | L142: 6.775714013 | M142: 7.093404078 | N142: 6.270011484 | O142: 6.498639849 | P142: 6.679909875 | Q142: 6.770547173 | R142: 7.082815155 | S142: 7.45415442 | T142: 10.16894874 | U142: 13.94531272 | V142: 14.06484453 | W142: 14.15605355 | X142: 14.3720749 | Y142: 7.567186037 | Z142: 8.174248425 | AA142: 8.287711193 | AB142: 8.399047438 | AC142: 8.474516681
A143: =ROW() -> 143 | C143: Computers and Motor Vehicles | I143: =I128/$M$26 -> 0 | J143: 0 | K143: 0 | L143: 0 | M143: 0 | N143: 0 | O143: 0 | P143: 0 | Q143: 0 | R143: 0 | S143: 0 | T143: 0 | U143: 0 | V143: 0 | W143: 0 | X143: 0 | Y143: 0 | Z143: 0 | AA143: 0 | AB143: 0 | AC143: 0
A144: =ROW() -> 144 | C144: Cathodic/Corrosion Protection | I144: =I129/$M$26 -> 0 | J144: 0 | K144: 0 | L144: 0 | M144: 0 | N144: 0 | O144: 0 | P144: 0 | Q144: 0 | R144: 0 | S144: 0 | T144: 0 | U144: 0 | V144: 0 | W144: 0 | X144: 0 | Y144: 0 | Z144: 0 | AA144: 0 | AB144: 0 | AC144: 0
A145: =ROW() -> 145 | C145: SCADA , ECI And Comms | I145: =I130/$M$26 -> 0 | J145: 0 | K145: 0 | L145: 0 | M145: 0 | N145: 0 | O145: 0 | P145: 0 | Q145: 0 | R145: 0 | S145: 0 | T145: 0 | U145: 0 | V145: 0 | W145: 0 | X145: 0 | Y145: 0 | Z145: 0 | AA145: 0 | AB145: 0 | AC145: 0
A146: =ROW() -> 146 | C146: Building | I146: =I131/$M$26 -> 0 | J146: 0 | K146: 0 | L146: 0 | M146: 0 | N146: 0 | O146: 0 | P146: 0 | Q146: 0 | R146: 0 | S146: 0 | T146: 0 | U146: 0 | V146: 0 | W146: 0 | X146: 0 | Y146: 0 | Z146: 0 | AA146: 0 | AB146: 0 | AC146: 0
A147: =ROW() -> 147 | C147: Out of Service Asset in AA5
A148: =ROW() -> 148 | C148: Out of Service Asset in AA6
A149: =ROW() -> 149 | C149: Out of Service Asset in AA7
A150: =ROW() -> 150 | C150: Non-Depreciable | I150: =I135/$M$26 -> 0 | J150: 0 | K150: 0 | L150: 0 | M150: 0 | N150: 0 | O150: 0 | P150: 0 | Q150: 0 | R150: 0 | S150: 0 | T150: =T135/$S$26 -> 0 | U150: =U135/$S$26 -> 0 | V150: =V135/$S$26 -> 0 | W150: =W135/$S$26 -> 0 | X150: =X135/$S$26 -> 0 | Y150: =Y135/$X$26 -> -0.07990926194 | Z150: =Z135/$X$26 -> 0 | AA150: =AA135/$X$26 -> 0 | AB150: =AB135/$X$26 -> 0 | AC150: =AC135/$X$26 -> 0
A151: =ROW() -> 151 | C151: Cost of Raising Equity
A152: =ROW() -> 152 | C152: Total | I152: =SUM(I139:I150) -> 76.25177607 | J152: 76.66950389 | K152: 77.31127821 | L152: 78.00236948 | M152: 78.45557782 | N152: 75.5932531 | O152: 76.08257661 | P152: 80.36812375 | Q152: 93.36457253 | R152: 102.6750933 | S152: 105.1119554 | T152: 126.4297178 | U152: 132.3803561 | V152: 132.9082106 | W152: 133.2598796 | X152: 133.6969971 | Y152: 125.9102945 | Z152: 129.1043167 | AA152: 129.9902795 | AB152: 122.3917495 | AC152: 110.5827727
A153: =ROW() -> 153
A154: Approved DBNGP OCB Values
A155: =ROW() -> 155 | F155: OCB [m$ 31/12/1999]
A156: =ROW() -> 156 | B156: OCB (AA1 & AA2 Approved Model) | E156: Tax Asset Life (years) | F156: Economic Asset Life (years) | G156: CV | H156: ="m$ " &$E$26 -> m$ 31/12/2024 | I156: m$ 31/12/204 | J156: ="m$ " &$E$26 -> m$ 31/12/2024
A157: =ROW() -> 157 | C157: Pipeline | E157: =E40 -> 7.692307692 | F157: =D40 -> 54.5 | G157: 1263.146676 | H157: =G157/$H$26 -> 2550.56663 | I157: 1491.144143 | J157: =I157/$M$26 -> 2550.56663
A158: =ROW() -> 158 | C158: Compression | E158: =E41 -> 7.692307692 | F158: =D41 -> 19.60073141 | G158: 211.6036808 | H158: =G158/$H$26 -> 427.2736469 | I158: 249.7980599 | J158: =I158/$M$26 -> 427.2736469
A159: =ROW() -> 159 | C159: Metering | E159: =E42 -> 7.692307692 | F159: =D42 -> 38.50225195 | G159: 17.35315585 | H159: =G159/$H$26 -> 35.03977888 | I159: 20.48539349 | J159: =I159/$M$26 -> 35.03977888
A160: =ROW() -> 160 | C160: Other Depreciable | E160: =E43 -> 7.692307692 | F160: =D43 -> 16.85 | G160: 47.65823764 | H160: =G160/$H$26 -> 96.23230053 | I160: 56.26053033 | J160: =I160/$M$26 -> 96.23230053
A161: =ROW() -> 161 | C161: Computers and Motor Vehicles
A162: =ROW() -> 162 | C162: Cathodic/Corrosion Protection
A163: =ROW() -> 163 | C163: SCADA , ECI And Comms
A164: =ROW() -> 164 | C164: Building
A165: =ROW() -> 165 | C165: Out of Service Asset in AA5
A166: =ROW() -> 166 | C166: Out of Service Asset in AA6
A167: =ROW() -> 167 | C167: Out of Service Asset in AA7
A168: =ROW() -> 168 | C168: Non-Depreciable | G168: 10.23824934 | H168: =G168/$H$26 -> 20.67324215 | I168: 12.08624922 | J168: =I168/$M$26 -> 20.67324215
A169: =ROW() -> 169 | C169: Cost of Raising Equity
A170: =ROW() -> 170 | C170: Total | G170: =SUM(G157:G168) -> 1550 | H170: =SUM(H157:H168) -> 3129.785599 | I170: =SUM(I157:I168) -> 1829.774376 | J170: =SUM(J157:J168) -> 3129.785599
A171: Hide | B171: Approved Asset Depreciation (AA2 Approved Model) | H171: OCB [m$ 31/12/2004]
A172: Hide | C172: Pipeline | H172: 1491.144143 | I172: 1463.7837 | J172: 1436.423257 | K172: 1409.062814 | L172: 1381.702371 | M172: 1354.341928
A173: Hide | C173: Compression | H173: 249.7980599 | I173: 236.4571564 | J173: 223.1162529 | K173: 209.7753494 | L173: 196.4344459 | M173: 183.0935424
A174: Hide | C174: Metering | H174: 20.48539349 | I174: 19.94637745 | J174: 19.40736142 | K174: 18.86834538 | L174: 18.32932935 | M174: 17.79031331
A175: Hide | C175: Other Depreciable | H175: 56.26053033 | I175: 52.92162646 | J175: 49.58272258 | K175: 46.2438187 | L175: 42.90491482 | M175: 39.56601095
A176: Hide | C176: Computers and Motor Vehicles
A177: Hide | C177: Cathodic/Corrosion Protection
A178: Hide | C178: SCADA , ECI And Comms
A179: Hide | C179: Building
A180: Hide | C180: Out of Service Asset in AA5
A181: Hide | C181: Out of Service Asset in AA6
A182: Hide | C182: Out of Service Asset in AA7
A183: Hide | C183: Non-Depreciable | H183: 12.08624922 | I183: 12.08624922 | J183: 12.08624922 | K183: 12.08624922 | L183: 12.08624922 | M183: 12.08624922
A184: Hide | C184: Cost of Raising Equity
A185: Hide | C185: Total | H185: =SUM(H172:H183) -> 1829.774376 | I185: 1785.195109 | J185: 1740.615843 | K185: 1696.036576 | L185: 1651.45731 | M185: 1606.878044
A186: Hide | B186: OCB Closing Value (modelled) | H186: ="AA1 [m$ "&$E$26&"]" -> AA1 [m$ 31/12/2024]
A187: Hide | C187: Pipeline | H187: =H172/$M$26 -> 2550.56663 | I187: 2503.767242 | J187: 2456.967855 | K187: 2410.168467 | L187: 2363.369079 | M187: 2316.569692
A188: Hide | C188: Compression | H188: 427.2736469 | I188: 404.4543484 | J188: 381.6350499 | K188: 358.8157515 | L188: 335.996453 | M188: 313.1771545
A189: Hide | C189: Metering | H189: 35.03977888 | I189: 34.11780476 | J189: 33.19583064 | K189: 32.27385652 | L189: 31.35188239 | M189: 30.42990827
A190: Hide | C190: Other Depreciable | H190: 96.23230053 | I190: 90.52118477 | J190: 84.81006901 | K190: 79.09895326 | L190: 73.3878375 | M190: 67.67672174
A191: Hide | C191: Computers and Motor Vehicles | H191: 0 | I191: 0 | J191: 0 | K191: 0 | L191: 0 | M191: 0
A192: Hide | C192: Cathodic/Corrosion Protection | H192: 0 | I192: 0 | J192: 0 | K192: 0 | L192: 0 | M192: 0
A193: Hide | C193: SCADA , ECI And Comms | H193: 0 | I193: 0 | J193: 0 | K193: 0 | L193: 0 | M193: 0
A194: Hide | C194: Building | H194: 0 | I194: 0 | J194: 0 | K194: 0 | L194: 0 | M194: 0
A195: Hide | C195: Out of Service Asset in AA5
A196: Hide | C196: Out of Service Asset in AA6
A197: Hide | C197: Out of Service Asset in AA7
A198: Hide | C198: Non-Depreciable | H198: =H183/$M$26 -> 20.67324215 | I198: 20.67324215 | J198: 20.67324215 | K198: 20.67324215 | L198: 20.67324215 | M198: 20.67324215
A199: Hide | C199: Cost of Raising Equity
A200: Hide | C200: Total | H200: =SUM(H187:H198) -> 3129.785599 | I200: 3053.533823 | J200: 2977.282046 | K200: 2901.03027 | L200: 2824.778494 | M200: 2748.526718
A201: Hide | B201: Approved OCB Depreciation [m$ 31/12/1999] (AA2 Approved Model) | I201: AA1 OCB Depreciation [m$ 31/12/1999]
... 2418 more rows

Sheet WACC
A1: =Main!A1 -> DBNGP, DBNGP Tariff Model, Draft Decision, August 2025
A2: =MID(CELL("filename",A1),FIND("]",CELL("filename",A1))+1,256) -> WACC
A3: Ref | B3: =COLUMN() -> 2 | C3: =COLUMN() -> 3 | D3: =COLUMN() -> 4 | E3: =COLUMN() -> 5 | F3: =COLUMN() -> 6 | G3: =COLUMN() -> 7 | H3: =COLUMN() -> 8 | I3: =COLUMN() -> 9 | J3: =COLUMN() -> 10 | K3: =COLUMN() -> 11 | L3: =COLUMN() -> 12 | M3: =COLUMN() -> 13 | O3: =COLUMN() -> 15 | P3: =COLUMN() -> 16 | Q3: =COLUMN() -> 17 | R3: =COLUMN() -> 18 | S3: =COLUMN() -> 19 | T3: =COLUMN() -> 20 | U3: =COLUMN() -> 21 | V3: =COLUMN() -> 22 | W3: =COLUMN() -> 23 | X3: =COLUMN() -> 24 | Y3: =COLUMN() -> 25 | Z3: =COLUMN() -> 26 | AA3: =COLUMN() -> 27 | AB3: =COLUMN() -> 28 | AC3: =COLUMN() -> 29
A4: =ROW() -> 4 | C4: Determination of the Weighted Average Cost of Capital (WACC) | E4: DBNGP | G4: ERA | I4: DBNGP | K4: ERA | M4: ERA | O4: ERA | P4: ERA | Q4: ERA | R4: ERA | S4: ERA | T4: ERA | U4: ERA | V4: ERA | W4: ERA | X4: ERA | Y4: DBP | Z4: DBP | AA4: DBP | AB4: DBP | AC4: DBP
A5: =ROW() -> 5 | E5: AA3 | G5: DD3 | I5: Post DD3 | K5: FD3 | M5: Selected | O5: FD4 2016 | P5: FD4 2017 | Q5: FD4 2018 | R5: FD4 2019 | S5: FD4 2020 | T5: FD5 2021 | U5: FD5 2022 | V5: FD5 2023 | W5: FD5 2024 | X5: FD5 2025 | Y5: RFP6 2026 | Z5: RFP6 2027 | AA5: RFP6 2028 | AB5: RFP6 2029 | AC5: RFP6 2030
A6: =ROW() -> 6 | E6: 2010-03-01 | G6: 2011-02-28 | I6: 2011-04-18 | K6: 31/09/2011 | M6: =K6 -> 31/09/2011
C8: Return on Debt
A9: =ROW() -> 9 | C9: Debt: Nominal Risk Free Rate (DRfn) | G9: 0.0546 | K9: 0.038 | M9: =K9 -> 0.038 | O9: 0.018 | P9: =O9 -> 0.018 | Q9: =P9 -> 0.018 | R9: 0.018 | S9: 0.018
A10: =ROW() -> 10 | C10: Debt: Real Risk Free Rate (DRfr) | G10: =((1+G9)/(G27+1))-1 -> 0.02737457379 | K10: =((1+K9)/(K27+1))-1 -> 0.0102189781 | M10: =K10 -> 0.0102189781 | O10: =((1+O9)/(O27+1))-1 -> 0.003647835946 | P10: =((1+P9)/(P27+1))-1 -> 0.003647835946 | Q10: =((1+Q9)/(Q27+1))-1 -> 0.003647835946 | R10: =((1+R9)/(R27+1))-1 -> 0.003647835946 | S10: =((1+S9)/(S27+1))-1 -> 0.003647835946
A11: =ROW() -> 11 | C11: Cost of Debt; 5 year Interest Rate Swap Spread | O11: 0.021 | P11: =O11 -> 0.021 | Q11: =P11 -> 0.021 | R11: =Q11 -> 0.021 | S11: =R11 -> 0.021 | T11: 0.00295 | U11: =T11 -> 0.00295 | V11: =U11 -> 0.00295 | W11: =V11 -> 0.00295 | X11: =W11 -> 0.00295 | Y11: 0.03787308371 | Z11: =Y11 -> 0.03787308371 | AA11: =Z11 -> 0.03787308371 | AB11: =AA11 -> 0.03787308371 | AC11: =AB11 -> 0.03787308371
A12: =ROW() -> 12 | C12: Cost of Debt; Debt Risk Premium (Drp) | G12: 0.03124 | K12: 0.03143 | M12: =K12 -> 0.03143 | O12: 0.02716 | P12: =IF(P40="",O12,P40) -> 0.0283 | Q12: =IF(Q40="",P12,Q40) -> 0.0263 | R12: =IF(R40="",Q12,R40) -> 0.02339 | S12: =IF(S40="",R12,S40) -> 0.02326 | T12: =T40 -> 0.02259 | U12: =IF(U40="",T12,U40) -> 0.02099 | V12: =IF(V40="",U12,V40) -> 0.02018 | W12: =IF(W40="",V12,W40) -> 0.01984 | X12: =IF(X40="",W12,X40) -> 0.01938 | Y12: 0.01870118634 | Z12: =IF(Z40="",Y12,Z40) -> 0.01870118634 | AA12: =IF(AA40="",Z12,AA40) -> 0.01870118634 | AB12: =IF(AB40="",AA12,AB40) -> 0.01870118634 | AC12: =IF(AC40="",AB12,AC40) -> 0.01870118634
A13: =ROW() -> 13 | C13: Cost of Debt; Debt Issuing Cost (Disc) + Hedging Cost | G13: 0.00125 | K13: 0.00125 | M13: =K13 -> 0.00125 | O13: =0.125%+0.114% -> 0.00239 | P13: =O13 -> 0.00239 | Q13: =P13 -> 0.00239 | R13: 0.00239 | S13: 0.00239 | T13: 0.00214 | U13: =T13 -> 0.00214 | V13: =U13 -> 0.00214 | W13: =V13 -> 0.00214 | X13: =W13 -> 0.00214 | Y13: 0.00288 | Z13: =Y13 -> 0.00288 | AA13: =Z13 -> 0.00288 | AB13: =AA13 -> 0.00288 | AC13: =AB13 -> 0.00288
A14: =ROW() -> 14 | C14: Cost of Debt; Risk Margin (DRm) | G14: =SUM(G12:G13) -> 0.03249 | K14: =SUM(K12:K13) -> 0.03268 | M14: =K14 -> 0.03268 | O14: =O11+O12+O13-O9 -> 0.03255 | P14: =P11+P12+P13-P9 -> 0.03369 | Q14: 0.03169 | R14: 0.02878 | S14: 0.02865 | T14: =T11+T12+T13 -> 0.02768 | U14: =U11+U12+U13 -> 0.02608 | V14: 0.02527 | W14: 0.02493 | X14: 0.02447 | Y14: =Y11+Y12+Y13 -> 0.05945427005 | Z14: =Z11+Z12+Z13 -> 0.05945427005 | AA14: 0.05945427005 | AB14: 0.05945427005 | AC14: 0.05945427005
A15: =ROW() -> 15 | C15: Nominal Cost of Debt (DPn) | E15: 0.0973 | G15: =G9+G14 -> 0.08709 | I15: 0.0952 | K15: =K9+K14 -> 0.07068 | M15: =K15 -> 0.07068 | O15: =O9+O14 -> 0.05055 | P15: =P9+P14 -> 0.05169 | Q15: =Q9+Q14 -> 0.04969 | R15: =R9+R14 -> 0.04678 | S15: =S9+S14 -> 0.04665 | T15: =T14 -> 0.02768 | U15: =U14 -> 0.02608 | V15: 0.02527 | W15: 0.02493 | X15: 0.02447 | Y15: =Y14 -> 0.05945427005 | Z15: =Z14 -> 0.05945427005 | AA15: 0.05945427005 | AB15: 0.05945427005 | AC15: 0.05945427005
C17: Return on Equity
A18: =ROW() -> 18 | C18: Equity: Nominal Risk Free Rate (ERfn) | T18: 0.0029 | U18: =T18 -> 0.0029 | V18: 0.0029 | W18: 0.0029 | X18: 0.0029 | Y18: 0.04366873132 | Z18: =Y18 -> 0.04366873132 | AA18: =Z18 -> 0.04366873132 | AB18: =AA18 -> 0.04366873132 | AC18: =AB18 -> 0.04366873132
A19: =ROW() -> 19 | C19: Australian Market Risk Premium (Rp) | G19: 0.06 | K19: 0.06 | M19: =K19 -> 0.06 | O19: 0.074 | P19: =O19 -> 0.074 | Q19: =P19 -> 0.074 | R19: =Q19 -> 0.074 | S19: =R19 -> 0.074 | T19: 0.06 | U19: 0.06 | V19: 0.06 | W19: 0.06 | X19: 0.06 | Y19: 0.061 | Z19: 0.061 | AA19: 0.061 | AB19: 0.061 | AC19: 0.061
A20: =ROW() -> 20 | C20: Equity Beta (Be) | G20: 0.8 | K20: 0.8 | M20: =K20 -> 0.8 | O20: 0.7 | P20: =O20 -> 0.7 | Q20: =P20 -> 0.7 | R20: 0.7 | S20: 0.7 | T20: 0.7 | U20: 0.7 | V20: 0.7 | W20: 0.7 | X20: 0.7 | Y20: 0.7 | Z20: 0.7 | AA20: 0.7 | AB20: 0.7 | AC20: 0.7
A21: =ROW() -> 21 | C21: Nominal Pre Tax Cost of Equity (EPn) | E21: 0.135 | G21: =G22/(1-G28*(1-G29)) -> 0.1194412107 | I21: 0.125 | K21: =K22/(1-K28*(1-K29)) -> 0.1109677419 | M21: =K21 -> 0.1109677419 | O21: =O22/(1-O28*(1-O29)) -> 0.08512195122 | P21: 0.08512195122 | Q21: 0.08512195122 | R21: 0.08512195122 | S21: 0.08512195122 | T21: 0.05282352941 | U21: 0.05282352941 | V21: 0.05282352941 | W21: 0.05282352941 | X21: 0.05282352941 | Y21: =Y22/(1-Y28*(1-Y29)) -> 0.1016102721 | Z21: 0.1016102721 | AA21: 0.1016102721 | AB21: 0.1016102721 | AC21: 0.1016102721
A22: =ROW() -> 22 | C22: Nominal After Tax Cost of Equity (EAn) | G22: =G9+G19*G20 -> 0.1026 | K22: =K9+K19*K20 -> 0.086 | M22: =K22 -> 0.086 | O22: =O9+O19*O20 -> 0.0698 | P22: =P9+P19*P20 -> 0.0698 | Q22: =Q9+Q19*Q20 -> 0.0698 | R22: =R9+R19*R20 -> 0.0698 | S22: =S9+S19*S20 -> 0.0698 | T22: =T18+T19*T20 -> 0.0449 | U22: =U18+U19*U20 -> 0.0449 | V22: 0.0449 | W22: 0.0449 | X22: 0.0449 | Y22: =Y18+Y19*Y20 -> 0.08636873132 | Z22: =Z18+Z19*Z20 -> 0.08636873132 | AA22: 0.08636873132 | AB22: 0.08636873132 | AC22: 0.08636873132
C24: Other Parameter
A25: =ROW() -> 25 | C25: Debt Proportion (D) | E25: 0.6 | G25: 0.6 | I25: 0.6 | K25: 0.6 | M25: 0.6 | O25: 0.6 | P25: =O25 -> 0.6 | Q25: 0.6 | R25: 0.6 | S25: 0.6 | T25: 0.55 | U25: =T25 -> 0.55 | V25: =U25 -> 0.55 | W25: =V25 -> 0.55 | X25: =W25 -> 0.55 | Y25: 0.55 | Z25: =Y25 -> 0.55 | AA25: =Z25 -> 0.55 | AB25: =AA25 -> 0.55 | AC25: =AB25 -> 0.55
A26: =ROW() -> 26 | C26: Equity Proportion (E) | E26: 0.4 | G26: =1-G25 -> 0.4 | I26: 0.4 | K26: =1-K25 -> 0.4 | M26: 0.4 | O26: =1-O25 -> 0.4 | P26: =1-P25 -> 0.4 | Q26: 0.4 | R26: 0.4 | S26: 0.4 | T26: =1-T25 -> 0.45 | U26: =1-U25 -> 0.45 | V26: 0.45 | W26: 0.45 | X26: 0.45 | Y26: =1-Y25 -> 0.45 | Z26: =1-Z25 -> 0.45 | AA26: 0.45 | AB26: 0.45 | AC26: 0.45
A27: =ROW() -> 27 | C27: Inflation Rate for WACC (I) | E27: 0.0252 | G27: 0.0265 | I27: 0.0257 | K27: 0.0275 | M27: =K27 -> 0.0275 | O27: 0.0143 | P27: =O27 -> 0.0143 | Q27: =P27 -> 0.0143 | R27: 0.0143 | S27: 0.0143 | T27: 0.0115 | U27: =T27 -> 0.0115 | V27: =U27 -> 0.0115 | W27: =V27 -> 0.0115 | X27: =W27 -> 0.0115 | Y27: 0.0206 | Z27: =Y27 -> 0.0206 | AA27: =Z27 -> 0.0206 | AB27: =AA27 -> 0.0206 | AC27: =AB27 -> 0.0206
A28: =ROW() -> 28 | C28: Corporate Tax Rate (T) | E28: 0.3 | G28: 0.3 | I28: 0.3 | K28: 0.3 | M28: 0.3 | O28: 0.3 | P28: =O28 -> 0.3 | Q28: 0.3 | R28: 0.3 | S28: 0.3 | T28: 0.3 | U28: =T28 -> 0.3 | V28: =U28 -> 0.3 | W28: =V28 -> 0.3 | X28: =W28 -> 0.3 | Y28: 0.3 | Z28: =Y28 -> 0.3 | AA28: =Z28 -> 0.3 | AB28: =AA28 -> 0.3 | AC28: =AB28 -> 0.3
A29: =ROW() -> 29 | C29: Franking Credit (g) | E29: 0 | G29: 0.53 | I29: 0 | K29: 0.25 | M29: 0.25 | O29: 0.4 | P29: 0.4 | Q29: 0.4 | R29: 0.4 | S29: 0.4 | T29: 0.5 | U29: 0.5 | V29: 0.5 | W29: 0.5 | X29: 0.5 | Y29: 0.5 | Z29: 0.5 | AA29: 0.5 | AB29: 0.5 | AC29: 0.5
A30: =ROW() -> 30 | C30: Imputation Adj (G) | E30: =(1-E28)/(1-E28*(1-E29)) -> 1 | G30: =(1-G28)/(1-G28*(1-G29)) -> 0.8149010477 | K30: =(1-K28)/(1-K28*(1-K29)) -> 0.9032258065 | M30: 0.9032258065 | O30: =(1-O28)/(1-O28*(1-O29)) -> 0.8536585366 | P30: =(1-P28)/(1-P28*(1-P29)) -> 0.8536585366 | Q30: 0.8536585366 | R30: 0.8536585366 | S30: 0.8536585366 | T30: =(1-T28)/(1-T28*(1-T29)) -> 0.8235294118 | U30: =(1-U28)/(1-U28*(1-U29)) -> 0.8235294118 | V30: 0.8235294118 | W30: 0.8235294118 | X30: 0.8235294118 | Y30: =(1-Y28)/(1-Y28*(1-Y29)) -> 0.8235294118 | Z30: =(1-Z28)/(1-Z28*(1-Z29)) -> 0.8235294118 | AA30: 0.8235294118 | AB30: 0.8235294118 | AC30: 0.8235294118
A32: =ROW() -> 32 | C32: WACC; Pre-tax Officer (Market Practise or Forward Transformation)
A33: =ROW() -> 33 | C33: Nominal Pre Tax WACC (WPn) | E33: =E21*(1/(1-E28*(1-E29))*E26)+E15*E25 -> 0.1355228571 | G33: =G21*G26+G15*G25 -> 0.1000304843 | I33: =I21*(1/(1-I28*(1-I29))*I26)+I15*I25 -> 0.1285485714 | K33: =K21*K26+K15*K25 -> 0.08679509677 | M33: 0.08679509677 | O33: =O21*O26+O15*O25 -> 0.06437878049 | P33: 0.06506278049 | Q33: 0.06386278049 | R33: 0.06211678049 | S33: 0.06203878049 | T33: 0.03899458824 | U33: 0.03811458824 | V33: 0.03766908824 | W33: 0.03748208824 | X33: 0.03722908824 | Y33: =Y21*Y26+Y15*Y25 -> 0.07842447099 | Z33: 0.07842447099 | AA33: 0.07842447099 | AB33: 0.07842447099 | AC33: 0.07842447099
A34: =ROW() -> 34 | C34: Real Pre Tax WACC (WPr) | E34: =(1+E33)/(1+E27)- 1 -> 0.1076110585 | G34: =(1+G33)/(1+G27)-1 -> 0.07163223018 | I34: =(1+I33)/(1+I27)- 1 -> 0.1002715915 | K34: =(1+K33)/(1+K27)-1 -> 0.05770812338 | M34: 0.05770812338 | O34: =(1+O33)/(1+O27)-1 -> 0.04937275016 | P34: 0.05004710686 | Q34: 0.04886402493 | R34: 0.04714264073 | S34: 0.0470657404 | T34: 0.02718199529 | U34: 0.02631200023 | V34: 0.02587156524 | W34: 0.02568669129 | X34: 0.02543656771 | Y34: =(1+Y33)/(1+Y27)-1 -> 0.05665732999 | Z34: 0.05665732999 | AA34: 0.05665732999 | AB34: 0.05665732999 | AC34: 0.05665732999
A35: =ROW() -> 35 | C35: WACC: Vanilla
A36: =ROW() -> 36 | C36: Nominal After Tax WACC (WVAn) | G36: =G25*G15+G26*G22 -> 0.093294 | K36: =K25*K15+K26*K22 -> 0.076808 | M36: 0.076808 | O36: =O25*O15+O26*O22 -> 0.05825 | P36: 0.058934 | Q36: 0.057734 | R36: 0.055988 | S36: 0.05591 | T36: 0.035429 | U36: 0.034549 | V36: 0.0341035 | W36: 0.0339165 | X36: 0.0336635 | Y36: =Y25*Y15+Y26*Y22 -> 0.07156577762 | Z36: 0.07156577762 | AA36: 0.07156577762 | AB36: 0.07156577762 | AC36: 0.07156577762
A37: =ROW() -> 37 | C37: Real After Tax WACC (WVAr) | G37: =(1+G36)/(1+G27)-1 -> 0.06506965416 | K37: =(1+K36)/(1+K27)-1 -> 0.04798832117 | M37: 0.04798832117 | O37: =(1+O36)/(1+O27)-1 -> 0.04333037563 | P37: 0.04400473233 | Q37: 0.0428216504 | R37: 0.04110026619 | S37: 0.04102336587 | T37: 0.02365694513 | U37: 0.02278695007 | V37: 0.02234651508 | W37: 0.02216164113 | X37: 0.02191151755 | Y37: =(1+Y36)/(1+Y27)-1 -> 0.0499370739 | Z37: 0.0499370739 | AA37: 0.0499370739 | AB37: 0.0499370739 | AC37: 0.0499370739
A38: =ROW() -> 38
A39: =ROW() -> 39 | C39: Cost of Debt; Debt Risk Premium (Drp)
A40: =ROW() -> 40 | C40: Trailing Average DRP | O40: =O44 -> 0.02716 | P40: =P44 -> 0.0283 | Q40: 0.0263 | R40: 0.02339 | S40: 0.02326 | T40: =T44 -> 0.02259 | U40: =IF(Inputs!AE12="","",Inputs!AE12) -> 0.02099 | V40: =IF(Inputs!AF12="","",Inputs!AF12) -> 0.02018 | W40: =IF(Inputs!AG12="","",Inputs!AG12) -> 0.01984 | X40: =IF(Inputs!AH12="","",Inputs!AH12) -> 0.01938 | Y40: =Y44 -> 0.0187 | Z40: =IF(Inputs!AJ12="","",Inputs!AJ12) ->  | AA40: =IF(Inputs!AK12="","",Inputs!AK12) ->  | AB40: =IF(Inputs!AL12="","",Inputs!AL12) ->  | AC40: =IF(Inputs!AM12="","",Inputs!AM12) -> 
A41: =ROW() -> 41 | C41: Modelled DRP | O41: =IF(O40="",N41,O40) -> 0.02716 | P41: =IF(P40="",O41,P40) -> 0.0283 | Q41: 0.0263 | R41: 0.02339 | S41: 0.02326 | T41: =IF(T40="",S41,T40) -> 0.02259 | U41: 0.02099 | V41: =IF(V40="",U41,V40) -> 0.02018 | W41: =IF(W40="",V41,W40) -> 0.01984 | X41: =IF(X40="",W41,X40) -> 0.01938 | Y41: =IF(Y40="",X41,Y40) -> 0.0187 | Z41: =IF(Z40="",Y41,Z40) -> 0.0187 | AA41: =IF(AA40="",Z41,AA40) -> 0.0187 | AB41: =IF(AB40="",AA41,AB40) -> 0.0187 | AC41: =IF(AC40="",AB41,AC40) -> 0.0187
A42: =ROW() -> 42
A43: =ROW() -> 43 | C43: Annual Update of Debt Risk Premium | O43: 2016 | P43: =O43+1 -> 2017 | Q43: =P43+1 -> 2018 | R43: 2019 | S43: 2020 | T43: 2021 | U43: =T43+1 -> 2022 | V43: =U43+1 -> 2023 | W43: 2024 | X43: 2025 | Y43: =X43+1 -> 2026 | Z43: =Y43+1 -> 2027 | AA43: =Z43+1 -> 2028 | AB43: =AA43+1 -> 2029 | AC43: =AB43+1 -> 2030
A44: =ROW() -> 44 | C44: Trailing Average DRP | O44: =ROUND(AVERAGE(O47:O56),5) -> 0.02716 | P44: =ROUND(AVERAGE(P48:P57),5) -> 0.0283 | Q44: =ROUND(AVERAGE(Q49:Q58),5) -> 0.0263 | R44: =ROUND(AVERAGE(R50:R59),5) -> 0.02339 | S44: =ROUND(AVERAGE(S51:S60),5) -> 0.02326 | T44: =IF(T61="","",ROUND(AVERAGE(T52:T61),5)) -> 0.02259 | U44: =IF(U62="","",ROUND(AVERAGE(U53:U62),5)) -> 0.02099 | V44: =IF(V63="","",ROUND(AVERAGE(V54:V63),5)) -> 0.02018 | W44: =IF(W64="","",ROUND(AVERAGE(W55:W64),5)) -> 0.01984 | X44: =IF(X65="","",ROUND(AVERAGE(X56:X65),5)) -> 0.01938 | Y44: =IF(Y66="","",ROUND(AVERAGE(Y57:Y66),5)) -> 0.0187 | Z44: =IF(Z67="","",ROUND(AVERAGE(Z58:Z67),5)) ->  | AA44: =IF(AA68="","",ROUND(AVERAGE(AA59:AA68),5)) ->  | AB44: =IF(AB69="","",ROUND(AVERAGE(AB60:AB69),5)) ->  | AC44: =IF(AC70="","",ROUND(AVERAGE(AC61:AC70),5)) ->  | AD44: This number is automatically populated when the annual DRP at Inputs sheet, Row 11 is updated
A45: =ROW() -> 45
A46: =ROW() -> 46 | C46: Annual Debt Risk Premium, Year | O46: =O43 -> 2016 | P46: =P43 -> 2017 | Q46: 2018 | R46: 2019 | S46: 2020 | T46: 2021 | U46: 2022 | V46: 2023 | W46: 2024 | X46: 2025 | Y46: 2026 | Z46: 2027 | AA46: 2028 | AB46: 2029 | AC46: 2030
A47: =ROW() -> 47 | C47: 2007 | O47: 0.0113
A48: =ROW() -> 48 | C48: =C47+1 -> 2008 | O48: 0.03756 | P48: =O48 -> 0.03756
A49: =ROW() -> 49 | C49: 2009 | O49: 0.04624 | P49: 0.04624 | Q49: =P49 -> 0.04624
A50: =ROW() -> 50 | C50: 2010 | O50: 0.02125 | P50: 0.02125 | Q50: =P50 -> 0.02125 | R50: =Q50 -> 0.02125
A51: =ROW() -> 51 | C51: 2011 | O51: 0.02379 | P51: 0.02379 | Q51: =P51 -> 0.02379 | R51: =Q51 -> 0.02379 | S51: 0.02379
A52: =ROW() -> 52 | C52: 2012 | O52: 0.03168 | P52: 0.03168 | Q52: =P52 -> 0.03168 | R52: 0.03168 | S52: 0.03168 | T52: =S52 -> 0.03168
A53: =ROW() -> 53 | C53: 2013 | O53: 0.03043 | P53: 0.03043 | Q53: =P53 -> 0.03043 | R53: 0.03043 | S53: 0.03043 | T53: 0.03043 | U53: =T53 -> 0.03043
A54: =ROW() -> 54 | C54: 2014 | O54: 0.02251 | P54: =O54 -> 0.02251 | Q54: 0.02251 | R54: 0.02251 | S54: 0.02251 | T54: 0.02251 | U54: =T54 -> 0.02251 | V54: =U54 -> 0.02251
A55: =ROW() -> 55 | C55: 2015 | O55: 0.0207 | P55: =O55 -> 0.0207 | Q55: 0.0207 | R55: 0.0207 | S55: 0.0207 | T55: 0.0207 | U55: =T55 -> 0.0207 | V55: 0.0207 | W55: =V55 -> 0.0207
A56: =ROW() -> 56 | C56: 2016 | O56: 0.02612 | P56: 0.02612 | Q56: 0.02612 | R56: 0.02612 | S56: 0.02612 | T56: 0.02612 | U56: 0.02612 | V56: 0.02612 | W56: 0.02612 | X56: =W56 -> 0.02612
A57: =ROW() -> 57 | C57: 2017 | P57: 0.02274 | Q57: =P57 -> 0.02274 | R57: =Q57 -> 0.02274 | S57: =R57 -> 0.02274 | T57: 0.02274 | U57: 0.02274 | V57: 0.02274 | W57: 0.02274 | X57: =W57 -> 0.02274 | Y57: 0.02274
A58: =ROW() -> 58 | C58: 2018 | Q58: 0.01756 | R58: =Q58 -> 0.01756 | S58: =R58 -> 0.01756 | T58: 0.01756 | U58: 0.01756 | V58: 0.01756 | W58: 0.01756 | X58: 0.01756 | Y58: 0.01756 | Z58: =Y58 -> 0.01756
A59: =ROW() -> 59 | C59: 2019 | R59: 0.01712 | S59: =R59 -> 0.01712 | T59: 0.01712 | U59: 0.01712 | V59: 0.01712 | W59: 0.01712 | X59: 0.01712 | Y59: 0.01712 | Z59: =Y59 -> 0.01712 | AA59: =Z59 -> 0.01712
A60: =ROW() -> 60 | C60: 2020 | S60: 0.01995 | T60: 0.01995 | U60: 0.01995 | V60: 0.01995 | W60: 0.01995 | X60: 0.01995 | Y60: 0.01995 | Z60: =Y60 -> 0.01995 | AA60: 0.01995 | AB60: =AA60 -> 0.01995
A61: =ROW() -> 61 | C61: 2021 | T61: 0.01712 | U61: 0.01712 | V61: 0.01712 | W61: 0.01712 | X61: 0.01712 | Y61: 0.01712 | Z61: 0.01712 | AA61: 0.01712 | AB61: 0.01712 | AC61: =AB61 -> 0.01712
A62: =ROW() -> 62 | C62: 2022 | U62: =IF(Inputs!AE$11="","",Inputs!AE$11) -> 0.01568 | V62: =U62 -> 0.01568 | W62: =V62 -> 0.01568 | X62: =W62 -> 0.01568 | Y62: =X62 -> 0.01568 | Z62: 0.01568 | AA62: 0.01568 | AB62: 0.01568 | AC62: =AB62 -> 0.01568
A63: =ROW() -> 63 | C63: 2023 | V63: =IF(Inputs!AF$11="","",Inputs!AF$11) -> 0.02228 | W63: =V63 -> 0.02228 | X63: =W63 -> 0.02228 | Y63: =X63 -> 0.02228 | Z63: 0.02228 | AA63: 0.02228 | AB63: 0.02228 | AC63: =AB63 -> 0.02228
A64: =ROW() -> 64 | C64: 2024 | W64: =IF(Inputs!AG$11="","",Inputs!AG$11) -> 0.01913 | X64: =W64 -> 0.01913 | Y64: =X64 -> 0.01913 | Z64: 0.01913 | AA64: 0.01913 | AB64: 0.01913 | AC64: =AB64 -> 0.01913
A65: =ROW() -> 65 | C65: 2025 | X65: =IF(Inputs!AH$11="","",Inputs!AH$11) -> 0.01606 | Y65: =X65 -> 0.01606 | Z65: 0.01606 | AA65: 0.01606 | AB65: 0.01606 | AC65: =AB65 -> 0.01606
A66: =ROW() -> 66 | C66: =C65+1 -> 2026 | Y66: 0.0194 | Z66: 0.0194 | AA66: 0.0194 | AB66: 0.0194 | AC66: =AB66 -> 0.0194
A67: =ROW() -> 67 | C67: 2027 | Z67: =IF(Inputs!AJ$11="","",Inputs!AJ$11) ->  | AA67: =Z67 ->  | AB67: =AA67 ->  | AC67: =AB67 -> 
A68: =ROW() -> 68 | C68: 2028 | AA68: =IF(Inputs!AK$11="","",Inputs!AK$11) ->  | AC68: =AB68 -> 
A69: =ROW() -> 69 | C69: 2029 | AB69: =IF(Inputs!AL$11="","",Inputs!AL$11) ->  | AC69: =AB69 -> 
A70: =ROW() -> 70 | C70: 2030 | AC70: =IF(Inputs!AM$11="","",Inputs!AM$11) -> 
A71: =ROW() -> 71
A72: =ROW() -> 72
A73: =ROW() -> 73

Sheet Load
A1: =Main!A1 -> DBNGP, DBNGP Tariff Model, Draft Decision, August 2025
A2: =MID(CELL("filename",A1),FIND("]",CELL("filename",A1))+1,256) -> Load
A3: Ref. | B3: =COLUMN() -> 2 | C3: =COLUMN() -> 3 | D3: =COLUMN() -> 4 | E3: =COLUMN() -> 5 | F3: =COLUMN() -> 6 | G3: =COLUMN() -> 7 | H3: =COLUMN() -> 8 | I3: =COLUMN() -> 9 | J3: =COLUMN() -> 10 | K3: =COLUMN() -> 11 | L3: =COLUMN() -> 12 | M3: =COLUMN() -> 13 | N3: =COLUMN() -> 14 | O3: =COLUMN() -> 15 | P3: =COLUMN() -> 16 | Q3: =COLUMN() -> 17 | R3: =COLUMN() -> 18 | S3: =COLUMN() -> 19 | T3: =COLUMN() -> 20 | U3: =COLUMN() -> 21 | V3: =COLUMN() -> 22 | W3: =COLUMN() -> 23 | X3: =COLUMN() -> 24 | Y3: =COLUMN() -> 25 | Z3: =COLUMN() -> 26 | AA3: =COLUMN() -> 27 | AB3: =COLUMN() -> 28 | AC3: =COLUMN() -> 29 | AD3: =COLUMN() -> 30 | AE3: =COLUMN() -> 31 | AF3: =COLUMN() -> 32 | AG3: =COLUMN() -> 33 | AH3: =COLUMN() -> 34 | AI3: =COLUMN() -> 35 | AJ3: =COLUMN() -> 36 | AK3: =COLUMN() -> 37 | AL3: =COLUMN() -> 38 | AM3: =COLUMN() -> 39
A5: Regulatory Period | I5: =Inputs!I$5 -> AA1 | J5: =Inputs!J$5 -> AA1 | K5: =Inputs!K$5 -> AA1 | L5: =Inputs!L$5 -> AA1 | M5: =Inputs!M$5 -> AA1 | N5: =Inputs!N$5 -> AA2 | O5: =Inputs!O$5 -> AA2 | P5: =Inputs!P$5 -> AA2 | Q5: =Inputs!Q$5 -> AA2 | R5: =Inputs!R$5 -> AA2 | S5: =Inputs!S$5 -> AA2 | T5: =Inputs!T$5 -> AA3 | U5: =Inputs!U$5 -> AA3 | V5: =Inputs!V$5 -> AA3 | W5: =Inputs!W$5 -> AA3 | X5: =Inputs!X$5 -> AA3 | Y5: =Inputs!Y$5 -> AA4 | Z5: =Inputs!Z$5 -> AA4 | AA5: =Inputs!AA$5 -> AA4 | AB5: =Inputs!AB$5 -> AA4 | AC5: =Inputs!AC$5 -> AA4 | AD5: =Inputs!AD$5 -> AA5 | AE5: =Inputs!AE$5 -> AA5 | AF5: =Inputs!AF$5 -> AA5 | AG5: =Inputs!AG$5 -> AA5 | AH5: =Inputs!AH$5 -> AA5 | AI5: =Inputs!AI$5 -> AA6 | AJ5: =Inputs!AJ$5 -> AA6 | AK5: =Inputs!AK$5 -> AA6 | AL5: =Inputs!AL$5 -> AA6 | AM5: =Inputs!AM$5 -> AA6
A6: Year | H6: =Inputs!H$6 -> 1999 | I6: =Inputs!I$6 -> 2000 | J6: =Inputs!J$6 -> 2001 | K6: =Inputs!K$6 -> 2002 | L6: =Inputs!L$6 -> 2003 | M6: =Inputs!M$6 -> 2004 | N6: =Inputs!N$6 -> 2005 | O6: =Inputs!O$6 -> 2006 | P6: =Inputs!P$6 -> 2007 | Q6: =Inputs!Q$6 -> 2008 | R6: =Inputs!R$6 -> 2009 | S6: =Inputs!S$6 -> 2010 | T6: =Inputs!T$6 -> 2011 | U6: =Inputs!U$6 -> 2012 | V6: =Inputs!V$6 -> 2013 | W6: =Inputs!W$6 -> 2014 | X6: =Inputs!X$6 -> 2015 | Y6: =Inputs!Y$6 -> 2016 | Z6: =Inputs!Z$6 -> 2017 | AA6: =Inputs!AA$6 -> 2018 | AB6: =Inputs!AB$6 -> 2019 | AC6: =Inputs!AC$6 -> 2020 | AD6: =Inputs!AD$6 -> 2021 | AE6: =Inputs!AE$6 -> 2022 | AF6: =Inputs!AF$6 -> 2023 | AG6: =Inputs!AG$6 -> 2024 | AH6: =Inputs!AH$6 -> 2025 | AI6: =Inputs!AI$6 -> 2026 | AJ6: =Inputs!AJ$6 -> 2027 | AK6: =Inputs!AK$6 -> 2028 | AL6: =Inputs!AL$6 -> 2029 | AM6: =Inputs!AM$6 -> 2030
A7: Days | H7: =Inputs!H$7 -> 365 | I7: =Inputs!I$7 -> 366 | J7: =Inputs!J$7 -> 365 | K7: =Inputs!K$7 -> 365 | L7: =Inputs!L$7 -> 365 | M7: =Inputs!M$7 -> 366 | N7: =Inputs!N$7 -> 365 | O7: =Inputs!O$7 -> 365 | P7: =Inputs!P$7 -> 365 | Q7: =Inputs!Q$7 -> 366 | R7: =Inputs!R$7 -> 365 | S7: =Inputs!S$7 -> 365 | T7: =Inputs!T$7 -> 365 | U7: =Inputs!U$7 -> 366 | V7: =Inputs!V$7 -> 365 | W7: =Inputs!W$7 -> 365 | X7: =Inputs!X$7 -> 365 | Y7: =Inputs!Y$7 -> 366 | Z7: =Inputs!Z$7 -> 365 | AA7: =Inputs!AA$7 -> 365 | AB7: =Inputs!AB$7 -> 365 | AC7: =Inputs!AC$7 -> 366 | AD7: =Inputs!AD$7 -> 365 | AE7: =Inputs!AE$7 -> 365 | AF7: =Inputs!AF$7 -> 365 | AG7: =Inputs!AG$7 -> 366 | AH7: =Inputs!AH$7 -> 365 | AI7: =Inputs!AI$7 -> 365 | AJ7: =Inputs!AJ$7 -> 365 | AK7: =Inputs!AK$7 -> 366 | AL7: =Inputs!AL$7 -> 365 | AM7: =Inputs!AM$7 -> 365
A8: Project Year | H8: =Inputs!H$8 -> 0 | I8: =Inputs!I$8 -> 1 | J8: =Inputs!J$8 -> 2 | K8: =Inputs!K$8 -> 3 | L8: =Inputs!L$8 -> 4 | M8: =Inputs!M$8 -> 5 | N8: =Inputs!N$8 -> 6 | O8: =Inputs!O$8 -> 7 | P8: =Inputs!P$8 -> 8 | Q8: =Inputs!Q$8 -> 9 | R8: =Inputs!R$8 -> 10 | S8: =Inputs!S$8 -> 11 | T8: =Inputs!T$8 -> 12 | U8: =Inputs!U$8 -> 13 | V8: =Inputs!V$8 -> 14 | W8: =Inputs!W$8 -> 15 | X8: =Inputs!X$8 -> 16 | Y8: =Inputs!Y$8 -> 17 | Z8: =Inputs!Z$8 -> 18 | AA8: =Inputs!AA$8 -> 19 | AB8: =Inputs!AB$8 -> 20 | AC8: =Inputs!AC$8 -> 21 | AD8: =Inputs!AD$8 -> 22 | AE8: =Inputs!AE$8 -> 23 | AF8: =Inputs!AF$8 -> 24 | AG8: =Inputs!AG$8 -> 25 | AH8: =Inputs!AH$8 -> 26 | AI8: =Inputs!AI$8 -> 27 | AJ8: =Inputs!AJ$8 -> 28 | AK8: =Inputs!AK$8 -> 29 | AL8: =Inputs!AL$8 -> 30 | AM8: =Inputs!AM$8 -> 31
A9: Full Haul Equivalent Capacity and throughput forecast
A10: =ROW() -> 10 | B10: Total System
A11: =ROW() -> 11 | C11: MDQ [TJ/d] | N11: 560.162787 | O11: 629.9464159 | P11: 739.9755427 | Q11: 815.451152 | R11: 857.7150818 | S11: 983.0108733 | T11: 893.6213644 | U11: 902.6213644 | V11: 902.6213644 | W11: 902.6213644 | X11: 902.6213644 | Y11: 778.8043082 | Z11: 768.1542805 | AA11: 766.3750471 | AB11: 763.8338892 | AC11: 763.4127312 | AD11: 650.105436 | AE11: 633.7274668 | AF11: 614.4453247 | AG11: 562.5505593 | AH11: 556.4677381 | AI11: 564.934595 | AJ11: 547.9110109 | AK11: 552.1649938 | AL11: 537.3490624 | AM11: 544.3490624
A12: =ROW() -> 12 | C12: Throughput [TJ/d] | N12: 536.1113439 | O12: 561.0946917 | P12: 621.2201672 | Q12: 603.6044957 | R12: 657.5467802 | S12: 659.4000442 | T12: 740.3062521 | U12: 756.0380436 | V12: 756.9380436 | W12: 763.0672963 | X12: 769.7417849 | Y12: 648.7589504 | Z12: 639.2860623 | AA12: 643.4346487 | AB12: 647.2284129 | AC12: 650.8177322 | AD12: 586.9190973 | AE12: 571.9544494 | AF12: 554.4596002 | AG12: 513.1202217 | AH12: 509.1529237 | AI12: 475.8550565 | AJ12: 485.0556354 | AK12: 494.9876208 | AL12: 485.2777071 | AM12: 492.0975256
A13: =ROW() -> 13 | C13: Load Factor | N13: 0.9570634757 | O13: 0.8907022526 | P13: 0.8395144588 | Q13: 0.7402092623 | R13: 0.7666261142 | S13: 0.6707962873 | T13: 0.8284339224 | U13: 0.8376026465 | V13: 0.8385997423 | W13: 0.8453902449 | X13: 0.8527848057 | Y13: 0.833019211 | Z13: 0.8322365422 | AA13: 0.8395819399 | AB13: 0.8473418398 | AC13: 0.8525109756 | AD13: 0.9028060139 | AE13: 0.9025243174 | AF13: 0.9023741869 | AG13: 0.9121317422 | AH13: 0.9149729425 | AI13: 0.8423188465 | AJ13: 0.8852817806 | AK13: 0.8964487543 | AL13: 0.9030958479 | AM13: 0.904010973
A14: =ROW() -> 14 | C14: MDQ [TJ/year] | N14: =N11*N$7 -> 204459.4172 | O14: =O11*O$7 -> 229930.4418 | P14: 270091.0731 | Q14: 298455.1216 | R14: 313066.0048 | S14: 358798.9688 | T14: 326171.798 | U14: 330359.4194 | V14: 329456.798 | W14: 329456.798 | X14: 329456.798 | Y14: 285042.3768 | Z14: 280376.3124 | AA14: 279726.8922 | AB14: 278799.3695 | AC14: 279409.0596 | AD14: =AD11*AD$7 -> 237288.4841 | AE14: 231310.5254 | AF14: 224272.5435 | AG14: 205893.5047 | AH14: 203110.7244 | AI14: =AI11*AI$7 -> 206201.1272 | AJ14: 199987.519 | AK14: 202092.3877 | AL14: 196132.4078 | AM14: 198687.4078
A15: =ROW() -> 15 | C15: Throughput [TJ/year] | N15: =N12*N$7 -> 195680.6405 | O15: 204799.5625 | P15: 226745.361 | Q15: 220919.2454 | R15: 240004.5748 | S15: 240681.0161 | T15: 270211.782 | U15: 276709.924 | V15: 276282.3859 | W15: 278519.5631 | X15: 280955.7515 | Y15: 237445.7758 | Z15: 233339.4127 | AA15: 234853.6468 | AB15: 236238.3707 | AC15: 238199.29 | AD15: =AD12*AD$7 -> 214225.4705 | AE15: 208763.374 | AF15: 202377.7541 | AG15: 187802.0011 | AH15: 185840.8172 | AI15: =AI12*AI$7 -> 173687.0956 | AJ15: 177045.3069 | AK15: 181165.4692 | AL15: 177126.3631 | AM15: 179615.5968
A16: =ROW() -> 16 | D16: Total KM | E16: 1399

Sheet IncentiveMechanism
A1: =Main!A1 -> DBNGP, DBNGP Tariff Model, Draft Decision, August 2025
A2: =MID(CELL("filename",A1),FIND("]",CELL("filename",A1))+1,256) -> IncentiveMechanism
A3: E Factor (Opex Incentive Mechanism) Calculation
A4: Ref. | B4: =COLUMN() -> 2 | C4: =COLUMN() -> 3 | D4: =COLUMN() -> 4 | E4: =COLUMN() -> 5 | F4: =COLUMN() -> 6 | G4: =COLUMN() -> 7 | H4: =COLUMN() -> 8 | I4: =COLUMN() -> 9 | J4: =COLUMN() -> 10 | K4: =COLUMN() -> 11 | L4: =COLUMN() -> 12 | M4: =COLUMN() -> 13 | N4: =COLUMN() -> 14 | Q4: =COLUMN() -> 17 | R4: =COLUMN() -> 18 | S4: =COLUMN() -> 19 | T4: =COLUMN() -> 20 | U4: =COLUMN() -> 21 | V4: =COLUMN() -> 22 | W4: =COLUMN() -> 23 | X4: =COLUMN() -> 24 | Y4: =COLUMN() -> 25 | Z4: =COLUMN() -> 26 | AA4: =COLUMN() -> 27 | AB4: =COLUMN() -> 28 | AC4: =COLUMN() -> 29 | AD4: =COLUMN() -> 30 | AE4: =COLUMN() -> 31 | AF4: =COLUMN() -> 32 | AG4: =COLUMN() -> 33 | AH4: =COLUMN() -> 34 | AI4: =COLUMN() -> 35 | AJ4: =COLUMN() -> 36 | AK4: =COLUMN() -> 37 | AL4: =COLUMN() -> 38 | AM4: =COLUMN() -> 39 | AN4: =COLUMN() -> 40 | AO4: =COLUMN() -> 41
A6: Regulatory Period | J6: AA1 | K6: AA1 | L6: AA1 | M6: AA1 | N6: AA1 | O6: AA1 | P6: AA2 | Q6: AA2 | R6: AA2 | S6: AA2 | T6: AA2 | U6: AA2 | V6: AA3 | W6: AA3 | X6: AA3 | Y6: AA3 | Z6: AA3 | AA6: AA4 | AB6: AA4 | AC6: AA4 | AD6: AA4 | AE6: AA4 | AF6: AA5 | AG6: AA5 | AH6: AA5 | AI6: AA5 | AJ6: AA5 | AK6: AA6 | AL6: AA6 | AM6: AA6 | AN6: AA6 | AO6: AA6
A7: Year ending (31-December) | H7: =I7-1 -> 1997 | I7: =J7-1 -> 1998 | J7: 1999 | K7: =J7+1 -> 2000 | L7: 2001 | M7: 2002 | N7: 2003 | O7: 2004 | P7: 2005 | Q7: 2006 | R7: 2007 | S7: 2008 | T7: 2009 | U7: 2010 | V7: 2011 | W7: 2012 | X7: 2013 | Y7: 2014 | Z7: 2015 | AA7: 2016 | AB7: 2017 | AC7: 2018 | AD7: 2019 | AE7: 2020 | AF7: 2021 | AG7: 2022 | AH7: 2023 | AI7: 2024 | AJ7: 2025 | AK7: 2026 | AL7: 2027 | AM7: 2028 | AN7: 2029 | AO7: 2030
A8: Days | H8: =IF(INT(H7/4)=H7/4,366,365) -> 365 | I8: 365 | J8: 365 | K8: 366 | L8: 365 | M8: 365 | N8: 365 | O8: 366 | P8: 365 | Q8: 365 | R8: 365 | S8: 366 | T8: 365 | U8: 365 | V8: 365 | W8: 366 | X8: 365 | Y8: 365 | Z8: 365 | AA8: 366 | AB8: 365 | AC8: 365 | AD8: 365 | AE8: 366 | AF8: 365 | AG8: 365 | AH8: 365 | AI8: 366 | AJ8: 365 | AK8: 365 | AL8: 365 | AM8: 366 | AN8: 365 | AO8: 365
A9: Project Year | H9: 0 | I9: 0 | J9: 0 | K9: =J9+1 -> 1 | L9: 2 | M9: 3 | N9: 4 | O9: 5 | P9: 6 | Q9: 7 | R9: 8 | S9: 9 | T9: 10 | U9: 11 | V9: 12 | W9: 13 | X9: 14 | Y9: 15 | Z9: 16 | AA9: 17 | AB9: 18 | AC9: 19 | AD9: 20 | AE9: 21 | AF9: 22 | AG9: 23 | AH9: 24 | AI9: 25 | AJ9: 26 | AK9: 27 | AL9: 28 | AM9: 29 | AN9: 30 | AO9: 31
A10: Actual and estimated inflation
A11: =ROW() -> 11 | C11: ABS CPI index - Dec | AE11: =Inputs!AC24 -> 117.2 | AF11: =Inputs!AD24 -> 121.3 | AG11: =Inputs!AE24 -> 130.8 | AH11: =Inputs!AF24 -> 136.1 | AI11: =Inputs!AG24 -> 139.4 | AJ11: =Inputs!AH24 -> 142.27164 | AK11: =Inputs!AI24 -> 145.2024358 | AL11: =Inputs!AJ24 -> 148.193606 | AM11: =Inputs!AK24 -> 151.2463942 | AN11: =Inputs!AL24 -> 154.36207 | AO11: =Inputs!AM24 -> 157.5419286
A12: =ROW() -> 12 | C12: Inflation rate (per cent) | AF12: =AF11/AE11-1 -> 0.03498293515 | AG12: =AG11/AF11-1 -> 0.07831821929 | AH12: 0.04051987768 | AI12: 0.0242468773 | AJ12: 0.0206 | AK12: 0.0206 | AL12: 0.0206 | AM12: 0.0206 | AN12: 0.0206 | AO12: 0.0206
A13: =ROW() -> 13 | C13: =Inputs!C26 -> Inflation Factor (convert 31/12/2024 $ to nominal $) | E13: Base period: | F13: =Inputs!E23 -> 2024-12-31 | AE13: =Inputs!AC26 -> 0.8407460545 | AF13: =Inputs!AD26 -> 0.8701578192 | AG13: =Inputs!AE26 -> 0.9383070301 | AH13: =Inputs!AF26 -> 0.9763271162 | AI13: =Inputs!AG26 -> 1 | AJ13: =Inputs!AH26 -> 1.0206 | AK13: =Inputs!AI26 -> 1.04162436 | AL13: =Inputs!AJ26 -> 1.063081822 | AM13: =Inputs!AK26 -> 1.084981307 | AN13: =Inputs!AL26 -> 1.107331922 | AO13: =Inputs!AM26 -> 1.13014296
A14: =ROW() -> 14 | E14: Real $ at | F14: =Inputs!E26 -> 31/12/2024
A15: =ROW() -> 15
A16: Opex allowance applicable to E Factor (E Factor benchmark) | AH16: AA5 [m$ OD] | AM16: AA6 [m$ OD]
A17: =ROW() -> 17 | C17: Total opex allowance
A18: =ROW() -> 18 | C18: Approved Adjustments
A19: =ROW() -> 19 | C19: Movement in provisions (AA5 clause 15.11 (a))
A20: =ROW() -> 20 | C20: Capitalisation policy changes (AA clause 15.12)
A21: =ROW() -> 21 | C21: Adjusted total opex allowance | AF21: =SUM(AF17:AF20) -> 0 | AG21: =SUM(AG17:AG20) -> 0 | AH21: 0 | AI21: 0 | AJ21: 0
A22: =ROW() -> 22 | C22: Less excludable costs
A23: =ROW() -> 23 | C23: System use gas -- Fuel gas (AA5 clause 15.11 (b)(i))
A24: =ROW() -> 24 | C24: Turbine / GEA overhauls (AA5 clause 15.11 (b)(ii))
A25: =ROW() -> 25 | C25: E Factor benchmark | AG25: =AG21-SUM(AG23:AG24) -> 0 | AH25: 0 | AI25: 0 | AJ25: 0
A26: =ROW() -> 26
A27: =ROW() -> 27 | AH27: ="AA5 [m$ "&$F$14&"]" -> AA5 [m$ 31/12/2024] | AM27: ="AA6 [m$ "&$F$14&"]" -> AA6 [m$ 31/12/2024]
A28: =ROW() -> 28 | C28: Total opex allowance | AF28: 110.6 | AG28: 107.4 | AH28: 106.4 | AI28: 93.6 | AJ28: 95.6
A29: =ROW() -> 29 | C29: Approved Adjustments
A30: =ROW() -> 30 | C30: Movement in provisions (AA5 clause 15.11 (a)) | AF30: 6.4 | AG30: 0.5 | AH30: 0.8 | AI30: 0 | AJ30: 0
A31: =ROW() -> 31 | C31: Capitalisation policy changes (AA clause 15.12) | AI31: 2.3
C32: Expenditure for unforeseen asset corrosion | AI32: 1.6
A33: =ROW() -> 33 | C33: Adjusted total opex allowance | AF33: =AF28+SUM(AF30:AF32) -> 117 | AG33: =AG28+SUM(AG30:AG32) -> 107.9 | AH33: 107.2 | AI33: 97.5 | AJ33: 95.6
A34: =ROW() -> 34 | C34: Less excludable costs
A35: =ROW() -> 35 | C35: System use gas -- Fuel gas (AA5 clause 15.11 (b)(i)) | AF35: 24.5 | AG35: 23.5 | AH35: 22.1 | AI35: 16.5 | AJ35: 16
A36: =ROW() -> 36 | C36: Turbine / GEA overhauls (AA5 clause 15.11 (b)(ii)) | AF36: 10.3 | AG36: 8.4 | AH36: 8.4 | AI36: 1.2 | AJ36: 2.5
A37: =ROW() -> 37 | C37: E Factor benchmark | AF37: =AF33-SUM(AF35:AF36)+0.1 -> 82.3 | AG37: =AG33-SUM(AG35:AG36) -> 76 | AH37: 76.7 | AI37: 79.8 | AJ37: 77.1
A38: =ROW() -> 38
A39: Actual and estimated opex applicable to E Factor | AH39: Actual AA5 [m$ OD] | AM39: Actual AA6 [m$ OD]
A40: =ROW() -> 40 | C40: Total opex (actual, excluding debt raising costs)
A41: =ROW() -> 41 | C41: Less excludable costs
A42: =ROW() -> 42 | C42: System use gas -- Fuel gas (AA5 clause 15.11 (b)(i))
A43: =ROW() -> 43 | C43: Turbine / GEA overhauls (AA clause 15.11 (b)(ii))
A44: =ROW() -> 44 | C44: Actual opex for E Factor purposes
A45: =ROW() -> 45
A46: =ROW() -> 46 | AH46: ="AA5 [m$ "&$F$14&"]" -> AA5 [m$ 31/12/2024] | AM46: ="AA6 [m$ "&$F$14&"]" -> AA6 [m$ 31/12/2024]
A47: =ROW() -> 47 | C47: Total opex (actual, excluding debt raising costs) | AF47: =AF40/AF$13 -> 0 | AG47: =AG40/AG$13 -> 0 | AH47: =AH40/AH$13 -> 0 | AI47: =AI40/AI$13 -> 0
A48: =ROW() -> 48 | C48: Less excludable costs
A49: =ROW() -> 49 | C49: Fuel gas (AA5 clause 15.11 (b)(i)) | AF49: =AF42/AF$13 -> 0 | AG49: 0 | AH49: 0 | AI49: 0
A50: =ROW() -> 50 | C50: Turbine / GEA overhauls (AA clause 15.11 (b)(ii)) | G50: =G43/G$13 ->  | AE50: 0 | AF50: 0 | AG50: 0 | AH50: 0 | AI50: 0
A51: =ROW() -> 51 | C51: Actual opex for E Factor purposes | AF51: 74.7 | AG51: 66.6 | AH51: 71 | AI51: 87.2 | AJ51: 80.6
A52: =ROW() -> 52
A53: Savings | AH53: ="AA5 [m$ "&$F$14&"]" -> AA5 [m$ 31/12/2024] | AM53: ="AA6 [m$ "&$F$14&"]" -> AA6 [m$ 31/12/2024]
A54: =ROW() -> 54 | C54: Annual saving | AF54: =AF37-AF51 -> 7.6 | AG54: =AG37-AG51 -> 9.4 | AH54: =AH37-AH51 -> 5.7 | AI54: =AI37-AI51 -> -7.4 | AJ54: 0
A55: =ROW() -> 55 | C55: Incremental saving | AF55: =(AF37-AF51) -> 7.6 | AG55: =(AG37-AG51)-(AF37-AF51) -> 1.8 | AH55: =(AH37-AH51)-(AG37-AG51) -> -3.7 | AI55: =(AI37-AI51)-(AH37-AH51) -> -13.1 | AJ55: 0
A56: =ROW() -> 56
A57: E Factor carry-over amounts | AH57: ="AA5 [m$ "&$F$14&"]" -> AA5 [m$ 31/12/2024] | AM57: ="AA6 [m$ "&$F$14&"]" -> AA6 [m$ 31/12/2024]
A58: =ROW() -> 58 | C58: Cumulative savings:
A59: =ROW() -> 59 | C59: Year 1 | AG59: =AF$55 -> 7.6 | AH59: =AG59 -> 7.6 | AI59: =AH59 -> 7.6 | AJ59: 7.6 | AK59: 7.6
A60: =ROW() -> 60 | C60: Year 2 | AH60: =AG$55 -> 1.8 | AI60: 1.8 | AJ60: 1.8 | AK60: 1.8 | AL60: 1.8
A61: =ROW() -> 61 | C61: Year 3 | AI61: =AH$55 -> -3.7 | AJ61: -3.7 | AK61: -3.7 | AL61: -3.7 | AM61: -3.7
A62: =ROW() -> 62 | C62: Year 4 | AJ62: =AI$55 -> -13.1 | AK62: -13.1 | AL62: -13.1 | AM62: -13.1 | AN62: -13.1
A63: =ROW() -> 63 | C63: Year 5 | AK63: 0 | AL63: 0 | AM63: 0 | AN63: 0 | AO63: 0
A64: =ROW() -> 64 | C64: Total carry-over amount (input to Building Block) | AK64: =SUM(AK59:AK63) -> -7.4 | AL64: =SUM(AL59:AL63) -> -15 | AM64: -16.8 | AN64: -13.1 | AO64: 0 | AQ64: =SUM(AK64:AO64) -> -52.3

Sheet RebateableServices
A1: =Main!A1 -> DBNGP, DBNGP Tariff Model, Draft Decision, August 2025
A2: =MID(CELL("filename",A1),FIND("]",CELL("filename",A1))+1,256) -> RebateableServices
A3: Ref. | B3: =COLUMN() -> 2 | C3: =COLUMN() -> 3 | D3: =COLUMN() -> 4 | E3: =COLUMN() -> 5 | F3: =COLUMN() -> 6 | G3: =COLUMN() -> 7 | H3: =COLUMN() -> 8 | I3: =COLUMN() -> 9 | J3: =COLUMN() -> 10 | K3: =COLUMN() -> 11 | L3: =COLUMN() -> 12 | M3: =COLUMN() -> 13 | N3: =COLUMN() -> 14 | Q3: =COLUMN() -> 17 | R3: =COLUMN() -> 18 | S3: =COLUMN() -> 19 | T3: =COLUMN() -> 20 | U3: =COLUMN() -> 21 | V3: =COLUMN() -> 22 | W3: =COLUMN() -> 23 | X3: =COLUMN() -> 24 | Y3: =COLUMN() -> 25 | Z3: =COLUMN() -> 26 | AA3: =COLUMN() -> 27 | AB3: =COLUMN() -> 28 | AC3: =COLUMN() -> 29 | AD3: =COLUMN() -> 30 | AE3: =COLUMN() -> 31 | AF3: =COLUMN() -> 32 | AG3: =COLUMN() -> 33 | AH3: =COLUMN() -> 34 | AI3: =COLUMN() -> 35 | AJ3: =COLUMN() -> 36 | AK3: =COLUMN() -> 37 | AL3: =COLUMN() -> 38 | AM3: =COLUMN() -> 39
A5: Regulatory Period | I5: =Inputs!I$5 -> AA1 | J5: =Inputs!J$5 -> AA1 | K5: =Inputs!K$5 -> AA1 | L5: =Inputs!L$5 -> AA1 | M5: =Inputs!M$5 -> AA1 | N5: =Inputs!N$5 -> AA2 | O5: =Inputs!O$5 -> AA2 | P5: =Inputs!P$5 -> AA2 | Q5: =Inputs!Q$5 -> AA2 | R5: =Inputs!R$5 -> AA2 | S5: =Inputs!S$5 -> AA2 | T5: =Inputs!T$5 -> AA3 | U5: =Inputs!U$5 -> AA3 | V5: =Inputs!V$5 -> AA3 | W5: =Inputs!W$5 -> AA3 | X5: =Inputs!X$5 -> AA3 | Y5: =Inputs!Y$5 -> AA4 | Z5: =Inputs!Z$5 -> AA4 | AA5: =Inputs!AA$5 -> AA4 | AB5: =Inputs!AB$5 -> AA4 | AC5: =Inputs!AC$5 -> AA4 | AD5: =Inputs!AD$5 -> AA5 | AE5: =Inputs!AE$5 -> AA5 | AF5: =Inputs!AF$5 -> AA5 | AG5: =Inputs!AG$5 -> AA5 | AH5: =Inputs!AH$5 -> AA5 | AI5: =Inputs!AI$5 -> AA6 | AJ5: =Inputs!AJ$5 -> AA6 | AK5: =Inputs!AK$5 -> AA6 | AL5: =Inputs!AL$5 -> AA6 | AM5: =Inputs!AM$5 -> AA6
A6: Year | H6: =Inputs!H$6 -> 1999 | I6: =Inputs!I$6 -> 2000 | J6: =Inputs!J$6 -> 2001 | K6: =Inputs!K$6 -> 2002 | L6: =Inputs!L$6 -> 2003 | M6: =Inputs!M$6 -> 2004 | N6: =Inputs!N$6 -> 2005 | O6: =Inputs!O$6 -> 2006 | P6: =Inputs!P$6 -> 2007 | Q6: =Inputs!Q$6 -> 2008 | R6: =Inputs!R$6 -> 2009 | S6: =Inputs!S$6 -> 2010 | T6: =Inputs!T$6 -> 2011 | U6: =Inputs!U$6 -> 2012 | V6: =Inputs!V$6 -> 2013 | W6: =Inputs!W$6 -> 2014 | X6: =Inputs!X$6 -> 2015 | Y6: =Inputs!Y$6 -> 2016 | Z6: =Inputs!Z$6 -> 2017 | AA6: =Inputs!AA$6 -> 2018 | AB6: =Inputs!AB$6 -> 2019 | AC6: =Inputs!AC$6 -> 2020 | AD6: =Inputs!AD$6 -> 2021 | AE6: =Inputs!AE$6 -> 2022 | AF6: =Inputs!AF$6 -> 2023 | AG6: =Inputs!AG$6 -> 2024 | AH6: =Inputs!AH$6 -> 2025 | AI6: =Inputs!AI$6 -> 2026 | AJ6: =Inputs!AJ$6 -> 2027 | AK6: =Inputs!AK$6 -> 2028 | AL6: =Inputs!AL$6 -> 2029 | AM6: =Inputs!AM$6 -> 2030
A7: Days | H7: =Inputs!H$7 -> 365 | I7: =Inputs!I$7 -> 366 | J7: =Inputs!J$7 -> 365 | K7: =Inputs!K$7 -> 365 | L7: =Inputs!L$7 -> 365 | M7: =Inputs!M$7 -> 366 | N7: =Inputs!N$7 -> 365 | O7: =Inputs!O$7 -> 365 | P7: =Inputs!P$7 -> 365 | Q7: =Inputs!Q$7 -> 366 | R7: =Inputs!R$7 -> 365 | S7: =Inputs!S$7 -> 365 | T7: =Inputs!T$7 -> 365 | U7: =Inputs!U$7 -> 366 | V7: =Inputs!V$7 -> 365 | W7: =Inputs!W$7 -> 365 | X7: =Inputs!X$7 -> 365 | Y7: =Inputs!Y$7 -> 366 | Z7: =Inputs!Z$7 -> 365 | AA7: =Inputs!AA$7 -> 365 | AB7: =Inputs!AB$7 -> 365 | AC7: =Inputs!AC$7 -> 366 | AD7: =Inputs!AD$7 -> 365 | AE7: =Inputs!AE$7 -> 365 | AF7: =Inputs!AF$7 -> 365 | AG7: =Inputs!AG$7 -> 366 | AH7: =Inputs!AH$7 -> 365 | AI7: =Inputs!AI$7 -> 365 | AJ7: =Inputs!AJ$7 -> 365 | AK7: =Inputs!AK$7 -> 366 | AL7: =Inputs!AL$7 -> 365 | AM7: =Inputs!AM$7 -> 365
A8: Project Year | H8: =Inputs!H$8 -> 0 | I8: =Inputs!I$8 -> 1 | J8: =Inputs!J$8 -> 2 | K8: =Inputs!K$8 -> 3 | L8: =Inputs!L$8 -> 4 | M8: =Inputs!M$8 -> 5 | N8: =Inputs!N$8 -> 6 | O8: =Inputs!O$8 -> 7 | P8: =Inputs!P$8 -> 8 | Q8: =Inputs!Q$8 -> 9 | R8: =Inputs!R$8 -> 10 | S8: =Inputs!S$8 -> 11 | T8: =Inputs!T$8 -> 12 | U8: =Inputs!U$8 -> 13 | V8: =Inputs!V$8 -> 14 | W8: =Inputs!W$8 -> 15 | X8: =Inputs!X$8 -> 16 | Y8: =Inputs!Y$8 -> 17 | Z8: =Inputs!Z$8 -> 18 | AA8: =Inputs!AA$8 -> 19 | AB8: =Inputs!AB$8 -> 20 | AC8: =Inputs!AC$8 -> 21 | AD8: =Inputs!AD$8 -> 22 | AE8: =Inputs!AE$8 -> 23 | AF8: =Inputs!AF$8 -> 24 | AG8: =Inputs!AG$8 -> 25 | AH8: =Inputs!AH$8 -> 26 | AI8: =Inputs!AI$8 -> 27 | AJ8: =Inputs!AJ$8 -> 28 | AK8: =Inputs!AK$8 -> 29 | AL8: =Inputs!AL$8 -> 30 | AM8: =Inputs!AM$8 -> 31
A9: Financial Parameters
A10: =ROW() -> 10 | B10: Modelled Inflation
A11: =ROW() -> 11 | C11: Inflation | AB11: =Inputs!AB$25 -> 0.01840490798 | AC11: =Inputs!AC$25 -> 0.008605851979 | AD11: =Inputs!AD$25 -> 0.03498293515 | AE11: =Inputs!AE$25 -> 0.07831821929 | AF11: =Inputs!AF$25 -> 0.04051987768 | AG11: =Inputs!AG$25 -> 0.0242468773 | AH11: =Inputs!AH$25 -> 0.0206 | AI11: =Inputs!AI$25 -> 0.0206 | AJ11: =Inputs!AJ$25 -> 0.0206 | AK11: =Inputs!AK$25 -> 0.0206 | AL11: =Inputs!AL$25 -> 0.0206 | AM11: =Inputs!AM$25 -> 0.0206
A12: =ROW() -> 12 | C12: =Inputs!C26 -> Inflation Factor (convert 31/12/2024 $ to nominal $) | AB12: =Inputs!AB$26 -> 0.8335724534 | AC12: =Inputs!AC$26 -> 0.8407460545 | AD12: =Inputs!AD$26 -> 0.8701578192 | AE12: =Inputs!AE$26 -> 0.9383070301 | AF12: =Inputs!AF$26 -> 0.9763271162 | AG12: =Inputs!AG$26 -> 1 | AH12: =Inputs!AH$26 -> 1.0206 | AI12: =Inputs!AI$26 -> 1.04162436 | AJ12: =Inputs!AJ$26 -> 1.063081822 | AK12: =Inputs!AK$26 -> 1.084981307 | AL12: =Inputs!AL$26 -> 1.107331922 | AM12: =Inputs!AM$26 -> 1.13014296
A13: =ROW() -> 13 | C13: =Inputs!C27 -> Inflation Factor (convert nominal to real 31/12/2024 $) | AB13: =Inputs!AB$27 -> 1.199655766 | AC13: =Inputs!AC$27 -> 1.189419795 | AD13: =Inputs!AD$27 -> 1.149216818 | AE13: =Inputs!AE$27 -> 1.065749235 | AF13: =Inputs!AF$27 -> 1.024246877 | AG13: =Inputs!AG$27 -> 1 | AH13: =Inputs!AH$27 -> 0.9798157946 | AI13: =Inputs!AI$27 -> 0.9600389914 | AJ13: =Inputs!AJ$27 -> 0.9406613672 | AK13: =Inputs!AK$27 -> 0.921674865 | AL13: =Inputs!AL$27 -> 0.9030715903 | AM13: =Inputs!AM$27 -> 0.8848438078
A14: =ROW() -> 14 | B14: Real Post Tax WACC
A15: =ROW() -> 15 | C15: WACC | AB15: =Inputs!AB$32 -> 0 | AC15: =Inputs!AC$32 -> 0 | AD15: =Inputs!AD$32 -> 0 | AE15: =Inputs!AE$32 -> 0 | AF15: =Inputs!AF$32 -> 0 | AG15: =Inputs!AG$32 -> 0 | AH15: =Inputs!AH$32 -> 0.0499370739 | AI15: =Inputs!AI$32 -> 0.0499370739 | AJ15: =Inputs!AJ$32 -> 0.0499370739 | AK15: =Inputs!AK$32 -> 0.0499370739 | AL15: =Inputs!AL$32 -> 0.0499370739 | AM15: =Inputs!AM$32 -> 0.0499370739
A16: =ROW() -> 16 | C16: Discounting Factor | AB16: =Inputs!AB$33 -> 0 | AC16: =Inputs!AC$33 -> 0 | AD16: =Inputs!AD$33 -> 0 | AE16: =Inputs!AE$33 -> 0 | AF16: =Inputs!AF$33 -> 0 | AG16: =Inputs!AG$33 -> 1 | AH16: =Inputs!AH$33 -> 0.9524380316 | AI16: =Inputs!AI$33 -> 0.9071382041 | AJ16: =Inputs!AJ$33 -> 0.8639929255 | AK16: =Inputs!AK$33 -> 0.8228997213 | AL16: =Inputs!AL$33 -> 0.7837609908 | AM16: =Inputs!AM$33 -> 0.7464837754
A17: =ROW() -> 17 | B17: Nominal Post Tax WACC
A18: =ROW() -> 18 | C18: WACC | AB18: =Inputs!AB$35 -> 0 | AC18: =Inputs!AC$35 -> 0 | AD18: =Inputs!AD$35 -> 0 | AE18: =Inputs!AE$35 -> 0 | AF18: =Inputs!AF$35 -> 0 | AG18: =Inputs!AG$35 -> 0 | AH18: =Inputs!AH$35 -> 0.07156577762 | AI18: =Inputs!AI$35 -> 0.07156577762 | AJ18: =Inputs!AJ$35 -> 0.07156577762 | AK18: =Inputs!AK$35 -> 0.07156577762 | AL18: =Inputs!AL$35 -> 0.07156577762 | AM18: =Inputs!AM$35 -> 0.07156577762
A19: =ROW() -> 19 | C19: Discounting Factor | AB19: =Inputs!AB$36 -> 0 | AC19: =Inputs!AC$36 -> 0 | AD19: =Inputs!AD$36 -> 0 | AE19: =Inputs!AE$36 -> 0 | AF19: =Inputs!AF$36 -> 0 | AG19: =Inputs!AG$36 -> 1 | AH19: =Inputs!AH$36 -> 0.9332138268 | AI19: =Inputs!AI$36 -> 0.8708880465 | AJ19: =Inputs!AJ$36 -> 0.8127247666 | AK19: =Inputs!AK$36 -> 0.7584459896 | AL19: =Inputs!AL$36 -> 0.7077922844 | AM19: =Inputs!AM$36 -> 0.6605215463
A20: =ROW() -> 20
A21: Rebateable Non-Reference Service Revenue [m$ nominal]
A22: =ROW() -> 22 | B22: Date range
A23: =ROW() -> 23 | C23: From | AE23: =Inputs!AE2597 -> 2021-01-01 | AF23: =Inputs!AF2597 -> 2021-10-01 | AG23: =Inputs!AG2597 -> 2022-10-01 | AH23: =Inputs!AH2597 -> 2023-10-01 | AI23: =Inputs!AI2597 -> 2024-10-01 | AJ23: =Inputs!AJ2597 -> 2025-10-01 | AK23: =Inputs!AK2597 -> 2026-10-01 | AL23: =Inputs!AL2597 -> 2027-10-01 | AM23: =Inputs!AM2597 -> 2028-10-01
A24: =ROW() -> 24 | C24: to | AE24: =Inputs!AE2598 -> 2021-09-30 | AF24: =Inputs!AF2598 -> 2022-09-30 | AG24: =Inputs!AG2598 -> 2023-09-30 | AH24: =Inputs!AH2598 -> 2024-09-30 | AI24: =Inputs!AI2598 -> 2025-09-30 | AJ24: =Inputs!AJ2598 -> 2026-09-30 | AK24: =Inputs!AK2598 -> 2027-09-30 | AL24: =Inputs!AL2598 -> 2028-09-30 | AM24: =Inputs!AM2598 -> 2029-09-30
A25: =ROW() -> 25
A26: =ROW() -> 26 | B26: Actual Rebateable Non-Reference Service Revenue (Sep-Sep m$ OD)
A27: =ROW() -> 27 | C27: Peaker Service | AE27: =Inputs!AE2601 -> 0 | AF27: =Inputs!AF2601 -> 0 | AG27: =Inputs!AG2601 -> 0 | AH27: =Inputs!AH2601 -> 0 | AI27: =Inputs!AI2601 -> 0 | AJ27: =Inputs!AJ2601 -> 0 | AK27: =Inputs!AK2601 -> 0 | AL27: =Inputs!AL2601 -> 0 | AM27: =Inputs!AM2601 -> 0
A28: =ROW() -> 28 | C28: Other Reserved Service | AE28: =Inputs!AE2602 -> 0 | AF28: =Inputs!AF2602 -> 0 | AG28: =Inputs!AG2602 -> 0 | AH28: =Inputs!AH2602 -> 0 | AI28: =Inputs!AI2602 -> 0 | AJ28: =Inputs!AJ2602 -> 0 | AK28: =Inputs!AK2602 -> 0 | AL28: =Inputs!AL2602 -> 0 | AM28: =Inputs!AM2602 -> 0
A29: =ROW() -> 29 | C29: Ullage Service | AE29: =Inputs!AE2603 -> 0 | AF29: =Inputs!AF2603 -> 0 | AG29: =Inputs!AG2603 -> 0 | AH29: =Inputs!AH2603 -> 0 | AI29: =Inputs!AI2603 -> 0 | AJ29: =Inputs!AJ2603 -> 0 | AK29: =Inputs!AK2603 -> 0 | AL29: =Inputs!AL2603 -> 0 | AM29: =Inputs!AM2603 -> 0
A30: =ROW() -> 30 | C30: Spot Capacity | AE30: =Inputs!AE2604 -> 0 | AF30: =Inputs!AF2604 -> 0 | AG30: =Inputs!AG2604 -> 0 | AH30: =Inputs!AH2604 -> 0 | AI30: =Inputs!AI2604 -> 0 | AJ30: =Inputs!AJ2604 -> 0 | AK30: =Inputs!AK2604 -> 0 | AL30: =Inputs!AL2604 -> 0 | AM30: =Inputs!AM2604 -> 0
A31: =ROW() -> 31 | C31: Subtotal | AE31: =SUM(AE27:AE30) -> 0 | AF31: =SUM(AF27:AF30) -> 0 | AG31: 0 | AH31: 0 | AI31: =SUM(AI27:AI30) -> 0 | AJ31: =SUM(AJ27:AJ30) -> 0 | AK31: =SUM(AK27:AK30) -> 0 | AL31: 0 | AM31: 0
A32: =ROW() -> 32 | B32: Inflation Factor
A33: =ROW() -> 33 | C33: ="Inflation Factor (convert nominal to real "&Inputs!$E$26&" $)" -> Inflation Factor (convert nominal to real 31/12/2024 $) | AE33: =AE13 -> 1.065749235 | AF33: =AF13 -> 1.024246877 | AG33: 1 | AH33: 0.9798157946 | AI33: =AI13 -> 0.9600389914 | AJ33: =AJ13 -> 0.9406613672 | AK33: =AK13 -> 0.921674865 | AL33: 0.9030715903 | AM33: 0.8848438078
A34: =ROW() -> 34 | C34: ="Compounded Sep-Sep to real "&Inputs!$E$26&"$ WACC" -> Compounded Sep-Sep to real 31/12/2024$ WACC | AE34: =AE33*(1+AE15)^0.5 -> 1.065749235 | AF34: =AF33*(1+AF15)^0.5 -> 1.024246877 | AG34: =AG33*(1+AG15)^0.5 -> 1 | AH34: =AH33*(1+AH15)^0.5 -> 1.003982335 | AI34: 0.9837177496 | AJ34: =AJ33*(1+AJ15)^0.5 -> 0.9638621885 | AK34: 0.9444073962 | AL34: 0.9253452833 | AM34: 0.9066679241
A35: =ROW() -> 35 | C35: Convert to nominal $ | AE35: =AE34*AE$12 -> 1 | AF35: =AF34*AF$12 -> 1 | AG35: 1 | AH35: 1.024664371 | AI35: =AI34*AI$12 -> 1.024664371 | AJ35: =AJ34*AJ$12 -> 1.024664371 | AK35: =AK34*AK$12 -> 1.024664371 | AL35: 1.024664371 | AM35: 1.024664371
A36: =ROW() -> 36 | B36: Actual Rebateable Non-Reference Service Revenue (m$ nominal)
A37: =ROW() -> 37 | C37: Peaker Service | AE37: =AE27*AE$35 -> 0 | AF37: =AF27*AF$35 -> 0 | AG37: 0 | AH37: 0 | AI37: =AI27*AI$35 -> 0 | AJ37: =AJ27*AJ$35 -> 0 | AK37: =AK27*AK$35 -> 0 | AL37: 0 | AM37: 0
A38: =ROW() -> 38 | C38: Other Reserved Service | AE38: =AE28*AE$35 -> 0 | AF38: 0 | AG38: 0 | AH38: 0 | AI38: 0 | AJ38: =AJ28*AJ$35 -> 0 | AK38: 0 | AL38: 0 | AM38: 0
A39: =ROW() -> 39 | C39: Ullage Service | AE39: =AE29*AE$35 -> 0 | AF39: 0 | AG39: 0 | AH39: 0 | AI39: 0 | AJ39: =AJ29*AJ$35 -> 0 | AK39: 0 | AL39: 0 | AM39: 0
A40: =ROW() -> 40 | C40: Spot Capacity | AE40: =AE30*AE$35 -> 0 | AF40: 0 | AG40: 0 | AH40: 0 | AI40: 0 | AJ40: =AJ30*AJ$35 -> 0 | AK40: 0 | AL40: 0 | AM40: 0
A41: =ROW() -> 41 | C41: Subtotal | AE41: =SUM(AE37:AE40) -> 0 | AF41: =SUM(AF37:AF40) -> 0 | AG41: 0 | AH41: 0 | AI41: =SUM(AI37:AI40) -> 0 | AJ41: =SUM(AJ37:AJ40) -> 0 | AK41: =SUM(AK37:AK40) -> 0 | AL41: 0 | AM41: 0
A42: =ROW() -> 42 | B42: % applicable to reference tariff
A43: =ROW() -> 43 | C43: Peaker Service | AE43: =Inputs!AE2607 -> 0.7 | AF43: =Inputs!AF2607 -> 0.7 | AG43: =Inputs!AG2607 -> 0.7 | AH43: =Inputs!AH2607 -> 0.7 | AI43: 0.75 | AJ43: 0.75 | AK43: 0.75 | AL43: 0.75 | AM43: 0.75
A44: =ROW() -> 44 | C44: Other Reserved Service | AE44: =Inputs!AE2608 -> 0.7 | AF44: =Inputs!AF2608 -> 0.7 | AG44: =Inputs!AG2608 -> 0.7 | AH44: =Inputs!AH2608 -> 0.7 | AI44: 0.75 | AJ44: 0.75 | AK44: 0.75 | AL44: 0.75 | AM44: 0.75
A45: =ROW() -> 45 | C45: Ullage Service | AE45: =Inputs!AE2609 -> 0.7 | AF45: =Inputs!AF2609 -> 0.7 | AG45: =Inputs!AG2609 -> 0.7 | AH45: =Inputs!AH2609 -> 0.7 | AI45: 0.75 | AJ45: 0.75 | AK45: 0.75 | AL45: 0.75 | AM45: 0.75
A46: =ROW() -> 46 | C46: Spot Capacity | AE46: =Inputs!AE2610 -> 0.7 | AF46: =Inputs!AF2610 -> 0.7 | AG46: =Inputs!AG2610 -> 0.7 | AH46: =Inputs!AH2610 -> 0.7 | AI46: 0.75 | AJ46: 0.75 | AK46: 0.75 | AL46: 0.75 | AM46: 0.75
A47: =ROW() -> 47 | B47: Applicable Rebateable Amount (Model)
A48: =ROW() -> 48 | C48: Peaker Service | AE48: =AE37*AE43 -> 0 | AF48: 0 | AG48: 0 | AH48: 0 | AI48: 0 | AJ48: =AJ37*AJ43 -> 0 | AK48: 0 | AL48: 0 | AM48: 0
A49: =ROW() -> 49 | C49: Other Reserved Service | AE49: =AE38*AE44 -> 0 | AF49: 0 | AG49: 0 | AH49: 0 | AI49: 0 | AJ49: =AJ38*AJ44 -> 0 | AK49: 0 | AL49: 0 | AM49: 0
A50: =ROW() -> 50 | C50: Ullage Service | AE50: =AE39*AE45 -> 0 | AF50: 0 | AG50: 0 | AH50: 0 | AI50: 0 | AJ50: =AJ39*AJ45 -> 0 | AK50: 0 | AL50: 0 | AM50: 0
A51: =ROW() -> 51 | C51: Spot Capacity | AE51: =AE40*AE46 -> 0 | AF51: 0 | AG51: 0 | AH51: 0 | AI51: 0 | AJ51: =AJ40*AJ46 -> 0 | AK51: 0 | AL51: 0 | AM51: 0
A52: =ROW() -> 52 | C52: Total | AE52: =SUM(AE48:AE51) -> 0 | AF52: =SUM(AF48:AF51) -> 0 | AG52: =SUM(AG48:AG51) -> 0 | AH52: =SUM(AH48:AH51) -> 0 | AI52: =SUM(AI48:AI51) -> 0 | AJ52: =SUM(AJ48:AJ51) -> 0 | AK52: =SUM(AK48:AK51) -> 0 | AL52: 0 | AM52: 0
A53: =ROW() -> 53
A54: ="Rebateable Non-Reference Service Revenue [m$ "&Inputs!$E$26&"]" -> Rebateable Non-Reference Service Revenue [m$ 31/12/2024]
A55: =ROW() -> 55 | B55: Applicable Rebateable Amount
A56: =ROW() -> 56 | C56: Peaker Service | AE56: =AE48/AE$12 -> 0 | AF56: 0 | AG56: 0 | AH56: 0 | AI56: 0 | AJ56: =AJ48/AJ$12 -> 0 | AK56: 0 | AL56: 0 | AM56: 0
A57: =ROW() -> 57 | C57: Other Reserved Service | AE57: =AE49/AE$12 -> 0 | AF57: 0 | AG57: 0 | AH57: 0 | AI57: 0 | AJ57: =AJ49/AJ$12 -> 0 | AK57: 0 | AL57: 0 | AM57: 0
A58: =ROW() -> 58 | C58: Ullage Service | AE58: =AE50/AE$12 -> 0 | AF58: 0 | AG58: 0 | AH58: 0 | AI58: 0 | AJ58: =AJ50/AJ$12 -> 0 | AK58: 0 | AL58: 0 | AM58: 0
A59: =ROW() -> 59 | C59: Spot Capacity | AE59: =AE51/AE$12 -> 0 | AF59: 0 | AG59: 0 | AH59: 0 | AI59: 0 | AJ59: =AJ51/AJ$12 -> 0 | AK59: 0 | AL59: 0 | AM59: 0
A60: =ROW() -> 60 | C60: Total | AE60: =SUM(AE56:AE59) -> 0 | AF60: 0 | AG60: 0 | AH60: 0 | AI60: =SUM(AI56:AI59) -> 0 | AJ60: =SUM(AJ56:AJ59) -> 0 | AK60: 0 | AL60: 0 | AM60: 0
A61: =ROW() -> 61
A62: Rebateable Non-Reference Service Tariff
A63: =ROW() -> 63
A64: =ROW() -> 64 | B64: Load F/H Equivalent [TJ/day]
A65: =ROW() -> 65 | C65: Capacity Reservation | AE65: =Load!AE$11 -> 633.7274668 | AF65: =Load!AF$11 -> 614.4453247 | AG65: =Load!AG$11 -> 562.5505593 | AH65: =Load!AH$11 -> 556.4677381 | AI65: =Load!AI$11 -> 564.934595 | AJ65: =Load!AJ$11 -> 547.9110109 | AK65: =Load!AK$11 -> 552.1649938 | AL65: =Load!AL$11 -> 537.3490624 | AM65: =Load!AM$11 -> 544.3490624
A66: =ROW() -> 66 | C66: Commodity | AE66: =Load!AE$12 -> 571.9544494 | AF66: =Load!AF$12 -> 554.4596002 | AG66: =Load!AG$12 -> 513.1202217 | AH66: =Load!AH$12 -> 509.1529237 | AI66: =Load!AI$12 -> 475.8550565 | AJ66: =Load!AJ$12 -> 485.0556354 | AK66: =Load!AK$12 -> 494.9876208 | AL66: =Load!AL$12 -> 485.2777071 | AM66: =Load!AM$12 -> 492.0975256
A67: =ROW() -> 67 | C67: Total | AE67: =SUM(AE65:AE66) -> 1205.681916 | AF67: 1168.904925 | AG67: 1075.670781 | AH67: 1065.620662 | AI67: 1040.789652 | AJ67: =SUM(AJ65:AJ66) -> 1032.966646 | AK67: 1047.152615 | AL67: 1022.62677 | AM67: 1036.446588
A68: =ROW() -> 68
A69: =ROW() -> 69 | B69: Applied Tariff Allocation
A70: =ROW() -> 70 | C70: Capacity Reservation | AE70: =CoS_Tariff_Revenue!AI197 -> 0 | AF70: =CoS_Tariff_Revenue!AJ197 -> 0 | AG70: =CoS_Tariff_Revenue!AK197 -> 0 | AH70: =CoS_Tariff_Revenue!AL197 -> 0 | AI70: =CoS_Tariff_Revenue!AM197 -> 0.9436123704 | AJ70: =CoS_Tariff_Revenue!AN197 -> 0.9436123704 | AK70: =CoS_Tariff_Revenue!AO197 -> 0.9436123704 | AL70: =CoS_Tariff_Revenue!AP197 -> 0.9436123704 | AM70: =CoS_Tariff_Revenue!AQ197 -> 0.9436123704
A71: =ROW() -> 71 | C71: Commodity | AE71: =CoS_Tariff_Revenue!AI198 -> 0 | AF71: =CoS_Tariff_Revenue!AJ198 -> 0 | AG71: =CoS_Tariff_Revenue!AK198 -> 0 | AH71: =CoS_Tariff_Revenue!AL198 -> 0 | AI71: =CoS_Tariff_Revenue!AM198 -> 0.05638762957 | AJ71: =CoS_Tariff_Revenue!AN198 -> 0.05638762957 | AK71: =CoS_Tariff_Revenue!AO198 -> 0.05638762957 | AL71: =CoS_Tariff_Revenue!AP198 -> 0.05638762957 | AM71: =CoS_Tariff_Revenue!AQ198 -> 0.05638762957
A72: =ROW() -> 72 | C72: Total | AE72: =SUM(AE70:AE71) -> 0 | AF72: 0 | AG72: 0 | AH72: 0 | AI72: 1 | AJ72: =SUM(AJ70:AJ71) -> 1 | AK72: 1 | AL72: 1 | AM72: 1
A73: =ROW() -> 73
A74: =ROW() -> 74 | B74: Rebateable Forecast Total System F/H Equivalent Tariff [$ OD /GJ/day]
A75: =ROW() -> 75 | C75: Capacity Reservation Charge | AE75: =AE85*AE$12 -> 0 | AF75: =AF85*AF$12 -> 0 | AG75: 0 | AH75: 0 | AI75: 0 | AJ75: =AJ85*AJ$12 -> 0 | AK75: 0 | AL75: 0 | AM75: 0
A76: =ROW() -> 76 | C76: Commodity Charge | AE76: =AE86*AE$12 -> 0 | AF76: =AF86*AF$12 -> 0 | AG76: 0 | AH76: 0 | AI76: 0 | AJ76: 0 | AK76: 0 | AL76: 0 | AM76: 0
A77: =ROW() -> 77 | C77: Total | AE77: =SUM(AE75:AE76) -> 0 | AF77: 0 | AG77: 0 | AH77: 0 | AI77: 0 | AJ77: =SUM(AJ75:AJ76) -> 0 | AK77: 0 | AL77: 0 | AM77: 0
A78: =ROW() -> 78 | B78: Rebateable Forecast Tariff Revenue [m$ OD]
A79: =ROW() -> 79 | C79: Capacity Reservation | AE79: =AE$81*AE70 -> 0 | AF79: =AF$81*AF70 -> 0 | AG79: 0 | AH79: 0 | AI79: =AI$81*AI70 -> 0 | AJ79: =AJ$81*AJ70 -> 0 | AK79: =AK$81*AK70 -> 0 | AL79: 0 | AM79: 0
A80: =ROW() -> 80 | C80: Commodity | AE80: =AE$81*AE71 -> 0 | AF80: 0 | AG80: 0 | AH80: 0 | AI80: 0 | AJ80: =AJ$81*AJ71 -> 0 | AK80: 0 | AL80: 0 | AM80: 0
A81: =ROW() -> 81 | C81: Total Revenue | AE81: =AE52 -> 0 | AF81: =AF52 -> 0 | AG81: 0 | AH81: 0 | AI81: =AI52 -> 0 | AJ81: =AJ52 -> 0 | AK81: =AK52 -> 0 | AL81: 0 | AM81: 0
A82: =ROW() -> 82
A83: =ROW() -> 83
A84: =ROW() -> 84 | B84: ="Rebateable Forecast Total System F/H Equivalent Tariff [$ /GJ/day] [$ "&TEXT(Inputs!$E$26,"dd/mm/yyyy")&"]" -> Rebateable Forecast Total System F/H Equivalent Tariff [$ /GJ/day] [$ 31/12/2024]
A85: =ROW() -> 85 | C85: Capacity Reservation Charge | AE85: =(IF(AE$7>0,(AE89/AE$7)/AE65*1000,0)) -> 0 | AF85: =(IF(AF$7>0,(AF89/AF$7)/AF65*1000,0)) -> 0 | AG85: 0 | AH85: 0 | AI85: =(IF(AI$7>0,(AI89/AI$7)/AI65*1000,0)) -> 0 | AJ85: =(IF(AJ$7>0,(AJ89/AJ$7)/AJ65*1000,0)) -> 0 | AK85: =(IF(AK$7>0,(AK89/AK$7)/AK65*1000,0)) -> 0 | AL85: 0 | AM85: 0
A86: =ROW() -> 86 | C86: Commodity Charge | AE86: =(IF(AE$7>0,(AE90/AE$7)/AE66*1000,0)) -> 0 | AF86: =(IF(AF$7>0,(AF90/AF$7)/AF66*1000,0)) -> 0 | AG86: 0 | AH86: 0 | AI86: =(IF(AI$7>0,(AI90/AI$7)/AI66*1000,0)) -> 0 | AJ86: =(IF(AJ$7>0,(AJ90/AJ$7)/AJ66*1000,0)) -> 0 | AK86: =(IF(AK$7>0,(AK90/AK$7)/AK66*1000,0)) -> 0 | AL86: 0 | AM86: 0
A87: =ROW() -> 87 | C87: Full Haul Tariff | AE87: =SUM(AE85:AE86) -> 0 | AF87: =SUM(AF85:AF86) -> 0 | AG87: 0 | AH87: 0 | AI87: 0 | AJ87: =SUM(AJ85:AJ86) -> 0 | AK87: =SUM(AK85:AK86) -> 0 | AL87: 0 | AM87: 0
A88: =ROW() -> 88 | B88: ="Rebateable Forecast Tariff Revenue [m$ "&TEXT(Inputs!$E$26,"dd/mm/yyyy")&"]" -> Rebateable Forecast Tariff Revenue [m$ 31/12/2024]
A89: =ROW() -> 89 | C89: Capacity Reservation | AE89: =AE$91*AE70 -> 0 | AF89: =AF$91*AF70 -> 0 | AG89: 0 | AH89: 0 | AI89: =AI$91*AI70 -> 0 | AJ89: =AJ$91*AJ70 -> 0 | AK89: =AK$91*AK70 -> 0 | AL89: 0 | AM89: 0
A90: =ROW() -> 90 | C90: Commodity | AE90: =AE$91*AE71 -> 0 | AF90: =AF$91*AF71 -> 0 | AG90: 0 | AH90: 0 | AI90: 0 | AJ90: =AJ$91*AJ71 -> 0 | AK90: 0 | AL90: 0 | AM90: 0
A91: =ROW() -> 91 | C91: Tariff Revenue | AE91: =AE60 -> 0 | AF91: =AF60 -> 0 | AG91: 0 | AH91: 0 | AI91: =AI60 -> 0 | AJ91: =AJ60 -> 0 | AK91: =AK60 -> 0 | AL91: 0 | AM91: 0

Sheet CoS_Tariff_Revenue
A1: =Main!A1 -> DBNGP, DBNGP Tariff Model, Draft Decision, August 2025
A2: =MID(CELL("filename",A1),FIND("]",CELL("filename",A1))+1,256) -> CoS_Tariff_Revenue
A3: Ref. | B3: =COLUMN() -> 2 | C3: =COLUMN() -> 3 | D3: =COLUMN() -> 4 | E3: =COLUMN() -> 5 | F3: =COLUMN() -> 6 | G3: =COLUMN() -> 7 | H3: =COLUMN() -> 8 | I3: =COLUMN() -> 9 | J3: =COLUMN() -> 10 | K3: =COLUMN() -> 11 | L3: =COLUMN() -> 12 | M3: =COLUMN() -> 13 | N3: =COLUMN() -> 14 | O3: =COLUMN() -> 15 | P3: =COLUMN() -> 16 | Q3: =COLUMN() -> 17 | R3: =COLUMN() -> 18 | S3: =COLUMN() -> 19 | T3: =COLUMN() -> 20 | U3: =COLUMN() -> 21 | V3: =COLUMN() -> 22 | W3: =COLUMN() -> 23 | X3: =COLUMN() -> 24 | Y3: =COLUMN() -> 25 | Z3: =COLUMN() -> 26 | AA3: =COLUMN() -> 27 | AB3: =COLUMN() -> 28 | AC3: =COLUMN() -> 29 | AD3: =COLUMN() -> 30 | AE3: =COLUMN() -> 31 | AH3: =COLUMN() -> 34 | AI3: =COLUMN() -> 35 | AJ3: =COLUMN() -> 36 | AK3: =COLUMN() -> 37 | AL3: =COLUMN() -> 38 | AM3: =COLUMN() -> 39 | AN3: =COLUMN() -> 40 | AO3: =COLUMN() -> 41 | AP3: =COLUMN() -> 42 | AQ3: =COLUMN() -> 43
A5: Regulatory Period | I5: =Inputs!I$5 -> AA1 | J5: =Inputs!J$5 -> AA1 | K5: =Inputs!K$5 -> AA1 | L5: =Inputs!L$5 -> AA1 | M5: =Inputs!M$5 -> AA1 | N5: =Inputs!N$5 -> AA2 | O5: =Inputs!O$5 -> AA2 | P5: =Inputs!P$5 -> AA2 | Q5: =Inputs!Q$5 -> AA2 | R5: =Inputs!R$5 -> AA2 | S5: =Inputs!S$5 -> AA2 | T5: =Inputs!T$5 -> AA3 | U5: =Inputs!U$5 -> AA3 | V5: =Inputs!V$5 -> AA3 | W5: =Inputs!W$5 -> AA3 | X5: =Inputs!X$5 -> AA3 | Y5: =Z5 -> AA4 | Z5: =AA5 -> AA4 | AA5: =Inputs!Y$5 -> AA4 | AB5: =Inputs!Z$5 -> AA4 | AC5: =Inputs!AA$5 -> AA4 | AD5: =Inputs!AB$5 -> AA4 | AE5: =Inputs!AC$5 -> AA4 | AF5: 1/1/2021 to | AG5: =AF6+1 -> 2021-07-01 | AH5: =Inputs!AD$5 -> AA5 | AI5: =Inputs!AE$5 -> AA5 | AJ5: =Inputs!AF$5 -> AA5 | AK5: =Inputs!AG$5 -> AA5 | AL5: =Inputs!AH$5 -> AA5 | AM5: =Inputs!AI$5 -> AA6 | AN5: =Inputs!AJ$5 -> AA6 | AO5: =Inputs!AK$5 -> AA6 | AP5: =Inputs!AL$5 -> AA6 | AQ5: =Inputs!AM$5 -> AA6
A6: Year | H6: =Inputs!H$6 -> 1999 | I6: =Inputs!I$6 -> 2000 | J6: =Inputs!J$6 -> 2001 | K6: =Inputs!K$6 -> 2002 | L6: =Inputs!L$6 -> 2003 | M6: =Inputs!M$6 -> 2004 | N6: =Inputs!N$6 -> 2005 | O6: =Inputs!O$6 -> 2006 | P6: =Inputs!P$6 -> 2007 | Q6: =Inputs!Q$6 -> 2008 | R6: =Inputs!R$6 -> 2009 | S6: =Inputs!S$6 -> 2010 | T6: =Inputs!T$6 -> 2011 | U6: =Inputs!U$6 -> 2012 | V6: =Inputs!V$6 -> 2013 | W6: =Inputs!W$6 -> 2014 | X6: =Inputs!X$6 -> 2015 | Y6: =Z6 -> 2016 | Z6: =AA6 -> 2016 | AA6: =Inputs!Y$6 -> 2016 | AB6: =Inputs!Z$6 -> 2017 | AC6: =Inputs!AA$6 -> 2018 | AD6: =Inputs!AB$6 -> 2019 | AE6: =Inputs!AC$6 -> 2020 | AF6: 2021-06-30 | AG6: 2021-12-31 | AH6: =Inputs!AD$6 -> 2021 | AI6: =Inputs!AE$6 -> 2022 | AJ6: =Inputs!AF$6 -> 2023 | AK6: =Inputs!AG$6 -> 2024 | AL6: =Inputs!AH$6 -> 2025 | AM6: =Inputs!AI$6 -> 2026 | AN6: =Inputs!AJ$6 -> 2027 | AO6: =Inputs!AK$6 -> 2028 | AP6: =Inputs!AL$6 -> 2029 | AQ6: =Inputs!AM$6 -> 2030
A7: Days | H7: =Inputs!H$7 -> 365 | I7: =Inputs!I$7 -> 366 | J7: =Inputs!J$7 -> 365 | K7: =Inputs!K$7 -> 365 | L7: =Inputs!L$7 -> 365 | M7: =Inputs!M$7 -> 366 | N7: =Inputs!N$7 -> 365 | O7: =Inputs!O$7 -> 365 | P7: =Inputs!P$7 -> 365 | Q7: =Inputs!Q$7 -> 366 | R7: =Inputs!R$7 -> 365 | S7: =Inputs!S$7 -> 365 | T7: =Inputs!T$7 -> 365 | U7: =Inputs!U$7 -> 366 | V7: =Inputs!V$7 -> 365 | W7: =Inputs!W$7 -> 365 | X7: =Inputs!X$7 -> 365 | Y7: =DATEVALUE("1/7/2016")-DATEVALUE("1/1/2016") -> 182 | Z7: =AA7-Y7 -> 184 | AA7: =Inputs!Y$7 -> 366 | AB7: =Inputs!Z$7 -> 365 | AC7: =Inputs!AA$7 -> 365 | AD7: =Inputs!AB$7 -> 365 | AE7: =Inputs!AC$7 -> 366 | AF7: =AF6-DATEVALUE("31/12/2020") -> 181 | AG7: =AG6-AF6 -> 184 | AH7: =Inputs!AD$7 -> 365 | AI7: =Inputs!AE$7 -> 365 | AJ7: =Inputs!AF$7 -> 365 | AK7: =Inputs!AG$7 -> 366 | AL7: =Inputs!AH$7 -> 365 | AM7: =Inputs!AI$7 -> 365 | AN7: =Inputs!AJ$7 -> 365 | AO7: =Inputs!AK$7 -> 366 | AP7: =Inputs!AL$7 -> 365 | AQ7: =Inputs!AM$7 -> 365
A8: Project Year | H8: =Inputs!H$8 -> 0 | I8: =Inputs!I$8 -> 1 | J8: =Inputs!J$8 -> 2 | K8: =Inputs!K$8 -> 3 | L8: =Inputs!L$8 -> 4 | M8: =Inputs!M$8 -> 5 | N8: =Inputs!N$8 -> 6 | O8: =Inputs!O$8 -> 7 | P8: =Inputs!P$8 -> 8 | Q8: =Inputs!Q$8 -> 9 | R8: =Inputs!R$8 -> 10 | S8: =Inputs!S$8 -> 11 | T8: =Inputs!T$8 -> 12 | U8: =Inputs!U$8 -> 13 | V8: =Inputs!V$8 -> 14 | W8: =Inputs!W$8 -> 15 | X8: =Inputs!X$8 -> 16 | AA8: =Inputs!Y$8 -> 17 | AB8: =Inputs!Z$8 -> 18 | AC8: =Inputs!AA$8 -> 19 | AD8: =Inputs!AB$8 -> 20 | AE8: =Inputs!AC$8 -> 21 | AH8: =Inputs!AD$8 -> 22 | AI8: =Inputs!AE$8 -> 23 | AJ8: =Inputs!AF$8 -> 24 | AK8: =Inputs!AG$8 -> 25 | AL8: =Inputs!AH$8 -> 26 | AM8: =Inputs!AI$8 -> 27 | AN8: =Inputs!AJ$8 -> 28 | AO8: =Inputs!AK$8 -> 29 | AP8: =Inputs!AL$8 -> 30 | AQ8: =Inputs!AM$8 -> 31
A9: Financial Parameters
A10: =ROW() -> 10 | B10: Modelled Inflation
A11: =ROW() -> 11 | C11: Inflation | I11: =Inputs!I$25 -> 0.05801772764 | J11: =Inputs!J$25 -> 0.03122619954 | K11: =Inputs!K$25 -> 0.03028064993 | L11: =Inputs!L$25 -> 0.02365591398 | M11: =Inputs!M$25 -> 0.02591036415 | N11: =Inputs!N$25 -> 0.02798634812 | O11: =Inputs!O$25 -> 0.03253652058 | P11: =Inputs!P$25 -> 0.02958199357 | Q11: =Inputs!Q$25 -> 0.03685196752 | R11: =Inputs!R$25 -> 0.02108433735 | S11: =Inputs!S$25 -> 0.02654867257 | T11: =Inputs!T$25 -> 0.03103448276 | U11: =Inputs!U$25 -> 0.02204408818 | V11: =Inputs!V$25 -> 0.02745098039 | W11: =Inputs!W$25 -> 0.01717557252 | X11: =Inputs!X$25 -> 0.01688555347 | AA11: =Inputs!Y$25 -> 0.0147601476 | AB11: =Inputs!Z$25 -> 0.01909090909 | AC11: =Inputs!AA$25 -> 0.0178412132 | AD11: =Inputs!AB$25 -> 0.01840490798 | AE11: =Inputs!AC$25 -> 0.008605851979 | AH11: =Inputs!AD$25 -> 0.03498293515 | AI11: =Inputs!AE$25 -> 0.07831821929 | AJ11: =Inputs!AF$25 -> 0.04051987768 | AK11: =Inputs!AG$25 -> 0.0242468773 | AL11: =Inputs!AH$25 -> 0.0206 | AM11: =Inputs!AI$25 -> 0.0206 | AN11: =Inputs!AJ$25 -> 0.0206 | AO11: =Inputs!AK$25 -> 0.0206 | AP11: =Inputs!AL$25 -> 0.0206 | AQ11: =Inputs!AM$25 -> 0.0206
A12: =ROW() -> 12 | C12: =Inputs!C26 -> Inflation Factor (convert 31/12/2024 $ to nominal $) | I12: =Inputs!I$26 -> 0.523974383 | J12: =Inputs!J$26 -> 0.5403361116 | K12: =Inputs!K$26 -> 0.5566978402 | L12: =Inputs!L$26 -> 0.5698670365 | M12: =Inputs!M$26 -> 0.5846324989 | N12: =Inputs!N$26 -> 0.6009942275 | O12: =Inputs!O$26 -> 0.6205484886 | P12: =Inputs!P$26 -> 0.63890555 | Q12: =Inputs!Q$26 -> 0.6624504766 | R12: =Inputs!R$26 -> 0.6764178059 | S12: =Inputs!S$26 -> 0.6943758007 | T12: =Inputs!T$26 -> 0.7159253945 | U12: =Inputs!U$26 -> 0.7317073171 | V12: =Inputs!V$26 -> 0.7517934003 | W12: =Inputs!W$26 -> 0.7647058824 | X12: =Inputs!X$26 -> 0.7776183644 | Y12: =AA12 -> 0.7890961263 | Z12: =AA12 -> 0.7890961263 | AA12: =Inputs!Y$26 -> 0.7890961263 | AB12: =Inputs!Z$26 -> 0.8041606887 | AC12: =Inputs!AA$26 -> 0.818507891 | AD12: =Inputs!AB$26 -> 0.8335724534 | AE12: =Inputs!AC$26 -> 0.8407460545 | AF12: =$AH12 -> 0.8701578192 | AG12: =$AH12 -> 0.8701578192 | AH12: =Inputs!AD$26 -> 0.8701578192 | AI12: =Inputs!AE$26 -> 0.9383070301 | AJ12: =Inputs!AF$26 -> 0.9763271162 | AK12: =Inputs!AG$26 -> 1 | AL12: =Inputs!AH$26 -> 1.0206 | AM12: =Inputs!AI$26 -> 1.04162436 | AN12: =Inputs!AJ$26 -> 1.063081822 | AO12: =Inputs!AK$26 -> 1.084981307 | AP12: =Inputs!AL$26 -> 1.107331922 | AQ12: =Inputs!AM$26 -> 1.13014296
A13: =ROW() -> 13 | C13: =Inputs!C27 -> Inflation Factor (convert nominal to real 31/12/2024 $) | I13: =Inputs!I$27 -> 1.908490248 | J13: =Inputs!J$27 -> 1.850699923 | K13: =Inputs!K$27 -> 1.796306592 | L13: =Inputs!L$27 -> 1.754795305 | M13: =Inputs!M$27 -> 1.710476243 | N13: =Inputs!N$27 -> 1.663909492 | O13: =Inputs!O$27 -> 1.611477618 | P13: =Inputs!P$27 -> 1.565176574 | Q13: =Inputs!Q$27 -> 1.509546804 | R13: =Inputs!R$27 -> 1.478376221 | S13: =Inputs!S$27 -> 1.440142354 | T13: =Inputs!T$27 -> 1.396793587 | U13: =Inputs!U$27 -> 1.366666667 | V13: =Inputs!V$27 -> 1.330152672 | W13: =Inputs!W$27 -> 1.307692308 | X13: =Inputs!X$27 -> 1.28597786 | Y13: =AA13 -> 1.267272727 | Z13: =AA13 -> 1.267272727 | AA13: =Inputs!Y$27 -> 1.267272727 | AB13: =Inputs!Z$27 -> 1.24353256 | AC13: =Inputs!AA$27 -> 1.22173532 | AD13: =Inputs!AB$27 -> 1.199655766 | AE13: =Inputs!AC$27 -> 1.189419795 | AF13: =$AH13 -> 1.149216818 | AG13: =$AH13 -> 1.149216818 | AH13: =Inputs!AD$27 -> 1.149216818 | AI13: =Inputs!AE$27 -> 1.065749235 | AJ13: =Inputs!AF$27 -> 1.024246877 | AK13: =Inputs!AG$27 -> 1 | AL13: =Inputs!AH$27 -> 0.9798157946 | AM13: =Inputs!AI$27 -> 0.9600389914 | AN13: =Inputs!AJ$27 -> 0.9406613672 | AO13: =Inputs!AK$27 -> 0.921674865 | AP13: =Inputs!AL$27 -> 0.9030715903 | AQ13: =Inputs!AM$27 -> 0.8848438078
A14: =ROW() -> 14 | B14: Real Post Tax WACC
A15: =ROW() -> 15 | C15: WACC | AE15: =Inputs!AC$32 -> 0 | AH15: =Inputs!AD$32 -> 0 | AI15: =Inputs!AE$32 -> 0 | AJ15: =Inputs!AF$32 -> 0 | AK15: =Inputs!AG$32 -> 0 | AL15: =Inputs!AH$32 -> 0.0499370739 | AM15: =Inputs!AI$32 -> 0.0499370739 | AN15: =Inputs!AJ$32 -> 0.0499370739 | AO15: =Inputs!AK$32 -> 0.0499370739 | AP15: =Inputs!AL$32 -> 0.0499370739 | AQ15: =Inputs!AM$32 -> 0.0499370739
A16: =ROW() -> 16 | C16: Discounting Factor | AD16: =Inputs!AB$33 -> 0 | AE16: =Inputs!AC$33 -> 0 | AF16: =$AH16 -> 0 | AG16: =$AH16 -> 0 | AH16: =Inputs!AD$33 -> 0 | AI16: =Inputs!AE$33 -> 0 | AJ16: =Inputs!AF$33 -> 0 | AK16: =Inputs!AG$33 -> 1 | AL16: =Inputs!AH$33 -> 0.9524380316 | AM16: =Inputs!AI$33 -> 0.9071382041 | AN16: =Inputs!AJ$33 -> 0.8639929255 | AO16: =Inputs!AK$33 -> 0.8228997213 | AP16: =Inputs!AL$33 -> 0.7837609908 | AQ16: =Inputs!AM$33 -> 0.7464837754
A17: =ROW() -> 17 | B17: Nominal Post Tax WACC
A18: =ROW() -> 18 | C18: WACC | AE18: =Inputs!AC$35 -> 0 | AH18: =Inputs!AD$35 -> 0 | AI18: =Inputs!AE$35 -> 0 | AJ18: =Inputs!AF$35 -> 0 | AK18: =Inputs!AG$35 -> 0 | AL18: =Inputs!AH$35 -> 0.07156577762 | AM18: =Inputs!AI$35 -> 0.07156577762 | AN18: =Inputs!AJ$35 -> 0.07156577762 | AO18: =Inputs!AK$35 -> 0.07156577762 | AP18: =Inputs!AL$35 -> 0.07156577762 | AQ18: =Inputs!AM$35 -> 0.07156577762
A19: =ROW() -> 19 | C19: Discounting Factor | AD19: =Inputs!AB$36 -> 0 | AE19: =Inputs!AC$36 -> 0 | AF19: =$AH19 -> 0 | AG19: =$AH19 -> 0 | AH19: =Inputs!AD$36 -> 0 | AI19: =Inputs!AE$36 -> 0 | AJ19: =Inputs!AF$36 -> 0 | AK19: =Inputs!AG$36 -> 1 | AL19: =Inputs!AH$36 -> 0.9332138268 | AM19: =Inputs!AI$36 -> 0.8708880465 | AN19: =Inputs!AJ$36 -> 0.8127247666 | AO19: =Inputs!AK$36 -> 0.7584459896 | AP19: =Inputs!AL$36 -> 0.7077922844 | AQ19: =Inputs!AM$36 -> 0.6605215463
A20: =ROW() -> 20
A21: ="Capital Base [m$ "&Inputs!$E$26&"]" -> Capital Base [m$ 31/12/2024]
A22: =ROW() -> 22 | B22: Asset Account
A23: =ROW() -> 23 | C23: Opening Value | I23: =Asset!I16 -> 3129.785599 | J23: =Asset!J16 -> 3063.189826 | K23: =Asset!K16 -> 2992.567321 | L23: =Asset!L16 -> 2917.510861 | M23: =Asset!M16 -> 2840.866618 | N23: =Asset!N16 -> 2768.186814 | O23: =Asset!O16 -> 2769.370696 | P23: =Asset!P16 -> 3312.495316 | Q23: =Asset!Q16 -> 3240.256279 | R23: =Asset!R16 -> 4093.969607 | S23: =Asset!S16 -> 3993.067747 | T23: =Asset!T16 -> 4823.429476 | U23: =Asset!U16 -> 4895.149592 | V23: =Asset!V16 -> 4803.836181 | W23: =Asset!W16 -> 4697.073548 | X23: =Asset!X16 -> 4576.590049 | AA23: =Asset!Y16 -> 4470.298658 | AB23: =Asset!Z16 -> 4365.911477 | AC23: =Asset!AA16 -> 4265.15025 | AD23: =Asset!AB16 -> 4161.762509 | AE23: =Asset!AC16 -> 4070.588075 | AH23: =Asset!AD16 -> 3994.383417 | AI23: =Asset!AE16 -> 3824.528353 | AJ23: =Asset!AF16 -> 3732.635017 | AK23: =Asset!AG16 -> 3647.241942 | AL23: =Asset!AH16 -> 3547.437563 | AM23: =Asset!AI16 -> 3444.481018 | AN23: =Asset!AJ16 -> 3337.864644 | AO23: =Asset!AK16 -> 3242.98218 | AP23: =Asset!AL16 -> 3138.99429 | AQ23: =Asset!AM16 -> 3027.511843
A24: =ROW() -> 24 | C24: Capex | I24: =Asset!I17 -> 9.656003053 | J24: =Asset!J17 -> 6.046999062 | K24: =Asset!K17 -> 2.254818053 | L24: =Asset!L17 -> 1.358126634 | M24: =Asset!M17 -> 5.775774382 | N24: =Asset!N17 -> 86.80681318 | O24: =Asset!O17 -> 619.207197 | P24: =Asset!P17 -> 8.179526411 | Q24: =Asset!Q17 -> 947.1160149 | R24: =Asset!R17 -> 1.89493174 | S24: =Asset!S17 -> 891.2557296 | T24: =Asset!T17 -> 204.3248492 | U24: =Asset!U17 -> 42.05081985 | V24: =Asset!V17 -> 27.63286273 | W24: =Asset!W17 -> 16.10456159 | X24: =Asset!X17 -> 28.88469875 | AA24: =Asset!Y17 -> 21.99957389 | AB24: =Asset!Z17 -> 28.81955073 | AC24: =Asset!AA17 -> 27.07899863 | AD24: =Asset!AB17 -> 31.69377627 | AE24: =Asset!AC17 -> 35.10520226 | AH24: =Asset!AD17 -> 44.99510655 | AI24: =Asset!AE17 -> 44.91642089 | AJ24: =Asset!AF17 -> 53.6018964 | AK24: =Asset!AG17 -> 39.52234855 | AL24: =Asset!AH17 -> 37.92670895 | AM24: =Asset!AI17 -> 54.72658094 | AN24: =Asset!AJ17 -> 68.35513194 | AO24: =Asset!AK17 -> 60.04094348 | AP24: =Asset!AL17 -> 50.40519719 | AQ24: =Asset!AM17 -> 35.56578199
A25: =ROW() -> 25 | C25: Depreciation | I25: =Asset!I23 -> -76.25177607 | J25: =Asset!J23 -> -76.66950389 | K25: =Asset!K23 -> -77.31127821 | L25: =Asset!L23 -> -78.00236948 | M25: =Asset!M23 -> -78.45557782 | N25: =Asset!N23 -> -75.5932531 | O25: =Asset!O23 -> -76.08257661 | P25: =Asset!P23 -> -80.36812375 | Q25: =Asset!Q23 -> -93.36457253 | R25: =Asset!R23 -> -102.6750933 | S25: =Asset!S23 -> -105.1119554 | T25: =Asset!T23 -> -126.4297178 | U25: =Asset!U23 -> -132.8568167 | V25: =Asset!V23 -> -133.3846711 | W25: =Asset!W23 -> -133.7363401 | X25: =Asset!X23 -> -134.1734576 | AA25: =Asset!Y23 -> -126.386755 | AB25: =Asset!Z23 -> -129.5807772 | AC25: =Asset!AA23 -> -130.46674 | AD25: =Asset!AB23 -> -122.8682101 | AE25: =Asset!AC23 -> -111.0592332 | AH25: =Asset!AD23 -> -214.8501704 | AI25: =Asset!AE23 -> -136.8097571 | AJ25: =Asset!AF23 -> -138.9949713 | AK25: =Asset!AG23 -> -139.3267271 | AL25: =Asset!AH23 -> -140.8832538 | AM25: =Asset!AI23 -> -161.3429552 | AN25: =Asset!AJ23 -> -163.2375961 | AO25: =Asset!AK23 -> -164.0288338 | AP25: =Asset!AL23 -> -161.8876438 | AQ25: =Asset!AM23 -> -164.4891733
A26: =ROW() -> 26 | C26: Asset Adjustment, Redundant Assets & Asset Disposal | I26: =Asset!I18 -> 0 | J26: =Asset!J18 -> 0 | K26: =Asset!K18 -> 0 | L26: =Asset!L18 -> 0 | M26: =Asset!M18 -> 0 | N26: =Asset!N18 -> -10.02967879 | O26: =Asset!O18 -> 0 | P26: =Asset!P18 -> -0.05044007057 | Q26: =Asset!Q18 -> -0.03811346199 | R26: =Asset!R18 -> -0.1216990945 | S26: =Asset!S18 -> -0.01594892638 | T26: =Asset!T18 -> -6.175014663 | U26: =Asset!U18 -> -0.5074146548 | V26: =Asset!V18 -> -1.010824609 | W26: =Asset!W18 -> -2.851720072 | X26: =Asset!X18 -> -1.002632411 | AA26: =Asset!Y18 -> 0 | AB26: =Asset!Z18 -> 0 | AC26: =Asset!AA18 -> 0 | AD26: =Asset!AB18 -> 0 | AE26: =Asset!AC18 -> 0 | AH26: =Asset!AD18 -> 0 | AI26: =Asset!AE18 -> 0 | AJ26: =Asset!AF18 -> 0 | AK26: =Asset!AG18 -> 0 | AL26: =Asset!AH18 -> 0 | AM26: =Asset!AI18 -> 0 | AN26: =Asset!AJ18 -> 0 | AO26: =Asset!AK18 -> 0 | AP26: =Asset!AL18 -> 0 | AQ26: =Asset!AM18 -> 0
A27: =ROW() -> 27 | C27: Closing Value | I27: =Asset!I25 -> 3063.189826 | J27: =Asset!J25 -> 2992.567321 | K27: =Asset!K25 -> 2917.510861 | L27: =Asset!L25 -> 2840.866618 | M27: =Asset!M25 -> 2768.186814 | N27: =Asset!N25 -> 2769.370696 | O27: =Asset!O25 -> 3312.495316 | P27: =Asset!P25 -> 3240.256279 | Q27: =Asset!Q25 -> 4093.969607 | R27: =Asset!R25 -> 3993.067747 | S27: =Asset!S25 -> 4823.429476 | T27: =Asset!T25 -> 4895.149592 | U27: =Asset!U25 -> 4803.836181 | V27: =Asset!V25 -> 4697.073548 | W27: =Asset!W25 -> 4576.590049 | X27: =Asset!X25 -> 4470.298658 | AA27: =Asset!Y25 -> 4365.911477 | AB27: =Asset!Z25 -> 4265.15025 | AC27: =Asset!AA25 -> 4161.762509 | AD27: =Asset!AB25 -> 4070.588075 | AE27: =Asset!AC25 -> 3994.383417 | AH27: =Asset!AD25 -> 3824.528353 | AI27: =Asset!AE25 -> 3732.635017 | AJ27: =Asset!AF25 -> 3647.241942 | AK27: =Asset!AG25 -> 3547.437563 | AL27: =Asset!AH25 -> 3444.481018 | AM27: =Asset!AI25 -> 3337.864644 | AN27: =Asset!AJ25 -> 3242.98218 | AO27: =Asset!AK25 -> 3138.99429 | AP27: =Asset!AL25 -> 3027.511843 | AQ27: =Asset!AM25 -> 2898.588452
A28: Capital Base [m$ nominal]
A29: =ROW() -> 29 | B29: Asset Account
A30: =ROW() -> 30 | C30: Opening Value (start period) | I30: =H36 -> 0 | J30: 1605.032999 | K30: 1616.99219 | L30: 1624.171995 | M30: 1618.91624 | N30: 1618.371975 | O30: 1664.375802 | P30: 2055.563962 | Q30: 2070.21772 | R30: 2712.052118 | S30: 2700.982124 | T30: 3349.272704 | U30: 3504.561903 | V30: 3515.002084 | W30: 3531.228894 | X30: 3499.745332 | AA30: =X36 -> 3476.186331 | AB30: =AA36 -> 3445.123834 | AC30: =AB36 -> 3429.866163 | AD30: =AC36 -> 3406.435454 | AE30: =AD36 -> 3393.130089 | AH30: =AE36 -> 3358.262098 | AI30: =AH36 -> 3327.943251 | AJ30: 3502.357677 | AK30: 3560.901207 | AL30: 3547.437563 | AM30: 3515.437327 | AN30: =AM36 -> 3476.801124 | AO30: =AN36 -> 3447.555404 | AP30: =AO36 -> 3405.750128 | AQ30: =AP36 -> 3352.460509
A31: =ROW() -> 31 | C31: Inflation on Opening Value (start period) | I31: =I30*I$11 -> 0 | J31: 50.11908069 | K31: 48.96357443 | L31: 38.421273 | M31: 41.94670931 | N31: 45.29232147 | O31: 54.15299754 | P31: 60.8076799 | Q31: 76.29159617 | R31: 57.18182175 | S31: 71.70749002 | T31: 103.942946 | U31: 77.25487162 | V31: 96.49025328 | W31: 60.65087795 | X31: 59.09513694 | AA31: =AA30*AA$11 -> 51.30902334 | AB31: =AB30*AB$11 -> 65.77054592 | AC31: =AC30*AC$11 -> 61.19297346 | AD31: =AD30*AD$11 -> 62.69513106 | AE31: =AE30*AE$11 -> 29.20077529 | AH31: =AH30*AH$11 -> 117.4818652 | AI31: 260.6385893 | AJ31: 141.9151047 | AK31: 86.34073464 | AL31: 73.0772138 | AM31: =AM30*AM$11 -> 72.41800895 | AN31: =AN30*AN$11 -> 71.62210315 | AO31: 71.01964132 | AP31: 70.15845264 | AQ31: 69.06068648
A32: =ROW() -> 32 | C32: Opening Value (end period) | I32: =SUM(I30:I31) -> 0 | J32: 1655.152079 | K32: 1665.955764 | L32: 1662.593268 | M32: 1660.86295 | N32: 1663.664296 | O32: 1718.528799 | P32: 2116.371642 | Q32: 2146.509316 | R32: 2769.233939 | S32: 2772.689614 | T32: 3453.21565 | U32: 3581.816775 | V32: 3611.492337 | W32: 3591.879772 | X32: 3558.840469 | AA32: =SUM(AA30:AA31) -> 3527.495354 | AB32: =SUM(AB30:AB31) -> 3510.89438 | AC32: =SUM(AC30:AC31) -> 3491.059136 | AD32: =SUM(AD30:AD31) -> 3469.130585 | AE32: =SUM(AE30:AE31) -> 3422.330864 | AH32: =SUM(AH30:AH31) -> 3475.743963 | AI32: 3588.581841 | AJ32: 3644.272782 | AK32: 3647.241942 | AL32: 3620.514777 | AM32: =SUM(AM30:AM31) -> 3587.855336 | AN32: =SUM(AN30:AN31) -> 3548.423227 | AO32: 3518.575045 | AP32: 3475.908581 | AQ32: 3421.521195
A33: =ROW() -> 33 | C33: Capex | I33: =I24*I$12 -> 5.059498241 | J33: 3.26741196 | K33: 1.25525234 | L33: 0.7739516 | M33: 3.37670541 | N33: 52.17039363 | O33: 384.2480902 | P33: 5.22594482 | Q33: 627.4174554 | R33: 1.28176557 | S33: 618.8664109 | T33: 146.2813483 | U33: 30.76889257 | V33: 20.77420383 | W33: 12.31525298 | X33: 22.4612722 | AA33: =AA24*AA$12 -> 17.35977853 | AB33: 23.17554976 | AC33: 22.16437406 | AD33: 26.41905884 | AE33: 29.51456029 | AH33: =AH24*AH$12 -> 39.15284379 | AI33: 42.14539349 | AJ33: 52.33298494 | AK33: 39.52234855 | AL33: 38.70799915 | AM33: 57.00453984 | AN33: 72.66709819 | AO33: 65.14330135 | AP33: 55.8152839 | AQ33: 40.19441813
A34: =ROW() -> 34 | C34: Depreciation | I34: =I25*I$12 -> -39.95397732 | J34: -41.42730161 | K34: -43.0390216 | L34: -44.45097913 | M34: -45.86768051 | N34: -45.43110875 | O34: -47.21292792 | P34: -51.34764031 | Q34: -61.84940556 | R34: -69.45126134 | S34: -72.98719818 | T34: -90.51424561 | U34: -97.21230487 | V34: -100.2777154 | W34: -102.268966 | X34: -104.3357447 | AA34: -99.73129878 | AB34: -104.2037671 | AC34: -106.7880562 | AD34: -102.4195553 | AE34: -93.37261215 | AH34: =AH25*AH$12 -> -186.9535557 | AI34: -128.3695569 | AJ34: -135.7045595 | AK34: -139.3267271 | AL34: -143.7854489 | AM34: -168.0587525 | AN34: -173.534921 | AO34: -177.9682186 | AP34: -179.2633558 | AQ34: -185.8962811
A35: =ROW() -> 35 | C35: Asset Adjustment, Redundant Assets & Asset Disposal | I35: =I26*I$12 -> 0 | J35: 0 | K35: 0 | L35: 0 | M35: 0 | N35: -6.027779056 | O35: 0 | P35: -0.03222644103 | Q35: -0.02524828106 | R35: -0.08231943446 | S35: -0.01107454853 | T35: -4.420849809 | U35: -0.3712790157 | V35: -0.7599312697 | W35: -2.180727114 | X35: -0.7796653756 | AA35: 0 | AB35: 0 | AC35: 0 | AD35: 0 | AE35: 0 | AH35: =AH26*AH$12 -> 0 | AI35: 0 | AJ35: 0 | AK35: 0 | AL35: 0 | AM35: 0 | AN35: 0 | AO35: 0 | AP35: 0 | AQ35: 0
A36: =ROW() -> 36 | C36: Closing Value | I36: =I27*I$12 -> 1605.032999 | J36: 1616.99219 | K36: 1624.171995 | L36: 1618.91624 | M36: 1618.371975 | N36: 1664.375802 | O36: 2055.563962 | P36: 2070.21772 | Q36: 2712.052118 | R36: 2700.982124 | S36: 3349.272704 | T36: 3504.561903 | U36: 3515.002084 | V36: 3531.228894 | W36: 3499.745332 | X36: 3476.186331 | AA36: =AA27*AA$12 -> 3445.123834 | AB36: 3429.866163 | AC36: 3406.435454 | AD36: 3393.130089 | AE36: 3358.262098 | AH36: =AH27*AH$12 -> 3327.943251 | AI36: 3502.357677 | AJ36: 3560.901207 | AK36: 3547.437563 | AL36: 3515.437327 | AM36: =AM27*AM$12 -> 3476.801124 | AN36: 3447.555404 | AO36: 3405.750128 | AP36: 3352.460509 | AQ36: 3275.819332
A37: =ROW() -> 37
A38: Cost of Service, Allowable Revenue [m$ nominal]
A39: =ROW() -> 39 | B39: Cost of Service | F39: PV AA6 | G39: Sum AA6 | H39: based nominal post tax WACC
A40: =ROW() -> 40 | C40: OPEX
A41: =ROW() -> 41 | C41: Opex; GEA & Turbine overhauls | F41: =SUMPRODUCT($AK$19:$AQ$19,$AK41:$AQ41) -> 26.88769952 | G41: =SUM(AM41:AQ41) -> 35.67023797 | AM41: =Inputs!AI$2581 -> 5.058127892 | AN41: =Inputs!AJ$2581 -> 9.361498523 | AO41: =Inputs!AK$2581 -> 4.888925771 | AP41: =Inputs!AL$2581 -> 7.596296987 | AQ41: =Inputs!AM$2581 -> 8.765388797
A42: =ROW() -> 42 | C42: Opex; System Use Gas | F42: =SUMPRODUCT($AK$19:$AQ$19,$AK42:$AQ42) -> 77.84245962 | G42: =SUM(AM42:AQ42) -> 102.5653077 | AM42: =Inputs!AI$2583 -> 18.82677439 | AN42: =Inputs!AJ$2583 -> 19.89220922 | AO42: =Inputs!AK$2583 -> 21.98328366 | AP42: =Inputs!AL$2583 -> 20.20239763 | AQ42: =Inputs!AM$2583 -> 21.66064277
A43: =ROW() -> 43 | C43: Opex; Other Expenses | F43: =SUMPRODUCT($AK$19:$AQ$19,$AK43:$AQ43) -> 408.2873807 | G43: =SUM(AM43:AQ43) -> 537.3410973 | AM43: =Inputs!AI$2584-AM41-AM42 -> 99.13077631 | AN43: =Inputs!AJ$2584-AN41-AN42 -> 108.5399691 | AO43: =Inputs!AK$2584-AO41-AO42 -> 111.4425876 | AP43: =Inputs!AL$2584-AP41-AP42 -> 107.3629854 | AQ43: =Inputs!AM$2584-AQ41-AQ42 -> 110.8647789
A44: =ROW() -> 44 | C44: Depreciation | F44: =SUMPRODUCT($AK$19:$AQ$19,$AK44:$AQ44) -> 672.0454877 | G44: 884.721529 | AM44: =-AM$34 -> 168.0587525 | AN44: 173.534921 | AO44: 177.9682186 | AP44: 179.2633558 | AQ44: 185.8962811
A45: =ROW() -> 45 | C45: Inflationary Gains on RAB | F45: -270.4152804 | G45: -354.2788925 | AM45: =-AM$31 -> -72.41800895 | AN45: -71.62210315 | AO45: -71.01964132 | AP45: -70.15845264 | AQ45: -69.06068648
A46: =ROW() -> 46 | C46: Return on Asset | F46: 939.4407682 | G46: 1230.788565 | AM46: =AM$18*AM$30 -> 251.585006 | AN46: =AN$18*AN$30 -> 248.8199761 | AO46: =AO$18*AO$30 -> 246.7269834 | AP46: =AP$18*AP$30 -> 243.7351563 | AQ46: =AQ$18*AQ$30 -> 239.9214433
A47: =ROW() -> 47 | C47: Tax | F47: 166.6347766 | G47: 222.0698076 | AM47: =-Tax_CoRE!AI47 -> 34.78359325 | AN47: =-Tax_CoRE!AJ47 -> 39.69787466 | AO47: =-Tax_CoRE!AK47 -> 42.12399923 | AP47: =-Tax_CoRE!AL47 -> 52.21978117 | AQ47: =-Tax_CoRE!AM47 -> 53.2445593
A48: =ROW() -> 48 | C48: Imputation Credits | F48: -83.31738831 | G48: -111.0349038 | AM48: =-Tax_CoRE!AI48 -> -17.39179663 | AN48: =-Tax_CoRE!AJ48 -> -19.84893733 | AO48: =-Tax_CoRE!AK48 -> -21.06199962 | AP48: =-Tax_CoRE!AL48 -> -26.10989058 | AQ48: =-Tax_CoRE!AM48 -> -26.62227965
A49: =ROW() -> 49 | C49: E-Factor | F49: =SUMPRODUCT($AK$19:$AQ$19,$AK49:$AQ49) -> -43.76470089 | G49: -56.38798174 | AM49: =AM87*AM12 -> -7.708020264 | AN49: =AN87*AN12 -> -15.94622733 | AO49: -18.22768596 | AP49: -14.50604818 | AQ49: 0
A50: =ROW() -> 50 | C50: Over Depreciation | F50: 0 | G50: 0
A51: =ROW() -> 51 | C51: Cost of Service | F51: 1893.641203 | G51: 2491.454766 | AM51: =SUM(AM40:AM50) -> 479.9252045 | AN51: =SUM(AN40:AN50) -> 492.4291807 | AO51: =SUM(AO40:AO50) -> 494.8246713 | AP51: =SUM(AP40:AP50) -> 499.6055819 | AQ51: =SUM(AQ40:AQ50) -> 524.6701281
A52: =ROW() -> 52 | C52: less non-reference cost of service | D52: 0.02 | F52: -37.87282405 | G52: -49.82909533 | AM52: =-AM51*$D52 -> -9.59850409 | AN52: -9.848583615 | AO52: -9.896493426 | AP52: -9.992111637 | AQ52: -10.49340256
A53: =ROW() -> 53 | C53: add back SUG for non-reference cost of service | D53: =D$52 -> 0.02 | F53: 1.556849192 | G53: 2.051306154 | AM53: =$D52*Inputs!AI$2533 -> 0.3765354878 | AN53: =$D52*Inputs!AJ$2533 -> 0.3978441844 | AO53: =$D52*Inputs!AK$2533 -> 0.4396656732 | AP53: =$D52*Inputs!AL$2533 -> 0.4040479526 | AQ53: =$D52*Inputs!AM$2533 -> 0.4332128555
A54: =ROW() -> 54 | C54: Total Unsmooth Revenue | F54: 1857.325228 | G54: 2443.676977 | AM54: =SUM(AM51:AM53) -> 470.7032359 | AN54: 482.9784413 | AO54: 485.3678436 | AP54: 490.0175182 | AQ54: 514.6099384
A55: =ROW() -> 55 | C55: Total Tariff Revenue | F55: 1857.325228 | G55: 2441.145487 | AM55: =AM219 -> 480.5346149 | AN55: 476.8176844 | AO55: 492.0736847 | AP55: 487.5832904 | AQ55: 504.1362128
A56: =ROW() -> 56 | C56: Check CoS - Revenue (should be 0) | F56: =IF(ROUND(F54-F55,5)=0,"OK",F54-F55) -> OK
A57: =ROW() -> 57
A58: Hide | B58: Cost of Service | F58: PV AA6 | H58: based real post tax WACC | AM58: PV | AN58: PV | AO58: PV | AP58: PV | AQ58: PV
A59: Hide | C59: OPEX
A60: Hide | C60: Opex; GEA & Turbine overhauls | F60: =SUM(AK60:AQ60) -> 26.88769952 | AM60: =AM41*AM$19 -> 4.405063119 | AN60: 7.608321702 | AO60: 3.707986144 | AP60: 5.376600397 | AQ60: 5.789728162
A61: Hide | C61: Opex; System Use Gas | F61: =SUM(AK61:AQ61) -> 77.84245962 | AM61: 16.39601277 | AN61: 16.1668911 | AO61: 16.67313333 | AP61: 14.29910117 | AQ61: 14.30732126
A62: Hide | C62: Opex; Other Expenses | F62: =SUM(AK62:AQ62) -> 408.2873807 | AM62: 86.33180813 | AN62: 88.21312102 | AO62: 84.52318364 | AP62: 75.99069267 | AQ62: 73.22857521
A63: Hide | C63: Depreciation | F63: 672.0454877 | AM63: 146.3603586 | AN63: 141.0361282 | AO63: 134.9792816 | AP63: 126.8812201 | AQ63: 122.7884991
A64: Hide | C64: Inflationary Gains on RAB | F64: -270.4152804 | AM64: -63.06797834 | AN64: -58.20905707 | AO64: -53.86456214 | AP64: -49.65761146 | AQ64: -45.61607142
A65: Hide | C65: Return on Asset | F65: 939.4407682 | AM65: 219.1023744 | AN65: 202.222157 | AO65: 187.1290911 | AP65: 172.5138631 | AQ65: 158.4732827
A66: Hide | C66: Tax | F66: 166.6347766 | AM66: 30.29261558 | AN66: 32.26344592 | AO66: 31.94877828 | AP66: 36.9607582 | AQ66: 35.16917864
A67: Hide | C67: Imputation Credits | F67: -83.31738831 | AM67: -15.14630779 | AN67: -16.13172296 | AO67: -15.97438914 | AP67: -18.4803791 | AQ67: -17.58458932
A68: Hide | C68: E-Factor | F68: -43.76470089 | AM68: -6.71282271 | AN68: -12.95989388 | AO68: -13.82471532 | AP68: -10.26726898 | AQ68: 0
A69: Hide | C69: Over Depreciation | F69: 0
A70: Hide | C70: Net Cost of Service | F70: 1893.641203 | AM70: =AM51*AM$19 -> 417.9611238 | AN70: =AN51*AN$19 -> 400.209391 | AO70: =AO51*AO$19 -> 375.2977875 | AP70: =AP51*AP$19 -> 353.6169761 | AQ70: =AQ51*AQ$19 -> 346.5559243
A71: Hide | C71: less non-reference cost of service | D71: =D$52 -> 0.02 | F71: -37.87282405 | AM71: =-AM70*$D71 -> -8.359222477 | AN71: -8.00418782 | AO71: -7.50595575 | AP71: -7.072339521 | AQ71: -6.931118485
A72: Hide | C72: add back SUG | D72: =D$52 -> 0.02 | F72: 1.556849192 | AM72: =AM53*AM$19 -> 0.3279202555 | AN72: =AN53*AN$19 -> 0.3233378219 | AO72: =AO53*AO$19 -> 0.3334626666 | AP72: =AP53*AP$19 -> 0.2859820233 | AQ72: =AQ53*AQ$19 -> 0.2861464251
A73: Hide | C73: Total Unsmooth Revenue | F73: 1857.325228 | AM73: =SUM(AM70:AM72) -> 409.9298216 | AN73: 392.528541 | AO73: 368.1252944 | AP73: 346.8306186 | AQ73: 339.9109522
A74: Hide | C74: Total Tariff Revenue | F74: 1857.325228 | AM74: =AM55*AM$19 -> 418.4918521 | AN74: =AN55*AN$19 -> 387.5215413 | AO74: =AO55*AO$19 -> 373.2113127 | AP74: =AP55*AP$19 -> 345.1076909 | AQ74: =AQ55*AQ$19 -> 332.9928308
A75: Hide | C75: Check CoS - Revenue (should be 0) | F75: =IF(ROUND(F73-F74,5)=0,"OK",F73-F74) -> OK
A76: Hide
A77: ="CHECK -- Cost of Service, Allowable Revenue [m$ "&Inputs!$E$26&"]" -> CHECK -- Cost of Service, Allowable Revenue [m$ 31/12/2024]
A78: =ROW() -> 78 | B78: Cost of Service | F78: PV AA6 | G78: Sum AA6 | H78: based on real post tax WACC
A79: =ROW() -> 79 | C79: OPEX
A80: =ROW() -> 80 | C80: Opex; GEA & Turbine overhauls | F80: =SUMPRODUCT($AK$16:$AQ$16,$AK80:$AQ80) -> 26.88769952 | G80: =SUM(AM80:AQ80) -> 32.784 | AM80: =Inputs!AI$2591 -> 4.856 | AN80: =Inputs!AJ$2591 -> 8.806 | AO80: =Inputs!AK$2591 -> 4.506 | AP80: =Inputs!AL$2591 -> 6.86 | AQ80: =Inputs!AM$2591 -> 7.756
A81: =ROW() -> 81 | C81: Opex; System Use Gas | F81: =SUMPRODUCT($AK$16:$AQ$16,$AK81:$AQ81) -> 77.84245962 | G81: =SUM(AM81:AQ81) -> 94.45820721 | AM81: =Inputs!AI$2593 -> 18.0744375 | AN81: =Inputs!AJ$2593 -> 18.71183272 | AO81: =Inputs!AK$2593 -> 20.26144 | AP81: =Inputs!AL$2593 -> 18.24421135 | AQ81: =Inputs!AM$2593 -> 19.16628563
A82: =ROW() -> 82 | C82: Opex; Other Expenses | F82: =SUMPRODUCT($AK$16:$AQ$16,$AK82:$AQ82) -> 408.2873807 | G82: =SUM(AM82:AQ82) -> 495.0370732 | AM82: =Inputs!AI$2594-AM80-AM81 -> 95.16941051 | AN82: =Inputs!AJ$2594-AN80-AN81 -> 102.0993557 | AO82: =Inputs!AK$2594-AO80-AO81 -> 102.7138319 | AP82: =Inputs!AL$2594-AP80-AP81 -> 96.95646193 | AQ82: =Inputs!AM$2594-AQ80-AQ81 -> 98.09801315
A83: =ROW() -> 83 | C83: Depreciation | F83: 672.0454877 | G83: 814.9862022 | AM83: =-AM25 -> 161.3429552 | AN83: =-AN25 -> 163.2375961 | AO83: =-AO25 -> 164.0288338 | AP83: =-AP25 -> 161.8876438 | AQ83: =-AQ25 -> 164.4891733
A84: =ROW() -> 84 | C84: Return on Asset | F84: 669.0254878 | G84: 808.5728098 | AM84: =AM$15*AM$23 -> 172.0073032 | AN84: 166.6831934 | AO84: 161.9450408 | AP84: 156.7521898 | AQ84: 151.1850826
A85: =ROW() -> 85 | C85: Tax | F85: 166.6347766 | G85: 203.8318136 | AM85: =AM47*AM$13 -> 33.39360578 | AN85: 37.34225705 | AO85: 38.8246313 | AP85: 47.15820082 | AQ85: 47.11311859
A86: =ROW() -> 86 | C86: Imputation Credits | F86: -83.31738831 | G86: -101.9159068 | AM86: -16.69680289 | AN86: -18.67112853 | AO86: -19.41231565 | AP86: -23.57910041 | AQ86: -23.5565593
A87: =ROW() -> 87 | C87: E-Factor | F87: -43.76470089 | G87: -52.3 | AM87: =IncentiveMechanism!AK64 -> -7.4 | AN87: =IncentiveMechanism!AL64 -> -15 | AO87: =IncentiveMechanism!AM64 -> -16.8 | AP87: =IncentiveMechanism!AN64 -> -13.1 | AQ87: =IncentiveMechanism!AO64 -> 0
A88: =ROW() -> 88 | C88: Over Depreciation | F88: 0 | G88: 0
A89: =ROW() -> 89 | C89: Net Cost of Service | F89: 1893.641203 | G89: 2295.454199 | AM89: =SUM(AM79:AM88) -> 460.7469093 | AN89: =SUM(AN79:AN88) -> 463.2091064 | AO89: =SUM(AO79:AO88) -> 456.0674622 | AP89: =SUM(AP79:AP88) -> 451.1796073 | AQ89: =SUM(AQ79:AQ88) -> 464.251114
A90: =ROW() -> 90 | C90: less non-reference cost of service | D90: =D$52 -> 0.02 | F90: -37.87282405 | G90: -45.90908398 | AM90: =-AM89*$D90 -> -9.214938186 | AN90: -9.264182128 | AO90: -9.121349243 | AP90: -9.023592146 | AQ90: -9.285022279
A91: =ROW() -> 91 | C91: add back SUG | D91: =D$52 -> 0.02 | F91: 1.556849192 | G91: 1.889164144 | AM91: =$D91*Inputs!AI$2543 -> 0.36148875 | AN91: =$D91*Inputs!AJ$2543 -> 0.3742366545 | AO91: =$D91*Inputs!AK$2543 -> 0.4052288 | AP91: =$D91*Inputs!AL$2543 -> 0.3648842271 | AQ91: =$D91*Inputs!AM$2543 -> 0.3833257126
A92: =ROW() -> 92 | C92: Total Unsmooth Revenue | F92: 1857.325228 | G92: 2251.434279 | AM92: =SUM(AM89:AM91) -> 451.8934598 | AN92: 454.3191609 | AO92: 447.3513417 | AP92: 442.5208994 | AQ92: 455.3494174
A93: =ROW() -> 93 | C93: Total Tariff Revenue | F93: 1857.325228 | G93: 2249.792313 | AM93: =AM249 -> 461.331967 | AN93: 448.5239749 | AO93: 453.5319469 | AP93: 440.3226175 | AQ93: 446.0818062
A94: =ROW() -> 94 | C94: Check CoS - Revenue (should be 0) | F94: =IF(ROUND(F92-F93,5)=0,"OK",F92-F93) -> OK
A95: =ROW() -> 95
A96: Hide | B96: Cost of Service | F96: PV AA6 | H96: based on real post tax WACC | AM96: PV | AN96: PV | AO96: PV | AP96: PV | AQ96: PV
A97: Hide | C97: OPEX
A98: Hide | C98: Opex; GEA & Turbine overhauls | F98: =SUM(AK98:AQ98) -> 26.88769952 | AM98: =AM80*AM$16 -> 4.405063119 | AN98: 7.608321702 | AO98: 3.707986144 | AP98: 5.376600397 | AQ98: 5.789728162
A99: Hide | C99: Opex; System Use Gas | F99: =SUM(AK99:AQ99) -> 77.84245962 | AM99: 16.39601277 | AN99: 16.1668911 | AO99: 16.67313333 | AP99: 14.29910117 | AQ99: 14.30732126
A100: Hide | C100: Opex; Other Expenses | F100: 408.2873807 | AM100: 86.33180813 | AN100: 88.21312102 | AO100: 84.52318364 | AP100: 75.99069267 | AQ100: 73.22857521
A101: Hide | C101: Depreciation | F101: 672.0454877 | AM101: 146.3603586 | AN101: 141.0361282 | AO101: 134.9792816 | AP101: 126.8812201 | AQ101: 122.7884991
A102: Hide | C102: Return on Asset | F102: 669.0254878 | AM102: 156.0343961 | AN102: 144.0130999 | AO102: 133.2645289 | AP102: 122.8562516 | AQ102: 112.8572113
A103: Hide | C103: Tax | F103: 166.6347766 | AM103: 30.29261558 | AN103: 32.26344592 | AO103: 31.94877828 | AP103: 36.9607582 | AQ103: 35.16917864
A104: Hide | C104: Imputation Credits | F104: -83.31738831 | AM104: -15.14630779 | AN104: -16.13172296 | AO104: -15.97438914 | AP104: -18.4803791 | AQ104: -17.58458932
A105: Hide | C105: E-Factor | F105: -43.76470089 | AM105: -6.71282271 | AN105: -12.95989388 | AO105: -13.82471532 | AP105: -10.26726898 | AQ105: 0
A106: Hide | C106: Over Depreciation | F106: 0
A107: Hide | C107: Net Cost of Service | F107: 1893.641203 | AM107: =AM89*AM$16 -> 417.9611238 | AN107: =AN89*AN$16 -> 400.209391 | AO107: =AO89*AO$16 -> 375.2977875 | AP107: =AP89*AP$16 -> 353.6169761 | AQ107: =AQ89*AQ$16 -> 346.5559243
A108: Hide | C108: less non-reference cost of service | D108: =D$52 -> 0.02 | F108: -37.87282405 | AM108: =-AM107*$D108 -> -8.359222477 | AN108: -8.00418782 | AO108: -7.50595575 | AP108: -7.072339521 | AQ108: -6.931118485
A109: Hide | C109: add back SUG | D109: =D$52 -> 0.02 | F109: 1.556849192 | AM109: =AM91*AM$16 -> 0.3279202555 | AN109: =AN91*AN$16 -> 0.3233378219 | AO109: =AO91*AO$16 -> 0.3334626666 | AP109: =AP91*AP$16 -> 0.2859820233 | AQ109: =AQ91*AQ$16 -> 0.2861464251
A110: Hide | C110: Total Unsmooth Revenue | F110: 1857.325228 | AM110: =SUM(AM107:AM109) -> 409.9298216 | AN110: 392.528541 | AO110: 368.1252944 | AP110: 346.8306186 | AQ110: 339.9109522
A111: Hide | C111: Total Tariff Revenue | F111: 1857.325228 | AM111: =AM93*AM$16 -> 418.4918521 | AN111: =AN93*AN$16 -> 387.5215413 | AO111: =AO93*AO$16 -> 373.2113127 | AP111: =AP93*AP$16 -> 345.1076909 | AQ111: =AQ93*AQ$16 -> 332.9928308
A112: Hide | C112: Check CoS - Revenue (should be 0) | F112: =IF(ROUND(F110-F111,5)=0,"OK",F110-F111) -> OK
A113: Hide
A114: Credit Foncier Check
A115: =ROW() -> 115 | B115: Net Cash Flow | F115: PV | H115: based nominal post tax WACC
A116: =ROW() -> 116 | C116: Total Tariff Revenue | F116: =SUMPRODUCT($AK$19:$AQ$19,$AK116:$AQ116) -> 1857.325228 | AM116: =AM$55 -> 480.5346149 | AN116: 476.8176844 | AO116: 492.0736847 | AP116: 487.5832904 | AQ116: 504.1362128
A117: =ROW() -> 117 | C117: Opex | F117: -513.0175398 | AM117: =-(AM41+AM42+AM43) -> -123.0156786 | AN117: =-(AN41+AN42+AN43) -> -137.7936768 | AO117: =-(AO41+AO42+AO43) -> -138.314797 | AP117: -135.16168 | AQ117: -141.2908105
A118: =ROW() -> 118 | C118: Tax | F118: -166.6347766 | AM118: =-AM$47 -> -34.78359325 | AN118: -39.69787466 | AO118: -42.12399923 | AP118: -52.21978117 | AQ118: -53.2445593
A119: =ROW() -> 119 | C119: Imputation Credits | F119: 83.31738831 | AM119: =-AM$48 -> 17.39179663 | AN119: 19.84893733 | AO119: 21.06199962 | AP119: 26.10989058 | AQ119: 26.62227965
A120: =ROW() -> 120 | C120: E-Factor | F120: 43.76470089 | AM120: =-AM49 -> 7.708020264 | AN120: =-AN49 -> 15.94622733 | AO120: 18.22768596 | AP120: 14.50604818 | AQ120: 0
A121: =ROW() -> 121 | C121: Over Depreciation | F121: 0
A122: =ROW() -> 122 | C122: Asset Opening Value | F122: -3280.654721 | AL122: =-AL36 -> -3515.437327
A123: =ROW() -> 123 | C123: Capex | F123: -224.1655049 | AM123: =-AM$33 -> -57.00453984 | AN123: -72.66709819 | AO123: -65.14330135 | AP123: -55.8152839 | AQ123: -40.19441813
A124: =ROW() -> 124 | C124: Asset Residual Value | F124: 2163.749251 | AQ124: =AQ36 -> 3275.819332
A125: =ROW() -> 125 | C125: non-reference cost of service | F125: 37.87282405 | AM125: =-AM52 -> 9.59850409 | AN125: 9.848583615 | AO125: 9.896493426 | AP125: 9.992111637 | AQ125: 10.49340256
A126: =ROW() -> 126 | C126: SUG | F126: -1.556849192 | AM126: -0.3765354878 | AN126: -0.3978441844 | AO126: -0.4396656732 | AP126: -0.4040479526 | AQ126: -0.4332128555
A127: =ROW() -> 127 | C127: Net Cash Flow (should be 0) | F127: -5.547917681e-10 | AL127: =SUM(AL116:AL126) -> -3515.437327 | AM127: =SUM(AM116:AM126) -> 300.0525887 | AN127: 271.9049389 | AO127: 295.2381004 | AP127: 294.5905478 | AQ127: 3581.908227
A128: =ROW() -> 128
A129: =ROW() -> 129 | F129: IRR
A130: =ROW() -> 130 | C130: Net Cash Flow [m$ OD] | E130: Nominal IRR | F130: =IRR($AK130:$AQ130,0.05) -> 0.07156577762 | G130: =IF(Recalc_From_Year=Inputs!$Y$6,IF(ABS(F130-WACC!$O$36)<0.00001,"OK","Check"),"") ->  | AL130: =AL127 -> -3515.437327 | AM130: =AM127 -> 300.0525887 | AN130: 271.9049389 | AO130: 295.2381004 | AP130: 294.5905478 | AQ130: 3581.908227
A131: =ROW() -> 131 | C131: ="Net Cash Flow [m$ "&Inputs!$E$26&"]" -> Net Cash Flow [m$ 31/12/2024] | E131: Real IRR | F131: =IRR($AK131:$AQ131,0.05) -> 0.0499370739 | G131: =IF(Recalc_From_Year=Inputs!$Y$6,IF(ABS(F131-WACC!$O$37)<0.00001,"OK","Check"),"") ->  | AL131: =AL130*AL$13 -> -3444.481018 | AM131: =AM130*AM$13 -> 288.0621846 | AN131: 255.7704715 | AO131: 272.1135363 | AP131: 266.0363545 | AQ131: 3169.429314
A132: =ROW() -> 132
A133: =ROW() -> 133
A134: =ROW() -> 134
A135: =ROW() -> 135
A136: =ROW() -> 136 | C136: Credit Foncier Check | F136: (A) | AE136: Total Revenue Building Block | AJ136: (B) | AK136: (A + B)
A137: =ROW() -> 137 | AK137: Difference
A138: =ROW() -> 138 | F138: PV | AJ138: PV | AK138: (should be 0)
A139: =ROW() -> 139 | C139: Total Smoothed Revenue | F139: =F116 -> 1857.325228 | AE139: Total Unsmoothed Revenue | AJ139: =-F54 -> -1857.325228 | AK139: =ROUND(AJ139+F139,0.000001) -> 0
A140: =ROW() -> 140
A141: =ROW() -> 141 | C141: Asset Opening Value | F141: =F122 -> -3280.654721 | AE141: Return on Asset | AJ141: =F46 -> 939.4407682
A142: =ROW() -> 142 | C142: Capex | F142: =F123 -> -224.1655049 | AE142: Inflationary gains | AJ142: =F45 -> -270.4152804
A143: =ROW() -> 143 | C143: Asset Residual Value | F143: =F124 -> 2163.749251 | AE143: Depreciation | AJ143: =F44 -> 672.0454877
A144: =ROW() -> 144 | F144: =SUM(F141:F143) -> -1341.070975 | AJ144: =SUM(AJ141:AJ143) -> 1341.070975 | AK144: =ROUND(AJ144+F144,0.000001) -> 0
A145: =ROW() -> 145
A146: =ROW() -> 146 | C146: Opex | F146: =F117 -> -513.0175398 | AE146: Opex | AJ146: =F42+F43 -> 486.1298403 | AK146: =ROUND(AJ146+F146,0.000001) -> -27
A147: =ROW() -> 147 | C147: Tax | F147: =F118 -> -166.6347766 | AE147: Tax | AJ147: =F47 -> 166.6347766 | AK147: =ROUND(AJ147+F147,0.000001) -> 0
A148: =ROW() -> 148 | C148: Imputation Credits | F148: =F119 -> 83.31738831 | AE148: Imputation Credits | AJ148: =F48 -> -83.31738831 | AK148: =ROUND(AJ148+F148,0.000001) -> 0
A149: =ROW() -> 149 | C149: E-Factor | F149: =F120 -> 43.76470089
A150: =ROW() -> 150 | C150: Over Depreciation | F150: =F121 -> 0 | AE150: Over Depreciation | AJ150: =F50 -> 0 | AK150: =ROUND(AJ150+F150,0.000001) -> 0
A151: =ROW() -> 151 | F151: =SUM(F146:F150) -> -552.5702272 | AJ151: =SUM(AJ146:AJ150) -> 569.4472286 | AK151: =ROUND(AJ151+F151,0.000001) -> 17
A152: =ROW() -> 152
A153: =ROW() -> 153 | C153: non-reference cost of service | F153: =F125 -> 37.87282405 | AE153: non-reference cost of service | AJ153: =F52 -> -37.87282405 | AK153: =ROUND(AJ153+F153,0.000001) -> 0
A154: =ROW() -> 154 | C154: SUG | F154: =F126 -> -1.556849192 | AE154: SUG | AJ154: =F53 -> 1.556849192 | AK154: =ROUND(AJ154+F154,0.000001) -> 0
A155: =ROW() -> 155 | F155: =SUM(F153:F154) -> 36.31597486 | AJ155: =SUM(AJ153:AJ154) -> -36.31597486 | AK155: =ROUND(AJ155+F155,0.000001) -> 0
A156: =ROW() -> 156
A157: =ROW() -> 157 | C157: Net Cash Flow (should be 0) | F157: =ROUND(F139+F144+F151+F155,0.00001) -> 0 | AJ157: =ROUND(AJ139+AJ144+AJ151+AJ155,0.00001) -> 17 | AK157: =ROUND(AJ157+F157,0.000001) -> 17
A158: =ROW() -> 158
A159: =ROW() -> 159
A160: Financeability metrics
A161: =ROW() -> 161
A162: =ROW() -> 162 | C162: Debt | AM162: =Tax_CoRE!AI21 -> 1933.49053 | AN162: =Tax_CoRE!AJ21 -> 1912.240618 | AO162: =Tax_CoRE!AK21 -> 1896.155472 | AP162: =Tax_CoRE!AL21 -> 1873.16257 | AQ162: =Tax_CoRE!AM21 -> 1843.85328
A163: =ROW() -> 163 | C163: Smoothed Revenue | AM163: =AM55 -> 480.5346149 | AN163: =AN55 -> 476.8176844 | AO163: =AO55 -> 492.0736847 | AP163: =AP55 -> 487.5832904 | AQ163: =AQ55 -> 504.1362128
A164: =ROW() -> 164 | C164: Interest | AM164: =-Tax_CoRE!AI40 -> 114.9542681 | AN164: =-Tax_CoRE!AJ40 -> 113.6908701 | AO164: =-Tax_CoRE!AK40 -> 112.7345395 | AP164: =-Tax_CoRE!AL40 -> 111.3675133 | AQ164: =-Tax_CoRE!AM40 -> 109.6249508
A165: =ROW() -> 165 | C165: Opex | AM165: =SUM(AM41:AM43) -> 123.0156786 | AN165: =SUM(AN41:AN43) -> 137.7936768 | AO165: 138.314797 | AP165: 135.16168 | AQ165: 141.2908105
A166: =ROW() -> 166 | C166: Tax (gross) | AM166: =AM47 -> 34.78359325 | AN166: =AN47 -> 39.69787466 | AO166: =AO47 -> 42.12399923 | AP166: =AP47 -> 52.21978117 | AQ166: =AQ47 -> 53.2445593
A167: =ROW() -> 167 | C167: FFO | AM167: =AM163-AM164-AM165-AM166 -> 207.7810749 | AN167: 185.6352629 | AO167: 198.9003489 | AP167: 188.834316 | AQ167: 199.9758921
A168: =ROW() -> 168 | C168: FFO + Interest | AM168: =AM167+AM164 -> 322.7353431 | AN168: 299.326133 | AO168: 311.6348884 | AP168: 300.2018293 | AQ168: 309.600843
A169: =ROW() -> 169
A170: =ROW() -> 170 | C170: FFO/debt | AM170: =AM167/AM162 -> 0.107464232 | AN170: 0.0970773558 | AO170: 0.1048966458 | AP170: 0.1008104256 | AQ170: 0.1084554256
A171: =ROW() -> 171 | C171: FFO Interest Cover | AM171: =AM168/AM164 -> 2.807510746 | AN171: 2.632807126 | AO171: 2.764324845 | AP171: 2.695596053 | AQ171: 2.824182274
A172: =ROW() -> 172
A173: ="Cost of Service Tariff [m$ "&Inputs!$E$26&"] (Not used for Reference Tariff)" -> Cost of Service Tariff [m$ 31/12/2024] (Not used for Reference Tariff)
A174: =ROW() -> 174
A175: =ROW() -> 175 | B175: ="Cost of Service Tariff [$/TJ OD]" -> Cost of Service Tariff [$/TJ OD]
A176: =ROW() -> 176 | C176: Capacity Reservation | AM176: =1000*((AM51-AM42)/AM$7)/AM192 -> 2.23615863 | AN176: =1000*((AN51-AN42)/AN$7)/AN192 -> 2.36283231 | AO176: =1000*((AO51-AO42)/AO$7)/AO192 -> 2.339728839 | AP176: =1000*((AP51-AP42)/AP$7)/AP192 -> 2.444283378 | AQ176: =1000*((AQ51-AQ42)/AQ$7)/AQ192 -> 2.53166263
A177: =ROW() -> 177 | C177: Commodity | AM177: =1000*(AM42/AM$7)/AM193 -> 0.1083947793 | AN177: =1000*(AN42/AN$7)/AN193 -> 0.1123566028 | AO177: =1000*(AO42/AO$7)/AO193 -> 0.1213436741 | AP177: =1000*(AP42/AP$7)/AP193 -> 0.114056413 | AQ177: =1000*(AQ42/AQ$7)/AQ193 -> 0.1205944425
A178: =ROW() -> 178 | C178: Total | AM178: =SUM(AM176:AM177) -> 2.344553409 | AN178: 2.475188913 | AO178: 2.461072513 | AP178: 2.558339791 | AQ178: 2.652257072
A179: =ROW() -> 179
A180: =ROW() -> 180 | B180: ="Cost of Service Tariff [$/TJ "&Inputs!$E$26&"]" -> Cost of Service Tariff [$/TJ 31/12/2024]
A181: =ROW() -> 181 | C181: Capacity Reservation | AM181: =1000*((AM89-AM81)/AM$7)/AM192 -> 2.146799476 | AN181: =1000*((AN89-AN81)/AN$7)/AN192 -> 2.222625072 | AO181: =1000*((AO89-AO81)/AO$7)/AO192 -> 2.156469262 | AP181: =1000*((AP89-AP81)/AP$7)/AP192 -> 2.207362877 | AQ181: =1000*((AQ89-AQ81)/AQ$7)/AQ192 -> 2.240126002
A182: =ROW() -> 182 | C182: Commodity | AM182: =1000*(AM81/AM$7)/AM193 -> 0.1040632146 | AN182: =1000*(AN81/AN$7)/AN193 -> 0.1056895156 | AO182: =1000*(AO81/AO$7)/AO193 -> 0.1118394145 | AP182: =1000*(AP81/AP$7)/AP193 -> 0.1030011063 | AQ182: =1000*(AQ81/AQ$7)/AQ193 -> 0.1067072457
A183: =ROW() -> 183 | C183: Total | AM183: =SUM(AM181:AM182) -> 2.25086269 | AN183: 2.328314587 | AO183: 2.268308676 | AP183: 2.310363984 | AQ183: 2.346833247
A184: =ROW() -> 184
A185: Tariff and Revenue
A186: =ROW() -> 186
A187: =ROW() -> 187 | AM187: X_Factor_2026 | AN187: X_Factor_2027 | AO187: X_Factor_2028 | AP187: X_Factor_2029 | AQ187: X_Factor_2030
A188: =ROW() -> 188 | B188: X_Factor (for real $ calculation) | AM188: =X_Factor_1 -> 0.4317564622 | AN188: =X_Factor_2 -> 0 | AO188: =X_Factor_3 -> 0 | AP188: =X_Factor_4 -> 0 | AQ188: =X_Factor_5 -> 0
A189: =ROW() -> 189
A190: =ROW() -> 190
A191: =ROW() -> 191 | B191: Load F/H Equivalent [TJ/day] | F191: PV (use real discount rate)
A192: =ROW() -> 192 | C192: Capacity Reservation | F192: =SUMPRODUCT($AK$16:$AQ$16,AK192:AQ192) -> 2267.742388 | AM192: =Load!AI$11 -> 564.934595 | AN192: =Load!AJ$11 -> 547.9110109 | AO192: =Load!AK$11 -> 552.1649938 | AP192: =Load!AL$11 -> 537.3490624 | AQ192: =Load!AM$11 -> 544.3490624
A193: =ROW() -> 193 | C193: Commodity | F193: =SUMPRODUCT($AK$16:$AQ$16,AK193:AQ193) -> 2005.760669 | AM193: =Load!AI$12 -> 475.8550565 | AN193: =Load!AJ$12 -> 485.0556354 | AO193: =Load!AK$12 -> 494.9876208 | AP193: =Load!AL$12 -> 485.2777071 | AQ193: =Load!AM$12 -> 492.0975256
A194: =ROW() -> 194 | C194: Total | AM194: =SUM(AM192:AM193) -> 1040.789652 | AN194: 1032.966646 | AO194: 1047.152615 | AP194: 1022.62677 | AQ194: 1036.446588
A195: =ROW() -> 195
A196: =ROW() -> 196 | B196: Applied Tariff Allocation
A197: =ROW() -> 197 | C197: Capacity Reservation | AM197: =IF(Recalc_From_Year>=AM$6,SolverSheet!I22,AK197) -> 0.9436123704 | AN197: =IF(Recalc_From_Year>=AN$6,SolverSheet!J22,AM197) -> 0.9436123704 | AO197: =IF(Recalc_From_Year>=AO$6,SolverSheet!K22,AN197) -> 0.9436123704 | AP197: =IF(Recalc_From_Year>=AP$6,SolverSheet!L22,AO197) -> 0.9436123704 | AQ197: =IF(Recalc_From_Year>=AQ$6,SolverSheet!M22,AP197) -> 0.9436123704
A198: =ROW() -> 198 | C198: Commodity | AM198: =IF(Recalc_From_Year>=AM$6,SolverSheet!I23,AK198) -> 0.05638762957 | AN198: =IF(Recalc_From_Year>=AN$6,SolverSheet!J23,AM198) -> 0.05638762957 | AO198: =IF(Recalc_From_Year>=AO$6,SolverSheet!K23,AN198) -> 0.05638762957 | AP198: =IF(Recalc_From_Year>=AP$6,SolverSheet!L23,AO198) -> 0.05638762957 | AQ198: =IF(Recalc_From_Year>=AQ$6,SolverSheet!M23,AP198) -> 0.05638762957
A199: =ROW() -> 199 | C199: Total | AM199: =SUM(AM197:AM198) -> 1 | AN199: =SUM(AN197:AN198) -> 1 | AO199: 1 | AP199: 1 | AQ199: 1
A200: =ROW() -> 200
A201: =ROW() -> 201
... 91 more rows

Sheet Tax_CoRE
A1: =Main!A1 -> DBNGP, DBNGP Tariff Model, Draft Decision, August 2025
A2: =MID(CELL("filename",A1),FIND("]",CELL("filename",A1))+1,256) -> Tax_CoRE
A3: Ref. | B3: =COLUMN() -> 2 | C3: =COLUMN() -> 3 | D3: =COLUMN() -> 4 | E3: =COLUMN() -> 5 | F3: =COLUMN() -> 6 | G3: =COLUMN() -> 7 | H3: =COLUMN() -> 8 | I3: =COLUMN() -> 9 | J3: =COLUMN() -> 10 | K3: =COLUMN() -> 11 | L3: =COLUMN() -> 12 | M3: =COLUMN() -> 13 | N3: =COLUMN() -> 14 | Q3: =COLUMN() -> 17 | R3: =COLUMN() -> 18 | S3: =COLUMN() -> 19 | T3: =COLUMN() -> 20 | U3: =COLUMN() -> 21 | V3: =COLUMN() -> 22 | W3: =COLUMN() -> 23 | X3: =COLUMN() -> 24 | Y3: =COLUMN() -> 25 | Z3: =COLUMN() -> 26 | AA3: =COLUMN() -> 27 | AB3: =COLUMN() -> 28 | AC3: =COLUMN() -> 29 | AD3: =COLUMN() -> 30 | AE3: =COLUMN() -> 31 | AF3: =COLUMN() -> 32 | AG3: =COLUMN() -> 33 | AH3: =COLUMN() -> 34 | AI3: =COLUMN() -> 35 | AJ3: =COLUMN() -> 36 | AK3: =COLUMN() -> 37 | AL3: =COLUMN() -> 38 | AM3: =COLUMN() -> 39 | AN3: =COLUMN() -> 40
A5: Regulatory Period | I5: =Inputs!I$5 -> AA1 | J5: =Inputs!J$5 -> AA1 | K5: =Inputs!K$5 -> AA1 | L5: =Inputs!L$5 -> AA1 | M5: =Inputs!M$5 -> AA1 | N5: =Inputs!N$5 -> AA2 | O5: =Inputs!O$5 -> AA2 | P5: =Inputs!P$5 -> AA2 | Q5: =Inputs!Q$5 -> AA2 | R5: =Inputs!R$5 -> AA2 | S5: =Inputs!S$5 -> AA2 | T5: =Inputs!T$5 -> AA3 | U5: =Inputs!U$5 -> AA3 | V5: =Inputs!V$5 -> AA3 | W5: =Inputs!W$5 -> AA3 | X5: =Inputs!X$5 -> AA3 | Y5: =Inputs!Y$5 -> AA4 | Z5: =Inputs!Z$5 -> AA4 | AA5: =Inputs!AA$5 -> AA4 | AB5: =Inputs!AB$5 -> AA4 | AC5: =Inputs!AC$5 -> AA4 | AD5: =Inputs!AD$5 -> AA5 | AE5: =Inputs!AE$5 -> AA5 | AF5: =Inputs!AF$5 -> AA5 | AG5: =Inputs!AG$5 -> AA5 | AH5: =Inputs!AH$5 -> AA5 | AI5: =Inputs!AI$5 -> AA6 | AJ5: =Inputs!AJ$5 -> AA6 | AK5: =Inputs!AK$5 -> AA6 | AL5: =Inputs!AL$5 -> AA6 | AM5: =Inputs!AM$5 -> AA6 | AN5: AA7
A6: Year | H6: =Inputs!H$6 -> 1999 | I6: =Inputs!I$6 -> 2000 | J6: =Inputs!J$6 -> 2001 | K6: =Inputs!K$6 -> 2002 | L6: =Inputs!L$6 -> 2003 | M6: =Inputs!M$6 -> 2004 | N6: =Inputs!N$6 -> 2005 | O6: =Inputs!O$6 -> 2006 | P6: =Inputs!P$6 -> 2007 | Q6: =Inputs!Q$6 -> 2008 | R6: =Inputs!R$6 -> 2009 | S6: =Inputs!S$6 -> 2010 | T6: =Inputs!T$6 -> 2011 | U6: =Inputs!U$6 -> 2012 | V6: =Inputs!V$6 -> 2013 | W6: =Inputs!W$6 -> 2014 | X6: =Inputs!X$6 -> 2015 | Y6: =Inputs!Y$6 -> 2016 | Z6: =Inputs!Z$6 -> 2017 | AA6: =Inputs!AA$6 -> 2018 | AB6: =Inputs!AB$6 -> 2019 | AC6: =Inputs!AC$6 -> 2020 | AD6: =Inputs!AD$6 -> 2021 | AE6: =Inputs!AE$6 -> 2022 | AF6: =Inputs!AF$6 -> 2023 | AG6: =Inputs!AG$6 -> 2024 | AH6: =Inputs!AH$6 -> 2025 | AI6: =Inputs!AI$6 -> 2026 | AJ6: =Inputs!AJ$6 -> 2027 | AK6: =Inputs!AK$6 -> 2028 | AL6: =Inputs!AL$6 -> 2029 | AM6: =Inputs!AM$6 -> 2030 | AN6: =AM6+1 -> 2031
A7: Days | H7: =Inputs!H$7 -> 365 | I7: =Inputs!I$7 -> 366 | J7: =Inputs!J$7 -> 365 | K7: =Inputs!K$7 -> 365 | L7: =Inputs!L$7 -> 365 | M7: =Inputs!M$7 -> 366 | N7: =Inputs!N$7 -> 365 | O7: =Inputs!O$7 -> 365 | P7: =Inputs!P$7 -> 365 | Q7: =Inputs!Q$7 -> 366 | R7: =Inputs!R$7 -> 365 | S7: =Inputs!S$7 -> 365 | T7: =Inputs!T$7 -> 365 | U7: =Inputs!U$7 -> 366 | V7: =Inputs!V$7 -> 365 | W7: =Inputs!W$7 -> 365 | X7: =Inputs!X$7 -> 365 | Y7: =Inputs!Y$7 -> 366 | Z7: =Inputs!Z$7 -> 365 | AA7: =Inputs!AA$7 -> 365 | AB7: =Inputs!AB$7 -> 365 | AC7: =Inputs!AC$7 -> 366 | AD7: =Inputs!AD$7 -> 365 | AE7: =Inputs!AE$7 -> 365 | AF7: =Inputs!AF$7 -> 365 | AG7: =Inputs!AG$7 -> 366 | AH7: =Inputs!AH$7 -> 365 | AI7: =Inputs!AI$7 -> 365 | AJ7: =Inputs!AJ$7 -> 365 | AK7: =Inputs!AK$7 -> 366 | AL7: =Inputs!AL$7 -> 365 | AM7: =Inputs!AM$7 -> 365 | AN7: 365
A8: Project Year | H8: =Inputs!H$8 -> 0 | I8: =Inputs!I$8 -> 1 | J8: =Inputs!J$8 -> 2 | K8: =Inputs!K$8 -> 3 | L8: =Inputs!L$8 -> 4 | M8: =Inputs!M$8 -> 5 | N8: =Inputs!N$8 -> 6 | O8: =Inputs!O$8 -> 7 | P8: =Inputs!P$8 -> 8 | Q8: =Inputs!Q$8 -> 9 | R8: =Inputs!R$8 -> 10 | S8: =Inputs!S$8 -> 11 | T8: =Inputs!T$8 -> 12 | U8: =Inputs!U$8 -> 13 | V8: =Inputs!V$8 -> 14 | W8: =Inputs!W$8 -> 15 | X8: =Inputs!X$8 -> 16 | Y8: =Inputs!Y$8 -> 17 | Z8: =Inputs!Z$8 -> 18 | AA8: =Inputs!AA$8 -> 19 | AB8: =Inputs!AB$8 -> 20 | AC8: =Inputs!AC$8 -> 21 | AD8: =Inputs!AD$8 -> 22 | AE8: =Inputs!AE$8 -> 23 | AF8: =Inputs!AF$8 -> 24 | AG8: =Inputs!AG$8 -> 25 | AH8: =Inputs!AH$8 -> 26 | AI8: =Inputs!AI$8 -> 27 | AJ8: =Inputs!AJ$8 -> 28 | AK8: =Inputs!AK$8 -> 29 | AL8: =Inputs!AL$8 -> 30 | AM8: =Inputs!AM$8 -> 31 | AN8: =AM8+1 -> 32
A9: Financial Parameters
A10: =ROW() -> 10 | B10: Modelled Inflation
A11: =ROW() -> 11 | C11: Inflation | S11: =Inputs!S$25 -> 0.02654867257 | T11: =Inputs!T$25 -> 0.03103448276 | U11: =Inputs!U$25 -> 0.02204408818 | V11: =Inputs!V$25 -> 0.02745098039 | W11: =Inputs!W$25 -> 0.01717557252 | X11: =Inputs!X$25 -> 0.01688555347 | Y11: =Inputs!Y$25 -> 0.0147601476 | Z11: =Inputs!Z$25 -> 0.01909090909 | AA11: =Inputs!AA$25 -> 0.0178412132 | AB11: =Inputs!AB$25 -> 0.01840490798 | AC11: =Inputs!AC$25 -> 0.008605851979 | AD11: =Inputs!AD$25 -> 0.03498293515 | AE11: =Inputs!AE$25 -> 0.07831821929 | AF11: =Inputs!AF$25 -> 0.04051987768 | AG11: =Inputs!AG$25 -> 0.0242468773 | AH11: =Inputs!AH$25 -> 0.0206 | AI11: =Inputs!AI$25 -> 0.0206 | AJ11: =Inputs!AJ$25 -> 0.0206 | AK11: =Inputs!AK$25 -> 0.0206 | AL11: =Inputs!AL$25 -> 0.0206 | AM11: =Inputs!AM$25 -> 0.0206
A12: =ROW() -> 12 | C12: =Inputs!C26 -> Inflation Factor (convert 31/12/2024 $ to nominal $) | S12: =Inputs!S$26 -> 0.6943758007 | T12: =Inputs!T$26 -> 0.7159253945 | U12: =Inputs!U$26 -> 0.7317073171 | V12: =Inputs!V$26 -> 0.7517934003 | W12: =Inputs!W$26 -> 0.7647058824 | X12: =Inputs!X$26 -> 0.7776183644 | Y12: =Inputs!Y$26 -> 0.7890961263 | Z12: =Inputs!Z$26 -> 0.8041606887 | AA12: =Inputs!AA$26 -> 0.818507891 | AB12: =Inputs!AB$26 -> 0.8335724534 | AC12: =Inputs!AC$26 -> 0.8407460545 | AD12: =Inputs!AD$26 -> 0.8701578192 | AE12: =Inputs!AE$26 -> 0.9383070301 | AF12: =Inputs!AF$26 -> 0.9763271162 | AG12: =Inputs!AG$26 -> 1 | AH12: =Inputs!AH$26 -> 1.0206 | AI12: =Inputs!AI$26 -> 1.04162436 | AJ12: =Inputs!AJ$26 -> 1.063081822 | AK12: =Inputs!AK$26 -> 1.084981307 | AL12: =Inputs!AL$26 -> 1.107331922 | AM12: =Inputs!AM$26 -> 1.13014296
A13: =ROW() -> 13 | B13: Nominal Post Tax WACC
A14: =ROW() -> 14 | C14: WACC | T14: =Inputs!T$35 -> 0 | U14: =Inputs!U$35 -> 0 | V14: =Inputs!V$35 -> 0 | W14: =Inputs!W$35 -> 0 | X14: =Inputs!X$35 -> 0 | Y14: =Inputs!Y$35 -> 0 | Z14: =Inputs!Z$35 -> 0 | AA14: =Inputs!AA$35 -> 0 | AB14: =Inputs!AB$35 -> 0 | AC14: =Inputs!AC$35 -> 0 | AD14: =Inputs!AD$35 -> 0 | AE14: =Inputs!AE$35 -> 0 | AF14: =Inputs!AF$35 -> 0 | AG14: =Inputs!AG$35 -> 0 | AH14: =Inputs!AH$35 -> 0.07156577762 | AI14: =Inputs!AI$35 -> 0.07156577762 | AJ14: =Inputs!AJ$35 -> 0.07156577762 | AK14: =Inputs!AK$35 -> 0.07156577762 | AL14: =Inputs!AL$35 -> 0.07156577762 | AM14: =Inputs!AM$35 -> 0.07156577762
A15: =ROW() -> 15 | C15: Discounting Factor | AB15: =Inputs!AB$36 -> 0 | AC15: =Inputs!AC$36 -> 0 | AD15: =Inputs!AD$36 -> 0 | AE15: =Inputs!AE$36 -> 0 | AF15: =Inputs!AF$36 -> 0 | AG15: =Inputs!AG$36 -> 1 | AH15: =Inputs!AH$36 -> 0.9332138268 | AI15: =Inputs!AI$36 -> 0.8708880465 | AJ15: =Inputs!AJ$36 -> 0.8127247666 | AK15: =Inputs!AK$36 -> 0.7584459896 | AL15: =Inputs!AL$36 -> 0.7077922844 | AM15: =Inputs!AM$36 -> 0.6605215463
A16: =ROW() -> 16 | B16: Nominal Cost of Debt (DPn) | AB16: =WACC!R$15 -> 0.04678 | AC16: =WACC!S$15 -> 0.04665 | AD16: =WACC!T15 -> 0.02768 | AE16: =WACC!U15 -> 0.02608 | AF16: =WACC!V15 -> 0.02527 | AG16: =WACC!W15 -> 0.02493 | AH16: =WACC!X15 -> 0.02447 | AI16: =WACC!Y15 -> 0.05945427005 | AJ16: =WACC!Z15 -> 0.05945427005 | AK16: =WACC!AA15 -> 0.05945427005 | AL16: =WACC!AB15 -> 0.05945427005 | AM16: =WACC!AC15 -> 0.05945427005
A17: =ROW() -> 17
A18: Asset Value [m$ nominal]
A19: =ROW() -> 19 | B19: Asset Value (Opening) | AD19: =Asset!AC25*AC$12 -> 3358.262098 | AE19: =Asset!AD25*AD$12 -> 3327.943251 | AF19: =Asset!AE25*AE$12 -> 3502.357677 | AG19: =Asset!AF25*AF$12 -> 3560.901207 | AH19: =Asset!AG25*AG$12 -> 3547.437563 | AI19: =Asset!AH25*AH$12 -> 3515.437327 | AJ19: =Asset!AI25*AI$12 -> 3476.801124 | AK19: =Asset!AJ25*AJ$12 -> 3447.555404 | AL19: =Asset!AK25*AK$12 -> 3405.750128 | AM19: =Asset!AL25*AL$12 -> 3352.460509 | AN19: =Asset!AM25*AM$12 -> 3275.819332
A20: =ROW() -> 20 | B20: Equity | AD20: =AD$19*WACC!T26 -> 1511.217944 | AE20: =AE$19*WACC!U26 -> 1497.574463 | AF20: =AF$19*WACC!V26 -> 1576.060955 | AG20: =AG$19*WACC!W26 -> 1602.405543 | AH20: =AH$19*WACC!X26 -> 1596.346904 | AI20: =AI$19*WACC!Y26 -> 1581.946797 | AJ20: =AJ$19*WACC!Z26 -> 1564.560506 | AK20: =AK$19*WACC!AA26 -> 1551.399932 | AL20: =AL$19*WACC!AB26 -> 1532.587558 | AM20: =AM$19*WACC!AC26 -> 1508.607229
A21: =ROW() -> 21 | B21: Debt | AD21: =AD$19*WACC!T25 -> 1847.044154 | AE21: =AE$19*WACC!U25 -> 1830.368788 | AF21: =AF$19*WACC!V25 -> 1926.296722 | AG21: =AG$19*WACC!W25 -> 1958.495664 | AH21: =AH$19*WACC!X25 -> 1951.09066 | AI21: =AI$19*WACC!Y25 -> 1933.49053 | AJ21: =AJ$19*WACC!Z25 -> 1912.240618 | AK21: =AK$19*WACC!AA25 -> 1896.155472 | AL21: =AL$19*WACC!AB25 -> 1873.16257 | AM21: =AM$19*WACC!AC25 -> 1843.85328
A22: =ROW() -> 22 | C22: Check that A=D+E | AD22: =IF(ROUND(AD19-AD20-AD21,8)=0,"OK","CHECK") -> OK | AE22: =IF(ROUND(AE19-AE20-AE21,8)=0,"OK","CHECK") -> OK | AF22: OK | AG22: OK | AH22: OK | AI22: =IF(ROUND(AI19-AI20-AI21,8)=0,"OK","CHECK") -> OK | AJ22: =IF(ROUND(AJ19-AJ20-AJ21,8)=0,"OK","CHECK") -> OK | AK22: OK | AL22: OK | AM22: OK
A23: Calculation of Tax Expense - [m$ nominal]
A24: =ROW() -> 24 | B24: Revenue | F24: PV
A25: =ROW() -> 25 | C25: Revenue requirement
A26: =ROW() -> 26 | C26: Opex
C27: Opex; GEA & Turbine overhauls | F27: =SUMPRODUCT($AG$15:$AM$15,AG27:AM27) -> 26.88769952 | AI27: =CoS_Tariff_Revenue!AM41 -> 5.058127892 | AJ27: =CoS_Tariff_Revenue!AN41 -> 9.361498523 | AK27: =CoS_Tariff_Revenue!AO41 -> 4.888925771 | AL27: =CoS_Tariff_Revenue!AP41 -> 7.596296987 | AM27: =CoS_Tariff_Revenue!AQ41 -> 8.765388797
A28: =ROW() -> 28 | C28: Opex; System Use Gas | F28: =SUMPRODUCT($AG$15:$AM$15,AG28:AM28) -> 77.84245962 | AI28: =CoS_Tariff_Revenue!AM42 -> 18.82677439 | AJ28: =CoS_Tariff_Revenue!AN42 -> 19.89220922 | AK28: =CoS_Tariff_Revenue!AO42 -> 21.98328366 | AL28: =CoS_Tariff_Revenue!AP42 -> 20.20239763 | AM28: =CoS_Tariff_Revenue!AQ42 -> 21.66064277
A29: =ROW() -> 29 | C29: Opex; Other Expenses | F29: =SUMPRODUCT($AG$15:$AM$15,AG29:AM29) -> 408.2873807 | AI29: =CoS_Tariff_Revenue!AM43 -> 99.13077631 | AJ29: =CoS_Tariff_Revenue!AN43 -> 108.5399691 | AK29: =CoS_Tariff_Revenue!AO43 -> 111.4425876 | AL29: =CoS_Tariff_Revenue!AP43 -> 107.3629854 | AM29: =CoS_Tariff_Revenue!AQ43 -> 110.8647789
A30: =ROW() -> 30 | C30: Return of Asset (Depreciation) | F30: 672.0454877 | AI30: =CoS_Tariff_Revenue!AM44 -> 168.0587525 | AJ30: =CoS_Tariff_Revenue!AN44 -> 173.534921 | AK30: =CoS_Tariff_Revenue!AO44 -> 177.9682186 | AL30: =CoS_Tariff_Revenue!AP44 -> 179.2633558 | AM30: =CoS_Tariff_Revenue!AQ44 -> 185.8962811
A31: =ROW() -> 31 | C31: Inflationary Gains on RAB | F31: -270.4152804 | AI31: =CoS_Tariff_Revenue!AM45 -> -72.41800895 | AJ31: =CoS_Tariff_Revenue!AN45 -> -71.62210315 | AK31: =CoS_Tariff_Revenue!AO45 -> -71.01964132 | AL31: =CoS_Tariff_Revenue!AP45 -> -70.15845264 | AM31: =CoS_Tariff_Revenue!AQ45 -> -69.06068648
A32: =ROW() -> 32 | C32: Return on Asset | AI32: =CoS_Tariff_Revenue!AM46 -> 251.585006 | AJ32: =CoS_Tariff_Revenue!AN46 -> 248.8199761 | AK32: =CoS_Tariff_Revenue!AO46 -> 246.7269834 | AL32: =CoS_Tariff_Revenue!AP46 -> 243.7351563 | AM32: =CoS_Tariff_Revenue!AQ46 -> 239.9214433
A33: =ROW() -> 33 | C33: Income tax expense | F33: 166.6347766 | AI33: =-AI47 -> 34.78359325 | AJ33: =-AJ47 -> 39.69787466 | AK33: 42.12399923 | AL33: 52.21978117 | AM33: 53.2445593
A34: =ROW() -> 34 | C34: Imputation Credits | F34: -83.31738831 | AI34: =-AI48 -> -17.39179663 | AJ34: =-AJ48 -> -19.84893733 | AK34: -21.06199962 | AL34: -26.10989058 | AM34: -26.62227965
A35: =ROW() -> 35 | C35: Cost of Service | F35: 1937.405904 | AI35: =SUM(AI27:AI34) -> 487.6332248 | AJ35: =SUM(AJ27:AJ34) -> 508.3754081 | AK35: 513.0523573 | AL35: 514.11163 | AM35: 524.6701281
A36: =ROW() -> 36 | B36: Expenses
C37: Opex; GEA & Turbine overhauls | F37: =SUMPRODUCT($AG$15:$AM$15,AG37:AM37) -> -27.57097185 | AI37: =-Inputs!AI2582 -> -5.048073092 | AJ37: =-Inputs!AJ2582 -> -11.10298282 | AK37: =-Inputs!AK2582 -> -11.2544753 | AL37: =-Inputs!AL2582 -> -4.000532227 | AM37: =-Inputs!AM2582 -> -4.214152788
A38: =ROW() -> 38 | C38: Opex; System Use Gas | F38: -77.84245962 | AI38: =-Inputs!AI2583 -> -18.82677439 | AJ38: =-Inputs!AJ2583 -> -19.89220922 | AK38: =-Inputs!AK2583 -> -21.98328366 | AL38: =-Inputs!AL2583 -> -20.20239763 | AM38: =-Inputs!AM2583 -> -21.66064277
A39: =ROW() -> 39 | C39: Opex; Other Expenses | F39: -407.6041083 | AI39: =-Inputs!AI2584-AI37-AI38 -> -99.14083111 | AJ39: =-Inputs!AJ2584-AJ37-AJ38 -> -106.7984848 | AK39: =-Inputs!AK2584-AK37-AK38 -> -105.0770381 | AL39: =-Inputs!AL2584-AL37-AL38 -> -110.9587501 | AM39: =-Inputs!AM2584-AM37-AM38 -> -115.4160149
A40: =ROW() -> 40 | C40: Interest on Debt | F40: -429.2494519 | AI40: =-AI21*AI$16 -> -114.9542681 | AJ40: -113.6908701 | AK40: -112.7345395 | AL40: -111.3675133 | AM40: -109.6249508
A41: =ROW() -> 41 | C41: Tax Depreciation | F41: -412.8019569 | AI41: =Tax_Asset!AI22 -> -128.6598393 | AJ41: =Tax_Asset!AJ22 -> -115.2031138 | AK41: =Tax_Asset!AK22 -> -116.7007642 | AL41: =Tax_Asset!AL22 -> -85.92020255 | AM41: =Tax_Asset!AM22 -> -87.50711361
A42: =ROW() -> 42 | C42: Total Expenses | F42: -1355.068949 | AI42: =SUM(AI37:AI41) -> -366.629786 | AJ42: =SUM(AJ37:AJ41) -> -366.6876607 | AK42: -367.7501007 | AL42: -332.4493958 | AM42: -338.4228749
A43: =ROW() -> 43 | B43: Tax
A44: =ROW() -> 44 | C44: Net Income | F44: 582.3369549 | AI44: =AI35+AI42 -> 121.0034387 | AJ44: 141.6877474 | AK44: 145.3022565 | AL44: 181.6622342 | AM44: 186.2472531
A45: =ROW() -> 45 | C45: Tax Loss Carried Forward | AI45: =IF(AI46<0,AI46,0) -> 0 | AJ45: 0 | AK45: 0 | AL45: 0 | AM45: 0
A46: =ROW() -> 46 | C46: Taxable Income | AI46: =AI44+AH45 -> 121.0034387 | AJ46: =AJ44+AI45 -> 141.6877474 | AK46: =AK44+AJ45 -> 145.3022565 | AL46: =AL44+AK45 -> 181.6622342 | AM46: =AM44+AL45 -> 186.2472531
A47: =ROW() -> 47 | C47: Income tax expense | F47: =SUMPRODUCT($AG$15:$AM$15,AG47:AM47) -> -166.6347766 | AI47: =-IF((SUM(AI28:AI32)+AI42+AH45)>0,(SUM(AI28:AI32)+AI42+AH45)*WACC!Y$28/(1-(1-WACC!Y$29)*WACC!Y$28),0) -> -34.78359325 | AJ47: =-IF((SUM(AJ28:AJ32)+AJ42+AI45)>0,(SUM(AJ28:AJ32)+AJ42+AI45)*WACC!Z$28/(1-(1-WACC!Z$29)*WACC!Z$28),0) -> -39.69787466 | AK47: =-IF((SUM(AK28:AK32)+AK42+AJ45)>0,(SUM(AK28:AK32)+AK42+AJ45)*WACC!AA$28/(1-(1-WACC!AA$29)*WACC!AA$28),0) -> -42.12399923 | AL47: =-IF((SUM(AL28:AL32)+AL42+AK45)>0,(SUM(AL28:AL32)+AL42+AK45)*WACC!AB$28/(1-(1-WACC!AB$29)*WACC!AB$28),0) -> -52.21978117 | AM47: =-IF((SUM(AM28:AM32)+AM42+AL45)>0,(SUM(AM28:AM32)+AM42+AL45)*WACC!AC$28/(1-(1-WACC!AC$29)*WACC!AC$28),0) -> -53.2445593
A48: =ROW() -> 48 | C48: Imputation Credits | F48: 83.31738831 | AI48: =-AI47*WACC!Y29 -> 17.39179663 | AJ48: =-AJ47*WACC!Z29 -> 19.84893733 | AK48: =-AK47*WACC!AA29 -> 21.06199962 | AL48: =-AL47*WACC!AB29 -> 26.10989058 | AM48: =-AM47*WACC!AC29 -> 26.62227965
A49: =ROW() -> 49 | C49: Net Tax Expense | F49: -83.31738831 | AI49: =SUM(AI47:AI48) -> -17.39179663 | AJ49: =SUM(AJ47:AJ48) -> -19.84893733 | AK49: -21.06199962 | AL49: -26.10989058 | AM49: -26.62227965
A50: =ROW() -> 50
A51: Equity Raising Costs, Nominal Calculations [m$ nominal]
A52: =ROW() -> 52 | B52: Yield / cost inputs (based on ERA 2022 Gas Rate of Return Instrument)
A53: =ROW() -> 53 | C53: Dividend imputation/payout ratio | F53: =Inputs!AI2615 -> 0.9
A54: =ROW() -> 54 | C54: Benchmark seasoned equity offering (SEO) raising cost | F54: =Inputs!AI2616 -> 0.03
A55: =ROW() -> 55 | C55: Benchmark DRP cost (AER 2010 Victorian DNSP decision) | F55: =Inputs!AI2617 -> 0.01
A56: =ROW() -> 56 | C56: Benchmark DRP take-up | F56: =Inputs!AI2618 -> 0.25
A57: =ROW() -> 57
A58: =ROW() -> 58 | B58: Dividend assessment
A59: =ROW() -> 59 | C59: Tax payable | AI59: =-AI47 -> 34.78359325 | AJ59: 39.69787466 | AK59: 42.12399923 | AL59: 52.21978117 | AM59: 53.2445593
A60: =ROW() -> 60 | C60: Dividends | AI60: =(AI59/WACC!Y$28*(1-WACC!Y$28)*$F$53) -> 73.04554583 | AJ60: =(AJ59/WACC!Z$28*(1-WACC!Z$28)*$F$53) -> 83.36553679 | AK60: =(AK59/WACC!AA$28*(1-WACC!AA$28)*$F$53) -> 88.46039838 | AL60: =(AL59/WACC!AB$28*(1-WACC!AB$28)*$F$53) -> 109.6615404 | AM60: =(AM59/WACC!AC$28*(1-WACC!AC$28)*$F$53) -> 111.8135745
A61: =ROW() -> 61 | C61: Dividend re-investment (DRP) | AI61: =AI60*$F$56 -> 18.26138646 | AJ61: =AJ60*$F$56 -> 20.8413842 | AK61: 22.1150996 | AL61: 27.41538511 | AM61: 27.95339363
A62: =ROW() -> 62
A63: =ROW() -> 63 | B63: Benchmark Cash Flows
A64: =ROW() -> 64 | C64: Revenue | AI64: =AI35 -> 487.6332248 | AJ64: 508.3754081 | AK64: 513.0523573 | AL64: 514.11163 | AM64: 524.6701281
A65: =ROW() -> 65 | C65: Opex | AI65: =AI42-AI66 -> -251.6755179 | AJ65: -252.9967906 | AK65: -255.0155612 | AL65: -221.0818825 | AM65: -228.7979241
A66: =ROW() -> 66 | C66: Interest | AI66: =AI40 -> -114.9542681 | AJ66: -113.6908701 | AK66: -112.7345395 | AL66: -111.3675133 | AM66: -109.6249508
A67: =ROW() -> 67 | C67: Tax | AI67: =AI47 -> -34.78359325 | AJ67: -39.69787466 | AK67: -42.12399923 | AL67: -52.21978117 | AM67: -53.2445593
A68: =ROW() -> 68 | C68: Internal cash flow | AI68: =SUM(AI64:AI67) -> 86.21984548 | AJ68: 101.9898727 | AK68: 103.1782573 | AL68: 129.442453 | AM68: 133.0026938
A69: =ROW() -> 69 | C69: Dividend | AI69: =-AI60 -> -73.04554583 | AJ69: -83.36553679 | AK69: -88.46039838 | AL69: -109.6615404 | AM69: -111.8135745
A70: =ROW() -> 70 | C70: Dividend reinvestment | AI70: =AI61 -> 18.26138646 | AJ70: 20.8413842 | AK70: 22.1150996 | AL70: 27.41538511 | AM70: 27.95339363
A71: =ROW() -> 71 | C71: Retained cash flow | AI71: =SUM(AI68:AI70) -> 31.43568611 | AJ71: 39.46572014 | AK71: 36.83295852 | AL71: 47.1962977 | AM71: 49.14251293
A72: =ROW() -> 72
A73: =ROW() -> 73 | B73: Benchmark capex funding
A74: =ROW() -> 74 | C74: Capex | AI74: =Inputs!AI823 -> 57.00453984 | AJ74: =Inputs!AJ823 -> 72.66709819 | AK74: =Inputs!AK823 -> 65.14330135 | AL74: =Inputs!AL823 -> 55.8152839 | AM74: =Inputs!AM823 -> 40.19441813
A75: =ROW() -> 75 | C75: less Debt Component | AI75: =(AJ19-AI19)*WACC!Y$25 -> -21.24991203 | AJ75: =(AK19-AJ19)*WACC!Z$25 -> -16.08514583 | AK75: =(AL19-AK19)*WACC!AA$25 -> -22.99290174 | AL75: =(AM19-AL19)*WACC!AB$25 -> -29.3092906 | AM75: =(AN19-AM19)*WACC!AC$25 -> -42.15264708
A76: =ROW() -> 76 | C76: Equity Component | AI76: =AI74-AI75 -> 78.25445187 | AJ76: 88.75224402 | AK76: 88.13620309 | AL76: 85.1245745 | AM76: 82.34706522
A77: =ROW() -> 77 | C77: Retained cash flows | AI77: =AI71 -> 31.43568611 | AJ77: 39.46572014 | AK77: 36.83295852 | AL77: 47.1962977 | AM77: 49.14251293
A78: =ROW() -> 78 | C78: Equity Required (SEO) | AI78: =AI76-AI77 -> 46.81876576 | AJ78: 49.28652388 | AK78: 51.30324457 | AL78: 37.9282768 | AM78: 33.20455229
A79: =ROW() -> 79
A80: =ROW() -> 80 | B80: Equity raising costs
A81: =ROW() -> 81 | C81: External Equity Raising Costs | AI81: =AI78*$F$54 -> 1.404562973 | AJ81: =AJ78*$F$54 -> 1.478595716 | AK81: 1.539097337 | AL81: 1.137848304 | AM81: 0.9961365686
A82: =ROW() -> 82 | C82: DRP cost | AI82: =AI61*$F$55 -> 0.1826138646 | AJ82: =AJ61*$F$55 -> 0.208413842 | AK82: 0.221150996 | AL82: 0.2741538511 | AM82: 0.2795339363
A83: =ROW() -> 83 | C83: Total Equity Raising Costs | AI83: =SUM(AI81:AI82) -> 1.587176837 | AJ83: =SUM(AJ81:AJ82) -> 1.687009558 | AK83: 1.760248333 | AL83: 1.412002155 | AM83: 1.275670505
A84: =ROW() -> 84 | C84: Equity Raising Costs (capitalised and included in RAB) | AI84: =MAX(0,SUM(AI81:AI82)) -> 1.587176837 | AJ84: =MAX(0,SUM(AJ81:AJ82)) -> 1.687009558 | AK84: 1.760248333 | AL84: 1.412002155 | AM84: 1.275670505
A85: =ROW() -> 85 | C85: Equity Raising Costs (manual entry) | AI85: =SolverSheet!I40 -> 1.587176837 | AJ85: =SolverSheet!J40 -> 1.687009558 | AK85: =SolverSheet!K40 -> 1.760248333 | AL85: =SolverSheet!L40 -> 1.412002155 | AM85: =SolverSheet!M40 -> 1.275670505
A86: =ROW() -> 86 | C86: ="Total Equity Raising Costs [Real " & Inputs!$E$26 & " $M]" -> Total Equity Raising Costs [Real 31/12/2024 $M] | AI86: =AI85/AI12 -> 1.52375165 | AJ86: 1.586904718 | AK86: 1.622376645 | AL86: 1.275139032 | AM86: 1.128769147

Sheet 2020 Capex NGR 77(2)(a)
A1: =Main!A1 -> DBNGP, DBNGP Tariff Model, Draft Decision, August 2025
A2: 2020 Capex NGR 77(2)(a)
A3: Ref | C3: =COLUMN() -> 3 | D3: =COLUMN() -> 4 | E3: =COLUMN() -> 5 | F3: =COLUMN() -> 6 | G3: =COLUMN() -> 7 | H3: =COLUMN() -> 8 | I3: =COLUMN() -> 9 | J3: =COLUMN() -> 10 | K3: =COLUMN() -> 11 | L3: =COLUMN() -> 12 | M3: =COLUMN() -> 13 | N3: =COLUMN() -> 14
A4: Inputs
A5: =ROW() -> 5 | C5: Forecast capex [$m 31/12/2020] | I5: AA5 FD capex $m 2020 | J5: Actual capex 2020 $M 2020 or nominal same net of disposals | K5: Variance $ 2020 | L5: Benefit adjustment $ 2020 | M5: Benefit adjustment $ 2024
A6: =ROW() -> 6 | D6: Pipeline | I6: 0.2332954298 | J6: =Inputs!AC598 -> 0.08795977 | K6: =J6-I6 -> -0.1453356598 | L6: =K6/$K$16*$G$42 -> -0.01716038551 | M6: =K6/$K$16*$G$45 -> -0.02041090222
A7: =ROW() -> 7 | D7: Compression | I7: 2.473346617 | J7: =Inputs!AC599 -> 2.07247196 | K7: -0.4008746565 | L7: -0.04733293714 | M7: =K7/$K$16*$G$45 -> -0.0562987324
A8: =ROW() -> 8 | D8: Metering | I8: 8.362279379 | J8: =Inputs!AC600 -> 8.25670937 | K8: -0.1055700086 | L8: -0.01246508977 | M8: -0.01482622453
A9: =ROW() -> 9 | D9: Other Depreciable | I9: 4.376903597 | J9: =Inputs!AC601 -> 4.01089919 | K9: -0.3660044065 | L9: -0.04321566177 | M9: -0.05140156357
A10: =ROW() -> 10 | D10: Computers and Motor Vehicles | I10: 5.075540614 | J10: =Inputs!AC602 -> 4.40029695 | K10: -0.6752436639 | L10: -0.0797288264 | M10: -0.09483104437
A11: =ROW() -> 11 | D11: Cathodic/Corrosion Protection | I11: 4.307728442 | J11: =Inputs!AC603 -> 3.86962985 | K11: -0.4380985919 | L11: -0.05172812193 | M11: -0.06152645219
A12: =ROW() -> 12 | D12: SCADA , ECI And Comms | I12: 6.470057519 | J12: =Inputs!AC604 -> 6.8165932 | K12: 0.346535681 | L12: 0.04091690841 | M12: 0.04866738082
A13: =ROW() -> 13 | D13: Building | I13: 0 | J13: =Inputs!AC605 -> 0 | K13: 0 | L13: 0 | M13: 0
A14: =ROW() -> 14 | D14: Non-Depreciable | I14: 0 | J14: =Inputs!AC609 -> 0 | K14: 0 | L14: 0 | M14: 0
A15: =ROW() -> 15 | D15: Cost of Raising Equity | I15: 0 | J15: =Inputs!AC610 -> 0 | K15: 0 | L15: 0 | M15: 0
A16: =ROW() -> 16 | I16: =SUM(I6:I15) -> 31.2991516 | J16: =SUM(J6:J15) -> 29.51456029 | K16: =SUM(K6:K15) -> -1.784591306 | L16: =SUM(L6:L15) -> -0.2107141141 | M16: =SUM(M6:M15) -> -0.2506275385
A17: =ROW() -> 17
A18: =ROW() -> 18
A19: =ROW() -> 19 | I19: 2020 | J19: =I19+1 -> 2021 | K19: =J19+1 -> 2022 | L19: 2023 | M19: 2024 | N19: 2025
A20: =ROW() -> 20 | C20: Actual capex [$m 31/12/2020]
A21: =ROW() -> 21 | D21: 2020 Actual Capex | I21: =J16 -> 29.51456029
A22: =ROW() -> 22 | D22: Overheads adjustment
A23: =ROW() -> 23 | D23: 2019 Actual modelled capex | I23: =I21-I22 -> 29.51456029
A24: =ROW() -> 24
A25: =ROW() -> 25 | C25: Actual Inflation | I25: =I$19 -> 2020 | J25: =J$19 -> 2021 | K25: 2022 | L25: 2023 | M25: 2024 | N25: 2025
A26: =ROW() -> 26 | D26: CPI Dec Quarter | I26: =Inputs!AC18 -> 117.2 | J26: =Inputs!AD18 -> 121.3 | K26: =Inputs!AE18 -> 130.8 | L26: =Inputs!AF18 -> 136.1 | M26: =Inputs!AG18 -> 139.4 | N26: =Inputs!AH18 -> 142.27164 | O26: Source: ABS actual up to 2023 then use forecast inflation as that is the inflation that is added to the RAB
A27: =ROW() -> 27 | D27: Inflation (Dec-Dec) | J27: =(J26-I26)/I26 -> 0.03498293515 | K27: =(K26-J26)/J26 -> 0.07831821929 | L27: 0.04051987768 | M27: 0.0242468773 | N27: 0.0206
A28: =ROW() -> 28
A29: =ROW() -> 29 | C29: Actual WACC
A30: =ROW() -> 30 | D30: Nominal WACC | J30: =(1+J33)*(1+J27)-1 -> 0.05946746966 | K30: =(1+K33)*(1+K27)-1 -> 0.1028898027 | L30: 0.06377187081 | M30: 0.04694586902 | N30: 0.04296289481
A31: =ROW() -> 31 | D31: Discounting Factor | J31: =1/(1+J30) -> 0.9438704147 | K31: =J31/(1+K30) -> 0.8558157056 | L31: =K31/(1+L30) -> 0.804510562 | M31: 0.7684356812 | N31: 0.7367814186
A32: =ROW() -> 32
A33: =ROW() -> 33 | D33: Real WACC | J33: =WACC!T37 -> 0.02365694513 | K33: =WACC!U37 -> 0.02278695007 | L33: =WACC!V37 -> 0.02234651508 | M33: =WACC!W37 -> 0.02216164113 | N33: =WACC!X37 -> 0.02191151755 | O33: Source: Tariff Variation Model for 2025
A34: =ROW() -> 34 | D34: Discounting Factor | J34: =1/(1+J33) -> 0.9768897723 | K34: =J34/(1+K33) -> 0.955125378 | L34: =K34/(1+L33) -> 0.9342481868 | M34: 0.9139926105 | N34: 0.8943950575
A35: =ROW() -> 35
A36: Calculation of total adjustment to AA6 RAB | I36: =I$19 -> 2020 | J36: =J$19 -> 2021 | K36: 2022 | L36: 2023 | M36: 2024 | N36: 2025
A37: =ROW() -> 37 | D37: Actual less forecast 2019 capex | E37: $m real 2020 | I37: =K16 -> -1.784591306
A38: =ROW() -> 38 | D38: Potential write-down of overhead included in capex | E38: $m real 2020
A39: =ROW() -> 39 | D39: Total forecast capex reduction | E39: $m real 2020 | I39: =I37+I38 -> -1.784591306
A40: =ROW() -> 40 | D40: Real return on asset difference | E40: $m real 2020 | J40: =$I$39*J33 -> -0.04221797861 | K40: =$I$39*K33 -> -0.040665393 | L40: =$I$39*L33 -> -0.03987939653 | M40: =$I$39*M33 -> -0.03954947209 | N40: =$I$39*N33 -> -0.03910310372
A41: =ROW() -> 41 | D41: Return on return received (compounding) | E41: $m real 2020 | J41: 0 | K41: =K33*J42 -> -0.0009620189709 | L41: =L33*SUM($J$42:K42) -> -0.001873652285 | M41: =M33*SUM($J$42:L42) -> -0.00278346754 | N41: =N33*SUM($J$42:M42) -> -0.003679631359
A42: =ROW() -> 42 | D42: Total benefit asset base adjustment | E42: $m real 2020 | G42: =SUM(J42:N42) -> -0.2107141141 | J42: =SUM(J37:J41) -> -0.04221797861 | K42: =SUM(K40:K41) -> -0.04162741197 | L42: -0.04175304882 | M42: -0.04233293963 | N42: -0.04278273508
A43: =ROW() -> 43 | D43: Total asset base adjustment | E43: $m real 2020 | I43: =I39 -> -1.784591306
A44: =ROW() -> 44 | D44: Inflator 2020 to 2024 | F44: =M26/I26 -> 1.189419795
A45: =ROW() -> 45 | D45: Benefit received to deduct from actual 2020 capex | E45: $m real 2024 | G45: =SUM(I45:N45) -> -0.2506275385 | J45: =J42*$F$44 -> -0.05021489948 | K45: =K42*$F$44 -> -0.04951246782 | L45: =L42*$F$44 -> -0.04966190277 | M45: =M42*$F$44 -> -0.05035163638 | N45: =N42*$F$44 -> -0.050886632
A46: =ROW() -> 46 | D46: Actual less forecast 2020 capex | E46: $m real 2024 | G46: -2.122628226 | I46: =I43*$F$44 -> -2.122628226
A47: =ROW() -> 47
A48: =ROW() -> 48 | D48: Total adjustment to AA6 opening asset base | E48: $m real 2024 | G48: =G45+G46 -> -2.373255765
A49: =ROW() -> 49
A50: Nominal cross check of total adjustment to RAB | I50: =I$19 -> 2020 | J50: =J$19 -> 2021 | K50: 2022 | L50: 2023 | M50: 2024 | N50: 2025
A51: =ROW() -> 51 | C51: 2019 Difference Account
A52: =ROW() -> 52 | D52: Opening Value (start period) | E52: $m nominal | J52: =I58 -> -2.373255765 | K52: =J58 -> -2.456279217 | L52: -2.648650631 | M52: -2.755973631 | N52: -2.822797385
A53: =ROW() -> 53 | D53: Inflation on Opening Value (start period) | E53: $m nominal | J53: =J52*J27 -> -0.08302345251 | K53: =K52*K27 -> -0.1923714144 | L53: =L52*L27 -> -0.1073229996 | M53: =M52*M27 -> -0.06682375446 | N53: =N52*N27 -> -0.05814962614
A54: =ROW() -> 54 | D54: Opening Value (end period) | E54: $m nominal | J54: =SUM(J52:J53) -> -2.456279217 | K54: -2.648650631 | L54: -2.755973631 | M54: -2.822797385 | N54: -2.880947012
A55: =ROW() -> 55 | D55: Capex | E55: $m nominal
A56: =ROW() -> 56 | D56: Depreciation | E56: $m nominal
A57: =ROW() -> 57 | D57: Asset Adjustment, Redundant Assets & Asset Disposal | E57: $m nominal
A58: =ROW() -> 58 | D58: Closing Value | E58: $m nominal | I58: =G48 -> -2.373255765 | J58: =SUM(J54:J57) -> -2.456279217 | K58: -2.648650631 | L58: -2.755973631 | M58: -2.822797385 | N58: -2.880947012
A59: =ROW() -> 59
A60: Nominal cross check of cost of service | I60: =I$19 -> 2020 | J60: =J$19 -> 2021 | K60: 2022 | L60: 2023 | M60: 2024 | N60: 2025
A61: =ROW() -> 61 | C61: Cost of Service | F61: PV
A62: =ROW() -> 62 | D62: Return on Asset | E62: $m nominal | F62: =SUMPRODUCT($J$31:$N$31,J62:N62) -> -0.6741612048 | J62: =J52*J30 -> -0.1411315152 | K62: =K52*K30 -> -0.2527260841 | L62: =L52*L30 -> -0.1689094059 | M62: =M52*M30 -> -0.1293815771 | N62: =N52*N30 -> -0.1212755471
A63: =ROW() -> 63 | D63: less Inflationary Gain in Return on Asset | E63: $m nominal | F63: =SUMPRODUCT($J$31:$N$31,J63:N63) -> 0.4235336663 | J63: =-J53 -> 0.08302345251 | K63: =-K53 -> 0.1923714144 | L63: 0.1073229996 | M63: 0.06682375446 | N63: 0.05814962614
A64: =ROW() -> 64 | D64: Net Cost of Service Adjustment | E64: $m nominal | F64: -0.2506275385 | J64: =SUM(J62:J63) -> -0.05810806266 | K64: =SUM(K62:K63) -> -0.0603546697 | L64: -0.0615864063 | M64: -0.06255782263 | N64: -0.063125921
A65: =ROW() -> 65
A66: =ROW() -> 66 | C66: Cost of Service | F66: PV | J66: PV | K66: PV | L66: PV | M66: PV | N66: PV
A67: =ROW() -> 67 | D67: Return on Asset difference | E67: $m nominal | F67: =SUM(J67:N67) -> -0.6741612048 | J67: =J62*J$31 -> -0.1332098618 | K67: =K62*K$31 -> -0.216286952 | L67: -0.1358894011 | M67: -0.09942142033 | N67: -0.08935356966
A68: =ROW() -> 68 | D68: less Inflationary Gain in Return on Asset | E68: $m nominal | F68: =SUM(J68:N68) -> 0.4235336663 | J68: =J63*J$31 -> 0.07836338056 | K68: 0.1646344777 | L68: 0.08634248672 | M68: 0.05134975728 | N68: 0.04284356404
A69: =ROW() -> 69 | D69: Net Cost of Service Adjustment | E69: $m nominal | F69: -0.2506275385 | J69: =SUM(J67:J68) -> -0.05484648121 | K69: =SUM(K67:K68) -> -0.05165247424 | L69: -0.04954691434 | M69: -0.04807166305 | N69: -0.04651000562
A70: =ROW() -> 70
A71: =ROW() -> 71
A72: Credit Foncier Check
A73: =ROW() -> 73 | C73: Net Cash Flow | F73: PV
A74: =ROW() -> 74 | D74: RAB Difference at start of period | E74: $m nominal | F74: =SUMPRODUCT($J$31:$N$31,J74:N74)+I74 -> 2.373255765 | I74: =-I58 -> 2.373255765
A75: =ROW() -> 75 | D75: Additional revenue requirement over period | E75: $m nominal | F75: =SUMPRODUCT($J$31:$N$31,J75:N75)+I75 -> -0.2506275385 | J75: =J64 -> -0.05810806266 | K75: =K64 -> -0.0603546697 | L75: -0.0615864063 | M75: -0.06255782263 | N75: -0.063125921
A76: =ROW() -> 76 | D76: RAB Difference at end of period | E76: $m nominal | F76: -2.122628226 | N76: =N58 -> -2.880947012
A77: =ROW() -> 77 | D77: Net Cash Flow (should be 0) | E77: $m nominal | F77: =SUM(F74:F76) -> 0

Sheet Asset
A1: =Main!A1 -> DBNGP, DBNGP Tariff Model, Draft Decision, August 2025
A2: =MID(CELL("filename",A1),FIND("]",CELL("filename",A1))+1,256) -> Asset | AB2: <------ Asset_NoReclass | AC2: DBP Principled Approach | AD2: DBP Proposed Approach ----> | AH2: ERA Simplified Depreciation ---->
A3: Ref. | B3: =COLUMN() -> 2 | C3: =COLUMN() -> 3 | D3: =COLUMN() -> 4 | E3: =COLUMN() -> 5 | F3: =COLUMN() -> 6 | G3: =COLUMN() -> 7 | H3: =COLUMN() -> 8 | I3: =COLUMN() -> 9 | J3: =COLUMN() -> 10 | K3: =COLUMN() -> 11 | L3: =COLUMN() -> 12 | M3: =COLUMN() -> 13 | N3: =COLUMN() -> 14 | O3: =COLUMN() -> 15 | P3: =COLUMN() -> 16 | Q3: =COLUMN() -> 17 | R3: =COLUMN() -> 18 | S3: =COLUMN() -> 19 | T3: =COLUMN() -> 20 | U3: =COLUMN() -> 21 | V3: =COLUMN() -> 22 | W3: =COLUMN() -> 23 | X3: =COLUMN() -> 24 | Y3: =COLUMN() -> 25 | Z3: =COLUMN() -> 26 | AA3: =COLUMN() -> 27 | AB3: =COLUMN() -> 28 | AC3: =COLUMN() -> 29 | AD3: =COLUMN() -> 30 | AE3: =COLUMN() -> 31 | AF3: =COLUMN() -> 32 | AG3: =COLUMN() -> 33 | AH3: =COLUMN() -> 34 | AI3: =COLUMN() -> 35 | AJ3: =COLUMN() -> 36 | AK3: =COLUMN() -> 37 | AL3: =COLUMN() -> 38 | AM3: =COLUMN() -> 39 | AN3: =COLUMN() -> 40 | AO3: =COLUMN() -> 41 | AP3: =COLUMN() -> 42 | AQ3: =COLUMN() -> 43 | AR3: =COLUMN() -> 44 | AS3: =COLUMN() -> 45 | AT3: =COLUMN() -> 46 | AU3: =COLUMN() -> 47 | AV3: =COLUMN() -> 48 | AW3: =COLUMN() -> 49 | AX3: =COLUMN() -> 50 | AY3: =COLUMN() -> 51 | AZ3: =COLUMN() -> 52 | BA3: =COLUMN() -> 53 | BB3: =COLUMN() -> 54 | BC3: =COLUMN() -> 55 | BD3: =COLUMN() -> 56 | BE3: =COLUMN() -> 57 | BF3: =COLUMN() -> 58 | BG3: =COLUMN() -> 59 | BH3: =COLUMN() -> 60 | BI3: =COLUMN() -> 61 | BJ3: =COLUMN() -> 62 | BK3: =COLUMN() -> 63 | BL3: =COLUMN() -> 64 | BM3: =COLUMN() -> 65 | BN3: =COLUMN() -> 66 | BO3: =COLUMN() -> 67 | BP3: =COLUMN() -> 68 | BQ3: =COLUMN() -> 69 | BR3: =COLUMN() -> 70 | BS3: =COLUMN() -> 71 | BT3: =COLUMN() -> 72 | BU3: =COLUMN() -> 73 | BV3: =COLUMN() -> 74 | BW3: =COLUMN() -> 75 | BX3: =COLUMN() -> 76 | BY3: =COLUMN() -> 77 | BZ3: =COLUMN() -> 78 | CA3: =COLUMN() -> 79
A5: Regulatory Period | I5: =Inputs!I$5 -> AA1 | J5: =Inputs!J$5 -> AA1 | K5: =Inputs!K$5 -> AA1 | L5: =Inputs!L$5 -> AA1 | M5: =Inputs!M$5 -> AA1 | N5: =Inputs!N$5 -> AA2 | O5: =Inputs!O$5 -> AA2 | P5: =Inputs!P$5 -> AA2 | Q5: =Inputs!Q$5 -> AA2 | R5: =Inputs!R$5 -> AA2 | S5: =Inputs!S$5 -> AA2 | T5: =Inputs!T$5 -> AA3 | U5: =Inputs!U$5 -> AA3 | V5: =Inputs!V$5 -> AA3 | W5: =Inputs!W$5 -> AA3 | X5: =Inputs!X$5 -> AA3 | Y5: =Inputs!Y$5 -> AA4 | Z5: =Inputs!Z$5 -> AA4 | AA5: =Inputs!AA$5 -> AA4 | AB5: =Inputs!AB$5 -> AA4 | AC5: =Inputs!AC$5 -> AA4 | AD5: =Inputs!AD$5 -> AA5 | AE5: =Inputs!AE$5 -> AA5 | AF5: =Inputs!AF$5 -> AA5 | AG5: =Inputs!AG$5 -> AA5 | AH5: =Inputs!AH$5 -> AA5 | AI5: =Inputs!AI$5 -> AA6 | AJ5: =Inputs!AJ$5 -> AA6 | AK5: =Inputs!AK$5 -> AA6 | AL5: =Inputs!AL$5 -> AA6 | AM5: =Inputs!AM$5 -> AA6 | AN5: AA7 | AO5: =AN5 -> AA7 | AP5: =AO5 -> AA7 | AQ5: AA7 | AR5: AA7 | AS5: AA8 | AT5: =AS5 -> AA8 | AU5: =AT5 -> AA8 | AV5: AA8 | AW5: AA8 | AX5: AA9 | AY5: =AX5 -> AA9 | AZ5: =AY5 -> AA9 | BA5: AA9 | BB5: AA9 | BC5: AA10 | BD5: =BC5 -> AA10 | BE5: =BD5 -> AA10 | BF5: AA10 | BG5: AA10 | BH5: AA11 | BI5: =BH5 -> AA11 | BJ5: =BI5 -> AA11 | BK5: AA11 | BL5: AA11 | BM5: AA12 | BN5: =BM5 -> AA12 | BO5: =BN5 -> AA12 | BP5: AA12 | BQ5: AA12 | BR5: AA13 | BS5: =BR5 -> AA13 | BT5: =BS5 -> AA13 | BU5: AA13 | BV5: AA13 | BW5: AA14 | BX5: =BW5 -> AA14 | BY5: =BX5 -> AA14 | BZ5: AA14 | CA5: AA14
A6: Year | H6: =Inputs!H$6 -> 1999 | I6: =Inputs!I$6 -> 2000 | J6: =Inputs!J$6 -> 2001 | K6: =Inputs!K$6 -> 2002 | L6: =Inputs!L$6 -> 2003 | M6: =Inputs!M$6 -> 2004 | N6: =Inputs!N$6 -> 2005 | O6: =Inputs!O$6 -> 2006 | P6: =Inputs!P$6 -> 2007 | Q6: =Inputs!Q$6 -> 2008 | R6: =Inputs!R$6 -> 2009 | S6: =Inputs!S$6 -> 2010 | T6: =Inputs!T$6 -> 2011 | U6: =Inputs!U$6 -> 2012 | V6: =Inputs!V$6 -> 2013 | W6: =Inputs!W$6 -> 2014 | X6: =Inputs!X$6 -> 2015 | Y6: =Inputs!Y$6 -> 2016 | Z6: =Inputs!Z$6 -> 2017 | AA6: =Inputs!AA$6 -> 2018 | AB6: =Inputs!AB$6 -> 2019 | AC6: =Inputs!AC$6 -> 2020 | AD6: =Inputs!AD$6 -> 2021 | AE6: =Inputs!AE$6 -> 2022 | AF6: =Inputs!AF$6 -> 2023 | AG6: =Inputs!AG$6 -> 2024 | AH6: =Inputs!AH$6 -> 2025 | AI6: =Inputs!AI$6 -> 2026 | AJ6: =Inputs!AJ$6 -> 2027 | AK6: =Inputs!AK$6 -> 2028 | AL6: =Inputs!AL$6 -> 2029 | AM6: =Inputs!AM$6 -> 2030 | AN6: =AM6+1 -> 2031 | AO6: =AN6+1 -> 2032 | AP6: 2033 | AQ6: 2034 | AR6: 2035 | AS6: =AR6+1 -> 2036 | AT6: =AS6+1 -> 2037 | AU6: 2038 | AV6: 2039 | AW6: 2040 | AX6: =AW6+1 -> 2041 | AY6: =AX6+1 -> 2042 | AZ6: 2043 | BA6: 2044 | BB6: 2045 | BC6: =BB6+1 -> 2046 | BD6: =BC6+1 -> 2047 | BE6: 2048 | BF6: 2049 | BG6: 2050 | BH6: =BG6+1 -> 2051 | BI6: =BH6+1 -> 2052 | BJ6: 2053 | BK6: 2054 | BL6: 2055 | BM6: =BL6+1 -> 2056 | BN6: =BM6+1 -> 2057 | BO6: 2058 | BP6: 2059 | BQ6: 2060 | BR6: =BQ6+1 -> 2061 | BS6: =BR6+1 -> 2062 | BT6: 2063 | BU6: 2064 | BV6: 2065 | BW6: =BV6+1 -> 2066 | BX6: =BW6+1 -> 2067 | BY6: 2068 | BZ6: 2069 | CA6: 2070
A7: Days | H7: =Inputs!H$7 -> 365 | I7: =Inputs!I$7 -> 366 | J7: =Inputs!J$7 -> 365 | K7: =Inputs!K$7 -> 365 | L7: =Inputs!L$7 -> 365 | M7: =Inputs!M$7 -> 366 | N7: =Inputs!N$7 -> 365 | O7: =Inputs!O$7 -> 365 | P7: =Inputs!P$7 -> 365 | Q7: =Inputs!Q$7 -> 366 | R7: =Inputs!R$7 -> 365 | S7: =Inputs!S$7 -> 365 | T7: =Inputs!T$7 -> 365 | U7: =Inputs!U$7 -> 366 | V7: =Inputs!V$7 -> 365 | W7: =Inputs!W$7 -> 365 | X7: =Inputs!X$7 -> 365 | Y7: =Inputs!Y$7 -> 366 | Z7: =Inputs!Z$7 -> 365 | AA7: =Inputs!AA$7 -> 365 | AB7: =Inputs!AB$7 -> 365 | AC7: =Inputs!AC$7 -> 366 | AD7: =Inputs!AD$7 -> 365 | AE7: =Inputs!AE$7 -> 365 | AF7: =Inputs!AF$7 -> 365 | AG7: =Inputs!AG$7 -> 366 | AH7: =Inputs!AH$7 -> 365 | AI7: =Inputs!AI$7 -> 365 | AJ7: =Inputs!AJ$7 -> 365 | AK7: =Inputs!AK$7 -> 366 | AL7: =Inputs!AL$7 -> 365 | AM7: =Inputs!AM$7 -> 365 | AN7: =IF(INT(AI6/4)=AI6/4,366,365) -> 365 | AO7: =IF(INT(AJ6/4)=AJ6/4,366,365) -> 365 | AP7: 366 | AQ7: 365 | AR7: 365 | AS7: =IF(INT(AN6/4)=AN6/4,366,365) -> 365 | AT7: =IF(INT(AO6/4)=AO6/4,366,365) -> 366 | AU7: 365 | AV7: 365 | AW7: 365 | AX7: =IF(INT(AS6/4)=AS6/4,366,365) -> 366 | AY7: =IF(INT(AT6/4)=AT6/4,366,365) -> 365 | AZ7: 365 | BA7: 365 | BB7: 366 | BC7: =IF(INT(AX6/4)=AX6/4,366,365) -> 365 | BD7: =IF(INT(AY6/4)=AY6/4,366,365) -> 365 | BE7: 365 | BF7: 366 | BG7: 365 | BH7: =IF(INT(BC6/4)=BC6/4,366,365) -> 365 | BI7: =IF(INT(BD6/4)=BD6/4,366,365) -> 365 | BJ7: 366 | BK7: 365 | BL7: 365 | BM7: =IF(INT(BH6/4)=BH6/4,366,365) -> 365 | BN7: =IF(INT(BI6/4)=BI6/4,366,365) -> 366 | BO7: 365 | BP7: 365 | BQ7: 365 | BR7: =IF(INT(BM6/4)=BM6/4,366,365) -> 366 | BS7: =IF(INT(BN6/4)=BN6/4,366,365) -> 365 | BT7: 365 | BU7: 365 | BV7: 366 | BW7: =IF(INT(BR6/4)=BR6/4,366,365) -> 365 | BX7: =IF(INT(BS6/4)=BS6/4,366,365) -> 365 | BY7: 365 | BZ7: 366 | CA7: 365
A8: Project Year | H8: =Inputs!H$8 -> 0 | I8: =Inputs!I$8 -> 1 | J8: =Inputs!J$8 -> 2 | K8: =Inputs!K$8 -> 3 | L8: =Inputs!L$8 -> 4 | M8: =Inputs!M$8 -> 5 | N8: =Inputs!N$8 -> 6 | O8: =Inputs!O$8 -> 7 | P8: =Inputs!P$8 -> 8 | Q8: =Inputs!Q$8 -> 9 | R8: =Inputs!R$8 -> 10 | S8: =Inputs!S$8 -> 11 | T8: =Inputs!T$8 -> 12 | U8: =Inputs!U$8 -> 13 | V8: =Inputs!V$8 -> 14 | W8: =Inputs!W$8 -> 15 | X8: =Inputs!X$8 -> 16 | Y8: =Inputs!Y$8 -> 17 | Z8: =Inputs!Z$8 -> 18 | AA8: =Inputs!AA$8 -> 19 | AB8: =Inputs!AB$8 -> 20 | AC8: =Inputs!AC$8 -> 21 | AD8: =Inputs!AD$8 -> 22 | AE8: =Inputs!AE$8 -> 23 | AF8: =Inputs!AF$8 -> 24 | AG8: =Inputs!AG$8 -> 25 | AH8: =Inputs!AH$8 -> 26 | AI8: =Inputs!AI$8 -> 27 | AJ8: =Inputs!AJ$8 -> 28 | AK8: =Inputs!AK$8 -> 29 | AL8: =Inputs!AL$8 -> 30 | AM8: =Inputs!AM$8 -> 31 | AN8: =AM8+1 -> 32 | AO8: 33 | AP8: 34 | AQ8: 35 | AR8: 36 | AS8: =AR8+1 -> 37 | AT8: =AS8+1 -> 38 | AU8: 39 | AV8: 40 | AW8: 41 | AX8: =AW8+1 -> 42 | AY8: =AX8+1 -> 43 | AZ8: 44 | BA8: 45 | BB8: 46 | BC8: =BB8+1 -> 47 | BD8: =BC8+1 -> 48 | BE8: 49 | BF8: 50 | BG8: 51 | BH8: =BG8+1 -> 52 | BI8: =BH8+1 -> 53 | BJ8: 54 | BK8: 55 | BL8: 56 | BM8: =BL8+1 -> 57 | BN8: =BM8+1 -> 58 | BO8: 59 | BP8: 60 | BQ8: 61 | BR8: =BQ8+1 -> 62 | BS8: =BR8+1 -> 63 | BT8: 64 | BU8: 65 | BV8: 66 | BW8: =BV8+1 -> 67 | BX8: =BW8+1 -> 68 | BY8: 69 | BZ8: 70 | CA8: 71
A9: Financial Parameters
A10: =ROW() -> 10 | B10: Modelled Inflation
A11: =ROW() -> 11 | C11: ="Inflation Factor (convert " &Inputs!$E$26& " $ to nominal $)" -> Inflation Factor (convert 31/12/2024 $ to nominal $) | H11: =Inputs!H26 -> 0.4952415912 | I11: =Inputs!I26 -> 0.523974383 | J11: =Inputs!J26 -> 0.5403361116 | K11: =Inputs!K26 -> 0.5566978402 | L11: =Inputs!L26 -> 0.5698670365 | M11: =Inputs!M26 -> 0.5846324989 | N11: =Inputs!N26 -> 0.6009942275 | O11: =Inputs!O26 -> 0.6205484886 | P11: =Inputs!P26 -> 0.63890555 | Q11: =Inputs!Q26 -> 0.6624504766 | R11: =Inputs!R26 -> 0.6764178059 | S11: =Inputs!S26 -> 0.6943758007 | T11: =Inputs!T26 -> 0.7159253945 | U11: =Inputs!U26 -> 0.7317073171 | V11: =Inputs!V26 -> 0.7517934003 | W11: =Inputs!W26 -> 0.7647058824 | X11: =Inputs!X26 -> 0.7776183644 | Y11: =Inputs!Y26 -> 0.7890961263 | Z11: =Inputs!Z26 -> 0.8041606887 | AA11: =Inputs!AA26 -> 0.818507891 | AB11: =Inputs!AB26 -> 0.8335724534 | AC11: =Inputs!AC26 -> 0.8407460545 | AD11: =Inputs!AD26 -> 0.8701578192 | AE11: =Inputs!AE26 -> 0.9383070301 | AF11: =Inputs!AF26 -> 0.9763271162 | AG11: =Inputs!AG26 -> 1 | AH11: =Inputs!AH26 -> 1.0206 | AI11: =Inputs!AI26 -> 1.04162436 | AJ11: =Inputs!AJ26 -> 1.063081822 | AK11: =Inputs!AK26 -> 1.084981307 | AL11: =Inputs!AL26 -> 1.107331922 | AM11: =Inputs!AM26 -> 1.13014296 | AN11: =Inputs!AN26 -> 0 | AO11: =Inputs!AO26 -> 0 | AP11: =Inputs!AP26 -> 0 | AQ11: =Inputs!AQ26 -> 0 | AR11: =Inputs!AR26 -> 0 | AS11: =Inputs!AS26 -> 0 | AT11: =Inputs!AT26 -> 0 | AU11: =Inputs!AU26 -> 0 | AV11: =Inputs!AV26 -> 0 | AW11: =Inputs!AW26 -> 0 | AX11: =Inputs!AX26 -> 0 | AY11: =Inputs!AY26 -> 0 | AZ11: =Inputs!AZ26 -> 0 | BA11: =Inputs!BA26 -> 0 | BB11: =Inputs!BB26 -> 0 | BC11: =Inputs!BC26 -> 0 | BD11: =Inputs!BD26 -> 0 | BE11: =Inputs!BE26 -> 0 | BF11: =Inputs!BF26 -> 0 | BG11: =Inputs!BG26 -> 0 | BH11: =Inputs!BH26 -> 0 | BI11: =Inputs!BI26 -> 0 | BJ11: =Inputs!BJ26 -> 0 | BK11: =Inputs!BK26 -> 0 | BL11: =Inputs!BL26 -> 0 | BM11: =Inputs!BM26 -> 0 | BN11: =Inputs!BN26 -> 0 | BO11: =Inputs!BO26 -> 0 | BP11: =Inputs!BP26 -> 0 | BQ11: =Inputs!BQ26 -> 0 | BR11: =Inputs!BR26 -> 0 | BS11: =Inputs!BS26 -> 0 | BT11: =Inputs!BT26 -> 0 | BU11: =Inputs!BU26 -> 0 | BV11: =Inputs!BV26 -> 0 | BW11: =Inputs!BW26 -> 0 | BX11: =Inputs!BX26 -> 0 | BY11: =Inputs!BY26 -> 0 | BZ11: =Inputs!BZ26 -> 0 | CA11: =Inputs!CA26 -> 0
A12: =ROW() -> 12 | C12: ="Inflation Factor (convert nominal to real "&Inputs!$E$26&" $)" -> Inflation Factor (convert nominal to real 31/12/2024 $) | H12: =Inputs!H27 -> 2.019216515 | I12: =Inputs!I27 -> 1.908490248 | J12: =Inputs!J27 -> 1.850699923 | K12: =Inputs!K27 -> 1.796306592 | L12: =Inputs!L27 -> 1.754795305 | M12: =Inputs!M27 -> 1.710476243 | N12: =Inputs!N27 -> 1.663909492 | O12: =Inputs!O27 -> 1.611477618 | P12: =Inputs!P27 -> 1.565176574 | Q12: =Inputs!Q27 -> 1.509546804 | R12: =Inputs!R27 -> 1.478376221 | S12: =Inputs!S27 -> 1.440142354 | T12: =Inputs!T27 -> 1.396793587 | U12: =Inputs!U27 -> 1.366666667 | V12: =Inputs!V27 -> 1.330152672 | W12: =Inputs!W27 -> 1.307692308 | X12: =Inputs!X27 -> 1.28597786 | Y12: =Inputs!Y27 -> 1.267272727 | Z12: =Inputs!Z27 -> 1.24353256 | AA12: =Inputs!AA27 -> 1.22173532 | AB12: =Inputs!AB27 -> 1.199655766 | AC12: =Inputs!AC27 -> 1.189419795 | AD12: =Inputs!AD27 -> 1.149216818 | AE12: =Inputs!AE27 -> 1.065749235 | AF12: =Inputs!AF27 -> 1.024246877 | AG12: =Inputs!AG27 -> 1 | AH12: =Inputs!AH27 -> 0.9798157946 | AI12: =Inputs!AI27 -> 0.9600389914 | AJ12: =Inputs!AJ27 -> 0.9406613672 | AK12: =Inputs!AK27 -> 0.921674865 | AL12: =Inputs!AL27 -> 0.9030715903 | AM12: =Inputs!AM27 -> 0.8848438078 | AN12: =Inputs!AN27 -> 0 | AO12: =Inputs!AO27 -> 0 | AP12: =Inputs!AP27 -> 0 | AQ12: =Inputs!AQ27 -> 0 | AR12: =Inputs!AR27 -> 0 | AS12: =Inputs!AS27 -> 0 | AT12: =Inputs!AT27 -> 0 | AU12: =Inputs!AU27 -> 0 | AV12: =Inputs!AV27 -> 0 | AW12: =Inputs!AW27 -> 0 | AX12: =Inputs!AX27 -> 0 | AY12: =Inputs!AY27 -> 0 | AZ12: =Inputs!AZ27 -> 0 | BA12: =Inputs!BA27 -> 0 | BB12: =Inputs!BB27 -> 0 | BC12: =Inputs!BC27 -> 0 | BD12: =Inputs!BD27 -> 0 | BE12: =Inputs!BE27 -> 0 | BF12: =Inputs!BF27 -> 0 | BG12: =Inputs!BG27 -> 0 | BH12: =Inputs!BH27 -> 0 | BI12: =Inputs!BI27 -> 0 | BJ12: =Inputs!BJ27 -> 0 | BK12: =Inputs!BK27 -> 0 | BL12: =Inputs!BL27 -> 0 | BM12: =Inputs!BM27 -> 0 | BN12: =Inputs!BN27 -> 0 | BO12: =Inputs!BO27 -> 0 | BP12: =Inputs!BP27 -> 0 | BQ12: =Inputs!BQ27 -> 0 | BR12: =Inputs!BR27 -> 0 | BS12: =Inputs!BS27 -> 0 | BT12: =Inputs!BT27 -> 0 | BU12: =Inputs!BU27 -> 0 | BV12: =Inputs!BV27 -> 0 | BW12: =Inputs!BW27 -> 0 | BX12: =Inputs!BX27 -> 0 | BY12: =Inputs!BY27 -> 0 | BZ12: =Inputs!BZ27 -> 0 | CA12: =Inputs!CA27 -> 0
A13: ="DBNGP Asset Account Summary [m$ "&TEXT(Inputs!$E$26,"dd/mm/yyyy")&"]" -> DBNGP Asset Account Summary [m$ 31/12/2024]
A14: DBNGP and BEP Assets
A15: =ROW() -> 15 | B15: DBNGP Asset Including BEP
A16: =ROW() -> 16 | C16: Opening Value | I16: =I27+I34 -> 3129.785599 | J16: 3063.189826 | K16: 2992.567321 | L16: 2917.510861 | M16: 2840.866618 | N16: 2768.186814 | O16: 2769.370696 | P16: 3312.495316 | Q16: 3240.256279 | R16: 4093.969607 | S16: 3993.067747 | T16: 4823.429476 | U16: 4895.149592 | V16: 4803.836181 | W16: 4697.073548 | X16: 4576.590049 | Y16: 4470.298658 | Z16: 4365.911477 | AA16: 4265.15025 | AB16: 4161.762509 | AC16: 4070.588075 | AD16: 3994.383417 | AE16: 3824.528353 | AF16: 3732.635017 | AG16: 3647.241942 | AH16: 3547.437563 | AI16: 3444.481018 | AJ16: 3337.864644 | AK16: 3242.98218 | AL16: 3138.99429 | AM16: 3027.511843 | AN16: 2898.588452 | AO16: =AO27+AO34 -> 2746.176951 | AP16: 2597.942269 | AQ16: 2453.778328 | AR16: 2313.453073 | AS16: 2178.4951 | AT16: 2053.654158 | AU16: 1939.837725 | AV16: 1828.23568 | AW16: 1724.238499 | AX16: 1622.317982 | AY16: 1527.647038 | AZ16: 1434.324252 | BA16: 1341.586929 | BB16: 1249.362535 | BC16: 1157.518362 | BD16: 1066.090736 | BE16: 974.8884439 | BF16: 884.0189819 | BG16: 793.5450707 | BH16: 703.3688529 | BI16: 613.5955445 | BJ16: 524.0832164 | BK16: 434.8155313 | BL16: 369.2456118 | BM16: 327.2411489 | BN16: 285.3632844 | BO16: 243.842645 | BP16: 202.6414865 | BQ16: 161.8436329 | BR16: 121.4346546 | BS16: 81.39597426 | BT16: 41.51224406 | BU16: =BU27+BU34 -> 40.29308511 | BV16: 39.16663622 | BW16: 38.04834136 | BX16: 36.93273978 | BY16: 35.81760706 | BZ16: 34.70247434 | CA16: 33.58734162
A17: =ROW() -> 17 | C17: Capex | I17: =I28+I35 -> 9.656003053 | J17: 6.046999062 | K17: 2.254818053 | L17: 1.358126634 | M17: 5.775774382 | N17: 86.80681318 | O17: 619.207197 | P17: 8.179526411 | Q17: 947.1160149 | R17: 1.89493174 | S17: 891.2557296 | T17: 204.3248492 | U17: 42.05081985 | V17: 27.63286273 | W17: 16.10456159 | X17: 28.88469875 | Y17: 21.99957389 | Z17: 28.81955073 | AA17: 27.07899863 | AB17: 31.69377627 | AC17: 35.10520226 | AD17: 44.99510655 | AE17: 44.91642089 | AF17: 53.6018964 | AG17: 39.52234855 | AH17: 37.92670895 | AI17: 54.72658094 | AJ17: 68.35513194 | AK17: 60.04094348 | AL17: 50.40519719 | AM17: 35.56578199 | AN17: 0 | AO17: =AO28+AO35 -> 0 | AP17: 0 | AQ17: 0 | AR17: 0 | AS17: 0 | AT17: 0 | AU17: 0 | AV17: 0 | AW17: 0 | AX17: 0 | AY17: 0 | AZ17: 0 | BA17: 0 | BB17: 0 | BC17: 0 | BD17: 0 | BE17: 0 | BF17: 0 | BG17: 0 | BH17: 0 | BI17: 0 | BJ17: 0 | BK17: 0 | BL17: 0 | BM17: 0 | BN17: 0 | BO17: 0 | BP17: 0 | BQ17: 0 | BR17: 0 | BS17: 0 | BT17: 0 | BU17: =BU28+BU35 -> 0 | BV17: 0 | BW17: 0 | BX17: 0 | BY17: 0 | BZ17: 0 | CA17: 0
A18: =ROW() -> 18 | C18: Redundant or Disposed | I18: =I29+I36 -> 0 | J18: 0 | K18: 0 | L18: 0 | M18: 0 | N18: -10.02967879 | O18: 0 | P18: -0.05044007057 | Q18: -0.03811346199 | R18: -0.1216990945 | S18: -0.01594892638 | T18: -6.175014663 | U18: -0.5074146548 | V18: -1.010824609 | W18: -2.851720072 | X18: -1.002632411 | Y18: 0 | Z18: 0 | AA18: 0 | AB18: 0 | AC18: 0 | AD18: 0 | AE18: 0 | AF18: 0 | AG18: 0 | AH18: 0 | AI18: 0 | AJ18: =AJ29+AJ36 -> 0 | AK18: 0 | AL18: =AL29+AL36 -> 0 | AM18: 0 | AN18: 0 | AO18: =AO29+AO36 -> 0 | AP18: 0 | AQ18: 0 | AR18: 0 | AS18: 0 | AT18: 0 | AU18: 0 | AV18: 0 | AW18: 0 | AX18: 0 | AY18: 0 | AZ18: 0 | BA18: 0 | BB18: 0 | BC18: 0 | BD18: 0 | BE18: 0 | BF18: 0 | BG18: 0 | BH18: 0 | BI18: 0 | BJ18: 0 | BK18: 0 | BL18: 0 | BM18: 0 | BN18: 0 | BO18: 0 | BP18: 0 | BQ18: 0 | BR18: 0 | BS18: 0 | BT18: 0 | BU18: =BU29+BU36 -> 0 | BV18: 0 | BW18: 0 | BX18: 0 | BY18: 0 | BZ18: 0 | CA18: 0
A19: =ROW() -> 19 | C19: Out of Service Assets | AH19: =AH37 -> -81.06469629 | AM19: =AM37 -> -21.79382515 | AR19: =AR37 -> -1.306591568
A20: =ROW() -> 20 | C20: Out of Service Asset in AA5 | AH20: 81.06469629
A21: =ROW() -> 21 | C21: Out of Service Asset in AA6 | AM21: =AM39 -> 21.79382515
A22: =ROW() -> 22 | C22: Out of Service Asset in AA7 | AR22: =AR40 -> 1.306591568
A23: =ROW() -> 23 | C23: Depreciation | I23: =I30+I41 -> -76.25177607 | J23: -76.66950389 | K23: -77.31127821 | L23: -78.00236948 | M23: -78.45557782 | N23: -75.5932531 | O23: -76.08257661 | P23: -80.36812375 | Q23: -93.36457253 | R23: -102.6750933 | S23: -105.1119554 | T23: -126.4297178 | U23: -132.8568167 | V23: -133.3846711 | W23: -133.7363401 | X23: =X30+X41 -> -134.1734576 | Y23: =Y30+Y41 -> -126.386755 | Z23: -129.5807772 | AA23: -130.46674 | AB23: -122.8682101 | AC23: -111.0592332 | AD23: -214.8501704 | AE23: -136.8097571 | AF23: -138.9949713 | AG23: -139.3267271 | AH23: -140.8832538 | AI23: -161.3429552 | AJ23: -163.2375961 | AK23: -164.0288338 | AL23: -161.8876438 | AM23: -164.4891733 | AN23: -152.4115004 | AO23: -148.2346823 | AP23: -144.1639411 | AQ23: -140.3252554 | AR23: -134.9579728 | AS23: -124.840942 | AT23: -113.8164324 | AU23: -111.6020455 | AV23: -103.9971804 | AW23: -101.9205171 | AX23: -94.67094414 | AY23: -93.32278628 | AZ23: -92.73732325 | BA23: -92.22439391 | BB23: -91.84417294 | BC23: -91.42762553 | BD23: -91.20229235 | BE23: -90.86946202 | BF23: -90.47391118 | BG23: -90.17621785 | BH23: -89.77330841 | BI23: -89.51232807 | BJ23: -89.26768509 | BK23: -65.56991954 | BL23: -42.00446281 | BM23: -41.87786455 | BN23: -41.52063938 | BO23: -41.20115853 | BP23: -40.79785362 | BQ23: -40.40897831 | BR23: -40.03868029 | BS23: -39.88373021 | BT23: -1.219158942 | BU23: -1.126448897 | BV23: -1.118294855 | BW23: -1.115601579 | BX23: -1.115132723 | BY23: -1.115132723 | BZ23: -1.115132723 | CA23: -1.115132723
A24: =ROW() -> 24 | C24: Asset roll forward adjustment | I24: =I125 -> 0 | J24: 0 | K24: 0 | L24: 0 | M24: 0 | N24: 0 | O24: 0 | P24: 0 | Q24: 0 | R24: 0 | S24: 0 | T24: 0 | U24: 0 | V24: 0 | W24: 0 | X24: 0 | Y24: 0 | Z24: 0 | AA24: 0 | AB24: 0 | AC24: -0.2506275385 | AD24: 0 | AE24: 0 | AF24: 0 | AG24: 0 | AH24: 0 | AI24: 0 | AJ24: 0 | AK24: 0 | AL24: 0 | AM24: 0 | AN24: 0 | AO24: =AO125 -> 0 | AP24: 0 | AQ24: 0 | AR24: 0 | AS24: 0 | AT24: 0 | AU24: 0 | AV24: 0 | AW24: 0 | AX24: 0 | AY24: 0 | AZ24: 0 | BA24: 0 | BB24: 0 | BC24: 0 | BD24: 0 | BE24: 0 | BF24: 0 | BG24: 0 | BH24: 0 | BI24: 0 | BJ24: 0 | BK24: 0 | BL24: 0 | BM24: 0 | BN24: 0 | BO24: 0 | BP24: 0 | BQ24: 0 | BR24: 0 | BS24: 0 | BT24: 0 | BU24: =BU125 -> 0 | BV24: 0 | BW24: 0 | BX24: 0 | BY24: 0 | BZ24: 0 | CA24: 0
A25: =ROW() -> 25 | C25: Closing Value | H25: =H31+H43 -> 3129.785599 | I25: 3063.189826 | J25: 2992.567321 | K25: 2917.510861 | L25: 2840.866618 | M25: 2768.186814 | N25: 2769.370696 | O25: 3312.495316 | P25: 3240.256279 | Q25: 4093.969607 | R25: 3993.067747 | S25: 4823.429476 | T25: 4895.149592 | U25: 4803.836181 | V25: 4697.073548 | W25: 4576.590049 | X25: 4470.298658 | Y25: 4365.911477 | Z25: 4265.15025 | AA25: 4161.762509 | AB25: 4070.588075 | AC25: 3994.383417 | AD25: 3824.528353 | AE25: 3732.635017 | AF25: 3647.241942 | AG25: 3547.437563 | AH25: 3444.481018 | AI25: 3337.864644 | AJ25: 3242.98218 | AK25: 3138.99429 | AL25: 3027.511843 | AM25: 2898.588452 | AN25: 2746.176951 | AO25: 2597.942269 | AP25: 2453.778328 | AQ25: 2313.453073 | AR25: 2178.4951 | AS25: 2053.654158 | AT25: 1939.837725 | AU25: 1828.23568 | AV25: 1724.238499 | AW25: 1622.317982 | AX25: 1527.647038 | AY25: 1434.324252 | AZ25: 1341.586929 | BA25: 1249.362535 | BB25: 1157.518362 | BC25: 1066.090736 | BD25: 974.8884439 | BE25: 884.0189819 | BF25: 793.5450707 | BG25: 703.3688529 | BH25: 613.5955445 | BI25: 524.0832164 | BJ25: 434.8155313 | BK25: 369.2456118 | BL25: 327.2411489 | BM25: 285.3632844 | BN25: 243.842645 | BO25: 202.6414865 | BP25: 161.8436329 | BQ25: 121.4346546 | BR25: 81.39597426 | BS25: 41.51224406 | BT25: =BT31+BT43 -> 40.29308511 | BU25: 39.16663622 | BV25: 38.04834136 | BW25: 36.93273978 | BX25: 35.81760706 | BY25: 34.70247434 | BZ25: 33.58734162 | CA25: 32.47220889
A26: =ROW() -> 26 | B26: BEP Asset Account
A27: =ROW() -> 27 | C27: Opening Value (Starting 01/12/2010) | T27: =T162 -> 0 | U27: =U162 -> 27.15824901 | V27: =V162 -> 26.6817885 | W27: 26.205328 | X27: 25.72886749 | Y27: 25.25240698 | Z27: 24.77594647 | AA27: 24.29948596 | AB27: 23.82302545 | AC27: 23.34656494 | AD27: 22.87010443 | AE27: 22.32557814 | AF27: 21.78105184 | AG27: 21.23652554 | AH27: 20.69199925 | AI27: 20.14747295 | AJ27: 19.60294666 | AK27: 19.05842036 | AL27: 18.51389406 | AM27: 17.96936777 | AN27: 17.42484147 | AO27: 16.88031518 | AP27: 16.33578888 | AQ27: 15.79126258 | AR27: 15.24673629 | AS27: 14.70220999 | AT27: 14.1576837 | AU27: 13.6131574 | AV27: 13.0686311 | AW27: 12.52410481 | AX27: 11.97957851 | AY27: 11.43505222 | AZ27: 10.89052592 | BA27: 10.34599962 | BB27: 9.801473328 | BC27: 9.256947032 | BD27: 8.712420736 | BE27: 8.16789444 | BF27: 7.623368144 | BG27: 7.078841848 | BH27: 6.534315552 | BI27: 5.989789256 | BJ27: 5.44526296 | BK27: 4.900736664 | BL27: 4.356210368 | BM27: 3.811684072 | BN27: 3.267157776 | BO27: 2.72263148 | BP27: 2.178105184 | BQ27: 1.633578888 | BR27: 1.089052592 | BS27: 0.544526296 | BT27: 0 | BU27: 0 | BV27: 0 | BW27: 0 | BX27: 0 | BY27: 0 | BZ27: 0 | CA27: 0
A28: =ROW() -> 28 | C28: Capex | T28: =T163 -> 27.15824901 | U28: =U163 -> 0 | V28: 0 | W28: 0 | X28: 0 | Y28: 0 | Z28: 0 | AA28: 0 | AB28: 0 | AC28: 0 | AD28: 0 | AE28: 0 | AF28: 0 | AG28: 0 | AH28: 0 | AI28: 0 | AJ28: 0 | AK28: 0 | AL28: 0 | AM28: 0 | AN28: 0 | AO28: 0 | AP28: 0 | AQ28: 0 | AR28: 0 | AS28: 0 | AT28: 0 | AU28: 0 | AV28: 0 | AW28: 0 | AX28: 0 | AY28: 0 | AZ28: 0 | BA28: 0 | BB28: 0 | BC28: 0 | BD28: 0 | BE28: 0 | BF28: 0 | BG28: 0 | BH28: 0 | BI28: 0 | BJ28: 0 | BK28: 0 | BL28: 0 | BM28: 0 | BN28: 0 | BO28: 0 | BP28: 0 | BQ28: 0 | BR28: 0 | BS28: 0 | BT28: 0 | BU28: 0 | BV28: 0 | BW28: 0 | BX28: 0 | BY28: 0 | BZ28: 0 | CA28: 0
A29: =ROW() -> 29 | C29: Redundant or Disposed | T29: =T164 -> 0 | U29: 0 | V29: 0 | W29: 0 | X29: 0 | Y29: 0 | Z29: 0 | AA29: 0 | AB29: 0 | AC29: 0 | AD29: 0 | AE29: 0 | AF29: 0 | AG29: 0 | AH29: 0 | AI29: 0 | AJ29: 0 | AK29: 0 | AL29: 0 | AM29: 0 | AN29: 0 | AO29: 0 | AP29: 0 | AQ29: 0 | AR29: 0 | AS29: 0 | AT29: 0 | AU29: 0 | AV29: 0 | AW29: 0 | AX29: 0 | AY29: 0 | AZ29: 0 | BA29: 0 | BB29: 0 | BC29: 0 | BD29: 0 | BE29: 0 | BF29: 0 | BG29: 0 | BH29: 0 | BI29: 0 | BJ29: 0 | BK29: 0 | BL29: 0 | BM29: 0 | BN29: 0 | BO29: 0 | BP29: 0 | BQ29: 0 | BR29: 0 | BS29: 0 | BT29: 0 | BU29: 0 | BV29: 0 | BW29: 0 | BX29: 0 | BY29: 0 | BZ29: 0 | CA29: 0
A30: =ROW() -> 30 | C30: Depreciation | T30: 0 | U30: -0.476460509 | V30: -0.476460509 | W30: -0.476460509 | X30: -0.476460509 | Y30: -0.476460509 | Z30: -0.476460509 | AA30: -0.476460509 | AB30: -0.476460509 | AC30: -0.476460509 | AD30: -0.544526296 | AE30: -0.544526296 | AF30: -0.544526296 | AG30: -0.544526296 | AH30: -0.544526296 | AI30: -0.544526296 | AJ30: -0.544526296 | AK30: -0.544526296 | AL30: -0.544526296 | AM30: -0.544526296 | AN30: -0.544526296 | AO30: -0.544526296 | AP30: -0.544526296 | AQ30: -0.544526296 | AR30: -0.544526296 | AS30: -0.544526296 | AT30: -0.544526296 | AU30: -0.544526296 | AV30: -0.544526296 | AW30: -0.544526296 | AX30: -0.544526296 | AY30: -0.544526296 | AZ30: -0.544526296 | BA30: -0.544526296 | BB30: -0.544526296 | BC30: -0.544526296 | BD30: -0.544526296 | BE30: -0.544526296 | BF30: -0.544526296 | BG30: -0.544526296 | BH30: -0.544526296 | BI30: -0.544526296 | BJ30: -0.544526296 | BK30: -0.544526296 | BL30: -0.544526296 | BM30: -0.544526296 | BN30: -0.544526296 | BO30: -0.544526296 | BP30: -0.544526296 | BQ30: -0.544526296 | BR30: -0.544526296 | BS30: -0.544526296 | BT30: 0 | BU30: 0 | BV30: 0 | BW30: 0 | BX30: 0 | BY30: 0 | BZ30: 0 | CA30: 0
A31: =ROW() -> 31 | C31: Closing Value | T31: =SUM(T27:T30) -> 27.15824901 | U31: =SUM(U27:U30) -> 26.6817885 | V31: =SUM(V27:V30) -> 26.205328 | W31: =SUM(W27:W30) -> 25.72886749 | X31: =SUM(X27:X30) -> 25.25240698 | Y31: =SUM(Y27:Y30) -> 24.77594647 | Z31: 24.29948596 | AA31: 23.82302545 | AB31: 23.34656494 | AC31: 22.87010443 | AD31: 22.32557814 | AE31: 21.78105184 | AF31: 21.23652554 | AG31: 20.69199925 | AH31: 20.14747295 | AI31: 19.60294666 | AJ31: 19.05842036 | AK31: 18.51389406 | AL31: 17.96936777 | AM31: 17.42484147 | AN31: 16.88031518 | AO31: 16.33578888 | AP31: 15.79126258 | AQ31: 15.24673629 | AR31: 14.70220999 | AS31: 14.1576837 | AT31: 13.6131574 | AU31: 13.0686311 | AV31: 12.52410481 | AW31: 11.97957851 | AX31: 11.43505222 | AY31: 10.89052592 | AZ31: 10.34599962 | BA31: 9.801473328 | BB31: 9.256947032 | BC31: 8.712420736 | BD31: 8.16789444 | BE31: 7.623368144 | BF31: 7.078841848 | BG31: 6.534315552 | BH31: 5.989789256 | BI31: 5.44526296 | BJ31: 4.900736664 | BK31: 4.356210368 | BL31: 3.811684072 | BM31: 3.267157776 | BN31: 2.72263148 | BO31: 2.178105184 | BP31: 1.633578888 | BQ31: 1.089052592 | BR31: 0.544526296 | BS31: 0 | BT31: 0 | BU31: 0 | BV31: 0 | BW31: 0 | BX31: 0 | BY31: 0 | BZ31: 0 | CA31: 0
A32: DBNGP Assets
A33: =ROW() -> 33 | B33: DBNGP Asset
A34: =ROW() -> 34 | C34: Opening Value | I34: =H43 -> 3129.785599 | J34: =I43 -> 3063.189826 | K34: 2992.567321 | L34: 2917.510861 | M34: 2840.866618 | N34: 2768.186814 | O34: 2769.370696 | P34: 3312.495316 | Q34: 3240.256279 | R34: 4093.969607 | S34: 3993.067747 | T34: 4823.429476 | U34: 4867.991343 | V34: 4777.154392 | W34: 4670.86822 | X34: 4550.861182 | Y34: 4445.046251 | Z34: 4341.135531 | AA34: 4240.850765 | AB34: 4137.939484 | AC34: 4047.24151 | AD34: 3971.513312 | AE34: 3802.202775 | AF34: 3710.853965 | AG34: 3626.005416 | AH34: 3526.745564 | AI34: 3424.333546 | AJ34: 3318.261698 | AK34: 3223.92376 | AL34: 3120.480396 | AM34: 3009.542475 | AN34: 2881.16361 | AO34: 2729.296636 | AP34: 2581.60648 | AQ34: 2437.987065 | AR34: 2298.206336 | AS34: 2163.79289 | AT34: 2039.496474 | AU34: 1926.224568 | AV34: 1815.167049 | AW34: 1711.714395 | AX34: 1610.338404 | AY34: 1516.211986 | AZ34: 1423.433726 | BA34: 1331.240929 | BB34: 1239.561061 | BC34: 1148.261415 | BD34: 1057.378316 | BE34: 966.7205495 | BF34: 876.3956137 | BG34: 786.4662289 | BH34: 696.8345373 | BI34: 607.6057552 | BJ34: 518.6379534 | BK34: 429.9147946 | BL34: 364.8894014 | BM34: 323.4294649 | BN34: 282.0961266 | BO34: 241.1200135 | BP34: 200.4633813 | BQ34: 160.210054 | BR34: 120.345602 | BS34: 80.85144797 | BT34: 41.51224406 | BU34: 40.29308511 | BV34: =BU43 -> 39.16663622 | BW34: 38.04834136 | BX34: 36.93273978 | BY34: 35.81760706 | BZ34: 34.70247434 | CA34: 33.58734162
A35: =ROW() -> 35 | C35: Capex | I35: =I80 -> 9.656003053 | J35: =J80 -> 6.046999062 | K35: 2.254818053 | L35: 1.358126634 | M35: 5.775774382 | N35: 86.80681318 | O35: 619.207197 | P35: 8.179526411 | Q35: 947.1160149 | R35: 1.89493174 | S35: 891.2557296 | T35: 177.1666002 | U35: 42.05081985 | V35: 27.63286273 | W35: 16.10456159 | X35: 28.88469875 | Y35: 21.99957389 | Z35: 28.81955073 | AA35: 27.07899863 | AB35: 31.69377627 | AC35: 35.10520226 | AD35: 44.99510655 | AE35: 44.91642089 | AF35: 53.6018964 | AG35: 39.52234855 | AH35: 37.92670895 | AI35: 54.72658094 | AJ35: 68.35513194 | AK35: 60.04094348 | AL35: 50.40519719 | AM35: 35.56578199 | AN35: 0 | AO35: 0 | AP35: 0 | AQ35: 0 | AR35: 0 | AS35: 0 | AT35: 0 | AU35: 0 | AV35: 0 | AW35: 0 | AX35: 0 | AY35: 0 | AZ35: 0 | BA35: 0 | BB35: 0 | BC35: 0 | BD35: 0 | BE35: 0 | BF35: 0 | BG35: 0 | BH35: 0 | BI35: 0 | BJ35: 0 | BK35: 0 | BL35: 0 | BM35: 0 | BN35: 0 | BO35: 0 | BP35: 0 | BQ35: 0 | BR35: 0 | BS35: 0 | BT35: 0 | BU35: 0 | BV35: =BV80 -> 0 | BW35: 0 | BX35: 0 | BY35: 0 | BZ35: 0 | CA35: 0
A36: =ROW() -> 36 | C36: Redundant or Disposed | I36: =I95 -> 0 | J36: =J95 -> 0 | K36: 0 | L36: 0 | M36: 0 | N36: -10.02967879 | O36: 0 | P36: -0.05044007057 | Q36: -0.03811346199 | R36: -0.1216990945 | S36: -0.01594892638 | T36: -6.175014663 | U36: -0.5074146548 | V36: -1.010824609 | W36: -2.851720072 | X36: -1.002632411 | Y36: 0 | Z36: 0 | AA36: 0 | AB36: 0 | AC36: 0 | AD36: 0 | AE36: 0 | AF36: 0 | AG36: 0 | AH36: 0 | AI36: 0 | AJ36: =AJ95 -> 0 | AK36: 0 | AL36: 0 | AM36: =AM95 -> 0 | AN36: 0 | AO36: 0 | AP36: 0 | AQ36: 0 | AR36: 0 | AS36: 0 | AT36: 0 | AU36: 0 | AV36: 0 | AW36: 0 | AX36: 0 | AY36: 0 | AZ36: 0 | BA36: 0 | BB36: 0 | BC36: 0 | BD36: 0 | BE36: 0 | BF36: 0 | BG36: 0 | BH36: 0 | BI36: 0 | BJ36: 0 | BK36: 0 | BL36: 0 | BM36: 0 | BN36: 0 | BO36: 0 | BP36: 0 | BQ36: 0 | BR36: 0 | BS36: 0 | BT36: 0 | BU36: 0 | BV36: =BV95 -> 0 | BW36: 0 | BX36: 0 | BY36: 0 | BZ36: 0 | CA36: 0
A37: =ROW() -> 37 | C37: Out of Service Assets | AH37: =AH155 -> -81.06469629 | AM37: =AM155 -> -21.79382515 | AR37: =AR155 -> -1.306591568
A38: =ROW() -> 38 | C38: Out of Service Asset in AA5 | AH38: =AH135 -> 81.06469629
A39: =ROW() -> 39 | C39: Out of Service Asset in AA6 | AM39: =AM136 -> 21.79382515
A40: =ROW() -> 40 | C40: Out of Service Asset in AA7 | AR40: =AR137 -> 1.306591568
A41: =ROW() -> 41 | C41: Depreciation | I41: =I110 -> -76.25177607 | J41: =J110 -> -76.66950389 | K41: -77.31127821 | L41: -78.00236948 | M41: -78.45557782 | N41: -75.5932531 | O41: -76.08257661 | P41: -80.36812375 | Q41: -93.36457253 | R41: -102.6750933 | S41: -105.1119554 | T41: -126.4297178 | U41: -132.3803561 | V41: -132.9082106 | W41: -133.2598796 | X41: -133.6969971 | Y41: -125.9102945 | Z41: -129.1043167 | AA41: -129.9902795 | AB41: -122.3917495 | AC41: -110.5827727 | AD41: -214.3056441 | AE41: -136.2652308 | AF41: -138.450445 | AG41: -138.7822008 | AH41: -140.3387275 | AI41: -160.7984289 | AJ41: -162.6930698 | AK41: -163.4843075 | AL41: -161.3431175 | AM41: -163.944647 | AN41: -151.8669741 | AO41: -147.690156 | AP41: -143.6194148 | AQ41: -139.7807291 | AR41: -134.4134465 | AS41: -124.2964157 | AT41: -113.2719061 | AU41: -111.0575192 | AV41: -103.4526541 | AW41: -101.3759908 | AX41: -94.12641784 | AY41: -92.77825998 | AZ41: -92.19279695 | BA41: -91.67986762 | BB41: -91.29964665 | BC41: -90.88309923 | BD41: -90.65776605 | BE41: -90.32493572 | BF41: -89.92938488 | BG41: -89.63169155 | BH41: -89.22878212 | BI41: -88.96780178 | BJ41: -88.72315879 | BK41: -65.02539325 | BL41: -41.45993652 | BM41: -41.33333825 | BN41: -40.97611308 | BO41: -40.65663223 | BP41: -40.25332733 | BQ41: -39.86445201 | BR41: -39.494154 | BS41: -39.33920391 | BT41: -1.219158942 | BU41: -1.126448897 | BV41: =BV110 -> -1.118294855 | BW41: -1.115601579 | BX41: -1.115132723 | BY41: -1.115132723 | BZ41: -1.115132723 | CA41: -1.115132723
A42: =ROW() -> 42 | C42: Asset roll forward adjustment | I42: =I125 -> 0 | J42: 0 | K42: 0 | L42: 0 | M42: 0 | N42: 0 | O42: 0 | P42: 0 | Q42: 0 | R42: 0 | S42: 0 | T42: 0 | U42: 0 | V42: 0 | W42: 0 | X42: 0 | Y42: 0 | Z42: 0 | AA42: 0 | AB42: 0 | AC42: -0.2506275385 | AD42: 0 | AE42: 0 | AF42: 0 | AG42: 0 | AH42: 0 | AI42: 0 | AJ42: 0 | AK42: 0 | AL42: 0 | AM42: 0 | AN42: 0 | AO42: =AO125 -> 0 | AP42: 0 | AQ42: 0 | AR42: 0 | AS42: 0 | AT42: 0 | AU42: 0 | AV42: 0 | AW42: 0 | AX42: 0 | AY42: 0 | AZ42: 0 | BA42: 0 | BB42: 0 | BC42: 0 | BD42: 0 | BE42: 0 | BF42: 0 | BG42: 0 | BH42: 0 | BI42: 0 | BJ42: 0 | BK42: 0 | BL42: 0 | BM42: 0 | BN42: 0 | BO42: 0 | BP42: 0 | BQ42: 0 | BR42: 0 | BS42: 0 | BT42: 0 | BU42: =BU125 -> 0 | BV42: 0 | BW42: 0 | BX42: 0 | BY42: 0 | BZ42: 0 | CA42: 0
A43: =ROW() -> 43 | C43: Closing Value | H43: =H140 -> 3129.785599 | I43: =SUM(I34:I42) -> 3063.189826 | J43: 2992.567321 | K43: 2917.510861 | L43: 2840.866618 | M43: 2768.186814 | N43: 2769.370696 | O43: 3312.495316 | P43: =SUM(P34:P42) -> 3240.256279 | Q43: =SUM(Q34:Q42) -> 4093.969607 | R43: 3993.067747 | S43: =SUM(S34:S42)-S46 -> 4823.429476 | T43: 4867.991343 | U43: 4777.154392 | V43: 4670.86822 | W43: 4550.861182 | X43: 4445.046251 | Y43: =SUM(Y34:Y42)-Y46 -> 4341.135531 | Z43: 4240.850765 | AA43: 4137.939484 | AB43: 4047.24151 | AC43: 3971.513312 | AD43: =SUM(AD34:AD42)-AD46 -> 3802.202775 | AE43: =SUM(AE34:AE42) -> 3710.853965 | AF43: 3626.005416 | AG43: 3526.745564 | AH43: 3424.333546 | AI43: 3318.261698 | AJ43: 3223.92376 | AK43: 3120.480396 | AL43: 3009.542475 | AM43: 2881.16361 | AN43: 2729.296636 | AO43: 2581.60648 | AP43: 2437.987065 | AQ43: 2298.206336 | AR43: 2163.79289 | AS43: 2039.496474 | AT43: 1926.224568 | AU43: 1815.167049 | AV43: 1711.714395 | AW43: 1610.338404 | AX43: 1516.211986 | AY43: 1423.433726 | AZ43: 1331.240929 | BA43: 1239.561061 | BB43: 1148.261415 | BC43: 1057.378316 | BD43: 966.7205495 | BE43: 876.3956137 | BF43: 786.4662289 | BG43: 696.8345373 | BH43: 607.6057552 | BI43: 518.6379534 | BJ43: 429.9147946 | BK43: =SUM(BK34:BK42) -> 364.8894014 | BL43: 323.4294649 | BM43: 282.0961266 | BN43: 241.1200135 | BO43: 200.4633813 | BP43: 160.210054 | BQ43: 120.345602 | BR43: 80.85144797 | BS43: 41.51224406 | BT43: 40.29308511 | BU43: 39.16663622 | BV43: 38.04834136 | BW43: 36.93273978 | BX43: 35.81760706 | BY43: 34.70247434 | BZ43: 33.58734162 | CA43: 32.47220889
A44: =ROW() -> 44 | G44: Check | H44: =IF(ROUND(H43-Inputs!H122,6)=0,"OK","Wrong") -> OK | I44: =IF(ROUND(I43-Inputs!I122,6)=0,"OK","Wrong") -> OK | J44: =IF(ROUND(J43-Inputs!J122,6)=0,"OK","Wrong") -> OK | K44: =IF(ROUND(K43-Inputs!K122,6)=0,"OK","Wrong") -> OK | L44: =IF(ROUND(L43-Inputs!L122,6)=0,"OK","Wrong") -> OK | M44: =IF(ROUND(M43-Inputs!M122,6)=0,"OK","Wrong") -> OK | N44: =IF(ROUND(N43-N244-N352,6)=0,"OK","Wrong") -> OK | O44: OK | P44: OK | Q44: OK | R44: OK | S44: OK | T44: OK | U44: OK | V44: OK | W44: OK | X44: OK | Y44: OK | Z44: OK | AA44: OK | AB44: OK | AC44: OK | AD44: OK | AE44: OK | AF44: OK | AG44: OK | AH44: OK | AI44: OK | AJ44: OK | AK44: OK | AL44: OK | AM44: OK | AN44: OK | AO44: OK | AP44: OK | AQ44: OK | AR44: OK | AS44: OK | AT44: =IF(ROUND(AT43-AT244-AT352,6)=0,"OK","Wrong") -> OK | AU44: OK | AV44: OK | AW44: OK | AX44: OK | AY44: OK | AZ44: OK | BA44: OK | BB44: OK | BC44: OK | BD44: OK | BE44: OK | BF44: OK | BG44: OK | BH44: OK | BI44: OK | BJ44: OK | BK44: OK | BL44: OK | BM44: OK | BN44: OK | BO44: OK | BP44: OK | BQ44: OK | BR44: OK | BS44: OK | BT44: OK | BU44: OK | BV44: OK | BW44: OK | BX44: OK | BY44: OK | BZ44: =IF(ROUND(BZ43-BZ244-BZ352,6)=0,"OK","Wrong") -> OK | CA44: OK
A45: =ROW() -> 45 | B45: Over Depreciation or Out of Service Assets
A46: =ROW() -> 46 | C46: Over Depreciation or Out of Service Assets | S46: =S155 -> -44.23390352 | Y46: =Y155 -> 0
A47: =ROW() -> 47 | C47: Rolled Forward Value | T47: =S46*(1+WACC!M34) -> -46.78655908
A48: =ROW() -> 48
A49: ="DBNGP Asset Account [m$ "&TEXT(Inputs!$E$26,"dd/mm/yyyy")&"]" -> DBNGP Asset Account [m$ 31/12/2024]
A50: Asset Accounts | E50: DBP Principled Approach in 2020 [m$ 31/12/2019]
A51: =ROW() -> 51 | B51: Opening Value | E51: =Inputs!$E$24/Inputs!$AB$24 -> 1.199655766 | F51: ="= Dec19 to "&TEXT(Inputs!$E$23,"MmmYY") &" inflation factor" -> = Dec19 to Dec24 inflation factor
A52: =ROW() -> 52 | C52: Pipeline | E52: 2694.290607 | I52: =H127 -> 2550.56663 | J52: 2506.415923 | K52: 2459.659831 | L52: 2412.954817 | M52: 2366.130428 | N52: 2320.358269 | O52: 2285.87227 | P52: 2609.354826 | Q52: 2564.043992 | R52: 3255.751087 | S52: 3195.739576 | T52: 3858.192521 | U52: 3849.123486 | V52: 3795.163583 | W52: 3727.403144 | X52: 3654.079126 | Y52: 3583.316522 | Z52: 3508.443282 | AA52: 3433.5025 | AB52: 3358.620093 | AC52: =AC186+AC264 -> 3232.221262 | AD52: =AC127 -> 3158.266606 | AE52: 3073.593894 | AF52: 2991.382937 | AG52: 2907.799678 | AH52: 2823.1484 | AI52: 2738.475689 | AJ52: 2653.89857 | AK52: 2569.316734 | AL52: 2484.73002 | AM52: 2400.239537 | AN52: 2315.639477 | AO52: 2230.844656 | AP52: 2146.049835 | AQ52: 2061.255014 | AR52: 1976.460193 | AS52: 1891.665372 | AT52: 1806.870551 | AU52: 1722.07573 | AV52: 1637.280909 | AW52: 1552.486088 | AX52: 1467.691267 | AY52: 1382.896446 | AZ52: 1298.101625 | BA52: 1213.306804 | BB52: 1128.511983 | BC52: 1043.717162 | BD52: 958.9223409 | BE52: 874.1275198 | BF52: 789.3326988 | BG52: 704.5378778 | BH52: 619.7430568 | BI52: 534.9482357 | BJ52: 450.1534147 | BK52: 365.3585937 | BL52: 303.9634665 | BM52: 265.9680332 | BN52: 227.9725999 | BO52: 189.9771666 | BP52: 151.9817333 | BQ52: 113.9862999 | BR52: 75.99086663 | BS52: 37.99543332 | BT52: -3.0127012e-12 | BU52: -3.0127012e-12 | BV52: -3.0127012e-12 | BW52: -3.0127012e-12 | BX52: -3.0127012e-12 | BY52: -3.0127012e-12 | BZ52: -3.0127012e-12 | CA52: -3.0127012e-12
A53: =ROW() -> 53 | C53: Compression | E53: 379.6819915 | I53: =H128 -> 427.2736469 | J53: 400.6449941 | K53: 380.2169498 | L53: 357.1899096 | M53: 333.5122459 | N53: 310.2266741 | O53: 350.9276236 | P53: 577.0532176 | Q53: 551.7822354 | R53: 711.0618382 | S53: 676.5860109 | T53: 826.3111397 | U53: 824.3337714 | V53: 789.239257 | W53: 749.8590415 | X53: 706.9884275 | Y53: 665.4069384 | Z53: 621.5618562 | AA53: 579.7335678 | AB53: 534.9836679 | AC53: 455.4968561 | AD53: 432.8084125 | AE53: 411.6462564 | AF53: 391.2528437 | AG53: 371.7551341 | AH53: 348.6345344 | AI53: 325.0444779 | AJ53: 306.9012637 | AK53: 287.6457643 | AL53: 269.0489279 | AM53: 248.1617191 | AN53: 226.6167607 | AO53: 200.870946 | AP53: 175.2002509 | AQ53: 149.5295558 | AR53: 123.8588607 | AS53: 98.20124126 | AT53: 75.22992399 | AU53: 61.11437248 | AV53: 46.99882097 | AW53: 38.3112308 | AX53: 29.62364062 | AY53: 26.05554647 | AZ53: 23.4814935 | BA53: 21.17706703 | BB53: 19.08594685 | BC53: 17.06840758 | BD53: 15.13218213 | BE53: 13.27413611 | BF53: 11.59334338 | BG53: 10.01302496 | BH53: 8.507431504 | BI53: 7.078631469 | BJ53: 5.741060733 | BK53: 4.5463458 | BL53: 3.526642505 | BM53: 2.559441625 | BN53: 1.634711146 | BO53: 0.9325763324 | BP53: 0.4233808654 | BQ53: 0.1355114929 | BR53: 4.468647674e-14 | BS53: 4.468647674e-14 | BT53: 4.468647674e-14 | BU53: 4.468647674e-14 | BV53: 4.468647674e-14 | BW53: 4.468647674e-14 | BX53: 4.468647674e-14 | BY53: 4.468647674e-14 | BZ53: 4.468647674e-14 | CA53: 4.468647674e-14
A54: =ROW() -> 54 | C54: Metering | E54: 42.43423416 | I54: =H129 -> 35.03977888 | J54: 35.20887566 | K54: 35.2856026 | L54: 35.00462568 | M54: 34.02286821 | N54: 35.95223195 | O54: 34.93324876 | P54: 33.87567356 | Q54: 32.77599694 | R54: 31.67105751 | S54: 30.67874043 | T54: 36.85067971 | U54: 36.17563009 | V54: 37.52442751 | W54: 37.60070171 | X54: 35.69269781 | Y54: 39.05492718 | Z54: 43.57034329 | AA54: 46.51866079 | AB54: 53.30431576 | AC54: 50.90647368 | AD54: 59.3226999 | AE54: 46.40374208 | AF54: 47.44325208 | AG54: 49.10074744 | AH54: 50.47697838 | AI54: 50.99661755 | AJ54: 52.6657298 | AK54: 53.95757246 | AL54: 56.25186322 | AM54: 57.61466666 | AN54: 58.7682277 | AO54: 55.77028005 | AP54: 52.83232525 | AQ54: 49.89437045 | AR54: 46.95641566 | AS54: 44.15724864 | AT54: 41.35808163 | AU54: 38.55891461 | AV54: 35.7597476 | AW54: 32.96058058 | AX54: 30.16141357 | AY54: 27.63160803 | AZ54: 25.1035888 | BA54: 22.57556956 | BB54: 20.05629349 | BC54: 17.55980354 | BD54: 15.12073979 | BE54: 12.82882978 | BF54: 10.69249682 | BG54: 8.851240395 | BH54: 7.232952328 | BI54: 5.940780275 | BJ54: 4.818359265 | BK54: 3.797725439 | BL54: 2.900151665 | BM54: 2.11583835 | BN54: 1.415652901 | BO54: 0.8500969574 | BP54: 0.4110825148 | BQ54: 0.1362425604 | BR54: 2.24265051e-14 | BS54: 2.24265051e-14 | BT54: 2.24265051e-14 | BU54: 2.24265051e-14 | BV54: 2.24265051e-14 | BW54: 2.24265051e-14 | BX54: 2.24265051e-14 | BY54: 2.24265051e-14 | BZ54: 2.24265051e-14 | CA54: 2.24265051e-14
A55: =ROW() -> 55 | C55: Other Depreciable | E55: 45.9770412 | I55: =H130 -> 96.23230053 | J55: 100.246791 | K55: 96.73169543 | L55: 91.68826618 | M55: 86.5278334 | N55: 80.97639682 | O55: 80.44882345 | P55: 75.21599614 | Q55: 71.84997406 | R55: 73.5448532 | S55: 67.14500819 | T55: 78.00437253 | U55: 130.0629072 | V55: 124.9955448 | W55: 124.3219542 | X55: 122.6714588 | Y55: 125.9629352 | Z55: 124.538673 | AA55: 125.6432948 | AB55: 122.7839524 | AC55: 58.67780239 | AD55: 61.09976588 | AE55: 54.03700833 | AF55: 51.96671614 | AG55: 47.7335132 | AH55: 45.3343616 | AI55: 18.57586794 | AJ55: 16.72218875 | AK55: 15.31363298 | AL55: 13.76685183 | AM55: 12.53190076 | AN55: 8.02468085 | AO55: 6.285317527 | AP55: 4.848086985 | AQ55: 3.720312369 | AR55: 2.665701211 | AS55: 1.842536984 | AT55: 1.198149057 | AU55: 0.6890472987 | AV55: 0.3447981412 | AW55: 0.1082386119 | AX55: -7.549516567e-15 | AY55: -7.549516567e-15 | AZ55: -7.549516567e-15 | BA55: -7.549516567e-15 | BB55: -7.549516567e-15 | BC55: -7.549516567e-15 | BD55: -7.549516567e-15 | BE55: -7.549516567e-15 | BF55: -7.549516567e-15 | BG55: -7.549516567e-15 | BH55: -7.549516567e-15 | BI55: -7.549516567e-15 | BJ55: -7.549516567e-15 | BK55: -7.549516567e-15 | BL55: -7.549516567e-15 | BM55: -7.549516567e-15 | BN55: -7.549516567e-15 | BO55: -7.549516567e-15 | BP55: -7.549516567e-15 | BQ55: -7.549516567e-15 | BR55: -7.549516567e-15 | BS55: -7.549516567e-15 | BT55: -7.549516567e-15 | BU55: -7.549516567e-15 | BV55: -7.549516567e-15 | BW55: -7.549516567e-15 | BX55: -7.549516567e-15 | BY55: -7.549516567e-15 | BZ55: -7.549516567e-15 | CA55: -7.549516567e-15
A56: =ROW() -> 56 | C56: Computers and Motor Vehicles | E56: 28.16503563 | I56: =H131 -> 0 | J56: 0 | K56: 0 | L56: 0 | M56: 0 | N56: 0 | O56: 0 | P56: 0 | Q56: 0 | R56: 0 | S56: 0 | T56: 0 | U56: 0 | V56: 0 | W56: 0 | X56: 0 | Y56: 0 | Z56: 4.19029705 | AA56: 7.249626789 | AB56: 10.87371574 | AC56: 30.82145602 | AD56: 34.95852597 | AE56: 31.82727971 | AF56: 32.23136505 | AG56: 43.63226022 | AH56: 42.10619264 | AI56: 37.40041265 | AJ56: 41.54253607 | AK56: 38.30024055 | AL56: 31.77296634 | AM56: 32.78602551 | AN56: 28.26873745 | AO56: 17.43914908 | AP56: 10.0620485 | AQ56: 4.938648591 | AR56: 1.358697785 | AS56: =AR131 -> 2.753353101e-14 | AT56: 2.753353101e-14 | AU56: 2.753353101e-14 | AV56: 2.753353101e-14 | AW56: 2.753353101e-14 | AX56: 2.753353101e-14 | AY56: 2.753353101e-14 | AZ56: 2.753353101e-14 | BA56: 2.753353101e-14 | BB56: 2.753353101e-14 | BC56: 2.753353101e-14 | BD56: 2.753353101e-14 | BE56: 2.753353101e-14 | BF56: 2.753353101e-14 | BG56: 2.753353101e-14 | BH56: 2.753353101e-14 | BI56: 2.753353101e-14 | BJ56: 2.753353101e-14 | BK56: 2.753353101e-14 | BL56: 2.753353101e-14 | BM56: 2.753353101e-14 | BN56: 2.753353101e-14 | BO56: 2.753353101e-14 | BP56: 2.753353101e-14 | BQ56: 2.753353101e-14 | BR56: 2.753353101e-14 | BS56: 2.753353101e-14 | BT56: 2.753353101e-14 | BU56: 2.753353101e-14 | BV56: 2.753353101e-14 | BW56: 2.753353101e-14 | BX56: 2.753353101e-14 | BY56: 2.753353101e-14 | BZ56: 2.753353101e-14 | CA56: 2.753353101e-14
A57: =ROW() -> 57 | C57: Cathodic/Corrosion Protection | E57: 54.9436818 | I57: =H132 -> 0 | J57: 0 | K57: 0 | L57: 0 | M57: 0 | N57: 0 | O57: 0 | P57: 0 | Q57: 0 | R57: 0 | S57: 0 | T57: 0 | U57: 0 | V57: 0 | W57: 0 | X57: 0 | Y57: 0 | Z57: 1.059479029 | AA57: 2.950674193 | AB57: 8.868856679 | AC57: 65.91358163 | AD57: 69.27900311 | AE57: 68.92060433 | AF57: 69.64252882 | AG57: 70.95658527 | AH57: 68.95911273 | AI57: =AH132 -> 55.35894583 | AJ57: 55.16337514 | AK57: 55.4524032 | AL57: 55.53907678 | AM57: 55.42225484 | AN57: 39.69019136 | AO57: 34.9589707 | AP57: 30.29838198 | AQ57: 25.76387293 | AR57: 21.62390938 | AS57: 16.76651612 | AT57: 13.49952197 | AU57: 10.56681219 | AV57: 8.087255428 | AW57: 6.104069471 | AX57: 4.381095815 | AY57: 2.860387692 | AZ57: 1.692009947 | BA57: 0.8394687262 | BB57: 0.2778073941 | BC57: -1.221245327e-14 | BD57: -1.221245327e-14 | BE57: -1.221245327e-14 | BF57: -1.221245327e-14 | BG57: -1.221245327e-14 | BH57: -1.221245327e-14 | BI57: -1.221245327e-14 | BJ57: -1.221245327e-14 | BK57: -1.221245327e-14 | BL57: -1.221245327e-14 | BM57: -1.221245327e-14 | BN57: -1.221245327e-14 | BO57: -1.221245327e-14 | BP57: -1.221245327e-14 | BQ57: -1.221245327e-14 | BR57: -1.221245327e-14 | BS57: -1.221245327e-14 | BT57: -1.221245327e-14 | BU57: -1.221245327e-14 | BV57: -1.221245327e-14 | BW57: -1.221245327e-14 | BX57: -1.221245327e-14 | BY57: -1.221245327e-14 | BZ57: -1.221245327e-14 | CA57: -1.221245327e-14
A58: =ROW() -> 58 | C58: SCADA , ECI And Comms | E58: 102.8746075 | I58: =H133 -> 0 | J58: 0 | K58: 0 | L58: 0 | M58: 0 | N58: 0 | O58: 0 | P58: 0 | Q58: 0 | R58: 0 | S58: 0 | T58: 0 | U58: 0 | V58: 0 | W58: 0 | X58: 0 | Y58: 0 | Z58: 6.625312635 | AA58: 14.3704175 | AB58: 17.88712323 | AC58: 122.8505849 | AD58: =AC133 -> 125.6890697 | AE58: 82.88763468 | AF58: 91.3808684 | AG58: 98.42873242 | AH58: 109.178478 | AI58: =AH133 -> 74.19712318 | AJ58: 80.64192228 | AK58: 85.02215951 | AL58: 88.34514632 | AM58: 91.59982815 | AN58: 86.75083302 | AO58: 71.7943686 | AP58: 57.05435744 | AQ58: 43.69585117 | AR58: 32.1648726 | AS58: 22.80745131 | AT58: 14.96203033 | AU58: 8.815782603 | AV58: 4.265916159 | AW58: 1.288893033 | AX58: -2.664535259e-15 | AY58: -2.664535259e-15 | AZ58: -2.664535259e-15 | BA58: -2.664535259e-15 | BB58: -2.664535259e-15 | BC58: -2.664535259e-15 | BD58: -2.664535259e-15 | BE58: -2.664535259e-15 | BF58: -2.664535259e-15 | BG58: -2.664535259e-15 | BH58: -2.664535259e-15 | BI58: -2.664535259e-15 | BJ58: -2.664535259e-15 | BK58: -2.664535259e-15 | BL58: -2.664535259e-15 | BM58: -2.664535259e-15 | BN58: -2.664535259e-15 | BO58: -2.664535259e-15 | BP58: -2.664535259e-15 | BQ58: -2.664535259e-15 | BR58: -2.664535259e-15 | BS58: -2.664535259e-15 | BT58: -2.664535259e-15 | BU58: -2.664535259e-15 | BV58: -2.664535259e-15 | BW58: -2.664535259e-15 | BX58: -2.664535259e-15 | BY58: -2.664535259e-15 | BZ58: -2.664535259e-15 | CA58: -2.664535259e-15
A59: =ROW() -> 59 | C59: Building | E59: 5.027315677 | I59: =H134 -> 0 | J59: 0 | K59: 0 | L59: 0 | M59: 0 | N59: 0 | O59: 0 | P59: 0 | Q59: 0 | R59: 0 | S59: 0 | T59: 0 | U59: 4.247566484 | V59: 6.236905409 | W59: 7.437802818 | X59: 7.18311482 | Y59: 7.062391656 | Z59: 6.823842013 | AA59: 6.559577422 | AB59: 6.29531283 | AC59: 6.031048239 | AD59: 5.766783647 | AE59: 6.202121139 | AF59: 7.148316523 | AG59: 6.684849198 | AH59: 7.349761008 | AI59: =AH134 -> 10.21107647 | AJ59: 11.58304355 | AK59: 34.68601214 | AL59: 51.72330811 | AM59: 57.20828853 | AN59: 57.14206489 | AO59: 55.88895309 | AP59: 54.63584129 | AQ59: 53.38272949 | AR59: 52.12961768 | AS59: 50.87650588 | AT59: 49.62339408 | AU59: 48.37028228 | AV59: 47.11717047 | AW59: 45.86405867 | AX59: 44.61094687 | AY59: 43.35783507 | AZ59: 42.10472326 | BA59: 40.85161146 | BB59: 39.59849966 | BC59: 38.34538786 | BD59: 37.09227605 | BE59: 35.83916425 | BF59: 34.58605245 | BG59: 33.33294065 | BH59: 32.07982884 | BI59: 30.82671704 | BJ59: 29.57360524 | BK59: 28.32049344 | BL59: 27.06738163 | BM59: 25.81426983 | BN59: 24.56115803 | BO59: 23.30804622 | BP59: 22.05493442 | BQ59: 20.80182262 | BR59: 19.54871082 | BS59: 18.29559901 | BT59: 17.10860387 | BU59: 15.96269176 | BV59: 14.84419046 | BW59: 13.72589561 | BX59: 12.61029403 | BY59: 11.4951613 | BZ59: 10.38002858 | CA59: 9.264895859
A60: =ROW() -> 60 | C60: Out of Service Asset in AA5 | I60: =H135 -> 0 | J60: 0 | K60: 0 | L60: 0 | M60: 0 | N60: 0 | O60: 0 | P60: 0 | Q60: 0 | R60: 0 | S60: 0 | T60: 0 | U60: 0 | V60: 0 | W60: 0 | X60: 0 | Y60: 0 | Z60: 0 | AA60: 0 | AB60: 0 | AC60: 0 | AD60: 0 | AE60: 0 | AF60: 0 | AG60: 0 | AH60: 0 | AI60: =AH135 -> 81.06469629 | AJ60: 64.85175704 | AK60: 48.63881778 | AL60: 32.42587852 | AM60: 16.21293926 | AN60: 0 | AO60: 0 | AP60: 0 | AQ60: 0 | AR60: 0 | AS60: 0 | AT60: 0 | AU60: 0 | AV60: 0 | AW60: 0 | AX60: 0 | AY60: 0 | AZ60: 0 | BA60: 0 | BB60: 0 | BC60: 0 | BD60: 0 | BE60: 0 | BF60: 0 | BG60: 0 | BH60: 0 | BI60: 0 | BJ60: 0 | BK60: 0 | BL60: 0 | BM60: 0 | BN60: 0 | BO60: 0 | BP60: 0 | BQ60: 0 | BR60: 0 | BS60: 0 | BT60: 0 | BU60: 0 | BV60: 0 | BW60: 0 | BX60: 0 | BY60: 0 | BZ60: 0 | CA60: 0
A61: =ROW() -> 61 | C61: Out of Service Asset in AA6 | AM61: =AL136 -> 0 | AN61: 21.79382515 | AO61: 17.43506012 | AP61: 13.07629509 | AQ61: 8.717530062 | AR61: 4.358765031 | AS61: 0 | AT61: 0 | AU61: 0 | AV61: 0 | AW61: 0 | AX61: 0 | AY61: 0 | AZ61: 0 | BA61: 0 | BB61: 0 | BC61: 0 | BD61: 0 | BE61: 0 | BF61: 0 | BG61: 0 | BH61: 0 | BI61: 0 | BJ61: 0 | BK61: 0 | BL61: 0 | BM61: 0 | BN61: 0 | BO61: 0 | BP61: 0 | BQ61: 0 | BR61: 0 | BS61: 0 | BT61: 0 | BU61: 0 | BV61: 0 | BW61: 0 | BX61: 0 | BY61: 0 | BZ61: 0 | CA61: 0
A62: =ROW() -> 62 | C62: Out of Service Asset in AA7 | AR62: 0 | AS62: 1.306591568 | AT62: 1.045273254 | AU62: 0.7839549407 | AV62: 0.5226366271 | AW62: 0.2613183136 | AX62: 4.440892099e-16 | AY62: 4.440892099e-16 | AZ62: 4.440892099e-16 | BA62: 4.440892099e-16 | BB62: 4.440892099e-16 | BC62: 4.440892099e-16 | BD62: 4.440892099e-16 | BE62: 4.440892099e-16 | BF62: 4.440892099e-16 | BG62: 4.440892099e-16 | BH62: 4.440892099e-16 | BI62: 4.440892099e-16 | BJ62: 4.440892099e-16 | BK62: 4.440892099e-16 | BL62: 4.440892099e-16 | BM62: 4.440892099e-16 | BN62: 4.440892099e-16 | BO62: 4.440892099e-16 | BP62: 4.440892099e-16 | BQ62: 4.440892099e-16 | BR62: 4.440892099e-16 | BS62: 4.440892099e-16 | BT62: 4.440892099e-16 | BU62: 4.440892099e-16 | BV62: 4.440892099e-16 | BW62: 4.440892099e-16 | BX62: 4.440892099e-16 | BY62: 4.440892099e-16 | BZ62: 4.440892099e-16 | CA62: 4.440892099e-16
A63: =ROW() -> 63 | C63: Non-Depreciable | E63: 20.27452078 | I63: =H138 -> 20.67324215 | J63: 20.67324215 | K63: 20.67324215 | L63: 20.67324215 | M63: 20.67324215 | N63: 20.67324215 | O63: 17.18872998 | P63: 16.99560295 | Q63: 19.80407972 | R63: 21.94077127 | S63: 22.91841142 | T63: 24.07076277 | U63: 24.04798268 | V63: 23.99467429 | W63: 24.24557524 | X63: 24.24635728 | Y63: 24.24253649 | Z63: 24.32244576 | AA63: 24.32244576 | AB63: 24.32244576 | AC63: =AC197+AC275 -> 24.32244576 | AD63: =AC138 -> 24.32244576 | AE63: 24.32244576 | AF63: 24.32244576 | AG63: 24.32244576 | AH63: 24.32244576 | AI63: 24.32244576 | AJ63: 24.32244576 | AK63: 24.32244576 | AL63: 24.32244576 | AM63: 24.32244576 | AN63: 24.32244576 | AO63: 24.32244576 | AP63: 24.32244576 | AQ63: 24.32244576 | AR63: 24.32244576 | AS63: 24.32244576 | AT63: 24.32244576 | AU63: 24.32244576 | AV63: 24.32244576 | AW63: 24.32244576 | AX63: 24.32244576 | AY63: 24.32244576 | AZ63: 24.32244576 | BA63: 24.32244576 | BB63: 24.32244576 | BC63: 24.32244576 | BD63: 24.32244576 | BE63: 24.32244576 | BF63: 24.32244576 | BG63: 24.32244576 | BH63: 24.32244576 | BI63: 24.32244576 | BJ63: =BI138 -> 24.32244576 | BK63: 24.32244576 | BL63: 24.32244576 | BM63: 24.32244576 | BN63: 24.32244576 | BO63: 24.32244576 | BP63: 24.32244576 | BQ63: 24.32244576 | BR63: 24.32244576 | BS63: 24.32244576 | BT63: 24.32244576 | BU63: 24.32244576 | BV63: 24.32244576 | BW63: 24.32244576 | BX63: 24.32244576 | BY63: 24.32244576 | BZ63: 24.32244576 | CA63: 24.32244576
A64: =ROW() -> 64 | C64: Cost of Raising Equity | E64: -1.469981564e-15 | I64: 0 | J64: 0 | K64: 0 | L64: 0 | M64: 0 | N64: 0 | O64: 0 | P64: 0 | Q64: 0 | R64: 0 | S64: 0 | T64: 0 | U64: 0 | V64: 0 | W64: 0 | X64: 0 | Y64: 0 | Z64: 0 | AA64: -5.878239531e-16 | AB64: -1.175647906e-15 | AC64: =AC198+AC276 -> -1.763471859e-15 | AD64: -2.351295812e-15 | AE64: 2.361788011 | AF64: 4.082691594 | AG64: 5.591471173 | AH64: 7.235299153 | AI64: 8.686193004 | AJ64: 9.968865419 | AK64: 11.26797708 | AL64: 12.55391077 | AM64: 13.44286947 | AN64: 14.14636621 | AO64: 13.686489 | AP64: 13.2266118 | AQ64: 12.76673459 | AR64: 12.30685739 | AS64: 11.84698018 | AT64: 11.38710298 | AU64: 10.92722578 | AV64: 10.46734857 | AW64: 10.00747137 | AX64: 9.547594163 | AY64: 9.087716958 | AZ64: 8.627839754 | BA64: 8.16796255 | BB64: 7.708085345 | BC64: 7.248208141 | BD64: 6.788330937 | BE64: 6.328453732 | BF64: 5.868576528 | BG64: 5.408699324 | BH64: 4.948822119 | BI64: 4.488944915 | BJ64: 4.02906771 | BK64: 3.569190506 | BL64: 3.109313302 | BM64: 2.649436097 | BN64: 2.189558893 | BO64: 1.729681689 | BP64: 1.269804484 | BQ64: 0.8277316007 | BR64: 0.4835787615 | BS64: 0.2379698806 | BT64: 0.0811944255 | BU64: 0.007947597285 | BV64: -5.238864897e-15 | BW64: -5.238864897e-15 | BX64: -5.238864897e-15 | BY64: -5.238864897e-15 | BZ64: -5.238864897e-15 | CA64: -5.238864897e-15
A65: =ROW() -> 65 | C65: Total | I65: =SUM(I52:I64) -> 3129.785599 | J65: =SUM(J52:J64) -> 3063.189826 | K65: 2992.567321 | L65: 2917.510861 | M65: 2840.866618 | N65: 2768.186814 | O65: 2769.370696 | P65: 3312.495316 | Q65: 3240.256279 | R65: 4093.969607 | S65: 3993.067747 | T65: 4823.429476 | U65: 4867.991343 | V65: 4777.154392 | W65: 4670.86822 | X65: 4550.861182 | Y65: 4445.046251 | Z65: 4341.135531 | AA65: 4240.850765 | AB65: 4137.939484 | AC65: 4047.24151 | AD65: 3971.513312 | AE65: 3802.202775 | AF65: 3710.853965 | AG65: 3626.005416 | AH65: 3526.745564 | AI65: 3424.333546 | AJ65: 3318.261698 | AK65: 3223.92376 | AL65: 3120.480396 | AM65: 3009.542475 | AN65: 2881.16361 | AO65: 2729.296636 | AP65: 2581.60648 | AQ65: 2437.987065 | AR65: 2298.206336 | AS65: 2163.79289 | AT65: 2039.496474 | AU65: 1926.224568 | AV65: 1815.167049 | AW65: 1711.714395 | AX65: 1610.338404 | AY65: 1516.211986 | AZ65: 1423.433726 | BA65: 1331.240929 | BB65: 1239.561061 | BC65: 1148.261415 | BD65: 1057.378316 | BE65: 966.7205495 | BF65: 876.3956137 | BG65: 786.4662289 | BH65: 696.8345373 | BI65: 607.6057552 | BJ65: 518.6379534 | BK65: 429.9147946 | BL65: 364.8894014 | BM65: 323.4294649 | BN65: 282.0961266 | BO65: 241.1200135 | BP65: 200.4633813 | BQ65: 160.210054 | BR65: 120.345602 | BS65: 80.85144797 | BT65: 41.51224406 | BU65: 40.29308511 | BV65: =SUM(BV52:BV64) -> 39.16663622 | BW65: 38.04834136 | BX65: 36.93273978 | BY65: 35.81760706 | BZ65: 34.70247434 | CA65: 33.58734162
A66: =ROW() -> 66 | B66: Capex | H66: Check | I66: =IF(ROUND(I65-I199-I277,6)=0,"OK","Wrong") -> OK | J66: OK | K66: OK | L66: OK | M66: OK | N66: OK | O66: OK | P66: OK | Q66: OK | R66: OK | S66: OK | T66: OK | U66: OK | V66: OK | W66: OK | X66: OK | Y66: OK | Z66: OK | AA66: OK | AB66: OK | AC66: OK | AD66: OK | AE66: OK | AF66: OK | AG66: OK | AH66: OK | AI66: OK | AJ66: OK | AK66: OK | AL66: OK | AM66: OK | AN66: OK | AO66: =IF(ROUND(AO65-AO199-AO277,6)=0,"OK","Wrong") -> OK | AP66: OK | AQ66: OK | AR66: OK | AS66: OK | AT66: OK | AU66: OK | AV66: OK | AW66: OK | AX66: OK | AY66: OK | AZ66: OK | BA66: OK | BB66: OK | BC66: OK | BD66: OK | BE66: OK | BF66: OK | BG66: OK | BH66: OK | BI66: OK | BJ66: OK | BK66: OK | BL66: OK | BM66: OK | BN66: OK | BO66: OK | BP66: OK | BQ66: OK | BR66: OK | BS66: OK | BT66: OK | BU66: =IF(ROUND(BU65-BU199-BU277,6)=0,"OK","Wrong") -> OK | BV66: OK | BW66: OK | BX66: OK | BY66: OK | BZ66: OK | CA66: OK
A67: =ROW() -> 67 | C67: Pipeline | I67: =I279 -> 2.648680251 | J67: =J279 -> 0.05569959022 | K67: 0.1148545861 | L67: 3.709637275e-05 | M67: 1.062594025 | N67: 12.36884339 | O67: 370.4473496 | P67: 1.79429839 | Q67: 745.0243793 | R67: 0 | S67: 705.6120036 | T67: 64.41273925 | U67: 19.96171973 | V67: 6.240390763 | W67: 0.7622936279 | X67: 3.334304305 | Y67: 0 | Z67: 0 | AA67: 0.1041326109 | AB67: 0.01065431531 | AC67: 0.1046210916 | AD67: 0 | AE67: 2.461754012 | AF67: 1.089452139 | AG67: 0.02143442 | AH67: 0 | AI67: 0.1869481968 | AJ67: 0.1874241064 | AK67: 0.1879012274 | AL67: 0.2896588981 | AM67: 0.1888591164 | AN67: 0 | AO67: 0 | AP67: 0 | AQ67: 0 | AR67: 0 | AS67: 0 | AT67: 0 | AU67: 0 | AV67: 0 | AW67: 0 | AX67: 0 | AY67: 0 | AZ67: 0 | BA67: 0 | BB67: 0 | BC67: 0 | BD67: 0 | BE67: 0 | BF67: 0 | BG67: 0 | BH67: 0 | BI67: 0 | BJ67: 0 | BK67: 0 | BL67: 0 | BM67: 0 | BN67: 0 | BO67: 0 | BP67: 0 | BQ67: 0 | BR67: 0 | BS67: 0 | BT67: 0 | BU67: 0 | BV67: =BV279 -> 0 | BW67: 0 | BX67: 0 | BY67: 0 | BZ67: 0 | CA67: 0
A68: =ROW() -> 68 | C68: Compression | I68: -3.80935428 | J68: =J280 -> 2.455869044 | K68: 0.1496595711 | L68: -0.2014467808 | M68: 0.3138173474 | N68: 68.58023071 | O68: 247.6871619 | P68: 0.2124233856 | Q68: 191.4514042 | R68: 0 | S68: 159.5063842 | T68: 42.72469377 | U68: 11.33796704 | V68: 7.386611567 | W68: 3.998835026 | X68: 5.755553733 | Y68: 3.055747289 | Z68: 5.741836362 | AA68: 3.477937122 | AB68: 2.295862081 | AC68: 2.465039174 | AD68: 3.175846071 | AE68: 4.145560534 | AF68: 5.137415025 | AG68: 1.63306943 | AH68: 1.274112 | AI68: 6.677869999 | AJ68: 5.788180386 | AK68: 6.639782836 | AL68: 4.570736388 | AM68: 4.065344786 | AN68: 0 | AO68: 0 | AP68: 0 | AQ68: 0 | AR68: 0 | AS68: 0 | AT68: 0 | AU68: 0 | AV68: 0 | AW68: 0 | AX68: 0 | AY68: 0 | AZ68: 0 | BA68: 0 | BB68: 0 | BC68: 0 | BD68: 0 | BE68: 0 | BF68: 0 | BG68: 0 | BH68: 0 | BI68: 0 | BJ68: 0 | BK68: 0 | BL68: 0 | BM68: 0 | BN68: 0 | BO68: 0 | BP68: 0 | BQ68: 0 | BR68: 0 | BS68: 0 | BT68: 0 | BU68: 0 | BV68: 0 | BW68: 0 | BX68: 0 | BY68: 0 | BZ68: 0 | CA68: 0
A69: =ROW() -> 69 | C69: Metering | I69: 1.091070897 | J69: =J281 -> 0.9987010648 | K69: 0.643016416 | L69: -0.05574491586 | M69: 2.857395515 | N69: 0 | O69: 0 | P69: 0 | Q69: 0 | R69: 0.1126223457 | S69: 6.848649831 | T69: 0.4883320314 | U69: 2.528004758 | V69: 1.269459557 | W69: 1.567527208 | X69: 4.708357849 | Y69: 4.196399795 | Z69: 4.399515057 | AA69: 8.305883627 | AB69: 6.482054156 | AC69: 9.820693568 | AD69: 4.693921723 | AE69: 2.891872308 | AF69: 3.557730462 | AG69: 3.33249054 | AH69: 2.523836 | AI69: 4.03888513 | AJ69: 3.796245045 | AK69: 4.925234646 | AL69: 4.157921819 | AM69: 4.087276813 | AN69: 0 | AO69: 0 | AP69: 0 | AQ69: 0 | AR69: 0 | AS69: 0 | AT69: 0 | AU69: 0 | AV69: 0 | AW69: 0 | AX69: 0 | AY69: 0 | AZ69: 0 | BA69: 0 | BB69: 0 | BC69: 0 | BD69: 0 | BE69: 0 | BF69: 0 | BG69: 0 | BH69: 0 | BI69: 0 | BJ69: 0 | BK69: 0 | BL69: 0 | BM69: 0 | BN69: 0 | BO69: 0 | BP69: 0 | BQ69: 0 | BR69: 0 | BS69: 0 | BT69: 0 | BU69: 0 | BV69: 0 | BW69: 0 | BX69: 0 | BY69: 0 | BZ69: 0 | CA69: 0
A70: =ROW() -> 70 | C70: Other Depreciable | I70: 9.725606185 | J70: =J282 -> 2.536729363 | K70: 1.347287479 | L70: 1.615281234 | M70: 1.541967495 | N70: 5.857739074 | O70: 1.265812542 | P70: 3.364327857 | Q70: 8.50353978 | R70: 0.8046692374 | S70: 18.32946768 | T70: 65.31604876 | U70: 6.063779534 | V70: 11.02932809 | W70: 9.763899678 | X70: 14.94486675 | Y70: 2.847452655 | Z70: 5.982569539 | AA70: 2.1320681 | AB70: 3.210766059 | AC70: 4.770642893 | AD70: 2.860349128 | AE70: 2.685749091 | AF70: 0.5280493885 | AG70: 1.81141554 | AH70: 1.787763 | AI70: 1.352861683 | AJ70: 1.648526011 | AK70: 1.076896282 | AL70: 1.283209174 | AM70: 1.082386119 | AN70: 0 | AO70: 0 | AP70: 0 | AQ70: 0 | AR70: 0 | AS70: 0 | AT70: 0 | AU70: 0 | AV70: 0 | AW70: 0 | AX70: 0 | AY70: 0 | AZ70: 0 | BA70: 0 | BB70: 0 | BC70: 0 | BD70: 0 | BE70: 0 | BF70: 0 | BG70: 0 | BH70: 0 | BI70: 0 | BJ70: 0 | BK70: 0 | BL70: 0 | BM70: 0 | BN70: 0 | BO70: 0 | BP70: 0 | BQ70: 0 | BR70: 0 | BS70: 0 | BT70: 0 | BU70: 0 | BV70: 0 | BW70: 0 | BX70: 0 | BY70: 0 | BZ70: 0 | CA70: 0
A71: =ROW() -> 71 | C71: Computers and Motor Vehicles | I71: 0 | J71: =J283 -> 0 | K71: 0 | L71: 0 | M71: 0 | N71: 0 | O71: 0 | P71: 0 | Q71: 0 | R71: 0 | S71: 0 | T71: 0 | U71: 0 | V71: 0 | W71: 0 | X71: 0 | Y71: 4.19029705 | Z71: 3.059329739 | AA71: 3.624088956 | AB71: 3.024554815 | AC71: 5.233800297 | AD71: 17.31175159 | AE71: 7.141875362 | AF71: 18.22745785 | AG71: 5.14726186 | AH71: 9.199432 | AI71: 17.26243898 | AJ71: 11.26850334 | AK71: 7.717245517 | AL71: 11.10626511 | AM71: 6.793488923 | AN71: 0 | AO71: 0 | AP71: 0 | AQ71: 0 | AR71: 0 | AS71: 0 | AT71: 0 | AU71: 0 | AV71: 0 | AW71: 0 | AX71: 0 | AY71: 0 | AZ71: 0 | BA71: 0 | BB71: 0 | BC71: 0 | BD71: 0 | BE71: 0 | BF71: 0 | BG71: 0 | BH71: 0 | BI71: 0 | BJ71: 0 | BK71: 0 | BL71: 0 | BM71: 0 | BN71: 0 | BO71: 0 | BP71: 0 | BQ71: 0 | BR71: 0 | BS71: 0 | BT71: 0 | BU71: 0 | BV71: 0 | BW71: 0 | BX71: 0 | BY71: 0 | BZ71: 0 | CA71: 0
A72: =ROW() -> 72 | C72: Cathodic/Corrosion Protection | I72: 0 | J72: =J284 -> 0 | K72: 0 | L72: 0 | M72: 0 | N72: 0 | O72: 0 | P72: 0 | Q72: 0 | R72: 0 | S72: 0 | T72: 0 | U72: 0 | V72: 0 | W72: 0 | X72: 0 | Y72: 1.059479029 | Z72: 1.891195163 | AA72: 5.918182486 | AB72: 8.837427831 | AC72: 4.602614344 | AD72: 4.771346388 | AE72: 6.125224258 | AF72: 6.946485548 | AG72: 3.87372094 | AH72: 3.033983 | AI72: 5.28495567 | AJ72: 4.737547855 | AK72: 4.363198335 | AL72: 4.257809069 | AM72: 4.167110912 | AN72: 0 | AO72: 0 | AP72: 0 | AQ72: 0 | AR72: 0 | AS72: 0 | AT72: 0 | AU72: 0 | AV72: 0 | AW72: 0 | AX72: 0 | AY72: 0 | AZ72: 0 | BA72: 0 | BB72: 0 | BC72: 0 | BD72: 0 | BE72: 0 | BF72: 0 | BG72: 0 | BH72: 0 | BI72: 0 | BJ72: 0 | BK72: 0 | BL72: 0 | BM72: 0 | BN72: 0 | BO72: 0 | BP72: 0 | BQ72: 0 | BR72: =BR284 -> 0 | BS72: 0 | BT72: 0 | BU72: 0 | BV72: 0 | BW72: 0 | BX72: 0 | BY72: 0 | BZ72: 0 | CA72: 0
A73: =ROW() -> 73 | C73: SCADA , ECI And Comms | I73: 0 | J73: =J285 -> 0 | K73: 0 | L73: 0 | M73: 0 | N73: 0 | O73: 0 | P73: 0 | Q73: 0 | R73: 0 | S73: 0 | T73: 0 | U73: 0 | V73: 0 | W73: 0 | X73: 0 | Y73: 6.625312635 | Z73: 7.745104865 | AA73: 3.516705726 | AB73: 7.83245701 | AC73: 8.107790888 | AD73: 9.246787072 | AE73: 16.52377799 | AF73: 16.66682075 | AG73: 20.92725167 | AH73: 15.120003 | AI73: =AI285 -> 16.99173267 | AJ73: 15.96381279 | AK73: 15.72843317 | AL73: 16.88130093 | AM73: 12.88893033 | AN73: 0 | AO73: 0 | AP73: 0 | AQ73: 0 | AR73: 0 | AS73: 0 | AT73: 0 | AU73: 0 | AV73: 0 | AW73: 0 | AX73: 0 | AY73: 0 | AZ73: 0 | BA73: 0 | BB73: 0 | BC73: 0 | BD73: 0 | BE73: 0 | BF73: 0 | BG73: 0 | BH73: 0 | BI73: 0 | BJ73: 0 | BK73: 0 | BL73: 0 | BM73: 0 | BN73: 0 | BO73: 0 | BP73: 0 | BQ73: 0 | BR73: 0 | BS73: 0 | BT73: 0 | BU73: 0 | BV73: 0 | BW73: 0 | BX73: 0 | BY73: 0 | BZ73: 0 | CA73: 0
A74: =ROW() -> 74 | C74: Building | I74: 0 | J74: =J286 -> 0 | K74: 0 | L74: 0 | M74: 0 | N74: 0 | O74: 0 | P74: 0 | Q74: 0 | R74: 0 | S74: 0 | T74: 4.247566484 | U74: 2.212657189 | V74: 1.456171807 | W74: 0.01122401976 | X74: 0.1454368945 | Y74: 0.02488543455 | Z74: 0 | AA74: 0 | AB74: 0 | AC74: 0 | AD74: 0.5733165715 | AE74: 1.15785102 | AF74: -0.1688355641 | AG74: 0.98097903 | AH74: 3.338787 | AI74: =AI286 -> 1.407136965 | AJ74: 23.37798769 | AK74: 17.77987482 | AL74: 6.583156774 | AM74: 1.163615846 | AN74: 0 | AO74: 0 | AP74: 0 | AQ74: 0 | AR74: 0 | AS74: 0 | AT74: 0 | AU74: 0 | AV74: 0 | AW74: 0 | AX74: 0 | AY74: 0 | AZ74: 0 | BA74: 0 | BB74: 0 | BC74: 0 | BD74: 0 | BE74: 0 | BF74: 0 | BG74: 0 | BH74: 0 | BI74: 0 | BJ74: 0 | BK74: 0 | BL74: 0 | BM74: 0 | BN74: 0 | BO74: 0 | BP74: 0 | BQ74: 0 | BR74: 0 | BS74: 0 | BT74: 0 | BU74: 0 | BV74: 0 | BW74: 0 | BX74: 0 | BY74: 0 | BZ74: 0 | CA74: 0
A75: =ROW() -> 75 | C75: Out of Service Asset in AA5 | I75: 0 | J75: =J287 -> 0 | K75: 0 | L75: 0 | M75: 0 | N75: 0 | O75: 0 | P75: 0 | Q75: 0 | R75: 0 | S75: 0 | T75: 0 | U75: 0 | V75: 0 | W75: 0 | X75: 0 | Y75: 0 | Z75: 0 | AA75: 0 | AB75: 0 | AC75: 0 | AD75: 0 | AE75: 0 | AF75: 0 | AG75: 0 | AH75: 0 | AI75: =AI287 -> 0 | AJ75: 0 | AK75: 0 | AL75: 0 | AM75: 0 | AN75: 0 | AO75: 0 | AP75: 0 | AQ75: 0 | AR75: 0 | AS75: 0 | AT75: 0 | AU75: 0 | AV75: 0 | AW75: 0 | AX75: 0 | AY75: 0 | AZ75: 0 | BA75: 0 | BB75: 0 | BC75: 0 | BD75: 0 | BE75: 0 | BF75: 0 | BG75: 0 | BH75: 0 | BI75: 0 | BJ75: 0 | BK75: 0 | BL75: 0 | BM75: 0 | BN75: 0 | BO75: 0 | BP75: 0 | BQ75: 0 | BR75: 0 | BS75: 0 | BT75: 0 | BU75: 0 | BV75: 0 | BW75: 0 | BX75: 0 | BY75: 0 | BZ75: 0 | CA75: 0
A76: =ROW() -> 76 | C76: Out of Service Asset in AA6
A77: =ROW() -> 77 | C77: Out of Service Asset in AA7
A78: =ROW() -> 78 | C78: Non-Depreciable | I78: =I290 -> 0 | J78: 0 | K78: 0 | L78: 0 | M78: 0 | N78: 0 | O78: -0.1931270355 | P78: 2.808476777 | Q78: 2.136691542 | R78: 0.9776401571 | S78: 0.9592243124 | T78: -0.02278008778 | U78: -0.05330839248 | V78: 0.2509009514 | W78: 0.0007820339537 | X78: -0.003820781679 | Y78: 0 | Z78: 0 | AA78: 0 | AB78: 0 | AC78: 0 | AD78: 0 | AE78: 0 | AF78: 0 | AG78: 0 | AH78: 0 | AI78: =AI290 -> 0 | AJ78: 0 | AK78: 0 | AL78: 0 | AM78: 0 | AN78: 0 | AO78: 0 | AP78: 0 | AQ78: 0 | AR78: 0 | AS78: 0 | AT78: 0 | AU78: 0 | AV78: 0 | AW78: 0 | AX78: 0 | AY78: 0 | AZ78: 0 | BA78: 0 | BB78: 0 | BC78: 0 | BD78: 0 | BE78: 0 | BF78: 0 | BG78: 0 | BH78: 0 | BI78: 0 | BJ78: 0 | BK78: 0 | BL78: 0 | BM78: 0 | BN78: 0 | BO78: 0 | BP78: 0 | BQ78: 0 | BR78: =BR290 -> 0 | BS78: 0 | BT78: 0 | BU78: 0 | BV78: 0 | BW78: 0 | BX78: 0 | BY78: 0 | BZ78: 0 | CA78: 0
A79: =ROW() -> 79 | C79: Cost of Raising Equity | I79: 0 | J79: 0 | K79: 0 | L79: 0 | M79: 0 | N79: 0 | O79: 0 | P79: 0 | Q79: 0 | R79: 0 | S79: 0 | T79: 0 | U79: 0 | V79: 0 | W79: 0 | X79: 0 | Y79: 0 | Z79: 0 | AA79: 0 | AB79: 0 | AC79: 0 | AD79: =AD291 -> 2.361788011 | AE79: 1.782756309 | AF79: 1.617320804 | AG79: 1.794725124 | AH79: 1.648792945 | AI79: 1.52375165 | AJ79: 1.586904718 | AK79: 1.622376645 | AL79: 1.275139032 | AM79: 1.128769147 | AN79: 0 | AO79: 0 | AP79: 0 | AQ79: 0 | AR79: 0 | AS79: 0 | AT79: 0 | AU79: 0 | AV79: 0 | AW79: 0 | AX79: 0 | AY79: 0 | AZ79: 0 | BA79: 0 | BB79: 0 | BC79: 0 | BD79: 0 | BE79: 0 | BF79: 0 | BG79: 0 | BH79: 0 | BI79: 0 | BJ79: 0 | BK79: 0 | BL79: 0 | BM79: 0 | BN79: 0 | BO79: 0 | BP79: 0 | BQ79: 0 | BR79: 0 | BS79: 0 | BT79: 0 | BU79: 0 | BV79: 0 | BW79: 0 | BX79: 0 | BY79: 0 | BZ79: 0 | CA79: 0
A80: =ROW() -> 80 | C80: Total | I80: =SUM(I67:I79) -> 9.656003053 | J80: 6.046999062 | K80: 2.254818053 | L80: 1.358126634 | M80: 5.775774382 | N80: 86.80681318 | O80: 619.207197 | P80: 8.179526411 | Q80: 947.1160149 | R80: 1.89493174 | S80: 891.2557296 | T80: 177.1666002 | U80: 42.05081985 | V80: 27.63286273 | W80: 16.10456159 | X80: 28.88469875 | Y80: 21.99957389 | Z80: 28.81955073 | AA80: 27.07899863 | AB80: 31.69377627 | AC80: 35.10520226 | AD80: 44.99510655 | AE80: 44.91642089 | AF80: 53.6018964 | AG80: 39.52234855 | AH80: 37.92670895 | AI80: 54.72658094 | AJ80: 68.35513194 | AK80: 60.04094348 | AL80: 50.40519719 | AM80: 35.56578199 | AN80: 0 | AO80: =SUM(AO67:AO79) -> 0 | AP80: 0 | AQ80: 0 | AR80: 0 | AS80: 0 | AT80: 0 | AU80: 0 | AV80: 0 | AW80: 0 | AX80: 0 | AY80: 0 | AZ80: 0 | BA80: 0 | BB80: 0 | BC80: 0 | BD80: 0 | BE80: 0 | BF80: 0 | BG80: 0 | BH80: 0 | BI80: 0 | BJ80: 0 | BK80: 0 | BL80: 0 | BM80: 0 | BN80: 0 | BO80: 0 | BP80: 0 | BQ80: 0 | BR80: 0 | BS80: 0 | BT80: 0 | BU80: =SUM(BU67:BU79) -> 0 | BV80: 0 | BW80: 0 | BX80: 0 | BY80: 0 | BZ80: 0 | CA80: 0
A81: =ROW() -> 81 | B81: Redundant or Disposed | H81: Check | I81: =IF(ROUND(I80-Inputs!I838,6)=0,"OK","Wrong") -> OK | J81: =IF(ROUND(J80-Inputs!J838,6)=0,"OK","Wrong") -> OK | K81: =IF(ROUND(K80-Inputs!K838,6)=0,"OK","Wrong") -> OK | L81: =IF(ROUND(L80-Inputs!L838,6)=0,"OK","Wrong") -> OK | M81: =IF(ROUND(M80-Inputs!M838,6)=0,"OK","Wrong") -> OK | N81: =IF(ROUND(N80-Inputs!N838,6)=0,"OK","Wrong") -> OK | O81: =IF(ROUND(O80-Inputs!O838,6)=0,"OK","Wrong") -> OK | P81: =IF(ROUND(P80-Inputs!P838,6)=0,"OK","Wrong") -> OK | Q81: =IF(ROUND(Q80-Inputs!Q838,6)=0,"OK","Wrong") -> OK | R81: =IF(ROUND(R80-Inputs!R838,6)=0,"OK","Wrong") -> OK | S81: =IF(ROUND(S80-Inputs!S838,6)=0,"OK","Wrong") -> OK | T81: =IF(ROUND(T80-Inputs!T838,6)=0,"OK","Wrong") -> OK | U81: =IF(ROUND(U80-Inputs!U838,6)=0,"OK","Wrong") -> OK | V81: =IF(ROUND(V80-Inputs!V838,6)=0,"OK","Wrong") -> OK | W81: =IF(ROUND(W80-Inputs!W838,6)=0,"OK","Wrong") -> OK | X81: =IF(ROUND(X80-Inputs!X838,6)=0,"OK","Wrong") -> OK | Y81: =IF(ROUND(Y80-Inputs!Y838,6)=0,"OK","Wrong") -> OK | Z81: =IF(ROUND(Z80-Inputs!Z838,6)=0,"OK","Wrong") -> OK | AA81: =IF(ROUND(AA80-Inputs!AA838,6)=0,"OK","Wrong") -> OK | AB81: =IF(ROUND(AB80-Inputs!AB838,6)=0,"OK","Wrong") -> OK | AC81: =IF(ROUND(AC80-Inputs!AC838,6)=0,"OK","Wrong") -> OK | AD81: =IF(ROUND(AD80-Inputs!AD838,6)=0,"OK","Wrong") -> OK | AE81: =IF(ROUND(AE80-Inputs!AE838,6)=0,"OK","Wrong") -> OK | AF81: =IF(ROUND(AF80-Inputs!AF838,6)=0,"OK","Wrong") -> OK | AG81: =IF(ROUND(AG80-Inputs!AG838,6)=0,"OK","Wrong") -> OK | AH81: =IF(ROUND(AH80-Inputs!AH838,6)=0,"OK","Wrong") -> OK | AI81: =IF(ROUND(AI80-Inputs!AI838,6)=0,"OK","Wrong") -> OK | AJ81: =IF(ROUND(AJ80-Inputs!AJ838,6)=0,"OK","Wrong") -> OK | AK81: =IF(ROUND(AK80-Inputs!AK838,6)=0,"OK","Wrong") -> OK | AL81: =IF(ROUND(AL80-Inputs!AL838,6)=0,"OK","Wrong") -> OK | AM81: =IF(ROUND(AM80-Inputs!AM838,6)=0,"OK","Wrong") -> OK | AN81: =IF(ROUND(AN80-Inputs!AN838,6)=0,"OK","Wrong") -> OK | AO81: =IF(ROUND(AO80-Inputs!AO838,6)=0,"OK","Wrong") -> OK | AP81: =IF(ROUND(AP80-Inputs!AP838,6)=0,"OK","Wrong") -> OK | AQ81: =IF(ROUND(AQ80-Inputs!AQ838,6)=0,"OK","Wrong") -> OK | AR81: =IF(ROUND(AR80-Inputs!AR838,6)=0,"OK","Wrong") -> OK | AS81: =IF(ROUND(AS80-Inputs!AS838,6)=0,"OK","Wrong") -> OK | AT81: =IF(ROUND(AT80-Inputs!AT838,6)=0,"OK","Wrong") -> OK | AU81: =IF(ROUND(AU80-Inputs!AU838,6)=0,"OK","Wrong") -> OK | AV81: =IF(ROUND(AV80-Inputs!AV838,6)=0,"OK","Wrong") -> OK | AW81: =IF(ROUND(AW80-Inputs!AW838,6)=0,"OK","Wrong") -> OK | AX81: =IF(ROUND(AX80-Inputs!AX838,6)=0,"OK","Wrong") -> OK | AY81: =IF(ROUND(AY80-Inputs!AY838,6)=0,"OK","Wrong") -> OK | AZ81: =IF(ROUND(AZ80-Inputs!AZ838,6)=0,"OK","Wrong") -> OK | BA81: =IF(ROUND(BA80-Inputs!BA838,6)=0,"OK","Wrong") -> OK | BB81: =IF(ROUND(BB80-Inputs!BB838,6)=0,"OK","Wrong") -> OK | BC81: =IF(ROUND(BC80-Inputs!BC838,6)=0,"OK","Wrong") -> OK | BD81: =IF(ROUND(BD80-Inputs!BD838,6)=0,"OK","Wrong") -> OK | BE81: =IF(ROUND(BE80-Inputs!BE838,6)=0,"OK","Wrong") -> OK | BF81: =IF(ROUND(BF80-Inputs!BF838,6)=0,"OK","Wrong") -> OK | BG81: =IF(ROUND(BG80-Inputs!BG838,6)=0,"OK","Wrong") -> OK | BH81: =IF(ROUND(BH80-Inputs!BH838,6)=0,"OK","Wrong") -> OK | BI81: =IF(ROUND(BI80-Inputs!BI838,6)=0,"OK","Wrong") -> OK | BJ81: =IF(ROUND(BJ80-Inputs!BJ838,6)=0,"OK","Wrong") -> OK | BK81: =IF(ROUND(BK80-Inputs!BK838,6)=0,"OK","Wrong") -> OK | BL81: =IF(ROUND(BL80-Inputs!BL838,6)=0,"OK","Wrong") -> OK | BM81: =IF(ROUND(BM80-Inputs!BM838,6)=0,"OK","Wrong") -> OK | BN81: =IF(ROUND(BN80-Inputs!BN838,6)=0,"OK","Wrong") -> OK | BO81: =IF(ROUND(BO80-Inputs!BO838,6)=0,"OK","Wrong") -> OK | BP81: =IF(ROUND(BP80-Inputs!BP838,6)=0,"OK","Wrong") -> OK | BQ81: =IF(ROUND(BQ80-Inputs!BQ838,6)=0,"OK","Wrong") -> OK | BR81: =IF(ROUND(BR80-Inputs!BR838,6)=0,"OK","Wrong") -> OK | BS81: =IF(ROUND(BS80-Inputs!BS838,6)=0,"OK","Wrong") -> OK | BT81: =IF(ROUND(BT80-Inputs!BT838,6)=0,"OK","Wrong") -> OK | BU81: =IF(ROUND(BU80-Inputs!BU838,6)=0,"OK","Wrong") -> OK | BV81: =IF(ROUND(BV80-Inputs!BV838,6)=0,"OK","Wrong") -> OK | BW81: =IF(ROUND(BW80-Inputs!BW838,6)=0,"OK","Wrong") -> OK | BX81: =IF(ROUND(BX80-Inputs!BX838,6)=0,"OK","Wrong") -> OK | BY81: =IF(ROUND(BY80-Inputs!BY838,6)=0,"OK","Wrong") -> OK | BZ81: =IF(ROUND(BZ80-Inputs!BZ838,6)=0,"OK","Wrong") -> OK | CA81: =IF(ROUND(CA80-Inputs!CA838,6)=0,"OK","Wrong") -> OK
A82: =ROW() -> 82 | C82: Pipeline | I82: =I201+I294 -> 0 | J82: 0 | K82: 0 | L82: 0 | M82: 0 | N82: 0 | O82: 0 | P82: 0 | Q82: 0 | R82: 0 | S82: 0 | T82: 0 | U82: 0 | V82: 0 | W82: 0 | X82: 0 | Y82: 0 | Z82: 0 | AA82: 0 | AB82: 0 | AC82: 0 | AD82: 0 | AE82: 0 | AF82: 0 | AG82: 0 | AH82: 0 | AI82: 0 | AJ82: 0 | AK82: 0 | AL82: 0 | AM82: 0 | AN82: 0 | AO82: =AO201+AO294 -> 0 | AP82: 0 | AQ82: 0 | AR82: 0 | AS82: 0 | AT82: 0 | AU82: 0 | AV82: 0 | AW82: 0 | AX82: 0 | AY82: 0 | AZ82: 0 | BA82: 0 | BB82: 0 | BC82: 0 | BD82: 0 | BE82: 0 | BF82: 0 | BG82: 0 | BH82: 0 | BI82: 0 | BJ82: 0 | BK82: 0 | BL82: 0 | BM82: 0 | BN82: 0 | BO82: 0 | BP82: 0 | BQ82: 0 | BR82: 0 | BS82: 0 | BT82: 0 | BU82: =BU201+BU294 -> 0 | BV82: 0 | BW82: 0 | BX82: 0 | BY82: 0 | BZ82: 0 | CA82: 0
A83: =ROW() -> 83 | C83: Compression | I83: =I202+I295 -> 0 | J83: 0 | K83: 0 | L83: 0 | M83: 0 | N83: -6.429865659 | O83: 0 | P83: 0 | Q83: 0 | R83: 0 | S83: 0 | T83: -0.1071988769 | U83: 0 | V83: -0.01920889377 | W83: -0.02332512603 | X83: -0.3568897454 | Y83: 0 | Z83: 0 | AA83: 0 | AB83: 0 | AC83: 0 | AD83: 0 | AE83: 0 | AF83: 0 | AG83: 0 | AH83: 0 | AI83: 0 | AJ83: 0 | AK83: 0 | AL83: 0 | AM83: 0 | AN83: 0 | AO83: =AO202+AO295 -> 0 | AP83: 0 | AQ83: 0 | AR83: 0 | AS83: 0 | AT83: 0 | AU83: 0 | AV83: 0 | AW83: 0 | AX83: 0 | AY83: 0 | AZ83: 0 | BA83: 0 | BB83: 0 | BC83: 0 | BD83: 0 | BE83: 0 | BF83: 0 | BG83: 0 | BH83: 0 | BI83: 0 | BJ83: 0 | BK83: 0 | BL83: 0 | BM83: 0 | BN83: 0 | BO83: 0 | BP83: 0 | BQ83: 0 | BR83: 0 | BS83: 0 | BT83: 0 | BU83: =BU202+BU295 -> 0 | BV83: 0 | BW83: 0 | BX83: 0 | BY83: 0 | BZ83: 0 | CA83: 0
A84: =ROW() -> 84 | C84: Metering | I84: =I203+I296 -> 0 | J84: 0 | K84: 0 | L84: 0 | M84: 0 | N84: 0 | O84: 0 | P84: 0 | Q84: 0 | R84: 0 | S84: 0 | T84: 0 | U84: 0 | V84: 0 | W84: -2.205874191 | X84: 0 | Y84: 0 | Z84: 0 | AA84: 0 | AB84: 0 | AC84: 0 | AD84: 0 | AE84: 0 | AF84: 0 | AG84: 0 | AH84: 0 | AI84: 0 | AJ84: 0 | AK84: 0 | AL84: 0 | AM84: 0 | AN84: 0 | AO84: =AO203+AO296 -> 0 | AP84: 0 | AQ84: 0 | AR84: 0 | AS84: 0 | AT84: 0 | AU84: 0 | AV84: 0 | AW84: 0 | AX84: 0 | AY84: 0 | AZ84: 0 | BA84: 0 | BB84: 0 | BC84: 0 | BD84: 0 | BE84: 0 | BF84: 0 | BG84: 0 | BH84: 0 | BI84: 0 | BJ84: 0 | BK84: 0 | BL84: 0 | BM84: 0 | BN84: 0 | BO84: 0 | BP84: 0 | BQ84: 0 | BR84: 0 | BS84: 0 | BT84: 0 | BU84: =BU203+BU296 -> 0 | BV84: 0 | BW84: 0 | BX84: 0 | BY84: 0 | BZ84: 0 | CA84: 0
A85: =ROW() -> 85 | C85: Other Depreciable | I85: =I204+I297 -> 0 | J85: 0 | K85: 0 | L85: 0 | M85: 0 | N85: -0.1153009579 | O85: 0 | P85: -0.05044007057 | Q85: -0.03811346199 | R85: -0.1216990945 | S85: -0.01594892638 | T85: -6.067815786 | U85: -0.5074146548 | V85: -0.991615715 | W85: -0.6225207546 | X85: -0.6457426656 | Y85: 0 | Z85: 0 | AA85: 0 | AB85: 0 | AC85: 0 | AD85: 0 | AE85: 0 | AF85: 0 | AG85: 0 | AH85: 0 | AI85: 0 | AJ85: 0 | AK85: 0 | AL85: 0 | AM85: 0 | AN85: 0 | AO85: =AO204+AO297 -> 0 | AP85: 0 | AQ85: 0 | AR85: 0 | AS85: 0 | AT85: 0 | AU85: 0 | AV85: 0 | AW85: 0 | AX85: 0 | AY85: 0 | AZ85: 0 | BA85: 0 | BB85: 0 | BC85: 0 | BD85: 0 | BE85: 0 | BF85: 0 | BG85: 0 | BH85: 0 | BI85: 0 | BJ85: 0 | BK85: 0 | BL85: 0 | BM85: 0 | BN85: 0 | BO85: 0 | BP85: 0 | BQ85: 0 | BR85: 0 | BS85: 0 | BT85: =BT204+BT297 -> 0 | BU85: =BU204+BU297 -> 0 | BV85: 0 | BW85: 0 | BX85: 0 | BY85: 0 | BZ85: 0 | CA85: 0
A86: =ROW() -> 86 | C86: Computers and Motor Vehicles | I86: =I205+I298 -> 0 | J86: 0 | K86: 0 | L86: 0 | M86: 0 | N86: 0 | O86: 0 | P86: 0 | Q86: 0 | R86: 0 | S86: 0 | T86: 0 | U86: 0 | V86: 0 | W86: 0 | X86: 0 | Y86: 0 | Z86: 0 | AA86: 0 | AB86: 0 | AC86: 0 | AD86: 0 | AE86: 0 | AF86: 0 | AG86: 0 | AH86: 0 | AI86: 0 | AJ86: 0 | AK86: 0 | AL86: 0 | AM86: 0 | AN86: 0 | AO86: =AO205+AO298 -> 0 | AP86: 0 | AQ86: 0 | AR86: 0 | AS86: 0 | AT86: 0 | AU86: 0 | AV86: 0 | AW86: 0 | AX86: 0 | AY86: 0 | AZ86: 0 | BA86: 0 | BB86: 0 | BC86: 0 | BD86: 0 | BE86: 0 | BF86: 0 | BG86: 0 | BH86: 0 | BI86: 0 | BJ86: 0 | BK86: 0 | BL86: 0 | BM86: 0 | BN86: 0 | BO86: 0 | BP86: 0 | BQ86: 0 | BR86: 0 | BS86: 0 | BT86: =BT205+BT298 -> 0 | BU86: 0 | BV86: 0 | BW86: 0 | BX86: 0 | BY86: 0 | BZ86: 0 | CA86: 0
A87: =ROW() -> 87 | C87: Cathodic/Corrosion Protection | I87: =I206+I299 -> 0 | J87: 0 | K87: 0 | L87: 0 | M87: 0 | N87: 0 | O87: 0 | P87: 0 | Q87: 0 | R87: 0 | S87: 0 | T87: 0 | U87: 0 | V87: 0 | W87: 0 | X87: 0 | Y87: 0 | Z87: 0 | AA87: 0 | AB87: 0 | AC87: 0 | AD87: 0 | AE87: 0 | AF87: 0 | AG87: 0 | AH87: 0 | AI87: 0 | AJ87: 0 | AK87: 0 | AL87: 0 | AM87: 0 | AN87: 0 | AO87: =AO206+AO299 -> 0 | AP87: 0 | AQ87: 0 | AR87: 0 | AS87: 0 | AT87: 0 | AU87: 0 | AV87: 0 | AW87: 0 | AX87: 0 | AY87: 0 | AZ87: 0 | BA87: 0 | BB87: 0 | BC87: 0 | BD87: 0 | BE87: 0 | BF87: 0 | BG87: 0 | BH87: 0 | BI87: 0 | BJ87: 0 | BK87: 0 | BL87: 0 | BM87: 0 | BN87: 0 | BO87: 0 | BP87: 0 | BQ87: 0 | BR87: 0 | BS87: 0 | BT87: =BT206+BT299 -> 0 | BU87: 0 | BV87: 0 | BW87: 0 | BX87: 0 | BY87: 0 | BZ87: 0 | CA87: 0
A88: =ROW() -> 88 | C88: SCADA , ECI And Comms | I88: =I207+I300 -> 0 | J88: 0 | K88: 0 | L88: 0 | M88: 0 | N88: 0 | O88: 0 | P88: 0 | Q88: 0 | R88: 0 | S88: 0 | T88: 0 | U88: 0 | V88: 0 | W88: 0 | X88: 0 | Y88: 0 | Z88: 0 | AA88: 0 | AB88: 0 | AC88: 0 | AD88: 0 | AE88: 0 | AF88: 0 | AG88: 0 | AH88: 0 | AI88: 0 | AJ88: 0 | AK88: 0 | AL88: 0 | AM88: 0 | AN88: 0 | AO88: =AO207+AO300 -> 0 | AP88: 0 | AQ88: 0 | AR88: 0 | AS88: 0 | AT88: 0 | AU88: 0 | AV88: 0 | AW88: 0 | AX88: 0 | AY88: 0 | AZ88: 0 | BA88: 0 | BB88: 0 | BC88: 0 | BD88: 0 | BE88: 0 | BF88: 0 | BG88: 0 | BH88: 0 | BI88: 0 | BJ88: 0 | BK88: 0 | BL88: 0 | BM88: 0 | BN88: 0 | BO88: 0 | BP88: 0 | BQ88: 0 | BR88: 0 | BS88: 0 | BT88: =BT207+BT300 -> 0 | BU88: 0 | BV88: 0 | BW88: 0 | BX88: 0 | BY88: 0 | BZ88: 0 | CA88: 0
A89: =ROW() -> 89 | C89: Building | I89: =I208+I301 -> 0 | J89: 0 | K89: 0 | L89: 0 | M89: 0 | N89: 0 | O89: 0 | P89: 0 | Q89: 0 | R89: 0 | S89: 0 | T89: 0 | U89: 0 | V89: 0 | W89: 0 | X89: 0 | Y89: 0 | Z89: 0 | AA89: 0 | AB89: 0 | AC89: 0 | AD89: 0 | AE89: 0 | AF89: 0 | AG89: 0 | AH89: 0 | AI89: 0 | AJ89: 0 | AK89: 0 | AL89: 0 | AM89: 0 | AN89: 0 | AO89: =AO208+AO301 -> 0 | AP89: 0 | AQ89: 0 | AR89: 0 | AS89: 0 | AT89: 0 | AU89: 0 | AV89: 0 | AW89: 0 | AX89: 0 | AY89: 0 | AZ89: 0 | BA89: 0 | BB89: 0 | BC89: 0 | BD89: 0 | BE89: 0 | BF89: 0 | BG89: 0 | BH89: 0 | BI89: 0 | BJ89: 0 | BK89: 0 | BL89: 0 | BM89: 0 | BN89: 0 | BO89: 0 | BP89: 0 | BQ89: 0 | BR89: 0 | BS89: 0 | BT89: =BT208+BT301 -> 0 | BU89: 0 | BV89: 0 | BW89: 0 | BX89: 0 | BY89: 0 | BZ89: 0 | CA89: 0
A90: =ROW() -> 90 | C90: Out of Service Asset in AA5
A91: =ROW() -> 91 | C91: Out of Service Asset in AA6
A92: =ROW() -> 92 | C92: Out of Service Asset in AA7
A93: =ROW() -> 93 | C93: Non-Depreciable | I93: =I212+I305 -> 0 | J93: 0 | K93: 0 | L93: 0 | M93: 0 | N93: -3.484512172 | O93: 0 | P93: 0 | Q93: 0 | R93: 0 | S93: 0 | T93: 0 | U93: 0 | V93: 0 | W93: 0 | X93: 0 | Y93: 0 | Z93: 0 | AA93: 0 | AB93: 0 | AC93: 0 | AD93: 0 | AE93: 0 | AF93: 0 | AG93: 0 | AH93: 0 | AI93: 0 | AJ93: 0 | AK93: 0 | AL93: 0 | AM93: 0 | AN93: 0 | AO93: =AO212+AO305 -> 0 | AP93: 0 | AQ93: 0 | AR93: 0 | AS93: 0 | AT93: 0 | AU93: 0 | AV93: 0 | AW93: 0 | AX93: 0 | AY93: 0 | AZ93: 0 | BA93: 0 | BB93: 0 | BC93: 0 | BD93: 0 | BE93: 0 | BF93: 0 | BG93: 0 | BH93: 0 | BI93: 0 | BJ93: 0 | BK93: 0 | BL93: 0 | BM93: 0 | BN93: 0 | BO93: 0 | BP93: 0 | BQ93: 0 | BR93: 0 | BS93: 0 | BT93: 0 | BU93: =BU212+BU305 -> 0 | BV93: 0 | BW93: 0 | BX93: 0 | BY93: 0 | BZ93: 0 | CA93: 0
A94: =ROW() -> 94 | C94: Cost of Raising Equity | I94: =I213+I306 -> 0 | J94: 0 | K94: 0 | L94: 0 | M94: 0 | N94: 0 | O94: 0 | P94: 0 | Q94: 0 | R94: 0 | S94: 0 | T94: 0 | U94: 0 | V94: 0 | W94: 0 | X94: 0 | Y94: 0 | Z94: 0 | AA94: 0 | AB94: 0 | AC94: 0 | AD94: 0 | AE94: 0 | AF94: 0 | AG94: 0 | AH94: 0 | AI94: 0 | AJ94: 0 | AK94: 0 | AL94: 0 | AM94: 0 | AN94: 0 | AO94: =AO213+AO306 -> 0 | AP94: 0 | AQ94: 0 | AR94: 0 | AS94: 0 | AT94: 0 | AU94: 0 | AV94: 0 | AW94: 0 | AX94: 0 | AY94: 0 | AZ94: 0 | BA94: 0 | BB94: 0 | BC94: 0 | BD94: 0 | BE94: 0 | BF94: 0 | BG94: 0 | BH94: 0 | BI94: 0 | BJ94: 0 | BK94: 0 | BL94: 0 | BM94: 0 | BN94: 0 | BO94: 0 | BP94: 0 | BQ94: 0 | BR94: 0 | BS94: 0 | BT94: 0 | BU94: =BU213+BU306 -> 0 | BV94: 0 | BW94: 0 | BX94: 0 | BY94: 0 | BZ94: 0 | CA94: 0
A95: =ROW() -> 95 | C95: Total | I95: =SUM(I82:I94) -> 0 | J95: =SUM(J82:J94) -> 0 | K95: 0 | L95: 0 | M95: 0 | N95: -10.02967879 | O95: 0 | P95: -0.05044007057 | Q95: -0.03811346199 | R95: -0.1216990945 | S95: -0.01594892638 | T95: -6.175014663 | U95: -0.5074146548 | V95: -1.010824609 | W95: -2.851720072 | X95: -1.002632411 | Y95: 0 | Z95: 0 | AA95: 0 | AB95: 0 | AC95: 0 | AD95: 0 | AE95: 0 | AF95: 0 | AG95: 0 | AH95: 0 | AI95: 0 | AJ95: 0 | AK95: 0 | AL95: 0 | AM95: 0 | AN95: 0 | AO95: 0 | AP95: 0 | AQ95: 0 | AR95: 0 | AS95: 0 | AT95: 0 | AU95: 0 | AV95: 0 | AW95: 0 | AX95: 0 | AY95: 0 | AZ95: 0 | BA95: 0 | BB95: 0 | BC95: 0 | BD95: 0 | BE95: 0 | BF95: 0 | BG95: 0 | BH95: 0 | BI95: 0 | BJ95: 0 | BK95: 0 | BL95: 0 | BM95: 0 | BN95: 0 | BO95: 0 | BP95: 0 | BQ95: 0 | BR95: 0 | BS95: 0 | BT95: 0 | BU95: 0 | BV95: =SUM(BV82:BV94) -> 0 | BW95: 0 | BX95: 0 | BY95: 0 | BZ95: 0 | CA95: 0
A96: =ROW() -> 96 | B96: Depreciation | H96: Check | I96: =IF(ROUND(I95-I214-I307,6)=0,"OK","Wrong") -> OK | J96: OK | K96: OK | L96: OK | M96: OK | N96: OK | O96: OK | P96: OK | Q96: OK | R96: OK | S96: OK | T96: OK | U96: OK | V96: OK | W96: OK | X96: OK | Y96: OK | Z96: OK | AA96: OK | AB96: OK | AC96: OK | AD96: OK | AE96: OK | AF96: OK | AG96: OK | AH96: OK | AI96: OK | AJ96: OK | AK96: OK | AL96: OK | AM96: OK | AN96: OK | AO96: =IF(ROUND(AO95-AO214-AO307,6)=0,"OK","Wrong") -> OK | AP96: OK | AQ96: OK | AR96: OK | AS96: OK | AT96: OK | AU96: OK | AV96: OK | AW96: OK | AX96: OK | AY96: OK | AZ96: OK | BA96: OK | BB96: OK | BC96: OK | BD96: OK | BE96: OK | BF96: OK | BG96: OK | BH96: OK | BI96: OK | BJ96: OK | BK96: OK | BL96: OK | BM96: OK | BN96: OK | BO96: OK | BP96: OK | BQ96: OK | BR96: OK | BS96: OK | BT96: OK | BU96: =IF(ROUND(BU95-BU214-BU307,6)=0,"OK","Wrong") -> OK | BV96: OK | BW96: OK | BX96: OK | BY96: OK | BZ96: OK | CA96: OK
A97: =ROW() -> 97 | C97: Pipeline | I97: =I216+I309 -> -46.79938771 | J97: -46.81179147 | K97: -46.81986833 | L97: -46.82442599 | M97: -46.83475284 | N97: -46.85484293 | O97: -46.96479361 | P97: -47.10513169 | Q97: -53.31728449 | R97: -60.01151145 | S97: -62.0536428 | T97: -73.48177462 | U97: -73.92162185 | V97: -74.00082968 | W97: -74.08631242 | X97: -74.09690775 | Y97: -74.87324066 | Z97: -74.94078208 | AA97: -74.98653878 | AB97: -75.01665389 | AC97: -74.038866 | AD97: -84.67271151 | AE97: -84.67271151 | AF97: -84.67271151 | AG97: -84.67271151 | AH97: -84.67271151 | AI97: -84.76406715 | AJ97: -84.76926015 | AK97: -84.77461513 | AL97: -84.78014163 | AM97: -84.78891918 | AN97: -84.79482102 | AO97: =AO216+AO309 -> -84.79482102 | AP97: -84.79482102 | AQ97: -84.79482102 | AR97: -84.79482102 | AS97: -84.79482102 | AT97: -84.79482102 | AU97: -84.79482102 | AV97: -84.79482102 | AW97: -84.79482102 | AX97: -84.79482102 | AY97: -84.79482102 | AZ97: -84.79482102 | BA97: -84.79482102 | BB97: -84.79482102 | BC97: -84.79482102 | BD97: -84.79482102 | BE97: -84.79482102 | BF97: -84.79482102 | BG97: -84.79482102 | BH97: -84.79482102 | BI97: -84.79482102 | BJ97: -84.79482102 | BK97: -61.39512717 | BL97: -37.99543332 | BM97: -37.99543332 | BN97: -37.99543332 | BO97: -37.99543332 | BP97: -37.99543332 | BQ97: -37.99543332 | BR97: -37.99543332 | BS97: -37.99543332 | BT97: 0 | BU97: =BU216+BU309 -> 0 | BV97: 0 | BW97: 0 | BX97: 0 | BY97: 0 | BZ97: 0 | CA97: 0
A98: =ROW() -> 98 | C98: Compression | I98: =I217+I310 -> -22.81929848 | J98: -22.88391341 | K98: -23.1766998 | L98: -23.47621692 | M98: -23.59938913 | N98: -21.44941549 | O98: -21.56156796 | P98: -25.48340557 | Q98: -32.17180143 | R98: -34.47582728 | S98: -34.49921873 | T98: -44.59486327 | U98: -46.43248141 | V98: -46.74761816 | W98: -46.84612389 | X98: -46.98015314 | Y98: -46.90082948 | Z98: -47.57012476 | AA98: -48.22783698 | AB98: -40.46598532 | AC98: -25.09718398 | AD98: -24.3380022 | AE98: -24.53897327 | AF98: -24.63512456 | AG98: -24.75366914 | AH98: -24.86416853 | AI98: -24.82108417 | AJ98: -25.04367983 | AK98: -25.23661918 | AL98: -25.45794527 | AM98: -25.61030315 | AN98: -25.74581465 | AO98: =AO217+AO310 -> -25.67069513 | AP98: -25.67069513 | AQ98: -25.67069513 | AR98: -25.65761941 | AS98: -22.97131727 | AT98: -14.11555151 | AU98: -14.11555151 | AV98: -8.68759017 | AW98: -8.68759017 | AX98: -3.56809415 | AY98: -2.574052977 | AZ98: -2.304426469 | BA98: -2.09112018 | BB98: -2.017539271 | BC98: -1.936225451 | BD98: -1.858046013 | BE98: -1.680792731 | BF98: -1.580318428 | BG98: -1.505593452 | BH98: -1.428800035 | BI98: -1.337570736 | BJ98: -1.194714933 | BK98: -1.019703295 | BL98: -0.9672008798 | BM98: -0.9247304798 | BN98: -0.7021348132 | BO98: -0.509195467 | BP98: -0.2878693725 | BQ98: -0.1355114929 | BR98: 0 | BS98: 0 | BT98: 0 | BU98: =BU217+BU310 -> 0 | BV98: 0 | BW98: 0 | BX98: 0 | BY98: 0 | BZ98: 0 | CA98: 0
A99: =ROW() -> 99 | C99: Metering | I99: =I218+I311 -> -0.9219741227 | J99: -0.9219741227 | K99: -0.9239933393 | L99: -0.9260125558 | M99: -0.9280317723 | N99: -1.018983193 | O99: -1.057575193 | P99: -1.099676618 | Q99: -1.104939429 | R99: -1.104939429 | S99: -1.104939429 | T99: -1.163381654 | U99: -1.179207336 | V99: -1.193185358 | W99: -1.269656917 | X99: -1.346128476 | Y99: 0.3190163138 | Z99: -1.451197561 | AA99: -1.520228656 | AB99: -1.542098999 | AC99: -1.389641126 | AD99: -17.61287954 | AE99: -1.85236231 | AF99: -1.900235101 | AG99: -1.956259596 | AH99: -2.00419683 | AI99: -2.369772883 | AJ99: -2.504402388 | AK99: -2.630943889 | AL99: -2.795118377 | AM99: -2.933715771 | AN99: -2.997947652 | AO99: =AO218+AO311 -> -2.937954797 | AP99: -2.937954797 | AQ99: -2.937954797 | AR99: -2.799167015 | AS99: -2.799167015 | AT99: -2.799167015 | AU99: -2.799167015 | AV99: -2.799167015 | AW99: -2.799167015 | AX99: -2.529805539 | AY99: -2.528019233 | AZ99: -2.528019233 | BA99: -2.519276075 | BB99: -2.496489951 | BC99: -2.439063749 | BD99: -2.29191001 | BE99: -2.136332959 | BF99: -1.841256425 | BG99: -1.618288067 | BH99: -1.292172053 | BI99: -1.122421009 | BJ99: -1.020633827 | BK99: -0.8975737739 | BL99: -0.7843133151 | BM99: -0.7001854484 | BN99: -0.5655559441 | BO99: -0.4390144426 | BP99: -0.2748399544 | BQ99: -0.1362425604 | BR99: 0 | BS99: 0 | BT99: 0 | BU99: =BU218+BU311 -> 0 | BV99: 0 | BW99: 0 | BX99: 0 | BY99: 0 | BZ99: 0 | CA99: 0
A100: =ROW() -> 100 | C100: Other Depreciable | I100: =I219+I312 -> -5.711115759 | J100: -6.051824892 | K100: -6.39071673 | L100: -6.775714013 | M100: -7.093404078 | N100: -6.270011484 | O100: -6.498639849 | P100: -6.679909875 | Q100: -6.770547173 | R100: -7.082815155 | S100: -7.45415442 | T100: -7.189698268 | U100: -10.62372729 | V100: -10.71130297 | W100: -10.79187437 | X100: -11.00764768 | Y100: -4.271714857 | Z100: -4.87794773 | AA100: -4.991410498 | AB100: -5.102746744 | AC100: -2.297277833 | AD100: -9.923106677 | AE100: -4.756041285 | AF100: -4.761252332 | AG100: -4.210567139 | AH100: -3.825936387 | AI100: -3.206540877 | AJ100: -3.057081779 | AK100: -2.623677427 | AL100: -2.518160245 | AM100: -2.325404556 | AN100: -1.739363323 | AO100: =AO219+AO312 -> -1.437230542 | AP100: -1.127774615 | AQ100: -1.054611158 | AR100: -0.8231642268 | AS100: -0.6443879268 | AT100: -0.5091017586 | AU100: -0.3442491575 | AV100: -0.2365595293 | AW100: -0.1082386119 | AX100: 0 | AY100: 0 | AZ100: 0 | BA100: 0 | BB100: 0 | BC100: 0 | BD100: 0 | BE100: 0 | BF100: 0 | BG100: 0 | BH100: 0 | BI100: 0 | BJ100: 0 | BK100: 0 | BL100: 0 | BM100: 0 | BN100: 0 | BO100: 0 | BP100: 0 | BQ100: 0 | BR100: 0 | BS100: 0 | BT100: =BT219+BT312 -> 0 | BU100: =BU219+BU312 -> 0 | BV100: 0 | BW100: 0 | BX100: 0 | BY100: 0 | BZ100: 0 | CA100: 0
A101: =ROW() -> 101 | C101: Computers and Motor Vehicles | I101: =I220+I313 -> 0 | J101: 0 | K101: 0 | L101: 0 | M101: 0 | N101: 0 | O101: 0 | P101: 0 | Q101: 0 | R101: 0 | S101: 0 | T101: 0 | U101: 0 | V101: 0 | W101: 0 | X101: 0 | Y101: 0 | Z101: 0 | AA101: 0 | AB101: 0 | AC101: -1.001899297 | AD101: -20.44299785 | AE101: -6.737790023 | AF101: -6.82656267 | AG101: -6.673329442 | AH101: -7.200952487 | AI101: -13.12031555 | AJ101: -14.51079885 | AK101: -14.24451973 | AL101: -10.09320593 | AM101: -11.31077699 | AN101: -10.82958837 | AO101: =AO220+AO313 -> -7.377100577 | AP101: -5.12339991 | AQ101: -3.579950806 | AR101: -1.358697785 | AS101: 0 | AT101: 0 | AU101: 0 | AV101: 0 | AW101: 0 | AX101: 0 | AY101: 0 | AZ101: 0 | BA101: 0 | BB101: 0 | BC101: 0 | BD101: 0 | BE101: 0 | BF101: 0 | BG101: 0 | BH101: 0 | BI101: 0 | BJ101: 0 | BK101: 0 | BL101: 0 | BM101: 0 | BN101: 0 | BO101: 0 | BP101: 0 | BQ101: 0 | BR101: 0 | BS101: 0 | BT101: =BT220+BT313 -> 0 | BU101: 0 | BV101: 0 | BW101: 0 | BX101: 0 | BY101: 0 | BZ101: 0 | CA101: 0
A102: =ROW() -> 102 | C102: Cathodic/Corrosion Protection | I102: =I221+I314 -> 0 | J102: 0 | K102: 0 | L102: 0 | M102: 0 | N102: 0 | O102: 0 | P102: 0 | Q102: 0 | R102: 0 | S102: 0 | T102: 0 | U102: 0 | V102: 0 | W102: 0 | X102: 0 | Y102: 0 | Z102: 0 | AA102: 0 | AB102: 0 | AC102: -1.175666412 | AD102: -5.129745174 | AE102: -5.40329977 | AF102: -5.632429095 | AG102: -5.871193482 | AH102: -6.101942202 | AI102: -5.480526363 | AJ102: -4.4485198 | AK102: -4.276524748 | AL102: -4.374631016 | AM102: -4.575972671 | AN102: -4.73122066 | AO102: =AO221+AO314 -> -4.660588725 | AP102: -4.534509047 | AQ102: -4.139963548 | AR102: -3.550801693 | AS102: -3.266994148 | AT102: -2.932709784 | AU102: -2.479556761 | AV102: -1.983185958 | AW102: -1.722973656 | AX102: -1.520708123 | AY102: -1.168377745 | AZ102: -0.8525412211 | BA102: -0.5616613321 | BB102: -0.2778073941 | BC102: 0 | BD102: 0 | BE102: 0 | BF102: 0 | BG102: 0 | BH102: 0 | BI102: 0 | BJ102: 0 | BK102: 0 | BL102: 0 | BM102: 0 | BN102: 0 | BO102: 0 | BP102: 0 | BQ102: 0 | BR102: 0 | BS102: 0 | BT102: =BT221+BT314 -> 0 | BU102: 0 | BV102: 0 | BW102: 0 | BX102: 0 | BY102: 0 | BZ102: 0 | CA102: 0
A103: =ROW() -> 103 | C103: SCADA , ECI And Comms | I103: =I222+I315 -> 0 | J103: 0 | K103: 0 | L103: 0 | M103: 0 | N103: 0 | O103: 0 | P103: 0 | Q103: 0 | R103: 0 | S103: 0 | T103: 0 | U103: 0 | V103: 0 | W103: 0 | X103: 0 | Y103: 0 | Z103: 0 | AA103: 0 | AB103: 0 | AC103: -5.317973475 | AD103: -52.04822206 | AE103: -8.030544269 | AF103: -9.618956733 | AG103: -10.17750612 | AH103: -10.99344896 | AI103: -10.54693356 | AJ103: -11.58357557 | AK103: -12.40544636 | AL103: -13.6266191 | AM103: -14.53150349 | AN103: -14.95646442 | AO103: =AO222+AO315 -> -14.74001116 | AP103: -13.35850627 | AQ103: -11.53097857 | AR103: -9.357421289 | AS103: -7.845420989 | AT103: -6.146247722 | AU103: -4.549866443 | AV103: -2.977023126 | AW103: -1.288893033 | AX103: 0 | AY103: 0 | AZ103: 0 | BA103: 0 | BB103: 0 | BC103: 0 | BD103: 0 | BE103: 0 | BF103: 0 | BG103: 0 | BH103: 0 | BI103: 0 | BJ103: 0 | BK103: 0 | BL103: 0 | BM103: 0 | BN103: 0 | BO103: 0 | BP103: 0 | BQ103: 0 | BR103: 0 | BS103: 0 | BT103: =BT222+BT315 -> 0 | BU103: 0 | BV103: 0 | BW103: 0 | BX103: 0 | BY103: 0 | BZ103: 0 | CA103: 0
A104: =ROW() -> 104 | C104: Building | I104: =I223+I316 -> 0 | J104: 0 | K104: 0 | L104: 0 | M104: 0 | N104: 0 | O104: 0 | P104: 0 | Q104: 0 | R104: 0 | S104: 0 | T104: 0 | U104: -0.2233182634 | V104: -0.2552743985 | W104: -0.265912018 | X104: -0.2661600587 | Y104: -0.263435077 | Z104: -0.2642645915 | AA104: -0.2642645915 | AB104: -0.2642645915 | AC104: -0.2642645915 | AD104: -0.1379790798 | AE104: -0.211655636 | AF104: -0.2946317611 | AG104: -0.3160672197 | AH104: -0.4774715418 | AI104: -0.03516987935 | AJ104: -0.2750190999 | AK104: -0.7425788537 | AL104: -1.09817635 | AM104: -1.229839486 | AN104: -1.253111803 | AO104: =AO223+AO316 -> -1.253111803 | AP104: -1.253111803 | AQ104: -1.253111803 | AR104: -1.253111803 | AS104: -1.253111803 | AT104: -1.253111803 | AU104: -1.253111803 | AV104: -1.253111803 | AW104: -1.253111803 | AX104: -1.253111803 | AY104: -1.253111803 | AZ104: -1.253111803 | BA104: -1.253111803 | BB104: -1.253111803 | BC104: -1.253111803 | BD104: -1.253111803 | BE104: -1.253111803 | BF104: -1.253111803 | BG104: -1.253111803 | BH104: -1.253111803 | BI104: -1.253111803 | BJ104: -1.253111803 | BK104: -1.253111803 | BL104: -1.253111803 | BM104: -1.253111803 | BN104: -1.253111803 | BO104: -1.253111803 | BP104: -1.253111803 | BQ104: -1.253111803 | BR104: -1.253111803 | BS104: -1.18699514 | BT104: =BT223+BT316 -> -1.145912114 | BU104: -1.118501299 | BV104: -1.118294855 | BW104: -1.115601579 | BX104: -1.115132723 | BY104: -1.115132723 | BZ104: -1.115132723 | CA104: -1.115132723
A105: =ROW() -> 105 | C105: Out of Service Asset in AA5 | I105: =I224+I317 -> 0 | J105: 0 | K105: 0 | L105: 0 | M105: 0 | N105: 0 | O105: 0 | P105: 0 | Q105: 0 | R105: 0 | S105: 0 | T105: 0 | U105: 0 | V105: 0 | W105: 0 | X105: 0 | Y105: 0 | Z105: 0 | AA105: 0 | AB105: 0 | AC105: 0 | AD105: 0 | AE105: 0 | AF105: 0 | AG105: 0 | AH105: 0 | AI105: -16.21293926 | AJ105: -16.21293926 | AK105: -16.21293926 | AL105: -16.21293926 | AM105: -16.21293926 | AN105: 0 | AO105: =AO224+AO317 -> 0 | AP105: 0 | AQ105: 0 | AR105: 0 | AS105: 0 | AT105: 0 | AU105: 0 | AV105: 0 | AW105: 0 | AX105: 0 | AY105: 0 | AZ105: 0 | BA105: 0 | BB105: 0 | BC105: 0 | BD105: 0 | BE105: 0 | BF105: 0 | BG105: 0 | BH105: 0 | BI105: 0 | BJ105: 0 | BK105: 0 | BL105: 0 | BM105: 0 | BN105: 0 | BO105: 0 | BP105: 0 | BQ105: 0 | BR105: 0 | BS105: 0 | BT105: =BT224+BT317 -> 0 | BU105: 0 | BV105: 0 | BW105: 0 | BX105: 0 | BY105: 0 | BZ105: 0 | CA105: 0
A106: =ROW() -> 106 | C106: Out of Service Asset in AA6 | Y106: =Y225+Y318 -> 0 | Z106: 0 | AA106: 0 | AB106: 0 | AC106: 0 | AD106: 0 | AE106: 0 | AF106: 0 | AG106: 0 | AH106: 0 | AI106: 0 | AJ106: 0 | AK106: 0 | AL106: 0 | AM106: 0 | AN106: -4.358765031 | AO106: -4.358765031 | AP106: -4.358765031 | AQ106: -4.358765031 | AR106: -4.358765031 | AS106: 0 | AT106: 0 | AU106: 0 | AV106: 0 | AW106: 0 | AX106: 0 | AY106: 0 | AZ106: 0 | BA106: 0 | BB106: 0 | BC106: 0 | BD106: 0 | BE106: 0 | BF106: 0 | BG106: 0 | BH106: 0 | BI106: 0 | BJ106: 0 | BK106: 0 | BL106: 0 | BM106: 0 | BN106: 0 | BO106: 0 | BP106: 0 | BQ106: 0 | BR106: 0 | BS106: 0 | BT106: =BT225+BT318 -> 0 | BU106: 0 | BV106: 0 | BW106: 0 | BX106: 0 | BY106: 0 | BZ106: 0 | CA106: 0
A107: =ROW() -> 107 | C107: Out of Service Asset in AA7 | Y107: 0 | Z107: 0 | AA107: 0 | AB107: 0 | AC107: 0 | AD107: 0 | AE107: 0 | AF107: 0 | AG107: 0 | AH107: 0 | AI107: 0 | AJ107: 0 | AK107: 0 | AL107: 0 | AM107: 0 | AN107: 0 | AO107: 0 | AP107: 0 | AQ107: 0 | AR107: 0 | AS107: -0.2613183136 | AT107: -0.2613183136 | AU107: -0.2613183136 | AV107: -0.2613183136 | AW107: -0.2613183136 | AX107: 0 | AY107: 0 | AZ107: 0 | BA107: 0 | BB107: 0 | BC107: 0 | BD107: 0 | BE107: 0 | BF107: 0 | BG107: 0 | BH107: 0 | BI107: 0 | BJ107: 0 | BK107: 0 | BL107: 0 | BM107: 0 | BN107: 0 | BO107: 0 | BP107: 0 | BQ107: 0 | BR107: 0 | BS107: 0 | BT107: =BT226+BT319 -> 0 | BU107: 0 | BV107: 0 | BW107: 0 | BX107: 0 | BY107: 0 | BZ107: 0 | CA107: 0
A108: =ROW() -> 108 | C108: Non-Depreciable | I108: =I227+I320 -> 0 | J108: 0 | K108: 0 | L108: 0 | M108: 0 | N108: 0 | O108: 0 | P108: 0 | Q108: 0 | R108: 0 | S108: 0 | T108: 0 | U108: 0 | V108: 0 | W108: 0 | X108: 0 | Y108: =Y227+Y320 -> 0.07990926194 | Z108: 0 | AA108: 0 | AB108: 0 | AC108: 0 | AD108: 0 | AE108: 0 | AF108: 0 | AG108: 0 | AH108: 0 | AI108: 0 | AJ108: 0 | AK108: 0 | AL108: 0 | AM108: 0 | AN108: 0 | AO108: 0 | AP108: 0 | AQ108: 0 | AR108: 0 | AS108: 0 | AT108: 0 | AU108: 0 | AV108: 0 | AW108: 0 | AX108: 0 | AY108: 0 | AZ108: 0 | BA108: 0 | BB108: 0 | BC108: 0 | BD108: 0 | BE108: 0 | BF108: 0 | BG108: 0 | BH108: 0 | BI108: 0 | BJ108: 0 | BK108: 0 | BL108: 0 | BM108: 0 | BN108: 0 | BO108: 0 | BP108: 0 | BQ108: 0 | BR108: 0 | BS108: 0 | BT108: =BT227+BT320 -> 0 | BU108: 0 | BV108: 0 | BW108: 0 | BX108: 0 | BY108: 0 | BZ108: 0 | CA108: 0
A109: =ROW() -> 109 | C109: Cost of Raising Equity | I109: =I228+I321 -> 0 | J109: 0 | K109: 0 | L109: 0 | M109: 0 | N109: 0 | O109: 0 | P109: 0 | Q109: 0 | R109: 0 | S109: 0 | T109: 0 | U109: 0 | V109: 0 | W109: 0 | X109: 0 | Y109: =Y228+Y321 -> 0 | Z109: -5.878239531e-16 | AA109: -5.878239531e-16 | AB109: -5.878239531e-16 | AC109: -5.878239531e-16 | AD109: 2.351295812e-15 | AE109: -0.06185272627 | AF109: -0.1085412256 | AG109: -0.1508971443 | AH109: -0.1978990942 | AI109: -0.241079235 | AJ109: -0.2877930523 | AK109: -0.3364429599 | AL109: -0.3861803342 | AM109: -0.4252724079 | AN109: -0.4598772044 | AO109: -0.4598772044 | AP109: -0.4598772044 | AQ109: -0.4598772044 | AR109: -0.4598772044 | AS109: -0.4598772044 | AT109: -0.4598772044 | AU109: -0.4598772044 | AV109: -0.4598772044 | AW109: -0.4598772044 | AX109: -0.4598772044 | AY109: -0.4598772044 | AZ109: -0.4598772044 | BA109: -0.4598772044 | BB109: -0.4598772044 | BC109: -0.4598772044 | BD109: -0.4598772044 | BE109: -0.4598772044 | BF109: -0.4598772044 | BG109: -0.4598772044 | BH109: -0.4598772044 | BI109: -0.4598772044 | BJ109: -0.4598772044 | BK109: -0.4598772044 | BL109: -0.4598772044 | BM109: -0.4598772044 | BN109: -0.4598772044 | BO109: -0.4598772044 | BP109: -0.4420728836 | BQ109: -0.3441528393 | BR109: -0.2456088809 | BS109: -0.1567754551 | BT109: =BT228+BT321 -> -0.07324682822 | BU109: -0.007947597285 | BV109: 0 | BW109: 0 | BX109: 0 | BY109: 0 | BZ109: 0 | CA109: 0
A110: =ROW() -> 110 | C110: Total | I110: =SUM(I97:I109) -> -76.25177607 | J110: =SUM(J97:J109) -> -76.66950389 | K110: -77.31127821 | L110: -78.00236948 | M110: -78.45557782 | N110: -75.5932531 | O110: -76.08257661 | P110: -80.36812375 | Q110: -93.36457253 | R110: -102.6750933 | S110: -105.1119554 | T110: -126.4297178 | U110: -132.3803561 | V110: -132.9082106 | W110: -133.2598796 | X110: -133.6969971 | Y110: -125.9102945 | Z110: -129.1043167 | AA110: -129.9902795 | AB110: -122.3917495 | AC110: -110.5827727 | AD110: -214.3056441 | AE110: -136.2652308 | AF110: -138.450445 | AG110: -138.7822008 | AH110: -140.3387275 | AI110: -160.7984289 | AJ110: -162.6930698 | AK110: -163.4843075 | AL110: -161.3431175 | AM110: -163.944647 | AN110: -151.8669741 | AO110: -147.690156 | AP110: -143.6194148 | AQ110: -139.7807291 | AR110: -134.4134465 | AS110: -124.2964157 | AT110: -113.2719061 | AU110: -111.0575192 | AV110: -103.4526541 | AW110: -101.3759908 | AX110: -94.12641784 | AY110: -92.77825998 | AZ110: -92.19279695 | BA110: -91.67986762 | BB110: -91.29964665 | BC110: -90.88309923 | BD110: -90.65776605 | BE110: -90.32493572 | BF110: -89.92938488 | BG110: -89.63169155 | BH110: -89.22878212 | BI110: -88.96780178 | BJ110: -88.72315879 | BK110: -65.02539325 | BL110: -41.45993652 | BM110: -41.33333825 | BN110: -40.97611308 | BO110: -40.65663223 | BP110: -40.25332733 | BQ110: -39.86445201 | BR110: -39.494154 | BS110: -39.33920391 | BT110: -1.219158942 | BU110: -1.126448897 | BV110: =SUM(BV97:BV109) -> -1.118294855 | BW110: -1.115601579 | BX110: -1.115132723 | BY110: -1.115132723 | BZ110: -1.115132723 | CA110: -1.115132723
A111: =ROW() -> 111 | B111: Asset roll forward adjustment | H111: Check | I111: =IF(ROUND(I322+Inputs!I$1684,6)=0,"OK","Wrong") -> OK | J111: =IF(ROUND(J322+Inputs!J$1684,6)=0,"OK","Wrong") -> OK | K111: =IF(ROUND(K322+Inputs!K$1684,6)=0,"OK","Wrong") -> OK | L111: =IF(ROUND(L322+Inputs!L$1684,6)=0,"OK","Wrong") -> OK | M111: =IF(ROUND(M322+Inputs!M$1684,6)=0,"OK","Wrong") -> OK | N111: =IF(ROUND(N322+Inputs!N$1684,6)=0,"OK","Wrong") -> OK | O111: =IF(ROUND(O322+Inputs!O$1684,6)=0,"OK","Wrong") -> OK | P111: =IF(ROUND(P322+Inputs!P$1684,6)=0,"OK","Wrong") -> OK | Q111: =IF(ROUND(Q322+Inputs!Q$1684,6)=0,"OK","Wrong") -> OK | R111: =IF(ROUND(R322+Inputs!R$1684,6)=0,"OK","Wrong") -> OK | S111: =IF(ROUND(S322+Inputs!S$1684,6)=0,"OK","Wrong") -> OK | T111: =IF(ROUND(T322+Inputs!T$1684,6)=0,"OK","Wrong") -> OK | U111: =IF(ROUND(U322+Inputs!U$1684,6)=0,"OK","Wrong") -> OK | V111: =IF(ROUND(V322+Inputs!V$1684,6)=0,"OK","Wrong") -> OK | W111: =IF(ROUND(W322+Inputs!W$1684,6)=0,"OK","Wrong") -> OK | X111: =IF(ROUND(X322+Inputs!X$1684,6)=0,"OK","Wrong") -> OK | Y111: =IF(ROUND(Y322+Inputs!Y$1684,6)=0,"OK","Wrong") -> OK | Z111: =IF(ROUND(Z322+Inputs!Z$1684,6)=0,"OK","Wrong") -> OK | AA111: =IF(ROUND(AA322+Inputs!AA$1684,6)=0,"OK","Wrong") -> OK | AB111: =IF(ROUND(AB322+Inputs!AB$1684,6)=0,"OK","Wrong") -> OK | AC111: =IF(ROUND(AC322+Inputs!AC$1684,6)=0,"OK","Wrong") -> OK | AD111: =IF(ROUND(AD322-(AD445+AD552+AD659+AD766+AD873+AD980+AD1087+AD1194+AD1301+AD1408+AD1515+AD1622+AD1729+AD1836+AD1943+AD2050+AD2157+AD2264+AD2371+AD2478+AD2585+AD2707+AD2814+AD2921+AD3028+AD3135),6)=0,"OK","Wrong") -> OK | AE111: =IF(ROUND(AE322-(AE445+AE552+AE659+AE766+AE873+AE980+AE1087+AE1194+AE1301+AE1408+AE1515+AE1622+AE1729+AE1836+AE1943+AE2050+AE2157+AE2264+AE2371+AE2478+AE2585+AE2707+AE2814+AE2921+AE3028+AE3135),6)=0,"OK","Wrong") -> OK | AF111: OK | AG111: OK | AH111: OK | AI111: =IF(ROUND(AI322-(AI445+AI552+AI659+AI766+AI873+AI980+AI1087+AI1194+AI1301+AI1408+AI1515+AI1622+AI1729+AI1836+AI1943+AI2050+AI2157+AI2264+AI2371+AI2478+AI2585+AI2707+AI2814+AI2921+AI3028+AI3135+AI3242+AI3349+AI3456+AI3563+AI3670),6)=0,"OK","Wrong") -> OK | AJ111: OK | AK111: OK | AL111: OK | AM111: OK | AN111: OK | AO111: OK | AP111: OK | AQ111: OK | AR111: OK | AS111: OK | AT111: OK | AU111: OK | AV111: OK | AW111: OK | AX111: OK | AY111: OK | AZ111: OK | BA111: OK | BB111: OK | BC111: OK | BD111: OK | BE111: OK | BF111: OK | BG111: OK | BH111: OK | BI111: OK | BJ111: OK | BK111: OK | BL111: OK | BM111: OK | BN111: OK | BO111: OK | BP111: OK | BQ111: OK | BR111: OK | BS111: OK | BT111: OK | BU111: OK | BV111: OK | BW111: OK | BX111: OK | BY111: OK | BZ111: OK | CA111: OK
A112: =ROW() -> 112 | C112: Pipeline | AC112: =AC324 -> -0.02041090222
A113: =ROW() -> 113 | C113: Compression | AC113: =AC325 -> -0.0562987324
A114: =ROW() -> 114 | C114: Metering | AC114: -0.01482622453
A115: =ROW() -> 115 | C115: Other Depreciable | AC115: -0.05140156357
A116: =ROW() -> 116 | C116: Computers and Motor Vehicles | AC116: -0.09483104437
A117: =ROW() -> 117 | C117: Cathodic/Corrosion Protection | AC117: -0.06152645219
A118: =ROW() -> 118 | C118: SCADA , ECI And Comms | AC118: 0.04866738082
A119: =ROW() -> 119 | C119: Building | AC119: 0
A120: =ROW() -> 120 | C120: Out of Service Asset in AA5 | AC120: 0
A121: =ROW() -> 121 | C121: Out of Service Asset in AA6 | AC121: 0
A122: =ROW() -> 122 | C122: Out of Service Asset in AA7 | AC122: 0
A123: =ROW() -> 123 | C123: Non-Depreciable | AC123: 0
A124: =ROW() -> 124 | C124: Cost of Raising Equity | AC124: 0
A125: =ROW() -> 125 | C125: Total | AC125: =SUM(AC112:AC124) -> -0.2506275385
A126: =ROW() -> 126 | B126: Closing Value
A127: =ROW() -> 127 | C127: Pipeline | H127: =H231 -> 2550.56663 | I127: =I52+I67+I82+I97 -> 2506.415923 | J127: 2459.659831 | K127: 2412.954817 | L127: 2366.130428 | M127: 2320.358269 | N127: 2285.87227 | O127: 2609.354826 | P127: 2564.043992 | Q127: 3255.751087 | R127: 3195.739576 | S127: =S52+S67+S82+S97-S142 -> 3858.192521 | T127: =T52+T67+T82+T97 -> 3849.123486 | U127: 3795.163583 | V127: 3727.403144 | W127: 3654.079126 | X127: 3583.316522 | Y127: =MAX(Y52+Y67+Y82+Y97,0) -> 3508.443282 | Z127: =Z52+Z67+Z82+Z97 -> 3433.5025 | AA127: 3358.620093 | AB127: 3283.614094 | AC127: =AC52+AC67+AC82+AC112+AC97 -> 3158.266606 | AD127: =AD52+AD67+AD82+AD97 -> 3073.593894 | AE127: 2991.382937 | AF127: 2907.799678 | AG127: 2823.1484 | AH127: =AH52+AH67+AH82+AH97+AH142 -> 2738.475689 | AI127: =AI52+AI67+AI82+AI97 -> 2653.89857 | AJ127: 2569.316734 | AK127: 2484.73002 | AL127: 2400.239537 | AM127: =AM52+AM67+AM82+AM97+AM142 -> 2315.639477 | AN127: =AN52+AN67+AN82+AN97 -> 2230.844656 | AO127: 2146.049835 | AP127: 2061.255014 | AQ127: 1976.460193 | AR127: =AR52+AR67+AR82+AR97+AR142 -> 1891.665372 | AS127: =AS52+AS67+AS82+AS97 -> 1806.870551 | AT127: 1722.07573 | AU127: 1637.280909 | AV127: 1552.486088 | AW127: 1467.691267 | AX127: 1382.896446 | AY127: 1298.101625 | AZ127: 1213.306804 | BA127: 1128.511983 | BB127: 1043.717162 | BC127: 958.9223409 | BD127: 874.1275198 | BE127: 789.3326988 | BF127: 704.5378778 | BG127: 619.7430568 | BH127: 534.9482357 | BI127: 450.1534147 | BJ127: 365.3585937 | BK127: 303.9634665 | BL127: 265.9680332 | BM127: 227.9725999 | BN127: 189.9771666 | BO127: 151.9817333 | BP127: 113.9862999 | BQ127: 75.99086663 | BR127: 37.99543332 | BS127: -3.0127012e-12 | BT127: -3.0127012e-12 | BU127: -3.0127012e-12 | BV127: -3.0127012e-12 | BW127: -3.0127012e-12 | BX127: -3.0127012e-12 | BY127: -3.0127012e-12 | BZ127: -3.0127012e-12 | CA127: -3.0127012e-12
A128: =ROW() -> 128 | C128: Compression | H128: =H232 -> 427.2736469 | I128: =I53+I68+I83+I98 -> 400.6449941 | J128: 380.2169498 | K128: 357.1899096 | L128: 333.5122459 | M128: 310.2266741 | N128: 350.9276236 | O128: 577.0532176 | P128: 551.7822354 | Q128: 711.0618382 | R128: 676.5860109 | S128: 826.3111397 | T128: 824.3337714 | U128: 789.239257 | V128: 749.8590415 | W128: 706.9884275 | X128: 665.4069384 | Y128: 621.5618562 | Z128: 579.7335678 | AA128: 534.9836679 | AB128: 496.8135447 | AC128: 432.8084125 | AD128: 411.6462564 | AE128: 391.2528437 | AF128: 371.7551341 | AG128: 348.6345344 | AH128: 325.0444779 | AI128: 306.9012637 | AJ128: 287.6457643 | AK128: 269.0489279 | AL128: 248.1617191 | AM128: 226.6167607 | AN128: 200.870946 | AO128: 175.2002509 | AP128: 149.5295558 | AQ128: 123.8588607 | AR128: 98.20124126 | AS128: =AS53+AS68+AS83+AS98 -> 75.22992399 | AT128: 61.11437248 | AU128: 46.99882097 | AV128: 38.3112308 | AW128: 29.62364062 | AX128: 26.05554647 | AY128: 23.4814935 | AZ128: 21.17706703 | BA128: 19.08594685 | BB128: 17.06840758 | BC128: 15.13218213 | BD128: 13.27413611 | BE128: 11.59334338 | BF128: 10.01302496 | BG128: 8.507431504 | BH128: 7.078631469 | BI128: 5.741060733 | BJ128: 4.5463458 | BK128: 3.526642505 | BL128: 2.559441625 | BM128: 1.634711146 | BN128: 0.9325763324 | BO128: 0.4233808654 | BP128: 0.1355114929 | BQ128: 4.468647674e-14 | BR128: 4.468647674e-14 | BS128: 4.468647674e-14 | BT128: 4.468647674e-14 | BU128: 4.468647674e-14 | BV128: 4.468647674e-14 | BW128: 4.468647674e-14 | BX128: 4.468647674e-14 | BY128: 4.468647674e-14 | BZ128: 4.468647674e-14 | CA128: 4.468647674e-14
A129: =ROW() -> 129 | C129: Metering | H129: =H233 -> 35.03977888 | I129: =I54+I69+I84+I99 -> 35.20887566 | J129: 35.2856026 | K129: 35.00462568 | L129: 34.02286821 | M129: 35.95223195 | N129: 34.93324876 | O129: 33.87567356 | P129: 32.77599694 | Q129: 31.67105751 | R129: 30.67874043 | S129: 36.85067971 | T129: 36.17563009 | U129: 37.52442751 | V129: 37.60070171 | W129: 35.69269781 | X129: 39.05492718 | Y129: 43.57034329 | Z129: 46.51866079 | AA129: 53.30431576 | AB129: 58.24427091 | AC129: 59.3226999 | AD129: 46.40374208 | AE129: 47.44325208 | AF129: 49.10074744 | AG129: 50.47697838 | AH129: 50.99661755 | AI129: 52.6657298 | AJ129: 53.95757246 | AK129: 56.25186322 | AL129: 57.61466666 | AM129: 58.7682277 | AN129: 55.77028005 | AO129: 52.83232525 | AP129: 49.89437045 | AQ129: 46.95641566 | AR129: 44.15724864 | AS129: =AS54+AS69+AS84+AS99 -> 41.35808163 | AT129: 38.55891461 | AU129: 35.7597476 | AV129: 32.96058058 | AW129: 30.16141357 | AX129: 27.63160803 | AY129: 25.1035888 | AZ129: 22.57556956 | BA129: 20.05629349 | BB129: 17.55980354 | BC129: 15.12073979 | BD129: 12.82882978 | BE129: 10.69249682 | BF129: 8.851240395 | BG129: 7.232952328 | BH129: 5.940780275 | BI129: 4.818359265 | BJ129: 3.797725439 | BK129: 2.900151665 | BL129: 2.11583835 | BM129: 1.415652901 | BN129: 0.8500969574 | BO129: 0.4110825148 | BP129: 0.1362425604 | BQ129: 2.24265051e-14 | BR129: 2.24265051e-14 | BS129: 2.24265051e-14 | BT129: 2.24265051e-14 | BU129: 2.24265051e-14 | BV129: 2.24265051e-14 | BW129: 2.24265051e-14 | BX129: 2.24265051e-14 | BY129: 2.24265051e-14 | BZ129: 2.24265051e-14 | CA129: 2.24265051e-14
A130: =ROW() -> 130 | C130: Other Depreciable | H130: =H234 -> 96.23230053 | I130: =I55+I70+I85+I100 -> 100.246791 | J130: 96.73169543 | K130: 91.68826618 | L130: 86.5278334 | M130: 80.97639682 | N130: 80.44882345 | O130: 75.21599614 | P130: 71.84997406 | Q130: 73.5448532 | R130: 67.14500819 | S130: 78.00437253 | T130: 130.0629072 | U130: 124.9955448 | V130: 124.3219542 | W130: 122.6714588 | X130: 125.9629352 | Y130: 124.538673 | Z130: 125.6432948 | AA130: 122.7839524 | AB130: 120.8919717 | AC130: 61.09976588 | AD130: 54.03700833 | AE130: 51.96671614 | AF130: 47.7335132 | AG130: 45.3343616 | AH130: 18.57586794 | AI130: 16.72218875 | AJ130: 15.31363298 | AK130: 13.76685183 | AL130: 12.53190076 | AM130: 8.02468085 | AN130: 6.285317527 | AO130: 4.848086985 | AP130: 3.720312369 | AQ130: 2.665701211 | AR130: 1.842536984 | AS130: =AS55+AS70+AS85+AS100 -> 1.198149057 | AT130: 0.6890472987 | AU130: 0.3447981412 | AV130: 0.1082386119 | AW130: -7.549516567e-15 | AX130: -7.549516567e-15 | AY130: -7.549516567e-15 | AZ130: -7.549516567e-15 | BA130: -7.549516567e-15 | BB130: -7.549516567e-15 | BC130: -7.549516567e-15 | BD130: -7.549516567e-15 | BE130: -7.549516567e-15 | BF130: -7.549516567e-15 | BG130: -7.549516567e-15 | BH130: -7.549516567e-15 | BI130: -7.549516567e-15 | BJ130: -7.549516567e-15 | BK130: -7.549516567e-15 | BL130: -7.549516567e-15 | BM130: -7.549516567e-15 | BN130: -7.549516567e-15 | BO130: -7.549516567e-15 | BP130: -7.549516567e-15 | BQ130: -7.549516567e-15 | BR130: -7.549516567e-15 | BS130: -7.549516567e-15 | BT130: -7.549516567e-15 | BU130: -7.549516567e-15 | BV130: -7.549516567e-15 | BW130: -7.549516567e-15 | BX130: -7.549516567e-15 | BY130: -7.549516567e-15 | BZ130: -7.549516567e-15 | CA130: -7.549516567e-15
A131: =ROW() -> 131 | C131: Computers and Motor Vehicles | I131: =I56+I71+I86+I101 -> 0 | J131: 0 | K131: 0 | L131: 0 | M131: 0 | N131: 0 | O131: 0 | P131: 0 | Q131: 0 | R131: 0 | S131: 0 | T131: 0 | U131: 0 | V131: 0 | W131: 0 | X131: 0 | Y131: 4.19029705 | Z131: 7.249626789 | AA131: 10.87371574 | AB131: 13.89827056 | AC131: 34.95852597 | AD131: 31.82727971 | AE131: 32.23136505 | AF131: 43.63226022 | AG131: 42.10619264 | AH131: 37.40041265 | AI131: 41.54253607 | AJ131: 38.30024055 | AK131: 31.77296634 | AL131: 32.78602551 | AM131: 28.26873745 | AN131: 17.43914908 | AO131: 10.0620485 | AP131: 4.938648591 | AQ131: 1.358697785 | AR131: 2.753353101e-14 | AS131: =AS56+AS71+AS86+AS101 -> 2.753353101e-14 | AT131: 2.753353101e-14 | AU131: 2.753353101e-14 | AV131: 2.753353101e-14 | AW131: 2.753353101e-14 | AX131: 2.753353101e-14 | AY131: 2.753353101e-14 | AZ131: 2.753353101e-14 | BA131: 2.753353101e-14 | BB131: 2.753353101e-14 | BC131: 2.753353101e-14 | BD131: 2.753353101e-14 | BE131: 2.753353101e-14 | BF131: 2.753353101e-14 | BG131: 2.753353101e-14 | BH131: 2.753353101e-14 | BI131: 2.753353101e-14 | BJ131: 2.753353101e-14 | BK131: 2.753353101e-14 | BL131: 2.753353101e-14 | BM131: 2.753353101e-14 | BN131: 2.753353101e-14 | BO131: 2.753353101e-14 | BP131: 2.753353101e-14 | BQ131: 2.753353101e-14 | BR131: 2.753353101e-14 | BS131: 2.753353101e-14 | BT131: 2.753353101e-14 | BU131: 2.753353101e-14 | BV131: 2.753353101e-14 | BW131: 2.753353101e-14 | BX131: 2.753353101e-14 | BY131: 2.753353101e-14 | BZ131: 2.753353101e-14 | CA131: 2.753353101e-14
A132: =ROW() -> 132 | C132: Cathodic/Corrosion Protection | I132: =I57+I72+I87+I102 -> 0 | J132: 0 | K132: 0 | L132: 0 | M132: 0 | N132: 0 | O132: 0 | P132: 0 | Q132: 0 | R132: 0 | S132: 0 | T132: 0 | U132: 0 | V132: 0 | W132: 0 | X132: 0 | Y132: 1.059479029 | Z132: 2.950674193 | AA132: 8.868856679 | AB132: 17.70628451 | AC132: 69.27900311 | AD132: 68.92060433 | AE132: 69.64252882 | AF132: 70.95658527 | AG132: 68.95911273 | AH132: 55.35894583 | AI132: 55.16337514 | AJ132: 55.4524032 | AK132: 55.53907678 | AL132: 55.42225484 | AM132: 39.69019136 | AN132: 34.9589707 | AO132: 30.29838198 | AP132: 25.76387293 | AQ132: 21.62390938 | AR132: 16.76651612 | AS132: =AS57+AS72+AS87+AS102 -> 13.49952197 | AT132: 10.56681219 | AU132: 8.087255428 | AV132: 6.104069471 | AW132: 4.381095815 | AX132: 2.860387692 | AY132: 1.692009947 | AZ132: 0.8394687262 | BA132: 0.2778073941 | BB132: -1.221245327e-14 | BC132: -1.221245327e-14 | BD132: -1.221245327e-14 | BE132: -1.221245327e-14 | BF132: -1.221245327e-14 | BG132: -1.221245327e-14 | BH132: -1.221245327e-14 | BI132: -1.221245327e-14 | BJ132: -1.221245327e-14 | BK132: -1.221245327e-14 | BL132: -1.221245327e-14 | BM132: -1.221245327e-14 | BN132: -1.221245327e-14 | BO132: -1.221245327e-14 | BP132: -1.221245327e-14 | BQ132: -1.221245327e-14 | BR132: -1.221245327e-14 | BS132: -1.221245327e-14 | BT132: -1.221245327e-14 | BU132: -1.221245327e-14 | BV132: -1.221245327e-14 | BW132: -1.221245327e-14 | BX132: -1.221245327e-14 | BY132: -1.221245327e-14 | BZ132: -1.221245327e-14 | CA132: -1.221245327e-14
A133: =ROW() -> 133 | C133: SCADA , ECI And Comms | I133: =I58+I73+I88+I103 -> 0 | J133: 0 | K133: 0 | L133: 0 | M133: 0 | N133: 0 | O133: 0 | P133: 0 | Q133: 0 | R133: 0 | S133: 0 | T133: 0 | U133: 0 | V133: 0 | W133: 0 | X133: 0 | Y133: 6.625312635 | Z133: 14.3704175 | AA133: 17.88712323 | AB133: 25.71958024 | AC133: 125.6890697 | AD133: 82.88763468 | AE133: 91.3808684 | AF133: 98.42873242 | AG133: 109.178478 | AH133: 74.19712318 | AI133: 80.64192228 | AJ133: 85.02215951 | AK133: 88.34514632 | AL133: 91.59982815 | AM133: 86.75083302 | AN133: 71.7943686 | AO133: 57.05435744 | AP133: 43.69585117 | AQ133: 32.1648726 | AR133: 22.80745131 | AS133: =AS58+AS73+AS88+AS103 -> 14.96203033 | AT133: 8.815782603 | AU133: 4.265916159 | AV133: 1.288893033 | AW133: -2.664535259e-15 | AX133: -2.664535259e-15 | AY133: -2.664535259e-15 | AZ133: -2.664535259e-15 | BA133: -2.664535259e-15 | BB133: -2.664535259e-15 | BC133: -2.664535259e-15 | BD133: -2.664535259e-15 | BE133: -2.664535259e-15 | BF133: -2.664535259e-15 | BG133: -2.664535259e-15 | BH133: -2.664535259e-15 | BI133: -2.664535259e-15 | BJ133: -2.664535259e-15 | BK133: -2.664535259e-15 | BL133: -2.664535259e-15 | BM133: -2.664535259e-15 | BN133: -2.664535259e-15 | BO133: -2.664535259e-15 | BP133: -2.664535259e-15 | BQ133: -2.664535259e-15 | BR133: -2.664535259e-15 | BS133: -2.664535259e-15 | BT133: -2.664535259e-15 | BU133: -2.664535259e-15 | BV133: -2.664535259e-15 | BW133: -2.664535259e-15 | BX133: -2.664535259e-15 | BY133: -2.664535259e-15 | BZ133: -2.664535259e-15 | CA133: -2.664535259e-15
A134: =ROW() -> 134 | C134: Building | I134: =I59+I74+I89+I104 -> 0 | J134: 0 | K134: 0 | L134: 0 | M134: 0 | N134: 0 | O134: 0 | P134: 0 | Q134: 0 | R134: 0 | S134: 0 | T134: 4.247566484 | U134: 6.236905409 | V134: 7.437802818 | W134: 7.18311482 | X134: 7.062391656 | Y134: 6.823842013 | Z134: 6.559577422 | AA134: 6.29531283 | AB134: 6.031048239 | AC134: 5.766783647 | AD134: 6.202121139 | AE134: 7.148316523 | AF134: 6.684849198 | AG134: 7.349761008 | AH134: 10.21107647 | AI134: 11.58304355 | AJ134: 34.68601214 | AK134: 51.72330811 | AL134: 57.20828853 | AM134: 57.14206489 | AN134: 55.88895309 | AO134: 54.63584129 | AP134: 53.38272949 | AQ134: 52.12961768 | AR134: 50.87650588 | AS134: =AS59+AS74+AS89+AS104 -> 49.62339408 | AT134: 48.37028228 | AU134: 47.11717047 | AV134: 45.86405867 | AW134: 44.61094687 | AX134: 43.35783507 | AY134: 42.10472326 | AZ134: 40.85161146 | BA134: 39.59849966 | BB134: 38.34538786 | BC134: 37.09227605 | BD134: 35.83916425 | BE134: 34.58605245 | BF134: 33.33294065 | BG134: 32.07982884 | BH134: 30.82671704 | BI134: 29.57360524 | BJ134: 28.32049344 | BK134: 27.06738163 | BL134: 25.81426983 | BM134: 24.56115803 | BN134: 23.30804622 | BO134: 22.05493442 | BP134: 20.80182262 | BQ134: 19.54871082 | BR134: 18.29559901 | BS134: 17.10860387 | BT134: 15.96269176 | BU134: 14.84419046 | BV134: 13.72589561 | BW134: 12.61029403 | BX134: 11.4951613 | BY134: 10.38002858 | BZ134: 9.264895859 | CA134: 8.149763136
A135: =ROW() -> 135 | C135: Out of Service Asset in AA5 | I135: =I60+I75+I90+I105 -> 0 | J135: 0 | K135: 0 | L135: 0 | M135: 0 | N135: 0 | O135: 0 | P135: 0 | Q135: 0 | R135: 0 | S135: 0 | T135: 0 | U135: 0 | V135: 0 | W135: 0 | X135: 0 | Y135: 0 | Z135: 0 | AA135: 0 | AB135: 0 | AC135: 0 | AD135: 0 | AE135: 0 | AF135: 0 | AG135: 0 | AH135: =-AH155 -> 81.06469629 | AI135: 64.85175704 | AJ135: 48.63881778 | AK135: 32.42587852 | AL135: 16.21293926 | AM135: =AM60+AM75+AM90+AM105 -> 0 | AN135: 0 | AO135: 0 | AP135: 0 | AQ135: 0 | AR135: =AR60+AR75+AR90+AR105 -> 0 | AS135: =AS60+AS75+AS90+AS105 -> 0 | AT135: 0 | AU135: 0 | AV135: 0 | AW135: 0 | AX135: 0 | AY135: 0 | AZ135: 0 | BA135: 0 | BB135: 0 | BC135: 0 | BD135: 0 | BE135: 0 | BF135: 0 | BG135: 0 | BH135: 0 | BI135: 0 | BJ135: 0 | BK135: 0 | BL135: 0 | BM135: 0 | BN135: 0 | BO135: 0 | BP135: 0 | BQ135: 0 | BR135: 0 | BS135: 0 | BT135: 0 | BU135: 0 | BV135: 0 | BW135: 0 | BX135: 0 | BY135: 0 | BZ135: 0 | CA135: 0
A136: =ROW() -> 136 | C136: Out of Service Asset in AA6 | AM136: =-AM155 -> 21.79382515 | AN136: 17.43506012 | AO136: 13.07629509 | AP136: 8.717530062 | AQ136: 4.358765031 | AR136: =AR61+AR76+AR91+AR106 -> 0 | AS136: =AS61+AS76+AS91+AS106 -> 0 | AT136: 0 | AU136: 0 | AV136: 0 | AW136: 0 | AX136: 0 | AY136: 0 | AZ136: 0 | BA136: 0 | BB136: 0 | BC136: 0 | BD136: 0 | BE136: 0 | BF136: 0 | BG136: 0 | BH136: 0 | BI136: 0 | BJ136: 0 | BK136: 0 | BL136: 0 | BM136: 0 | BN136: 0 | BO136: 0 | BP136: 0 | BQ136: 0 | BR136: 0 | BS136: 0 | BT136: 0 | BU136: 0 | BV136: 0 | BW136: 0 | BX136: 0 | BY136: 0 | BZ136: 0 | CA136: 0
A137: =ROW() -> 137 | C137: Out of Service Asset in AA7 | AR137: =-AR155 -> 1.306591568 | AS137: =AS62+AS77+AS92+AS107 -> 1.045273254 | AT137: 0.7839549407 | AU137: 0.5226366271 | AV137: 0.2613183136 | AW137: 4.440892099e-16 | AX137: 4.440892099e-16 | AY137: 4.440892099e-16 | AZ137: 4.440892099e-16 | BA137: 4.440892099e-16 | BB137: 4.440892099e-16 | BC137: 4.440892099e-16 | BD137: 4.440892099e-16 | BE137: 4.440892099e-16 | BF137: 4.440892099e-16 | BG137: 4.440892099e-16 | BH137: 4.440892099e-16 | BI137: 4.440892099e-16 | BJ137: 4.440892099e-16 | BK137: 4.440892099e-16 | BL137: 4.440892099e-16 | BM137: 4.440892099e-16 | BN137: 4.440892099e-16 | BO137: 4.440892099e-16 | BP137: 4.440892099e-16 | BQ137: 4.440892099e-16 | BR137: 4.440892099e-16 | BS137: 4.440892099e-16 | BT137: 4.440892099e-16 | BU137: 4.440892099e-16 | BV137: 4.440892099e-16 | BW137: 4.440892099e-16 | BX137: 4.440892099e-16 | BY137: 4.440892099e-16 | BZ137: 4.440892099e-16 | CA137: 4.440892099e-16
